Workbook

Sheet ReadMe (hidden)
A1: =ModelName -> Revenue & Tariff Model
A2: Read Me
B11: Blue Tabs | C11: Contains Text not linked to the model calculations
B12: Green Tabs | C12: Contains Model Outputs
B13: Red Tabs | C13: Contains Calculations
B14: Yellow Tabs | C14: Contains Inputs to the Model
A77: 2011-04-25 | B77: Updated HrsPerMonth with Terry's tables

Sheet Cover
A1: =ModelName -> Revenue & Tariff Model
A2: Cover Sheet

Sheet Output ProjYr (hidden)
A1: =ModelName -> Revenue & Tariff Model | DC1: 1000000
A2: Output Sheet (Project Year) | AV2: 12
BH3: 1 | BI3: =BH3+1 -> 2 | BJ3: =BI3+1 -> 3 | BK3: 4 | BL3: 5 | BM3: 6 | BN3: 7 | BO3: 8 | BP3: 9 | BQ3: 10 | BR3: 11 | BS3: 12 | BT3: 13 | BU3: 14 | BV3: 15 | BW3: 16 | BX3: 17 | BY3: 18 | BZ3: 19 | CA3: 20 | CB3: 21 | CC3: 22
B4: Energy Revenues - Contract/Peak/Capacity Markets | L4: Capacity Revenues - Contract/Peak/Capacity Markets | V4: Energy Revenues - Off peak/energy markets | AI4: Tariffs By System | AV4: Ave Monthly Gen Cap Used By Capacity-Backed Market (MW, As Seen at Bus) | BI4: Energy Dispatched By Market (GWh, As Seen at Bus) | CF4: Energy Dispatched By Market (GWh, In Market) | DC4: Tariffs By Market ($ '000,000)
A5: Project Year | B5: ='NTB Inputs'!$B$48 -> Emera Block A (Capacity-Backed Mkt) | C5: ='NTB Inputs'!$B$49 -> Island Load (Capacity-Backed Mkt) | D5: ='NTB Inputs'!$B$50 -> NYISO via HQ (Capacity-Backed Mkt) | E5: ='NTB Inputs'!$B$51 -> NEISO via Bayside (Capacity-Backed Mkt) | F5: ='NTB Inputs'!$B$52 -> UARB1 peak | G5: ='NTB Inputs'!$B$53 -> CapBkMkt Spare | H5: ='NTB Inputs'!$B$54 -> CapBkMkt Spare | I5: ='NTB Inputs'!$B$55 -> CapBkMkt Spare | J5: ='NTB Inputs'!$B$56 -> CapBkMkt Spare | K5: ='NTB Inputs'!$B$57 -> CapBkMkt Spare | L5: ='NTB Inputs'!$B$48 -> Emera Block A (Capacity-Backed Mkt) | M5: ='NTB Inputs'!$B$49 -> Island Load (Capacity-Backed Mkt) | N5: ='NTB Inputs'!$B$50 -> NYISO via HQ (Capacity-Backed Mkt) | O5: ='NTB Inputs'!$B$51 -> NEISO via Bayside (Capacity-Backed Mkt) | P5: ='NTB Inputs'!$B$52 -> UARB1 peak | Q5: ='NTB Inputs'!$B$53 -> CapBkMkt Spare | R5: ='NTB Inputs'!$B$54 -> CapBkMkt Spare | S5: ='NTB Inputs'!$B$55 -> CapBkMkt Spare | T5: ='NTB Inputs'!$B$56 -> CapBkMkt Spare | U5: ='NTB Inputs'!$B$57 -> CapBkMkt Spare | V5: ='NTB Inputs'!$B$58 -> UARB1 peak energy backstop | W5: ='NTB Inputs'!$B$59 -> UARB2 off-peak | X5: ='NTB Inputs'!$B$60 -> NYISO via HQ (Energy Mkt) | Y5: ='NTB Inputs'!$B$61 -> NEISO via Bayside (Energy Mkt) | Z5: ='NTB Inputs'!$B$62 -> NS Residual Sales | AA5: ='NTB Inputs'!$B$63 -> Maritime Link netback residual | AB5: ='NTB Inputs'!$B$64 -> EnMkt Spare | AC5: ='NTB Inputs'!$B$65 -> EnMkt Spare | AD5: ='NTB Inputs'!$B$66 -> EnMkt Spare | AE5: ='NTB Inputs'!$B$67 -> Spill (Non-Firm) Market | AF5: Total | AH5: Project Year | AI5: ='NTB Inputs'!$B$72 -> Island Link | AJ5: ='NTB Inputs'!$B$73 -> Island Grid | AK5: ='NTB Inputs'!$B$74 -> Maritime Link | AL5: ='NTB Inputs'!$B$75 -> NS Grid | AM5: ='NTB Inputs'!$B$76 -> NB Bayside Grid | AN5: ='NTB Inputs'!$B$77 -> Labrador Grid | AO5: ='NTB Inputs'!$B$78 -> HQ Grid | AP5: ='NTB Inputs'!$B$79 -> MEPCO | AQ5: ='NTB Inputs'!$B$80 -> Spare Txn Grid | AR5: ='NTB Inputs'!$B$81 -> Spare Txn Grid | AS5: Total | AU5: Project Year | AV5: ='NTB Inputs'!$B$48 -> Emera Block A (Capacity-Backed Mkt) | AW5: ='NTB Inputs'!$B$49 -> Island Load (Capacity-Backed Mkt) | AX5: ='NTB Inputs'!$B$50 -> NYISO via HQ (Capacity-Backed Mkt) | AY5: ='NTB Inputs'!$B$51 -> NEISO via Bayside (Capacity-Backed Mkt) | AZ5: ='NTB Inputs'!$B$52 -> UARB1 peak | BA5: ='NTB Inputs'!$B$53 -> CapBkMkt Spare | BB5: ='NTB Inputs'!$B$54 -> CapBkMkt Spare | BC5: ='NTB Inputs'!$B$55 -> CapBkMkt Spare | BD5: ='NTB Inputs'!$B$56 -> CapBkMkt Spare | BE5: ='NTB Inputs'!$B$57 -> CapBkMkt Spare | BF5: Total | BH5: Project Year | BI5: ='NTB Inputs'!$B$48 -> Emera Block A (Capacity-Backed Mkt) | BJ5: ='NTB Inputs'!$B$49 -> Island Load (Capacity-Backed Mkt) | BK5: ='NTB Inputs'!$B$50 -> NYISO via HQ (Capacity-Backed Mkt) | BL5: ='NTB Inputs'!$B$51 -> NEISO via Bayside (Capacity-Backed Mkt) | BM5: ='NTB Inputs'!$B$52 -> UARB1 peak | BN5: ='NTB Inputs'!$B$53 -> CapBkMkt Spare | BO5: ='NTB Inputs'!$B$54 -> CapBkMkt Spare | BP5: ='NTB Inputs'!$B$55 -> CapBkMkt Spare | BQ5: ='NTB Inputs'!$B$56 -> CapBkMkt Spare | BR5: ='NTB Inputs'!$B$57 -> CapBkMkt Spare | BS5: ='NTB Inputs'!$B$58 -> UARB1 peak energy backstop | BT5: ='NTB Inputs'!$B$59 -> UARB2 off-peak | BU5: ='NTB Inputs'!$B$60 -> NYISO via HQ (Energy Mkt) | BV5: ='NTB Inputs'!$B$61 -> NEISO via Bayside (Energy Mkt) | BW5: ='NTB Inputs'!$B$62 -> NS Residual Sales | BX5: ='NTB Inputs'!$B$63 -> Maritime Link netback residual | BY5: ='NTB Inputs'!$B$64 -> EnMkt Spare | BZ5: ='NTB Inputs'!$B$65 -> EnMkt Spare | CA5: ='NTB Inputs'!$B$66 -> EnMkt Spare | CB5: ='NTB Inputs'!$B$67 -> Spill (Non-Firm) Market | CC5: Total | CE5: Project Year | CF5: ='NTB Inputs'!$B$48 -> Emera Block A (Capacity-Backed Mkt) | CG5: ='NTB Inputs'!$B$49 -> Island Load (Capacity-Backed Mkt) | CH5: ='NTB Inputs'!$B$50 -> NYISO via HQ (Capacity-Backed Mkt) | CI5: ='NTB Inputs'!$B$51 -> NEISO via Bayside (Capacity-Backed Mkt) | CJ5: ='NTB Inputs'!$B$52 -> UARB1 peak | CK5: ='NTB Inputs'!$B$53 -> CapBkMkt Spare | CL5: ='NTB Inputs'!$B$54 -> CapBkMkt Spare | CM5: ='NTB Inputs'!$B$55 -> CapBkMkt Spare | CN5: ='NTB Inputs'!$B$56 -> CapBkMkt Spare | CO5: ='NTB Inputs'!$B$57 -> CapBkMkt Spare | CP5: ='NTB Inputs'!$B$58 -> UARB1 peak energy backstop | CQ5: ='NTB Inputs'!$B$59 -> UARB2 off-peak | CR5: ='NTB Inputs'!$B$60 -> NYISO via HQ (Energy Mkt) | CS5: ='NTB Inputs'!$B$61 -> NEISO via Bayside (Energy Mkt) | CT5: ='NTB Inputs'!$B$62 -> NS Residual Sales | CU5: ='NTB Inputs'!$B$63 -> Maritime Link netback residual | CV5: ='NTB Inputs'!$B$64 -> EnMkt Spare | CW5: ='NTB Inputs'!$B$65 -> EnMkt Spare | CX5: ='NTB Inputs'!$B$66 -> EnMkt Spare | CY5: ='NTB Inputs'!$B$67 -> Spill (Non-Firm) Market | CZ5: Total | DB5: Project Year | DC5: ='NTB Inputs'!$B$48 -> Emera Block A (Capacity-Backed Mkt) | DD5: ='NTB Inputs'!$B$49 -> Island Load (Capacity-Backed Mkt) | DE5: ='NTB Inputs'!$B$50 -> NYISO via HQ (Capacity-Backed Mkt) | DF5: ='NTB Inputs'!$B$51 -> NEISO via Bayside (Capacity-Backed Mkt) | DG5: ='NTB Inputs'!$B$52 -> UARB1 peak | DH5: ='NTB Inputs'!$B$53 -> CapBkMkt Spare | DI5: ='NTB Inputs'!$B$54 -> CapBkMkt Spare | DJ5: ='NTB Inputs'!$B$55 -> CapBkMkt Spare | DK5: ='NTB Inputs'!$B$56 -> CapBkMkt Spare | DL5: ='NTB Inputs'!$B$57 -> CapBkMkt Spare | DM5: ='NTB Inputs'!$B$58 -> UARB1 peak energy backstop | DN5: ='NTB Inputs'!$B$59 -> UARB2 off-peak | DO5: ='NTB Inputs'!$B$60 -> NYISO via HQ (Energy Mkt) | DP5: ='NTB Inputs'!$B$61 -> NEISO via Bayside (Energy Mkt) | DQ5: ='NTB Inputs'!$B$62 -> NS Residual Sales | DR5: ='NTB Inputs'!$B$63 -> Maritime Link netback residual | DS5: ='NTB Inputs'!$B$64 -> EnMkt Spare | DT5: ='NTB Inputs'!$B$65 -> EnMkt Spare | DU5: ='NTB Inputs'!$B$66 -> EnMkt Spare | DV5: ='NTB Inputs'!$B$67 -> Spill (Non-Firm) Market | DW5: Total
A6: -1 | B6: =SUMIF(Calcs!$F$9:$AOS$9,'Output ProjYr'!$A6,Calcs!$F$528:$AOS$528) -> 0 | C6: =SUMIF(Calcs!$F$9:$AOS$9,'Output ProjYr'!$A6,Calcs!$F$602:$AOS$602) -> 0 | D6: =SUMIF(Calcs!$F$9:$AOS$9,'Output ProjYr'!$A6,Calcs!$F$676:$AOS$676) -> 0 | E6: =SUMIF(Calcs!$F$9:$AOS$9,'Output ProjYr'!$A6,Calcs!$F$750:$AOS$750) -> 0 | F6: =SUMIF(Calcs!$F$9:$AOS$9,'Output ProjYr'!$A6,Calcs!$F$824:$AOS$824) -> 0 | G6: =SUMIF(Calcs!$F$9:$AOS$9,'Output ProjYr'!$A6,Calcs!$F$898:$AOS$898) -> 0 | H6: =SUMIF(Calcs!$F$9:$AOS$9,'Output ProjYr'!$A6,Calcs!$F$972:$AOS$972) -> 0 | I6: =SUMIF(Calcs!$F$9:$AOS$9,'Output ProjYr'!$A6,Calcs!$F$1046:$AOS$1046) -> 0 | J6: =SUMIF(Calcs!$F$9:$AOS$9,'Output ProjYr'!$A6,Calcs!$F$1120:$AOS$1120) -> 0 | K6: =SUMIF(Calcs!$F$9:$AOS$9,'Output ProjYr'!$A6,Calcs!$F$1194:$AOS$1194) -> 0 | L6: =SUMIF(Calcs!$F$9:$AOS$9,'Output ProjYr'!$A6,Calcs!$F$525:$AOS$525) -> 0 | M6: =SUMIF(Calcs!$F$9:$AOS$9,'Output ProjYr'!$A6,Calcs!$F$599:$AOS$599) -> 0 | N6: =SUMIF(Calcs!$F$9:$AOS$9,'Output ProjYr'!$A6,Calcs!$F$673:$AOS$673) -> 0 | O6: =SUMIF(Calcs!$F$9:$AOS$9,'Output ProjYr'!$A6,Calcs!$F$747:$AOS$747) -> 0 | P6: =SUMIF(Calcs!$F$9:$AOS$9,'Output ProjYr'!$A6,Calcs!$F$821:$AOS$821) -> 0 | Q6: =SUMIF(Calcs!$F$9:$AOS$9,'Output ProjYr'!$A6,Calcs!$F$895:$AOS$895) -> 0 | R6: =SUMIF(Calcs!$F$9:$AOS$9,'Output ProjYr'!$A6,Calcs!$F$969:$AOS$969) -> 0 | S6: =SUMIF(Calcs!$F$9:$AOS$9,'Output ProjYr'!$A6,Calcs!$F$1043:$AOS$1043) -> 0 | T6: =SUMIF(Calcs!$F$9:$AOS$9,'Output ProjYr'!$A6,Calcs!$F$1117:$AOS$1117) -> 0 | U6: =SUMIF(Calcs!$F$9:$AOS$9,'Output ProjYr'!$A6,Calcs!$F$1191:$AOS$1191) -> 0 | V6: =SUMIF(Calcs!$F$9:$AOS$9,'Output ProjYr'!$A6,Calcs!$F$1257:$AOS$1257) -> 0 | W6: =SUMIF(Calcs!$F$9:$AOS$9,'Output ProjYr'!$A6,Calcs!$F$1294:$AOS$1294) -> 0 | X6: =SUMIF(Calcs!$F$9:$AOS$9,'Output ProjYr'!$A6,Calcs!$F$1331:$AOS$1331) -> 0 | Y6: =SUMIF(Calcs!$F$9:$AOS$9,'Output ProjYr'!$A6,Calcs!$F$1368:$AOS$1368) -> 0 | Z6: =SUMIF(Calcs!$F$9:$AOS$9,'Output ProjYr'!$A6,Calcs!$F$1405:$AOS$1405) -> 0 | AA6: =SUMIF(Calcs!$F$9:$AOS$9,'Output ProjYr'!$A6,Calcs!$F$1442:$AOS$1442) -> 0 | AB6: =SUMIF(Calcs!$F$9:$AOS$9,'Output ProjYr'!$A6,Calcs!$F$1479:$AOS$1479) -> 0 | AC6: =SUMIF(Calcs!$F$9:$AOS$9,'Output ProjYr'!$A6,Calcs!$F$1516:$AOS$1516) -> 0 | AD6: =SUMIF(Calcs!$F$9:$AOS$9,'Output ProjYr'!$A6,Calcs!$F$1553:$AOS$1553) -> 0 | AE6: =SUMIF(Calcs!$F$9:$AOS$9,'Output ProjYr'!$A6,Calcs!$F$1590:$AOS$1590) -> 0 | AF6: =SUM(B6:AE6) -> 0 | AH6: =A6 -> -1 | AI6: =SUMIF(Calcs!$F$9:$AOS$9,'Output ProjYr'!$AH6,Calcs!$F$1714:$AOS$1714) -> 0 | AJ6: =SUMIF(Calcs!$F$9:$AOS$9,'Output ProjYr'!$AH6,Calcs!$F$1715:$AOS$1715) -> 0 | AK6: =SUMIF(Calcs!$F$9:$AOS$9,'Output ProjYr'!$AH6,Calcs!$F$1716:$AOS$1716) -> 0 | AL6: =SUMIF(Calcs!$F$9:$AOS$9,'Output ProjYr'!$AH6,Calcs!$F$1717:$AOS$1717) -> 0 | AM6: =SUMIF(Calcs!$F$9:$AOS$9,'Output ProjYr'!$AH6,Calcs!$F$1718:$AOS$1718) -> 0 | AN6: =SUMIF(Calcs!$F$9:$AOS$9,'Output ProjYr'!$AH6,Calcs!$F$1719:$AOS$1719) -> 0 | AO6: =SUMIF(Calcs!$F$9:$AOS$9,'Output ProjYr'!$AH6,Calcs!$F$1720:$AOS$1720) -> 0 | AP6: =SUMIF(Calcs!$F$9:$AOS$9,'Output ProjYr'!$AH6,Calcs!$F$1721:$AOS$1721) -> 0 | AQ6: =SUMIF(Calcs!$F$9:$AOS$9,'Output ProjYr'!$AH6,Calcs!$F$1722:$AOS$1722) -> 0 | AR6: =SUMIF(Calcs!$F$9:$AOS$9,'Output ProjYr'!$AH6,Calcs!$F$1723:$AOS$1723) -> 0 | AS6: =SUM(AI6:AR6) -> 0 | AU6: =A6 -> -1 | AV6: =SUMIF(Calcs!$F$9:$AOS$9,'Output ProjYr'!$AU6,Calcs!$F$514:$AOS$514)/12 -> 0 | AW6: =(SUMIF(Calcs!$F$9:$AOS$9,'Output ProjYr'!$AU6,Calcs!$F$588:$AOS$588))/12 -> 0 | AX6: =(SUMIF(Calcs!$F$9:$AOS$9,'Output ProjYr'!$AU6,Calcs!$F$662:$AOS$662))/12 -> 0 | AY6: =(SUMIF(Calcs!$F$9:$AOS$9,'Output ProjYr'!$AU6,Calcs!$F$736:$AOS$736))/12 -> 0 | AZ6: =(SUMIF(Calcs!$F$9:$AOS$9,'Output ProjYr'!$AU6,Calcs!$F$810:$AOS$810))/12 -> 0 | BA6: =(SUMIF(Calcs!$F$9:$AOS$9,'Output ProjYr'!$AU6,Calcs!$F$884:$AOS$884))/12 -> 0 | BB6: =(SUMIF(Calcs!$F$9:$AOS$9,'Output ProjYr'!$AU6,Calcs!$F$958:$AOS$958))/12 -> 0 | BC6: =(SUMIF(Calcs!$F$9:$AOS$9,'Output ProjYr'!$AU6,Calcs!$F$1032:$AOS$1032))/12 -> 0 | BD6: =(SUMIF(Calcs!$F$9:$AOS$9,'Output ProjYr'!$AU6,Calcs!$F$1106:$AOS$1106))/12 -> 0 | BE6: =(SUMIF(Calcs!$F$9:$AOS$9,'Output ProjYr'!$AU6,Calcs!$F$1180:$AOS$1180))/12 -> 0 | BF6: =SUM(AV6:BE6) -> 0 | BH6: =A6 -> -1 | BI6: =SUMIF(Calcs!$F$9:$AOS$9,'Output ProjYr'!$BH6,Calcs!$F$520:$AOS$520) -> 0 | BJ6: =SUMIF(Calcs!$F$9:$AOS$9,'Output ProjYr'!$BH6,Calcs!$F$594:$AOS$594) -> 0 | BK6: =SUMIF(Calcs!$F$9:$AOS$9,'Output ProjYr'!$BH6,Calcs!$F$668:$AOS$668) -> 0 | BL6: =SUMIF(Calcs!$F$9:$AOS$9,'Output ProjYr'!$BH6,Calcs!$F$742:$AOS$742) -> 0 | BM6: =SUMIF(Calcs!$F$9:$AOS$9,'Output ProjYr'!$BH6,Calcs!$F$816:$AOS$816) -> 0 | BN6: =SUMIF(Calcs!$F$9:$AOS$9,'Output ProjYr'!$BH6,Calcs!$F$890:$AOS$890) -> 0 | BO6: =SUMIF(Calcs!$F$9:$AOS$9,'Output ProjYr'!$BH6,Calcs!$F$964:$AOS$964) -> 0 | BP6: =SUMIF(Calcs!$F$9:$AOS$9,'Output ProjYr'!$BH6,Calcs!$F$1038:$AOS$1038) -> 0 | BQ6: =SUMIF(Calcs!$F$9:$AOS$9,'Output ProjYr'!$BH6,Calcs!$F$1112:$AOS$1112) -> 0 | BR6: =SUMIF(Calcs!$F$9:$AOS$9,'Output ProjYr'!$BH6,Calcs!$F$1186:$AOS$1186) -> 0 | BS6: =SUMIF(Calcs!$F$9:$AOS$9,'Output ProjYr'!$BH6,Calcs!$F$1252:$AOS$1252) -> 0 | BT6: =SUMIF(Calcs!$F$9:$AOS$9,'Output ProjYr'!$BH6,Calcs!$F$1289:$AOS$1289) -> 0 | BU6: =SUMIF(Calcs!$F$9:$AOS$9,'Output ProjYr'!$BH6,Calcs!$F$1326:$AOS$1326) -> 0 | BV6: =SUMIF(Calcs!$F$9:$AOS$9,'Output ProjYr'!$BH6,Calcs!$F$1363:$AOS$1363) -> 0 | BW6: =SUMIF(Calcs!$F$9:$AOS$9,'Output ProjYr'!$BH6,Calcs!$F$1400:$AOS$1400) -> 0 | BX6: =SUMIF(Calcs!$F$9:$AOS$9,'Output ProjYr'!$BH6,Calcs!$F$1437:$AOS$1437) -> 0 | BY6: =SUMIF(Calcs!$F$9:$AOS$9,'Output ProjYr'!$BH6,Calcs!$F$1474:$AOS$1474) -> 0 | BZ6: =SUMIF(Calcs!$F$9:$AOS$9,'Output ProjYr'!$BH6,Calcs!$F$1511:$AOS$1511) -> 0 | CA6: =SUMIF(Calcs!$F$9:$AOS$9,'Output ProjYr'!$BH6,Calcs!$F$1548:$AOS$1548) -> 0 | CB6: =SUMIF(Calcs!$F$9:$AOS$9,'Output ProjYr'!$BH6,Calcs!$F$1585:$AOS$1585) -> 0 | CC6: =SUM(BI6:CB6) -> 0 | CE6: =$A6 -> -1 | CF6: =SUMIF(Calcs!$F$9:$AOS$9,$CE6,Calcs!$F$521:$AOS$521) -> 0 | CG6: =SUMIF(Calcs!$F$9:$AOS$9,$CE6,Calcs!$F$595:$AOS$595) -> 0 | CH6: =SUMIF(Calcs!$F$9:$AOS$9,$CE6,Calcs!$F$669:$AOS$669) -> 0 | CI6: =SUMIF(Calcs!$F$9:$AOS$9,$CE6,Calcs!$F$743:$AOS$743) -> 0 | CJ6: =SUMIF(Calcs!$F$9:$AOS$9,$CE6,Calcs!$F$817:$AOS$817) -> 0 | CK6: =SUMIF(Calcs!$F$9:$AOS$9,$CE6,Calcs!$F$891:$AOS$891) -> 0 | CL6: =SUMIF(Calcs!$F$9:$AOS$9,$CE6,Calcs!$F$965:$AOS$965) -> 0 | CM6: =SUMIF(Calcs!$F$9:$AOS$9,$CE6,Calcs!$F$1039:$AOS$1039) -> 0 | CN6: =SUMIF(Calcs!$F$9:$AOS$9,$CE6,Calcs!$F$1113:$AOS$1113) -> 0 | CO6: =SUMIF(Calcs!$F$9:$AOS$9,$CE6,Calcs!$F$1187:$AOS$1187) -> 0 | CP6: =SUMIF(Calcs!$F$9:$AOS$9,$CE6,Calcs!$F$1253:$AOS$1253) -> 0 | CQ6: =SUMIF(Calcs!$F$9:$AOS$9,$CE6,Calcs!$F$1290:$AOS$1290) -> 0 | CR6: =SUMIF(Calcs!$F$9:$AOS$9,$CE6,Calcs!$F$1327:$AOS$1327) -> 0 | CS6: =SUMIF(Calcs!$F$9:$AOS$9,$CE6,Calcs!$F$1364:$AOS$1364) -> 0 | CT6: =SUMIF(Calcs!$F$9:$AOS$9,$CE6,Calcs!$F$1401:$AOS$1401) -> 0 | CU6: =SUMIF(Calcs!$F$9:$AOS$9,$CE6,Calcs!$F$1438:$AOS$1438) -> 0 | CV6: =SUMIF(Calcs!$F$9:$AOS$9,$CE6,Calcs!$F$1475:$AOS$1475) -> 0 | CW6: =SUMIF(Calcs!$F$9:$AOS$9,$CE6,Calcs!$F$1512:$AOS$1512) -> 0 | CX6: =SUMIF(Calcs!$F$9:$AOS$9,$CE6,Calcs!$F$1549:$AOS$1549) -> 0 | CY6: =SUMIF(Calcs!$F$9:$AOS$9,$CE6,Calcs!$F$1586:$AOS$1586) -> 0 | CZ6: =SUM(CF6:CY6) -> 0 | DB6: =$A6 -> -1 | DC6: =(SUMIF(Calcs!$F$9:$AOS$9,'Output ProjYr'!$DB6,Calcs!$F$567:$AOS$567))/1000000 -> 0 | DD6: =(SUMIF(Calcs!$F$9:$AOS$9,'Output ProjYr'!$DB6,Calcs!$F$641:$AOS$641))/1000000 -> 0 | DE6: =(SUMIF(Calcs!$F$9:$AOS$9,'Output ProjYr'!$DB6,Calcs!$F$715:$AOS$715))/1000000 -> 0 | DF6: =(SUMIF(Calcs!$F$9:$AOS$9,'Output ProjYr'!$DB6,Calcs!$F$789:$AOS$789))/1000000 -> 0 | DG6: =(SUMIF(Calcs!$F$9:$AOS$9,'Output ProjYr'!$DB6,Calcs!$F$863:$AOS$863))/1000000 -> 0 | DH6: =(SUMIF(Calcs!$F$9:$AOS$9,'Output ProjYr'!$DB6,Calcs!$F$937:$AOS$937))/1000000 -> 0 | DI6: =(SUMIF(Calcs!$F$9:$AOS$9,'Output ProjYr'!$DB6,Calcs!$F$1011:$AOS$1011))/1000000 -> 0 | DJ6: =(SUMIF(Calcs!$F$9:$AOS$9,'Output ProjYr'!$DB6,Calcs!$F$1085:$AOS$1085))/1000000 -> 0 | DK6: =(SUMIF(Calcs!$F$9:$AOS$9,'Output ProjYr'!$DB6,Calcs!$F$1159:$AOS$1159))/1000000 -> 0 | DL6: =(SUMIF(Calcs!$F$9:$AOS$9,'Output ProjYr'!$DB6,Calcs!$F$1233:$AOS$1233))/1000000 -> 0 | DO6: =(SUMIF(Calcs!$F$9:$AOS$9,'Output ProjYr'!$DB6,Calcs!$F$1344:$AOS$1344))/1000000 -> 0 | DV6: =(SUMIF(Calcs!$F$9:$AOS$9,'Output ProjYr'!$DB6,Calcs!$F$1603:$AOS$1603))/1000000 -> 0 | DW6: =SUM(DC6:DV6) -> 0
A7: =A6+1 -> 0 | B7: =SUMIF(Calcs!$F$9:$AOS$9,'Output ProjYr'!$A7,Calcs!$F$528:$AOS$528) -> 0 | C7: =SUMIF(Calcs!$F$9:$AOS$9,'Output ProjYr'!$A7,Calcs!$F$602:$AOS$602) -> 0 | D7: =SUMIF(Calcs!$F$9:$AOS$9,'Output ProjYr'!$A7,Calcs!$F$676:$AOS$676) -> 0 | E7: =SUMIF(Calcs!$F$9:$AOS$9,'Output ProjYr'!$A7,Calcs!$F$750:$AOS$750) -> 0 | F7: =SUMIF(Calcs!$F$9:$AOS$9,'Output ProjYr'!$A7,Calcs!$F$824:$AOS$824) -> 0 | G7: =SUMIF(Calcs!$F$9:$AOS$9,'Output ProjYr'!$A7,Calcs!$F$898:$AOS$898) -> 0 | H7: =SUMIF(Calcs!$F$9:$AOS$9,'Output ProjYr'!$A7,Calcs!$F$972:$AOS$972) -> 0 | I7: =SUMIF(Calcs!$F$9:$AOS$9,'Output ProjYr'!$A7,Calcs!$F$1046:$AOS$1046) -> 0 | J7: =SUMIF(Calcs!$F$9:$AOS$9,'Output ProjYr'!$A7,Calcs!$F$1120:$AOS$1120) -> 0 | K7: =SUMIF(Calcs!$F$9:$AOS$9,'Output ProjYr'!$A7,Calcs!$F$1194:$AOS$1194) -> 0 | L7: =SUMIF(Calcs!$F$9:$AOS$9,'Output ProjYr'!$A7,Calcs!$F$525:$AOS$525) -> 0 | M7: =SUMIF(Calcs!$F$9:$AOS$9,'Output ProjYr'!$A7,Calcs!$F$599:$AOS$599) -> 0 | N7: =SUMIF(Calcs!$F$9:$AOS$9,'Output ProjYr'!$A7,Calcs!$F$673:$AOS$673) -> 0 | O7: =SUMIF(Calcs!$F$9:$AOS$9,'Output ProjYr'!$A7,Calcs!$F$747:$AOS$747) -> 0 | P7: =SUMIF(Calcs!$F$9:$AOS$9,'Output ProjYr'!$A7,Calcs!$F$821:$AOS$821) -> 0 | Q7: =SUMIF(Calcs!$F$9:$AOS$9,'Output ProjYr'!$A7,Calcs!$F$895:$AOS$895) -> 0 | R7: =SUMIF(Calcs!$F$9:$AOS$9,'Output ProjYr'!$A7,Calcs!$F$969:$AOS$969) -> 0 | S7: =SUMIF(Calcs!$F$9:$AOS$9,'Output ProjYr'!$A7,Calcs!$F$1043:$AOS$1043) -> 0 | T7: =SUMIF(Calcs!$F$9:$AOS$9,'Output ProjYr'!$A7,Calcs!$F$1117:$AOS$1117) -> 0 | U7: =SUMIF(Calcs!$F$9:$AOS$9,'Output ProjYr'!$A7,Calcs!$F$1191:$AOS$1191) -> 0 | V7: =SUMIF(Calcs!$F$9:$AOS$9,'Output ProjYr'!$A7,Calcs!$F$1257:$AOS$1257) -> 0 | W7: =SUMIF(Calcs!$F$9:$AOS$9,'Output ProjYr'!$A7,Calcs!$F$1294:$AOS$1294) -> 0 | X7: =SUMIF(Calcs!$F$9:$AOS$9,'Output ProjYr'!$A7,Calcs!$F$1331:$AOS$1331) -> 0 | Y7: =SUMIF(Calcs!$F$9:$AOS$9,'Output ProjYr'!$A7,Calcs!$F$1368:$AOS$1368) -> 0 | Z7: =SUMIF(Calcs!$F$9:$AOS$9,'Output ProjYr'!$A7,Calcs!$F$1405:$AOS$1405) -> 0 | AA7: =SUMIF(Calcs!$F$9:$AOS$9,'Output ProjYr'!$A7,Calcs!$F$1442:$AOS$1442) -> 0 | AB7: =SUMIF(Calcs!$F$9:$AOS$9,'Output ProjYr'!$A7,Calcs!$F$1479:$AOS$1479) -> 0 | AC7: =SUMIF(Calcs!$F$9:$AOS$9,'Output ProjYr'!$A7,Calcs!$F$1516:$AOS$1516) -> 0 | AD7: =SUMIF(Calcs!$F$9:$AOS$9,'Output ProjYr'!$A7,Calcs!$F$1553:$AOS$1553) -> 0 | AE7: =SUMIF(Calcs!$F$9:$AOS$9,'Output ProjYr'!$A7,Calcs!$F$1590:$AOS$1590) -> 0 | AF7: =SUM(B7:AE7) -> 0 | AH7: =A7 -> 0 | AI7: =SUMIF(Calcs!$F$9:$AOS$9,'Output ProjYr'!$AH7,Calcs!$F$1714:$AOS$1714) -> 0 | AJ7: =SUMIF(Calcs!$F$9:$AOS$9,'Output ProjYr'!$AH7,Calcs!$F$1715:$AOS$1715) -> 0 | AK7: =SUMIF(Calcs!$F$9:$AOS$9,'Output ProjYr'!$AH7,Calcs!$F$1716:$AOS$1716) -> 0 | AL7: =SUMIF(Calcs!$F$9:$AOS$9,'Output ProjYr'!$AH7,Calcs!$F$1717:$AOS$1717) -> 0 | AM7: =SUMIF(Calcs!$F$9:$AOS$9,'Output ProjYr'!$AH7,Calcs!$F$1718:$AOS$1718) -> 0 | AN7: =SUMIF(Calcs!$F$9:$AOS$9,'Output ProjYr'!$AH7,Calcs!$F$1719:$AOS$1719) -> 0 | AO7: =SUMIF(Calcs!$F$9:$AOS$9,'Output ProjYr'!$AH7,Calcs!$F$1720:$AOS$1720) -> 0 | AP7: =SUMIF(Calcs!$F$9:$AOS$9,'Output ProjYr'!$AH7,Calcs!$F$1721:$AOS$1721) -> 0 | AQ7: =SUMIF(Calcs!$F$9:$AOS$9,'Output ProjYr'!$AH7,Calcs!$F$1722:$AOS$1722) -> 0 | AR7: =SUMIF(Calcs!$F$9:$AOS$9,'Output ProjYr'!$AH7,Calcs!$F$1723:$AOS$1723) -> 0 | AS7: =SUM(AI7:AR7) -> 0 | AU7: =A7 -> 0 | AV7: =SUMIF(Calcs!$F$9:$AOS$9,'Output ProjYr'!$AU7,Calcs!$F$514:$AOS$514)/12 -> 0 | AW7: =(SUMIF(Calcs!$F$9:$AOS$9,'Output ProjYr'!$AU7,Calcs!$F$588:$AOS$588))/12 -> 0 | AX7: =(SUMIF(Calcs!$F$9:$AOS$9,'Output ProjYr'!$AU7,Calcs!$F$662:$AOS$662))/12 -> 0 | AY7: =(SUMIF(Calcs!$F$9:$AOS$9,'Output ProjYr'!$AU7,Calcs!$F$736:$AOS$736))/12 -> 0 | AZ7: =(SUMIF(Calcs!$F$9:$AOS$9,'Output ProjYr'!$AU7,Calcs!$F$810:$AOS$810))/12 -> 0 | BA7: =(SUMIF(Calcs!$F$9:$AOS$9,'Output ProjYr'!$AU7,Calcs!$F$884:$AOS$884))/12 -> 0 | BB7: =(SUMIF(Calcs!$F$9:$AOS$9,'Output ProjYr'!$AU7,Calcs!$F$958:$AOS$958))/12 -> 0 | BC7: =(SUMIF(Calcs!$F$9:$AOS$9,'Output ProjYr'!$AU7,Calcs!$F$1032:$AOS$1032))/12 -> 0 | BD7: =(SUMIF(Calcs!$F$9:$AOS$9,'Output ProjYr'!$AU7,Calcs!$F$1106:$AOS$1106))/12 -> 0 | BE7: =(SUMIF(Calcs!$F$9:$AOS$9,'Output ProjYr'!$AU7,Calcs!$F$1180:$AOS$1180))/12 -> 0 | BF7: =SUM(AV7:BE7) -> 0 | BH7: =A7 -> 0 | BI7: =SUMIF(Calcs!$F$9:$AOS$9,'Output ProjYr'!$BH7,Calcs!$F$520:$AOS$520) -> 0 | BJ7: =SUMIF(Calcs!$F$9:$AOS$9,'Output ProjYr'!$BH7,Calcs!$F$594:$AOS$594) -> 0 | BK7: =SUMIF(Calcs!$F$9:$AOS$9,'Output ProjYr'!$BH7,Calcs!$F$668:$AOS$668) -> 0 | BL7: =SUMIF(Calcs!$F$9:$AOS$9,'Output ProjYr'!$BH7,Calcs!$F$742:$AOS$742) -> 0 | BM7: =SUMIF(Calcs!$F$9:$AOS$9,'Output ProjYr'!$BH7,Calcs!$F$816:$AOS$816) -> 0 | BN7: =SUMIF(Calcs!$F$9:$AOS$9,'Output ProjYr'!$BH7,Calcs!$F$890:$AOS$890) -> 0 | BO7: =SUMIF(Calcs!$F$9:$AOS$9,'Output ProjYr'!$BH7,Calcs!$F$964:$AOS$964) -> 0 | BP7: =SUMIF(Calcs!$F$9:$AOS$9,'Output ProjYr'!$BH7,Calcs!$F$1038:$AOS$1038) -> 0 | BQ7: =SUMIF(Calcs!$F$9:$AOS$9,'Output ProjYr'!$BH7,Calcs!$F$1112:$AOS$1112) -> 0 | BR7: =SUMIF(Calcs!$F$9:$AOS$9,'Output ProjYr'!$BH7,Calcs!$F$1186:$AOS$1186) -> 0 | BS7: =SUMIF(Calcs!$F$9:$AOS$9,'Output ProjYr'!$BH7,Calcs!$F$1252:$AOS$1252) -> 0 | BT7: =SUMIF(Calcs!$F$9:$AOS$9,'Output ProjYr'!$BH7,Calcs!$F$1289:$AOS$1289) -> 0 | BU7: =SUMIF(Calcs!$F$9:$AOS$9,'Output ProjYr'!$BH7,Calcs!$F$1326:$AOS$1326) -> 0 | BV7: =SUMIF(Calcs!$F$9:$AOS$9,'Output ProjYr'!$BH7,Calcs!$F$1363:$AOS$1363) -> 0 | BW7: =SUMIF(Calcs!$F$9:$AOS$9,'Output ProjYr'!$BH7,Calcs!$F$1400:$AOS$1400) -> 0 | BX7: =SUMIF(Calcs!$F$9:$AOS$9,'Output ProjYr'!$BH7,Calcs!$F$1437:$AOS$1437) -> 0 | BY7: =SUMIF(Calcs!$F$9:$AOS$9,'Output ProjYr'!$BH7,Calcs!$F$1474:$AOS$1474) -> 0 | BZ7: =SUMIF(Calcs!$F$9:$AOS$9,'Output ProjYr'!$BH7,Calcs!$F$1511:$AOS$1511) -> 0 | CA7: =SUMIF(Calcs!$F$9:$AOS$9,'Output ProjYr'!$BH7,Calcs!$F$1548:$AOS$1548) -> 0 | CB7: =SUMIF(Calcs!$F$9:$AOS$9,'Output ProjYr'!$BH7,Calcs!$F$1585:$AOS$1585) -> 0 | CC7: =SUM(BI7:CB7) -> 0 | CE7: =$A7 -> 0 | CF7: =SUMIF(Calcs!$F$9:$AOS$9,$CE7,Calcs!$F$521:$AOS$521) -> 0 | CG7: =SUMIF(Calcs!$F$9:$AOS$9,$CE7,Calcs!$F$595:$AOS$595) -> 0 | CH7: =SUMIF(Calcs!$F$9:$AOS$9,$CE7,Calcs!$F$669:$AOS$669) -> 0 | CI7: =SUMIF(Calcs!$F$9:$AOS$9,$CE7,Calcs!$F$743:$AOS$743) -> 0 | CJ7: =SUMIF(Calcs!$F$9:$AOS$9,$CE7,Calcs!$F$817:$AOS$817) -> 0 | CK7: =SUMIF(Calcs!$F$9:$AOS$9,$CE7,Calcs!$F$891:$AOS$891) -> 0 | CL7: =SUMIF(Calcs!$F$9:$AOS$9,$CE7,Calcs!$F$965:$AOS$965) -> 0 | CM7: =SUMIF(Calcs!$F$9:$AOS$9,$CE7,Calcs!$F$1039:$AOS$1039) -> 0 | CN7: =SUMIF(Calcs!$F$9:$AOS$9,$CE7,Calcs!$F$1113:$AOS$1113) -> 0 | CO7: =SUMIF(Calcs!$F$9:$AOS$9,$CE7,Calcs!$F$1187:$AOS$1187) -> 0 | CP7: =SUMIF(Calcs!$F$9:$AOS$9,$CE7,Calcs!$F$1253:$AOS$1253) -> 0 | CQ7: =SUMIF(Calcs!$F$9:$AOS$9,$CE7,Calcs!$F$1290:$AOS$1290) -> 0 | CR7: =SUMIF(Calcs!$F$9:$AOS$9,$CE7,Calcs!$F$1327:$AOS$1327) -> 0 | CS7: =SUMIF(Calcs!$F$9:$AOS$9,$CE7,Calcs!$F$1364:$AOS$1364) -> 0 | CT7: =SUMIF(Calcs!$F$9:$AOS$9,$CE7,Calcs!$F$1401:$AOS$1401) -> 0 | CU7: =SUMIF(Calcs!$F$9:$AOS$9,$CE7,Calcs!$F$1438:$AOS$1438) -> 0 | CV7: =SUMIF(Calcs!$F$9:$AOS$9,$CE7,Calcs!$F$1475:$AOS$1475) -> 0 | CW7: =SUMIF(Calcs!$F$9:$AOS$9,$CE7,Calcs!$F$1512:$AOS$1512) -> 0 | CX7: =SUMIF(Calcs!$F$9:$AOS$9,$CE7,Calcs!$F$1549:$AOS$1549) -> 0 | CY7: =SUMIF(Calcs!$F$9:$AOS$9,$CE7,Calcs!$F$1586:$AOS$1586) -> 0 | CZ7: =SUM(CF7:CY7) -> 0 | DB7: =$A7 -> 0 | DC7: =(SUMIF(Calcs!$F$9:$AOS$9,'Output ProjYr'!$DB7,Calcs!$F$567:$AOS$567))/1000000 -> 0 | DD7: =(SUMIF(Calcs!$F$9:$AOS$9,'Output ProjYr'!$DB7,Calcs!$F$641:$AOS$641))/1000000 -> 0 | DE7: =(SUMIF(Calcs!$F$9:$AOS$9,'Output ProjYr'!$DB7,Calcs!$F$715:$AOS$715))/1000000 -> 0 | DF7: =(SUMIF(Calcs!$F$9:$AOS$9,'Output ProjYr'!$DB7,Calcs!$F$789:$AOS$789))/1000000 -> 0 | DG7: =(SUMIF(Calcs!$F$9:$AOS$9,'Output ProjYr'!$DB7,Calcs!$F$863:$AOS$863))/1000000 -> 0 | DH7: =(SUMIF(Calcs!$F$9:$AOS$9,'Output ProjYr'!$DB7,Calcs!$F$937:$AOS$937))/1000000 -> 0 | DI7: =(SUMIF(Calcs!$F$9:$AOS$9,'Output ProjYr'!$DB7,Calcs!$F$1011:$AOS$1011))/1000000 -> 0 | DJ7: =(SUMIF(Calcs!$F$9:$AOS$9,'Output ProjYr'!$DB7,Calcs!$F$1085:$AOS$1085))/1000000 -> 0 | DK7: =(SUMIF(Calcs!$F$9:$AOS$9,'Output ProjYr'!$DB7,Calcs!$F$1159:$AOS$1159))/1000000 -> 0 | DL7: =(SUMIF(Calcs!$F$9:$AOS$9,'Output ProjYr'!$DB7,Calcs!$F$1233:$AOS$1233))/1000000 -> 0 | DO7: =(SUMIF(Calcs!$F$9:$AOS$9,'Output ProjYr'!$DB7,Calcs!$F$1344:$AOS$1344))/1000000 -> 0 | DV7: =(SUMIF(Calcs!$F$9:$AOS$9,'Output ProjYr'!$DB7,Calcs!$F$1603:$AOS$1603))/1000000 -> 0 | DW7: =SUM(DC7:DV7) -> 0
A8: =A7+1 -> 1 | B8: =SUMIF(Calcs!$F$9:$AOS$9,'Output ProjYr'!$A8,Calcs!$F$528:$AOS$528) -> 0 | C8: =SUMIF(Calcs!$F$9:$AOS$9,'Output ProjYr'!$A8,Calcs!$F$602:$AOS$602) -> 0 | D8: =SUMIF(Calcs!$F$9:$AOS$9,'Output ProjYr'!$A8,Calcs!$F$676:$AOS$676) -> 2074790.059 | E8: =SUMIF(Calcs!$F$9:$AOS$9,'Output ProjYr'!$A8,Calcs!$F$750:$AOS$750) -> 0 | F8: =SUMIF(Calcs!$F$9:$AOS$9,'Output ProjYr'!$A8,Calcs!$F$824:$AOS$824) -> 0 | G8: =SUMIF(Calcs!$F$9:$AOS$9,'Output ProjYr'!$A8,Calcs!$F$898:$AOS$898) -> 0 | H8: =SUMIF(Calcs!$F$9:$AOS$9,'Output ProjYr'!$A8,Calcs!$F$972:$AOS$972) -> 0 | I8: =SUMIF(Calcs!$F$9:$AOS$9,'Output ProjYr'!$A8,Calcs!$F$1046:$AOS$1046) -> 0 | J8: =SUMIF(Calcs!$F$9:$AOS$9,'Output ProjYr'!$A8,Calcs!$F$1120:$AOS$1120) -> 0 | K8: =SUMIF(Calcs!$F$9:$AOS$9,'Output ProjYr'!$A8,Calcs!$F$1194:$AOS$1194) -> 0 | L8: =SUMIF(Calcs!$F$9:$AOS$9,'Output ProjYr'!$A8,Calcs!$F$525:$AOS$525) -> 0 | M8: =SUMIF(Calcs!$F$9:$AOS$9,'Output ProjYr'!$A8,Calcs!$F$599:$AOS$599) -> 0 | N8: =SUMIF(Calcs!$F$9:$AOS$9,'Output ProjYr'!$A8,Calcs!$F$673:$AOS$673) -> 0 | O8: =SUMIF(Calcs!$F$9:$AOS$9,'Output ProjYr'!$A8,Calcs!$F$747:$AOS$747) -> 0 | P8: =SUMIF(Calcs!$F$9:$AOS$9,'Output ProjYr'!$A8,Calcs!$F$821:$AOS$821) -> 0 | Q8: =SUMIF(Calcs!$F$9:$AOS$9,'Output ProjYr'!$A8,Calcs!$F$895:$AOS$895) -> 0 | R8: =SUMIF(Calcs!$F$9:$AOS$9,'Output ProjYr'!$A8,Calcs!$F$969:$AOS$969) -> 0 | S8: =SUMIF(Calcs!$F$9:$AOS$9,'Output ProjYr'!$A8,Calcs!$F$1043:$AOS$1043) -> 0 | T8: =SUMIF(Calcs!$F$9:$AOS$9,'Output ProjYr'!$A8,Calcs!$F$1117:$AOS$1117) -> 0 | U8: =SUMIF(Calcs!$F$9:$AOS$9,'Output ProjYr'!$A8,Calcs!$F$1191:$AOS$1191) -> 0 | V8: =SUMIF(Calcs!$F$9:$AOS$9,'Output ProjYr'!$A8,Calcs!$F$1257:$AOS$1257) -> 0 | W8: =SUMIF(Calcs!$F$9:$AOS$9,'Output ProjYr'!$A8,Calcs!$F$1294:$AOS$1294) -> 0 | X8: =SUMIF(Calcs!$F$9:$AOS$9,'Output ProjYr'!$A8,Calcs!$F$1331:$AOS$1331) -> 1713134.757 | Y8: =SUMIF(Calcs!$F$9:$AOS$9,'Output ProjYr'!$A8,Calcs!$F$1368:$AOS$1368) -> 0 | Z8: =SUMIF(Calcs!$F$9:$AOS$9,'Output ProjYr'!$A8,Calcs!$F$1405:$AOS$1405) -> 0 | AA8: =SUMIF(Calcs!$F$9:$AOS$9,'Output ProjYr'!$A8,Calcs!$F$1442:$AOS$1442) -> 3225735.776 | AB8: =SUMIF(Calcs!$F$9:$AOS$9,'Output ProjYr'!$A8,Calcs!$F$1479:$AOS$1479) -> 0 | AC8: =SUMIF(Calcs!$F$9:$AOS$9,'Output ProjYr'!$A8,Calcs!$F$1516:$AOS$1516) -> 0 | AD8: =SUMIF(Calcs!$F$9:$AOS$9,'Output ProjYr'!$A8,Calcs!$F$1553:$AOS$1553) -> 0 | AE8: =SUMIF(Calcs!$F$9:$AOS$9,'Output ProjYr'!$A8,Calcs!$F$1590:$AOS$1590) -> 0 | AF8: 7013660.591 | AH8: 1 | AI8: =SUMIF(Calcs!$F$9:$AOS$9,'Output ProjYr'!$AH8,Calcs!$F$1714:$AOS$1714) -> 0 | AJ8: =SUMIF(Calcs!$F$9:$AOS$9,'Output ProjYr'!$AH8,Calcs!$F$1715:$AOS$1715) -> 0 | AK8: =SUMIF(Calcs!$F$9:$AOS$9,'Output ProjYr'!$AH8,Calcs!$F$1716:$AOS$1716) -> 0 | AL8: =SUMIF(Calcs!$F$9:$AOS$9,'Output ProjYr'!$AH8,Calcs!$F$1717:$AOS$1717) -> 0 | AM8: =SUMIF(Calcs!$F$9:$AOS$9,'Output ProjYr'!$AH8,Calcs!$F$1718:$AOS$1718) -> 0 | AN8: =SUMIF(Calcs!$F$9:$AOS$9,'Output ProjYr'!$AH8,Calcs!$F$1719:$AOS$1719) -> 0 | AO8: =SUMIF(Calcs!$F$9:$AOS$9,'Output ProjYr'!$AH8,Calcs!$F$1720:$AOS$1720) -> 706341.0139 | AP8: =SUMIF(Calcs!$F$9:$AOS$9,'Output ProjYr'!$AH8,Calcs!$F$1721:$AOS$1721) -> 0 | AQ8: =SUMIF(Calcs!$F$9:$AOS$9,'Output ProjYr'!$AH8,Calcs!$F$1722:$AOS$1722) -> 0 | AR8: =SUMIF(Calcs!$F$9:$AOS$9,'Output ProjYr'!$AH8,Calcs!$F$1723:$AOS$1723) -> 0 | AS8: 706341.0139 | AU8: 1 | AV8: =SUMIF(Calcs!$F$9:$AOS$9,'Output ProjYr'!$AU8,Calcs!$F$514:$AOS$514)/12 -> 0 | AW8: =(SUMIF(Calcs!$F$9:$AOS$9,'Output ProjYr'!$AU8,Calcs!$F$588:$AOS$588))/12 -> 49.75776228 | AX8: =(SUMIF(Calcs!$F$9:$AOS$9,'Output ProjYr'!$AU8,Calcs!$F$662:$AOS$662))/12 -> 9.240966518 | AY8: =(SUMIF(Calcs!$F$9:$AOS$9,'Output ProjYr'!$AU8,Calcs!$F$736:$AOS$736))/12 -> 0 | AZ8: =(SUMIF(Calcs!$F$9:$AOS$9,'Output ProjYr'!$AU8,Calcs!$F$810:$AOS$810))/12 -> 0 | BA8: =(SUMIF(Calcs!$F$9:$AOS$9,'Output ProjYr'!$AU8,Calcs!$F$884:$AOS$884))/12 -> 0 | BB8: =(SUMIF(Calcs!$F$9:$AOS$9,'Output ProjYr'!$AU8,Calcs!$F$958:$AOS$958))/12 -> 0 | BC8: =(SUMIF(Calcs!$F$9:$AOS$9,'Output ProjYr'!$AU8,Calcs!$F$1032:$AOS$1032))/12 -> 0 | BD8: =(SUMIF(Calcs!$F$9:$AOS$9,'Output ProjYr'!$AU8,Calcs!$F$1106:$AOS$1106))/12 -> 0 | BE8: =(SUMIF(Calcs!$F$9:$AOS$9,'Output ProjYr'!$AU8,Calcs!$F$1180:$AOS$1180))/12 -> 0 | BF8: 58.9987288 | BH8: 1 | BI8: =SUMIF(Calcs!$F$9:$AOS$9,'Output ProjYr'!$BH8,Calcs!$F$520:$AOS$520) -> 0 | BJ8: =SUMIF(Calcs!$F$9:$AOS$9,'Output ProjYr'!$BH8,Calcs!$F$594:$AOS$594) -> 383.9609801 | BK8: =SUMIF(Calcs!$F$9:$AOS$9,'Output ProjYr'!$BH8,Calcs!$F$668:$AOS$668) -> 37.40177011 | BL8: =SUMIF(Calcs!$F$9:$AOS$9,'Output ProjYr'!$BH8,Calcs!$F$742:$AOS$742) -> 0 | BM8: =SUMIF(Calcs!$F$9:$AOS$9,'Output ProjYr'!$BH8,Calcs!$F$816:$AOS$816) -> 0 | BN8: =SUMIF(Calcs!$F$9:$AOS$9,'Output ProjYr'!$BH8,Calcs!$F$890:$AOS$890) -> 0 | BO8: =SUMIF(Calcs!$F$9:$AOS$9,'Output ProjYr'!$BH8,Calcs!$F$964:$AOS$964) -> 0 | BP8: =SUMIF(Calcs!$F$9:$AOS$9,'Output ProjYr'!$BH8,Calcs!$F$1038:$AOS$1038) -> 0 | BQ8: =SUMIF(Calcs!$F$9:$AOS$9,'Output ProjYr'!$BH8,Calcs!$F$1112:$AOS$1112) -> 0 | BR8: =SUMIF(Calcs!$F$9:$AOS$9,'Output ProjYr'!$BH8,Calcs!$F$1186:$AOS$1186) -> 0 | BS8: =SUMIF(Calcs!$F$9:$AOS$9,'Output ProjYr'!$BH8,Calcs!$F$1252:$AOS$1252) -> 0 | BT8: =SUMIF(Calcs!$F$9:$AOS$9,'Output ProjYr'!$BH8,Calcs!$F$1289:$AOS$1289) -> 0 | BU8: =SUMIF(Calcs!$F$9:$AOS$9,'Output ProjYr'!$BH8,Calcs!$F$1326:$AOS$1326) -> 43.69651617 | BV8: =SUMIF(Calcs!$F$9:$AOS$9,'Output ProjYr'!$BH8,Calcs!$F$1363:$AOS$1363) -> 0 | BW8: =SUMIF(Calcs!$F$9:$AOS$9,'Output ProjYr'!$BH8,Calcs!$F$1400:$AOS$1400) -> 0 | BX8: =SUMIF(Calcs!$F$9:$AOS$9,'Output ProjYr'!$BH8,Calcs!$F$1437:$AOS$1437) -> 108.9407336 | BY8: =SUMIF(Calcs!$F$9:$AOS$9,'Output ProjYr'!$BH8,Calcs!$F$1474:$AOS$1474) -> 0 | BZ8: =SUMIF(Calcs!$F$9:$AOS$9,'Output ProjYr'!$BH8,Calcs!$F$1511:$AOS$1511) -> 0 | CA8: =SUMIF(Calcs!$F$9:$AOS$9,'Output ProjYr'!$BH8,Calcs!$F$1548:$AOS$1548) -> 0 | CB8: =SUMIF(Calcs!$F$9:$AOS$9,'Output ProjYr'!$BH8,Calcs!$F$1585:$AOS$1585) -> 0 | CC8: 574 | CE8: 1 | CF8: =SUMIF(Calcs!$F$9:$AOS$9,$CE8,Calcs!$F$521:$AOS$521) -> 0 | CG8: =SUMIF(Calcs!$F$9:$AOS$9,$CE8,Calcs!$F$595:$AOS$595) -> 361.0577076 | CH8: =SUMIF(Calcs!$F$9:$AOS$9,$CE8,Calcs!$F$669:$AOS$669) -> 34.77611759 | CI8: =SUMIF(Calcs!$F$9:$AOS$9,$CE8,Calcs!$F$743:$AOS$743) -> 0 | CJ8: =SUMIF(Calcs!$F$9:$AOS$9,$CE8,Calcs!$F$817:$AOS$817) -> 0 | CK8: =SUMIF(Calcs!$F$9:$AOS$9,$CE8,Calcs!$F$891:$AOS$891) -> 0 | CL8: =SUMIF(Calcs!$F$9:$AOS$9,$CE8,Calcs!$F$965:$AOS$965) -> 0 | CM8: =SUMIF(Calcs!$F$9:$AOS$9,$CE8,Calcs!$F$1039:$AOS$1039) -> 0 | CN8: =SUMIF(Calcs!$F$9:$AOS$9,$CE8,Calcs!$F$1113:$AOS$1113) -> 0 | CO8: =SUMIF(Calcs!$F$9:$AOS$9,$CE8,Calcs!$F$1187:$AOS$1187) -> 0 | CP8: =SUMIF(Calcs!$F$9:$AOS$9,$CE8,Calcs!$F$1253:$AOS$1253) -> 0 | CQ8: =SUMIF(Calcs!$F$9:$AOS$9,$CE8,Calcs!$F$1290:$AOS$1290) -> 0 | CR8: =SUMIF(Calcs!$F$9:$AOS$9,$CE8,Calcs!$F$1327:$AOS$1327) -> 40.62896436 | CS8: =SUMIF(Calcs!$F$9:$AOS$9,$CE8,Calcs!$F$1364:$AOS$1364) -> 0 | CT8: =SUMIF(Calcs!$F$9:$AOS$9,$CE8,Calcs!$F$1401:$AOS$1401) -> 0 | CU8: =SUMIF(Calcs!$F$9:$AOS$9,$CE8,Calcs!$F$1438:$AOS$1438) -> 108.9407336 | CV8: =SUMIF(Calcs!$F$9:$AOS$9,$CE8,Calcs!$F$1475:$AOS$1475) -> 0 | CW8: =SUMIF(Calcs!$F$9:$AOS$9,$CE8,Calcs!$F$1512:$AOS$1512) -> 0 | CX8: =SUMIF(Calcs!$F$9:$AOS$9,$CE8,Calcs!$F$1549:$AOS$1549) -> 0 | CY8: =SUMIF(Calcs!$F$9:$AOS$9,$CE8,Calcs!$F$1586:$AOS$1586) -> 0 | CZ8: 545.4035232 | DB8: 1 | DC8: =(SUMIF(Calcs!$F$9:$AOS$9,'Output ProjYr'!$DB8,Calcs!$F$567:$AOS$567))/1000000 -> 0 | DD8: =(SUMIF(Calcs!$F$9:$AOS$9,'Output ProjYr'!$DB8,Calcs!$F$641:$AOS$641))/1000000 -> 0 | DE8: =(SUMIF(Calcs!$F$9:$AOS$9,'Output ProjYr'!$DB8,Calcs!$F$715:$AOS$715))/1000000 -> 0.3257578604 | DF8: =(SUMIF(Calcs!$F$9:$AOS$9,'Output ProjYr'!$DB8,Calcs!$F$789:$AOS$789))/1000000 -> 0 | DG8: =(SUMIF(Calcs!$F$9:$AOS$9,'Output ProjYr'!$DB8,Calcs!$F$863:$AOS$863))/1000000 -> 0 | DH8: =(SUMIF(Calcs!$F$9:$AOS$9,'Output ProjYr'!$DB8,Calcs!$F$937:$AOS$937))/1000000 -> 0 | DI8: =(SUMIF(Calcs!$F$9:$AOS$9,'Output ProjYr'!$DB8,Calcs!$F$1011:$AOS$1011))/1000000 -> 0 | DJ8: =(SUMIF(Calcs!$F$9:$AOS$9,'Output ProjYr'!$DB8,Calcs!$F$1085:$AOS$1085))/1000000 -> 0 | DK8: =(SUMIF(Calcs!$F$9:$AOS$9,'Output ProjYr'!$DB8,Calcs!$F$1159:$AOS$1159))/1000000 -> 0 | DL8: =(SUMIF(Calcs!$F$9:$AOS$9,'Output ProjYr'!$DB8,Calcs!$F$1233:$AOS$1233))/1000000 -> 0 | DO8: =(SUMIF(Calcs!$F$9:$AOS$9,'Output ProjYr'!$DB8,Calcs!$F$1344:$AOS$1344))/1000000 -> 0.3805831535 | DV8: =(SUMIF(Calcs!$F$9:$AOS$9,'Output ProjYr'!$DB8,Calcs!$F$1603:$AOS$1603))/1000000 -> 0 | DW8: 0.7063410139
A9: 2 | B9: =SUMIF(Calcs!$F$9:$AOS$9,'Output ProjYr'!$A9,Calcs!$F$528:$AOS$528) -> 0 | C9: =SUMIF(Calcs!$F$9:$AOS$9,'Output ProjYr'!$A9,Calcs!$F$602:$AOS$602) -> 0 | D9: =SUMIF(Calcs!$F$9:$AOS$9,'Output ProjYr'!$A9,Calcs!$F$676:$AOS$676) -> 4359892.922 | E9: =SUMIF(Calcs!$F$9:$AOS$9,'Output ProjYr'!$A9,Calcs!$F$750:$AOS$750) -> -2.027776282e-09 | F9: =SUMIF(Calcs!$F$9:$AOS$9,'Output ProjYr'!$A9,Calcs!$F$824:$AOS$824) -> 26760494.67 | G9: =SUMIF(Calcs!$F$9:$AOS$9,'Output ProjYr'!$A9,Calcs!$F$898:$AOS$898) -> 0 | H9: =SUMIF(Calcs!$F$9:$AOS$9,'Output ProjYr'!$A9,Calcs!$F$972:$AOS$972) -> 0 | I9: =SUMIF(Calcs!$F$9:$AOS$9,'Output ProjYr'!$A9,Calcs!$F$1046:$AOS$1046) -> 0 | J9: =SUMIF(Calcs!$F$9:$AOS$9,'Output ProjYr'!$A9,Calcs!$F$1120:$AOS$1120) -> 0 | K9: =SUMIF(Calcs!$F$9:$AOS$9,'Output ProjYr'!$A9,Calcs!$F$1194:$AOS$1194) -> 0 | L9: =SUMIF(Calcs!$F$9:$AOS$9,'Output ProjYr'!$A9,Calcs!$F$525:$AOS$525) -> 0 | M9: =SUMIF(Calcs!$F$9:$AOS$9,'Output ProjYr'!$A9,Calcs!$F$599:$AOS$599) -> 0 | N9: =SUMIF(Calcs!$F$9:$AOS$9,'Output ProjYr'!$A9,Calcs!$F$673:$AOS$673) -> 0 | O9: =SUMIF(Calcs!$F$9:$AOS$9,'Output ProjYr'!$A9,Calcs!$F$747:$AOS$747) -> 0 | P9: =SUMIF(Calcs!$F$9:$AOS$9,'Output ProjYr'!$A9,Calcs!$F$821:$AOS$821) -> 0 | Q9: =SUMIF(Calcs!$F$9:$AOS$9,'Output ProjYr'!$A9,Calcs!$F$895:$AOS$895) -> 0 | R9: =SUMIF(Calcs!$F$9:$AOS$9,'Output ProjYr'!$A9,Calcs!$F$969:$AOS$969) -> 0 | S9: =SUMIF(Calcs!$F$9:$AOS$9,'Output ProjYr'!$A9,Calcs!$F$1043:$AOS$1043) -> 0 | T9: =SUMIF(Calcs!$F$9:$AOS$9,'Output ProjYr'!$A9,Calcs!$F$1117:$AOS$1117) -> 0 | U9: =SUMIF(Calcs!$F$9:$AOS$9,'Output ProjYr'!$A9,Calcs!$F$1191:$AOS$1191) -> 0 | V9: =SUMIF(Calcs!$F$9:$AOS$9,'Output ProjYr'!$A9,Calcs!$F$1257:$AOS$1257) -> 0 | W9: =SUMIF(Calcs!$F$9:$AOS$9,'Output ProjYr'!$A9,Calcs!$F$1294:$AOS$1294) -> 22484561.51 | X9: =SUMIF(Calcs!$F$9:$AOS$9,'Output ProjYr'!$A9,Calcs!$F$1331:$AOS$1331) -> 1890838.449 | Y9: =SUMIF(Calcs!$F$9:$AOS$9,'Output ProjYr'!$A9,Calcs!$F$1368:$AOS$1368) -> 0 | Z9: =SUMIF(Calcs!$F$9:$AOS$9,'Output ProjYr'!$A9,Calcs!$F$1405:$AOS$1405) -> 0 | AA9: =SUMIF(Calcs!$F$9:$AOS$9,'Output ProjYr'!$A9,Calcs!$F$1442:$AOS$1442) -> 7885260.089 | AB9: =SUMIF(Calcs!$F$9:$AOS$9,'Output ProjYr'!$A9,Calcs!$F$1479:$AOS$1479) -> 0 | AC9: =SUMIF(Calcs!$F$9:$AOS$9,'Output ProjYr'!$A9,Calcs!$F$1516:$AOS$1516) -> 0 | AD9: =SUMIF(Calcs!$F$9:$AOS$9,'Output ProjYr'!$A9,Calcs!$F$1553:$AOS$1553) -> 0 | AE9: =SUMIF(Calcs!$F$9:$AOS$9,'Output ProjYr'!$A9,Calcs!$F$1590:$AOS$1590) -> 0 | AF9: 63381047.64 | AH9: 2 | AI9: =SUMIF(Calcs!$F$9:$AOS$9,'Output ProjYr'!$AH9,Calcs!$F$1714:$AOS$1714) -> 0 | AJ9: =SUMIF(Calcs!$F$9:$AOS$9,'Output ProjYr'!$AH9,Calcs!$F$1715:$AOS$1715) -> 0 | AK9: =SUMIF(Calcs!$F$9:$AOS$9,'Output ProjYr'!$AH9,Calcs!$F$1716:$AOS$1716) -> 0 | AL9: =SUMIF(Calcs!$F$9:$AOS$9,'Output ProjYr'!$AH9,Calcs!$F$1717:$AOS$1717) -> -2.035869234e-10 | AM9: =SUMIF(Calcs!$F$9:$AOS$9,'Output ProjYr'!$AH9,Calcs!$F$1718:$AOS$1718) -> -1.276465869e-10 | AN9: =SUMIF(Calcs!$F$9:$AOS$9,'Output ProjYr'!$AH9,Calcs!$F$1719:$AOS$1719) -> 0 | AO9: =SUMIF(Calcs!$F$9:$AOS$9,'Output ProjYr'!$AH9,Calcs!$F$1720:$AOS$1720) -> 1037705.326 | AP9: =SUMIF(Calcs!$F$9:$AOS$9,'Output ProjYr'!$AH9,Calcs!$F$1721:$AOS$1721) -> -1.19252816e-11 | AQ9: =SUMIF(Calcs!$F$9:$AOS$9,'Output ProjYr'!$AH9,Calcs!$F$1722:$AOS$1722) -> 0 | AR9: =SUMIF(Calcs!$F$9:$AOS$9,'Output ProjYr'!$AH9,Calcs!$F$1723:$AOS$1723) -> 0 | AS9: 1037705.326 | AU9: 2 | AV9: =SUMIF(Calcs!$F$9:$AOS$9,'Output ProjYr'!$AU9,Calcs!$F$514:$AOS$514)/12 -> 167.8082192 | AW9: =(SUMIF(Calcs!$F$9:$AOS$9,'Output ProjYr'!$AU9,Calcs!$F$588:$AOS$588))/12 -> 324.4896711 | AX9: =(SUMIF(Calcs!$F$9:$AOS$9,'Output ProjYr'!$AU9,Calcs!$F$662:$AOS$662))/12 -> 67.61995118 | AY9: =(SUMIF(Calcs!$F$9:$AOS$9,'Output ProjYr'!$AU9,Calcs!$F$736:$AOS$736))/12 -> 113.8779975 | AZ9: =(SUMIF(Calcs!$F$9:$AOS$9,'Output ProjYr'!$AU9,Calcs!$F$810:$AOS$810))/12 -> 58.41059539 | BA9: =(SUMIF(Calcs!$F$9:$AOS$9,'Output ProjYr'!$AU9,Calcs!$F$884:$AOS$884))/12 -> 0 | BB9: =(SUMIF(Calcs!$F$9:$AOS$9,'Output ProjYr'!$AU9,Calcs!$F$958:$AOS$958))/12 -> 0 | BC9: =(SUMIF(Calcs!$F$9:$AOS$9,'Output ProjYr'!$AU9,Calcs!$F$1032:$AOS$1032))/12 -> 0 | BD9: =(SUMIF(Calcs!$F$9:$AOS$9,'Output ProjYr'!$AU9,Calcs!$F$1106:$AOS$1106))/12 -> 0 | BE9: =(SUMIF(Calcs!$F$9:$AOS$9,'Output ProjYr'!$AU9,Calcs!$F$1180:$AOS$1180))/12 -> 0 | BF9: 732.2064344 | BH9: 2 | BI9: =SUMIF(Calcs!$F$9:$AOS$9,'Output ProjYr'!$BH9,Calcs!$F$520:$AOS$520) -> 1230 | BJ9: =SUMIF(Calcs!$F$9:$AOS$9,'Output ProjYr'!$BH9,Calcs!$F$594:$AOS$594) -> 2218.27689 | BK9: =SUMIF(Calcs!$F$9:$AOS$9,'Output ProjYr'!$BH9,Calcs!$F$668:$AOS$668) -> 78.63728874 | BL9: =SUMIF(Calcs!$F$9:$AOS$9,'Output ProjYr'!$BH9,Calcs!$F$742:$AOS$742) -> -3.819877747e-14 | BM9: =SUMIF(Calcs!$F$9:$AOS$9,'Output ProjYr'!$BH9,Calcs!$F$816:$AOS$816) -> 504.6237679 | BN9: =SUMIF(Calcs!$F$9:$AOS$9,'Output ProjYr'!$BH9,Calcs!$F$890:$AOS$890) -> 0 | BO9: =SUMIF(Calcs!$F$9:$AOS$9,'Output ProjYr'!$BH9,Calcs!$F$964:$AOS$964) -> 0 | BP9: =SUMIF(Calcs!$F$9:$AOS$9,'Output ProjYr'!$BH9,Calcs!$F$1038:$AOS$1038) -> 0 | BQ9: =SUMIF(Calcs!$F$9:$AOS$9,'Output ProjYr'!$BH9,Calcs!$F$1112:$AOS$1112) -> 0 | BR9: =SUMIF(Calcs!$F$9:$AOS$9,'Output ProjYr'!$BH9,Calcs!$F$1186:$AOS$1186) -> 0 | BS9: =SUMIF(Calcs!$F$9:$AOS$9,'Output ProjYr'!$BH9,Calcs!$F$1252:$AOS$1252) -> 0 | BT9: =SUMIF(Calcs!$F$9:$AOS$9,'Output ProjYr'!$BH9,Calcs!$F$1289:$AOS$1289) -> 537.8435975 | BU9: =SUMIF(Calcs!$F$9:$AOS$9,'Output ProjYr'!$BH9,Calcs!$F$1326:$AOS$1326) -> 39.40062458 | BV9: =SUMIF(Calcs!$F$9:$AOS$9,'Output ProjYr'!$BH9,Calcs!$F$1363:$AOS$1363) -> 0 | BW9: =SUMIF(Calcs!$F$9:$AOS$9,'Output ProjYr'!$BH9,Calcs!$F$1400:$AOS$1400) -> 0 | BX9: =SUMIF(Calcs!$F$9:$AOS$9,'Output ProjYr'!$BH9,Calcs!$F$1437:$AOS$1437) -> 173.2907898 | BY9: =SUMIF(Calcs!$F$9:$AOS$9,'Output ProjYr'!$BH9,Calcs!$F$1474:$AOS$1474) -> 0 | BZ9: =SUMIF(Calcs!$F$9:$AOS$9,'Output ProjYr'!$BH9,Calcs!$F$1511:$AOS$1511) -> 0 | CA9: =SUMIF(Calcs!$F$9:$AOS$9,'Output ProjYr'!$BH9,Calcs!$F$1548:$AOS$1548) -> 0 | CB9: =SUMIF(Calcs!$F$9:$AOS$9,'Output ProjYr'!$BH9,Calcs!$F$1585:$AOS$1585) -> 0 | CC9: 4782.072959 | CE9: 2 | CF9: =SUMIF(Calcs!$F$9:$AOS$9,$CE9,Calcs!$F$521:$AOS$521) -> 1108.745997 | CG9: =SUMIF(Calcs!$F$9:$AOS$9,$CE9,Calcs!$F$595:$AOS$595) -> 2085.956674 | CH9: =SUMIF(Calcs!$F$9:$AOS$9,$CE9,Calcs!$F$669:$AOS$669) -> 73.11684961 | CI9: =SUMIF(Calcs!$F$9:$AOS$9,$CE9,Calcs!$F$743:$AOS$743) -> -3.243153336e-14 | CJ9: =SUMIF(Calcs!$F$9:$AOS$9,$CE9,Calcs!$F$817:$AOS$817) -> 454.8777096 | CK9: =SUMIF(Calcs!$F$9:$AOS$9,$CE9,Calcs!$F$891:$AOS$891) -> 0 | CL9: =SUMIF(Calcs!$F$9:$AOS$9,$CE9,Calcs!$F$965:$AOS$965) -> 0 | CM9: =SUMIF(Calcs!$F$9:$AOS$9,$CE9,Calcs!$F$1039:$AOS$1039) -> 0 | CN9: =SUMIF(Calcs!$F$9:$AOS$9,$CE9,Calcs!$F$1113:$AOS$1113) -> 0 | CO9: =SUMIF(Calcs!$F$9:$AOS$9,$CE9,Calcs!$F$1187:$AOS$1187) -> 0 | CP9: =SUMIF(Calcs!$F$9:$AOS$9,$CE9,Calcs!$F$1253:$AOS$1253) -> 0 | CQ9: =SUMIF(Calcs!$F$9:$AOS$9,$CE9,Calcs!$F$1290:$AOS$1290) -> 484.8227121 | CR9: =SUMIF(Calcs!$F$9:$AOS$9,$CE9,Calcs!$F$1327:$AOS$1327) -> 36.6346499 | CS9: =SUMIF(Calcs!$F$9:$AOS$9,$CE9,Calcs!$F$1364:$AOS$1364) -> 0 | CT9: =SUMIF(Calcs!$F$9:$AOS$9,$CE9,Calcs!$F$1401:$AOS$1401) -> 0 | CU9: =SUMIF(Calcs!$F$9:$AOS$9,$CE9,Calcs!$F$1438:$AOS$1438) -> 173.2907898 | CV9: =SUMIF(Calcs!$F$9:$AOS$9,$CE9,Calcs!$F$1475:$AOS$1475) -> 0 | CW9: =SUMIF(Calcs!$F$9:$AOS$9,$CE9,Calcs!$F$1512:$AOS$1512) -> 0 | CX9: =SUMIF(Calcs!$F$9:$AOS$9,$CE9,Calcs!$F$1549:$AOS$1549) -> 0 | CY9: =SUMIF(Calcs!$F$9:$AOS$9,$CE9,Calcs!$F$1586:$AOS$1586) -> 0 | CZ9: 4417.445382 | DB9: 2 | DC9: =(SUMIF(Calcs!$F$9:$AOS$9,'Output ProjYr'!$DB9,Calcs!$F$567:$AOS$567))/1000000 -> 0 | DD9: =(SUMIF(Calcs!$F$9:$AOS$9,'Output ProjYr'!$DB9,Calcs!$F$641:$AOS$641))/1000000 -> 0 | DE9: =(SUMIF(Calcs!$F$9:$AOS$9,'Output ProjYr'!$DB9,Calcs!$F$715:$AOS$715))/1000000 -> 0.691106388 | DF9: =(SUMIF(Calcs!$F$9:$AOS$9,'Output ProjYr'!$DB9,Calcs!$F$789:$AOS$789))/1000000 -> -3.431587919e-16 | DG9: =(SUMIF(Calcs!$F$9:$AOS$9,'Output ProjYr'!$DB9,Calcs!$F$863:$AOS$863))/1000000 -> 0 | DH9: =(SUMIF(Calcs!$F$9:$AOS$9,'Output ProjYr'!$DB9,Calcs!$F$937:$AOS$937))/1000000 -> 0 | DI9: =(SUMIF(Calcs!$F$9:$AOS$9,'Output ProjYr'!$DB9,Calcs!$F$1011:$AOS$1011))/1000000 -> 0 | DJ9: =(SUMIF(Calcs!$F$9:$AOS$9,'Output ProjYr'!$DB9,Calcs!$F$1085:$AOS$1085))/1000000 -> 0 | DK9: =(SUMIF(Calcs!$F$9:$AOS$9,'Output ProjYr'!$DB9,Calcs!$F$1159:$AOS$1159))/1000000 -> 0 | DL9: =(SUMIF(Calcs!$F$9:$AOS$9,'Output ProjYr'!$DB9,Calcs!$F$1233:$AOS$1233))/1000000 -> 0 | DO9: =(SUMIF(Calcs!$F$9:$AOS$9,'Output ProjYr'!$DB9,Calcs!$F$1344:$AOS$1344))/1000000 -> 0.3465989378 | DV9: =(SUMIF(Calcs!$F$9:$AOS$9,'Output ProjYr'!$DB9,Calcs!$F$1603:$AOS$1603))/1000000 -> 0 | DW9: 1.037705326
A10: 3 | B10: =SUMIF(Calcs!$F$9:$AOS$9,'Output ProjYr'!$A10,Calcs!$F$528:$AOS$528) -> 0 | C10: =SUMIF(Calcs!$F$9:$AOS$9,'Output ProjYr'!$A10,Calcs!$F$602:$AOS$602) -> 0 | D10: =SUMIF(Calcs!$F$9:$AOS$9,'Output ProjYr'!$A10,Calcs!$F$676:$AOS$676) -> 8921220.179 | E10: =SUMIF(Calcs!$F$9:$AOS$9,'Output ProjYr'!$A10,Calcs!$F$750:$AOS$750) -> 0 | F10: =SUMIF(Calcs!$F$9:$AOS$9,'Output ProjYr'!$A10,Calcs!$F$824:$AOS$824) -> 29427002.06 | G10: =SUMIF(Calcs!$F$9:$AOS$9,'Output ProjYr'!$A10,Calcs!$F$898:$AOS$898) -> 0 | H10: =SUMIF(Calcs!$F$9:$AOS$9,'Output ProjYr'!$A10,Calcs!$F$972:$AOS$972) -> 0 | I10: =SUMIF(Calcs!$F$9:$AOS$9,'Output ProjYr'!$A10,Calcs!$F$1046:$AOS$1046) -> 0 | J10: =SUMIF(Calcs!$F$9:$AOS$9,'Output ProjYr'!$A10,Calcs!$F$1120:$AOS$1120) -> 0 | K10: =SUMIF(Calcs!$F$9:$AOS$9,'Output ProjYr'!$A10,Calcs!$F$1194:$AOS$1194) -> 0 | L10: =SUMIF(Calcs!$F$9:$AOS$9,'Output ProjYr'!$A10,Calcs!$F$525:$AOS$525) -> 0 | M10: =SUMIF(Calcs!$F$9:$AOS$9,'Output ProjYr'!$A10,Calcs!$F$599:$AOS$599) -> 0 | N10: =SUMIF(Calcs!$F$9:$AOS$9,'Output ProjYr'!$A10,Calcs!$F$673:$AOS$673) -> 0 | O10: =SUMIF(Calcs!$F$9:$AOS$9,'Output ProjYr'!$A10,Calcs!$F$747:$AOS$747) -> 0 | P10: =SUMIF(Calcs!$F$9:$AOS$9,'Output ProjYr'!$A10,Calcs!$F$821:$AOS$821) -> 0 | Q10: =SUMIF(Calcs!$F$9:$AOS$9,'Output ProjYr'!$A10,Calcs!$F$895:$AOS$895) -> 0 | R10: =SUMIF(Calcs!$F$9:$AOS$9,'Output ProjYr'!$A10,Calcs!$F$969:$AOS$969) -> 0 | S10: =SUMIF(Calcs!$F$9:$AOS$9,'Output ProjYr'!$A10,Calcs!$F$1043:$AOS$1043) -> 0 | T10: =SUMIF(Calcs!$F$9:$AOS$9,'Output ProjYr'!$A10,Calcs!$F$1117:$AOS$1117) -> 0 | U10: =SUMIF(Calcs!$F$9:$AOS$9,'Output ProjYr'!$A10,Calcs!$F$1191:$AOS$1191) -> 0 | V10: =SUMIF(Calcs!$F$9:$AOS$9,'Output ProjYr'!$A10,Calcs!$F$1257:$AOS$1257) -> 0 | W10: =SUMIF(Calcs!$F$9:$AOS$9,'Output ProjYr'!$A10,Calcs!$F$1294:$AOS$1294) -> 25274564.17 | X10: =SUMIF(Calcs!$F$9:$AOS$9,'Output ProjYr'!$A10,Calcs!$F$1331:$AOS$1331) -> 3898980.53 | Y10: =SUMIF(Calcs!$F$9:$AOS$9,'Output ProjYr'!$A10,Calcs!$F$1368:$AOS$1368) -> 0 | Z10: =SUMIF(Calcs!$F$9:$AOS$9,'Output ProjYr'!$A10,Calcs!$F$1405:$AOS$1405) -> 0 | AA10: =SUMIF(Calcs!$F$9:$AOS$9,'Output ProjYr'!$A10,Calcs!$F$1442:$AOS$1442) -> 10264862.71 | AB10: =SUMIF(Calcs!$F$9:$AOS$9,'Output ProjYr'!$A10,Calcs!$F$1479:$AOS$1479) -> 0 | AC10: =SUMIF(Calcs!$F$9:$AOS$9,'Output ProjYr'!$A10,Calcs!$F$1516:$AOS$1516) -> 0 | AD10: =SUMIF(Calcs!$F$9:$AOS$9,'Output ProjYr'!$A10,Calcs!$F$1553:$AOS$1553) -> 0 | AE10: =SUMIF(Calcs!$F$9:$AOS$9,'Output ProjYr'!$A10,Calcs!$F$1590:$AOS$1590) -> 0 | AF10: 77786629.64 | AH10: 3 | AI10: =SUMIF(Calcs!$F$9:$AOS$9,'Output ProjYr'!$AH10,Calcs!$F$1714:$AOS$1714) -> 0 | AJ10: =SUMIF(Calcs!$F$9:$AOS$9,'Output ProjYr'!$AH10,Calcs!$F$1715:$AOS$1715) -> 0 | AK10: =SUMIF(Calcs!$F$9:$AOS$9,'Output ProjYr'!$AH10,Calcs!$F$1716:$AOS$1716) -> 0 | AL10: =SUMIF(Calcs!$F$9:$AOS$9,'Output ProjYr'!$AH10,Calcs!$F$1717:$AOS$1717) -> 0 | AM10: =SUMIF(Calcs!$F$9:$AOS$9,'Output ProjYr'!$AH10,Calcs!$F$1718:$AOS$1718) -> 0 | AN10: =SUMIF(Calcs!$F$9:$AOS$9,'Output ProjYr'!$AH10,Calcs!$F$1719:$AOS$1719) -> 0 | AO10: =SUMIF(Calcs!$F$9:$AOS$9,'Output ProjYr'!$AH10,Calcs!$F$1720:$AOS$1720) -> 1943916.234 | AP10: =SUMIF(Calcs!$F$9:$AOS$9,'Output ProjYr'!$AH10,Calcs!$F$1721:$AOS$1721) -> 0 | AQ10: =SUMIF(Calcs!$F$9:$AOS$9,'Output ProjYr'!$AH10,Calcs!$F$1722:$AOS$1722) -> 0 | AR10: =SUMIF(Calcs!$F$9:$AOS$9,'Output ProjYr'!$AH10,Calcs!$F$1723:$AOS$1723) -> 0 | AS10: 1943916.234 | AU10: 3 | AV10: =SUMIF(Calcs!$F$9:$AOS$9,'Output ProjYr'!$AU10,Calcs!$F$514:$AOS$514)/12 -> 167.8082192 | AW10: =(SUMIF(Calcs!$F$9:$AOS$9,'Output ProjYr'!$AU10,Calcs!$F$588:$AOS$588))/12 -> 326.7123854 | AX10: =(SUMIF(Calcs!$F$9:$AOS$9,'Output ProjYr'!$AU10,Calcs!$F$662:$AOS$662))/12 -> 75.08417275 | AY10: =(SUMIF(Calcs!$F$9:$AOS$9,'Output ProjYr'!$AU10,Calcs!$F$736:$AOS$736))/12 -> 115.5479126 | AZ10: =(SUMIF(Calcs!$F$9:$AOS$9,'Output ProjYr'!$AU10,Calcs!$F$810:$AOS$810))/12 -> 58.21567338 | BA10: =(SUMIF(Calcs!$F$9:$AOS$9,'Output ProjYr'!$AU10,Calcs!$F$884:$AOS$884))/12 -> 0 | BB10: =(SUMIF(Calcs!$F$9:$AOS$9,'Output ProjYr'!$AU10,Calcs!$F$958:$AOS$958))/12 -> 0 | BC10: =(SUMIF(Calcs!$F$9:$AOS$9,'Output ProjYr'!$AU10,Calcs!$F$1032:$AOS$1032))/12 -> 0 | BD10: =(SUMIF(Calcs!$F$9:$AOS$9,'Output ProjYr'!$AU10,Calcs!$F$1106:$AOS$1106))/12 -> 0 | BE10: =(SUMIF(Calcs!$F$9:$AOS$9,'Output ProjYr'!$AU10,Calcs!$F$1180:$AOS$1180))/12 -> 0 | BF10: 743.3683634 | BH10: 3 | BI10: =SUMIF(Calcs!$F$9:$AOS$9,'Output ProjYr'!$BH10,Calcs!$F$520:$AOS$520) -> 1230 | BJ10: =SUMIF(Calcs!$F$9:$AOS$9,'Output ProjYr'!$BH10,Calcs!$F$594:$AOS$594) -> 2234.70353 | BK10: =SUMIF(Calcs!$F$9:$AOS$9,'Output ProjYr'!$BH10,Calcs!$F$668:$AOS$668) -> 145.431722 | BL10: =SUMIF(Calcs!$F$9:$AOS$9,'Output ProjYr'!$BH10,Calcs!$F$742:$AOS$742) -> 0 | BM10: =SUMIF(Calcs!$F$9:$AOS$9,'Output ProjYr'!$BH10,Calcs!$F$816:$AOS$816) -> 508.5617342 | BN10: =SUMIF(Calcs!$F$9:$AOS$9,'Output ProjYr'!$BH10,Calcs!$F$890:$AOS$890) -> 0 | BO10: =SUMIF(Calcs!$F$9:$AOS$9,'Output ProjYr'!$BH10,Calcs!$F$964:$AOS$964) -> 0 | BP10: =SUMIF(Calcs!$F$9:$AOS$9,'Output ProjYr'!$BH10,Calcs!$F$1038:$AOS$1038) -> 0 | BQ10: =SUMIF(Calcs!$F$9:$AOS$9,'Output ProjYr'!$BH10,Calcs!$F$1112:$AOS$1112) -> 0 | BR10: =SUMIF(Calcs!$F$9:$AOS$9,'Output ProjYr'!$BH10,Calcs!$F$1186:$AOS$1186) -> 0 | BS10: =SUMIF(Calcs!$F$9:$AOS$9,'Output ProjYr'!$BH10,Calcs!$F$1252:$AOS$1252) -> 0 | BT10: =SUMIF(Calcs!$F$9:$AOS$9,'Output ProjYr'!$BH10,Calcs!$F$1289:$AOS$1289) -> 533.476107 | BU10: =SUMIF(Calcs!$F$9:$AOS$9,'Output ProjYr'!$BH10,Calcs!$F$1326:$AOS$1326) -> 74.56240169 | BV10: =SUMIF(Calcs!$F$9:$AOS$9,'Output ProjYr'!$BH10,Calcs!$F$1363:$AOS$1363) -> 0 | BW10: =SUMIF(Calcs!$F$9:$AOS$9,'Output ProjYr'!$BH10,Calcs!$F$1400:$AOS$1400) -> 0 | BX10: =SUMIF(Calcs!$F$9:$AOS$9,'Output ProjYr'!$BH10,Calcs!$F$1437:$AOS$1437) -> 209.112596 | BY10: =SUMIF(Calcs!$F$9:$AOS$9,'Output ProjYr'!$BH10,Calcs!$F$1474:$AOS$1474) -> 0 | BZ10: =SUMIF(Calcs!$F$9:$AOS$9,'Output ProjYr'!$BH10,Calcs!$F$1511:$AOS$1511) -> 0 | CA10: =SUMIF(Calcs!$F$9:$AOS$9,'Output ProjYr'!$BH10,Calcs!$F$1548:$AOS$1548) -> 0 | CB10: =SUMIF(Calcs!$F$9:$AOS$9,'Output ProjYr'!$BH10,Calcs!$F$1585:$AOS$1585) -> 0 | CC10: 4935.848091 | CE10: 3 | CF10: =SUMIF(Calcs!$F$9:$AOS$9,$CE10,Calcs!$F$521:$AOS$521) -> 1108.745997 | CG10: =SUMIF(Calcs!$F$9:$AOS$9,$CE10,Calcs!$F$595:$AOS$595) -> 2101.403465 | CH10: =SUMIF(Calcs!$F$9:$AOS$9,$CE10,Calcs!$F$669:$AOS$669) -> 135.2222275 | CI10: =SUMIF(Calcs!$F$9:$AOS$9,$CE10,Calcs!$F$743:$AOS$743) -> 0 | CJ10: =SUMIF(Calcs!$F$9:$AOS$9,$CE10,Calcs!$F$817:$AOS$817) -> 458.4274693 | CK10: =SUMIF(Calcs!$F$9:$AOS$9,$CE10,Calcs!$F$891:$AOS$891) -> 0 | CL10: =SUMIF(Calcs!$F$9:$AOS$9,$CE10,Calcs!$F$965:$AOS$965) -> 0 | CM10: =SUMIF(Calcs!$F$9:$AOS$9,$CE10,Calcs!$F$1039:$AOS$1039) -> 0 | CN10: =SUMIF(Calcs!$F$9:$AOS$9,$CE10,Calcs!$F$1113:$AOS$1113) -> 0 | CO10: =SUMIF(Calcs!$F$9:$AOS$9,$CE10,Calcs!$F$1187:$AOS$1187) -> 0 | CP10: =SUMIF(Calcs!$F$9:$AOS$9,$CE10,Calcs!$F$1253:$AOS$1253) -> 0 | CQ10: =SUMIF(Calcs!$F$9:$AOS$9,$CE10,Calcs!$F$1290:$AOS$1290) -> 480.885771 | CR10: =SUMIF(Calcs!$F$9:$AOS$9,$CE10,Calcs!$F$1327:$AOS$1327) -> 69.32802489 | CS10: =SUMIF(Calcs!$F$9:$AOS$9,$CE10,Calcs!$F$1364:$AOS$1364) -> 0 | CT10: =SUMIF(Calcs!$F$9:$AOS$9,$CE10,Calcs!$F$1401:$AOS$1401) -> 0 | CU10: =SUMIF(Calcs!$F$9:$AOS$9,$CE10,Calcs!$F$1438:$AOS$1438) -> 209.112596 | CV10: =SUMIF(Calcs!$F$9:$AOS$9,$CE10,Calcs!$F$1475:$AOS$1475) -> 0 | CW10: =SUMIF(Calcs!$F$9:$AOS$9,$CE10,Calcs!$F$1512:$AOS$1512) -> 0 | CX10: =SUMIF(Calcs!$F$9:$AOS$9,$CE10,Calcs!$F$1549:$AOS$1549) -> 0 | CY10: =SUMIF(Calcs!$F$9:$AOS$9,$CE10,Calcs!$F$1586:$AOS$1586) -> 0 | CZ10: 4563.125551 | DB10: 3 | DC10: =(SUMIF(Calcs!$F$9:$AOS$9,'Output ProjYr'!$DB10,Calcs!$F$567:$AOS$567))/1000000 -> 0 | DD10: =(SUMIF(Calcs!$F$9:$AOS$9,'Output ProjYr'!$DB10,Calcs!$F$641:$AOS$641))/1000000 -> 0 | DE10: =(SUMIF(Calcs!$F$9:$AOS$9,'Output ProjYr'!$DB10,Calcs!$F$715:$AOS$715))/1000000 -> 1.284893381 | DF10: =(SUMIF(Calcs!$F$9:$AOS$9,'Output ProjYr'!$DB10,Calcs!$F$789:$AOS$789))/1000000 -> 0 | DG10: =(SUMIF(Calcs!$F$9:$AOS$9,'Output ProjYr'!$DB10,Calcs!$F$863:$AOS$863))/1000000 -> 0 | DH10: =(SUMIF(Calcs!$F$9:$AOS$9,'Output ProjYr'!$DB10,Calcs!$F$937:$AOS$937))/1000000 -> 0 | DI10: =(SUMIF(Calcs!$F$9:$AOS$9,'Output ProjYr'!$DB10,Calcs!$F$1011:$AOS$1011))/1000000 -> 0 | DJ10: =(SUMIF(Calcs!$F$9:$AOS$9,'Output ProjYr'!$DB10,Calcs!$F$1085:$AOS$1085))/1000000 -> 0 | DK10: =(SUMIF(Calcs!$F$9:$AOS$9,'Output ProjYr'!$DB10,Calcs!$F$1159:$AOS$1159))/1000000 -> 0 | DL10: =(SUMIF(Calcs!$F$9:$AOS$9,'Output ProjYr'!$DB10,Calcs!$F$1233:$AOS$1233))/1000000 -> 0 | DO10: =(SUMIF(Calcs!$F$9:$AOS$9,'Output ProjYr'!$DB10,Calcs!$F$1344:$AOS$1344))/1000000 -> 0.6590228526 | DV10: =(SUMIF(Calcs!$F$9:$AOS$9,'Output ProjYr'!$DB10,Calcs!$F$1603:$AOS$1603))/1000000 -> 0 | DW10: 1.943916234
A11: 4 | B11: =SUMIF(Calcs!$F$9:$AOS$9,'Output ProjYr'!$A11,Calcs!$F$528:$AOS$528) -> 0 | C11: =SUMIF(Calcs!$F$9:$AOS$9,'Output ProjYr'!$A11,Calcs!$F$602:$AOS$602) -> 0 | D11: =SUMIF(Calcs!$F$9:$AOS$9,'Output ProjYr'!$A11,Calcs!$F$676:$AOS$676) -> 8629971.536 | E11: =SUMIF(Calcs!$F$9:$AOS$9,'Output ProjYr'!$A11,Calcs!$F$750:$AOS$750) -> 0 | F11: =SUMIF(Calcs!$F$9:$AOS$9,'Output ProjYr'!$A11,Calcs!$F$824:$AOS$824) -> 31929469.38 | G11: =SUMIF(Calcs!$F$9:$AOS$9,'Output ProjYr'!$A11,Calcs!$F$898:$AOS$898) -> 0 | H11: =SUMIF(Calcs!$F$9:$AOS$9,'Output ProjYr'!$A11,Calcs!$F$972:$AOS$972) -> 0 | I11: =SUMIF(Calcs!$F$9:$AOS$9,'Output ProjYr'!$A11,Calcs!$F$1046:$AOS$1046) -> 0 | J11: =SUMIF(Calcs!$F$9:$AOS$9,'Output ProjYr'!$A11,Calcs!$F$1120:$AOS$1120) -> 0 | K11: =SUMIF(Calcs!$F$9:$AOS$9,'Output ProjYr'!$A11,Calcs!$F$1194:$AOS$1194) -> 0 | L11: =SUMIF(Calcs!$F$9:$AOS$9,'Output ProjYr'!$A11,Calcs!$F$525:$AOS$525) -> 0 | M11: =SUMIF(Calcs!$F$9:$AOS$9,'Output ProjYr'!$A11,Calcs!$F$599:$AOS$599) -> 0 | N11: =SUMIF(Calcs!$F$9:$AOS$9,'Output ProjYr'!$A11,Calcs!$F$673:$AOS$673) -> 0 | O11: =SUMIF(Calcs!$F$9:$AOS$9,'Output ProjYr'!$A11,Calcs!$F$747:$AOS$747) -> 0 | P11: =SUMIF(Calcs!$F$9:$AOS$9,'Output ProjYr'!$A11,Calcs!$F$821:$AOS$821) -> 0 | Q11: =SUMIF(Calcs!$F$9:$AOS$9,'Output ProjYr'!$A11,Calcs!$F$895:$AOS$895) -> 0 | R11: =SUMIF(Calcs!$F$9:$AOS$9,'Output ProjYr'!$A11,Calcs!$F$969:$AOS$969) -> 0 | S11: =SUMIF(Calcs!$F$9:$AOS$9,'Output ProjYr'!$A11,Calcs!$F$1043:$AOS$1043) -> 0 | T11: =SUMIF(Calcs!$F$9:$AOS$9,'Output ProjYr'!$A11,Calcs!$F$1117:$AOS$1117) -> 0 | U11: =SUMIF(Calcs!$F$9:$AOS$9,'Output ProjYr'!$A11,Calcs!$F$1191:$AOS$1191) -> 0 | V11: =SUMIF(Calcs!$F$9:$AOS$9,'Output ProjYr'!$A11,Calcs!$F$1257:$AOS$1257) -> 0 | W11: =SUMIF(Calcs!$F$9:$AOS$9,'Output ProjYr'!$A11,Calcs!$F$1294:$AOS$1294) -> 25833908.84 | X11: =SUMIF(Calcs!$F$9:$AOS$9,'Output ProjYr'!$A11,Calcs!$F$1331:$AOS$1331) -> 4070253.986 | Y11: =SUMIF(Calcs!$F$9:$AOS$9,'Output ProjYr'!$A11,Calcs!$F$1368:$AOS$1368) -> 0 | Z11: =SUMIF(Calcs!$F$9:$AOS$9,'Output ProjYr'!$A11,Calcs!$F$1405:$AOS$1405) -> 0 | AA11: =SUMIF(Calcs!$F$9:$AOS$9,'Output ProjYr'!$A11,Calcs!$F$1442:$AOS$1442) -> 11216320.01 | AB11: =SUMIF(Calcs!$F$9:$AOS$9,'Output ProjYr'!$A11,Calcs!$F$1479:$AOS$1479) -> 0 | AC11: =SUMIF(Calcs!$F$9:$AOS$9,'Output ProjYr'!$A11,Calcs!$F$1516:$AOS$1516) -> 0 | AD11: =SUMIF(Calcs!$F$9:$AOS$9,'Output ProjYr'!$A11,Calcs!$F$1553:$AOS$1553) -> 0 | AE11: =SUMIF(Calcs!$F$9:$AOS$9,'Output ProjYr'!$A11,Calcs!$F$1590:$AOS$1590) -> 0 | AF11: 81679923.75 | AH11: 4 | AI11: =SUMIF(Calcs!$F$9:$AOS$9,'Output ProjYr'!$AH11,Calcs!$F$1714:$AOS$1714) -> 0 | AJ11: =SUMIF(Calcs!$F$9:$AOS$9,'Output ProjYr'!$AH11,Calcs!$F$1715:$AOS$1715) -> 0 | AK11: =SUMIF(Calcs!$F$9:$AOS$9,'Output ProjYr'!$AH11,Calcs!$F$1716:$AOS$1716) -> 0 | AL11: =SUMIF(Calcs!$F$9:$AOS$9,'Output ProjYr'!$AH11,Calcs!$F$1717:$AOS$1717) -> 0 | AM11: =SUMIF(Calcs!$F$9:$AOS$9,'Output ProjYr'!$AH11,Calcs!$F$1718:$AOS$1718) -> 0 | AN11: =SUMIF(Calcs!$F$9:$AOS$9,'Output ProjYr'!$AH11,Calcs!$F$1719:$AOS$1719) -> 0 | AO11: =SUMIF(Calcs!$F$9:$AOS$9,'Output ProjYr'!$AH11,Calcs!$F$1720:$AOS$1720) -> 1791172.042 | AP11: =SUMIF(Calcs!$F$9:$AOS$9,'Output ProjYr'!$AH11,Calcs!$F$1721:$AOS$1721) -> 0 | AQ11: =SUMIF(Calcs!$F$9:$AOS$9,'Output ProjYr'!$AH11,Calcs!$F$1722:$AOS$1722) -> 0 | AR11: =SUMIF(Calcs!$F$9:$AOS$9,'Output ProjYr'!$AH11,Calcs!$F$1723:$AOS$1723) -> 0 | AS11: 1791172.042 | AU11: 4 | AV11: =SUMIF(Calcs!$F$9:$AOS$9,'Output ProjYr'!$AU11,Calcs!$F$514:$AOS$514)/12 -> 167.8082192 | AW11: =(SUMIF(Calcs!$F$9:$AOS$9,'Output ProjYr'!$AU11,Calcs!$F$588:$AOS$588))/12 -> 333.5474805 | AX11: =(SUMIF(Calcs!$F$9:$AOS$9,'Output ProjYr'!$AU11,Calcs!$F$662:$AOS$662))/12 -> 72.85738266 | AY11: =(SUMIF(Calcs!$F$9:$AOS$9,'Output ProjYr'!$AU11,Calcs!$F$736:$AOS$736))/12 -> 113.6832634 | AZ11: =(SUMIF(Calcs!$F$9:$AOS$9,'Output ProjYr'!$AU11,Calcs!$F$810:$AOS$810))/12 -> 57.96656958 | BA11: =(SUMIF(Calcs!$F$9:$AOS$9,'Output ProjYr'!$AU11,Calcs!$F$884:$AOS$884))/12 -> 0 | BB11: =(SUMIF(Calcs!$F$9:$AOS$9,'Output ProjYr'!$AU11,Calcs!$F$958:$AOS$958))/12 -> 0 | BC11: =(SUMIF(Calcs!$F$9:$AOS$9,'Output ProjYr'!$AU11,Calcs!$F$1032:$AOS$1032))/12 -> 0 | BD11: =(SUMIF(Calcs!$F$9:$AOS$9,'Output ProjYr'!$AU11,Calcs!$F$1106:$AOS$1106))/12 -> 0 | BE11: =(SUMIF(Calcs!$F$9:$AOS$9,'Output ProjYr'!$AU11,Calcs!$F$1180:$AOS$1180))/12 -> 0 | BF11: 745.8629153 | BH11: 4 | BI11: =SUMIF(Calcs!$F$9:$AOS$9,'Output ProjYr'!$BH11,Calcs!$F$520:$AOS$520) -> 1230 | BJ11: =SUMIF(Calcs!$F$9:$AOS$9,'Output ProjYr'!$BH11,Calcs!$F$594:$AOS$594) -> 2296.698022 | BK11: =SUMIF(Calcs!$F$9:$AOS$9,'Output ProjYr'!$BH11,Calcs!$F$668:$AOS$668) -> 129.6432238 | BL11: =SUMIF(Calcs!$F$9:$AOS$9,'Output ProjYr'!$BH11,Calcs!$F$742:$AOS$742) -> 0 | BM11: =SUMIF(Calcs!$F$9:$AOS$9,'Output ProjYr'!$BH11,Calcs!$F$816:$AOS$816) -> 507.2209996 | BN11: =SUMIF(Calcs!$F$9:$AOS$9,'Output ProjYr'!$BH11,Calcs!$F$890:$AOS$890) -> 0 | BO11: =SUMIF(Calcs!$F$9:$AOS$9,'Output ProjYr'!$BH11,Calcs!$F$964:$AOS$964) -> 0 | BP11: =SUMIF(Calcs!$F$9:$AOS$9,'Output ProjYr'!$BH11,Calcs!$F$1038:$AOS$1038) -> 0 | BQ11: =SUMIF(Calcs!$F$9:$AOS$9,'Output ProjYr'!$BH11,Calcs!$F$1112:$AOS$1112) -> 0 | BR11: =SUMIF(Calcs!$F$9:$AOS$9,'Output ProjYr'!$BH11,Calcs!$F$1186:$AOS$1186) -> 0 | BS11: =SUMIF(Calcs!$F$9:$AOS$9,'Output ProjYr'!$BH11,Calcs!$F$1252:$AOS$1252) -> 0 | BT11: =SUMIF(Calcs!$F$9:$AOS$9,'Output ProjYr'!$BH11,Calcs!$F$1289:$AOS$1289) -> 494.2557537 | BU11: =SUMIF(Calcs!$F$9:$AOS$9,'Output ProjYr'!$BH11,Calcs!$F$1326:$AOS$1326) -> 71.09831566 | BV11: =SUMIF(Calcs!$F$9:$AOS$9,'Output ProjYr'!$BH11,Calcs!$F$1363:$AOS$1363) -> 0 | BW11: =SUMIF(Calcs!$F$9:$AOS$9,'Output ProjYr'!$BH11,Calcs!$F$1400:$AOS$1400) -> 0 | BX11: =SUMIF(Calcs!$F$9:$AOS$9,'Output ProjYr'!$BH11,Calcs!$F$1437:$AOS$1437) -> 206.9317766 | BY11: =SUMIF(Calcs!$F$9:$AOS$9,'Output ProjYr'!$BH11,Calcs!$F$1474:$AOS$1474) -> 0 | BZ11: =SUMIF(Calcs!$F$9:$AOS$9,'Output ProjYr'!$BH11,Calcs!$F$1511:$AOS$1511) -> 0 | CA11: =SUMIF(Calcs!$F$9:$AOS$9,'Output ProjYr'!$BH11,Calcs!$F$1548:$AOS$1548) -> 0 | CB11: =SUMIF(Calcs!$F$9:$AOS$9,'Output ProjYr'!$BH11,Calcs!$F$1585:$AOS$1585) -> 0 | CC11: 4935.848091 | CE11: 4 | CF11: =SUMIF(Calcs!$F$9:$AOS$9,$CE11,Calcs!$F$521:$AOS$521) -> 1108.745997 | CG11: =SUMIF(Calcs!$F$9:$AOS$9,$CE11,Calcs!$F$595:$AOS$595) -> 2159.699985 | CH11: =SUMIF(Calcs!$F$9:$AOS$9,$CE11,Calcs!$F$669:$AOS$669) -> 120.5421022 | CI11: =SUMIF(Calcs!$F$9:$AOS$9,$CE11,Calcs!$F$743:$AOS$743) -> 0 | CJ11: =SUMIF(Calcs!$F$9:$AOS$9,$CE11,Calcs!$F$817:$AOS$817) -> 457.2189049 | CK11: =SUMIF(Calcs!$F$9:$AOS$9,$CE11,Calcs!$F$891:$AOS$891) -> 0 | CL11: =SUMIF(Calcs!$F$9:$AOS$9,$CE11,Calcs!$F$965:$AOS$965) -> 0 | CM11: =SUMIF(Calcs!$F$9:$AOS$9,$CE11,Calcs!$F$1039:$AOS$1039) -> 0 | CN11: =SUMIF(Calcs!$F$9:$AOS$9,$CE11,Calcs!$F$1113:$AOS$1113) -> 0 | CO11: =SUMIF(Calcs!$F$9:$AOS$9,$CE11,Calcs!$F$1187:$AOS$1187) -> 0 | CP11: =SUMIF(Calcs!$F$9:$AOS$9,$CE11,Calcs!$F$1253:$AOS$1253) -> 0 | CQ11: =SUMIF(Calcs!$F$9:$AOS$9,$CE11,Calcs!$F$1290:$AOS$1290) -> 445.5317793 | CR11: =SUMIF(Calcs!$F$9:$AOS$9,$CE11,Calcs!$F$1327:$AOS$1327) -> 66.10712217 | CS11: =SUMIF(Calcs!$F$9:$AOS$9,$CE11,Calcs!$F$1364:$AOS$1364) -> 0 | CT11: =SUMIF(Calcs!$F$9:$AOS$9,$CE11,Calcs!$F$1401:$AOS$1401) -> 0 | CU11: =SUMIF(Calcs!$F$9:$AOS$9,$CE11,Calcs!$F$1438:$AOS$1438) -> 206.9317766 | CV11: =SUMIF(Calcs!$F$9:$AOS$9,$CE11,Calcs!$F$1475:$AOS$1475) -> 0 | CW11: =SUMIF(Calcs!$F$9:$AOS$9,$CE11,Calcs!$F$1512:$AOS$1512) -> 0 | CX11: =SUMIF(Calcs!$F$9:$AOS$9,$CE11,Calcs!$F$1549:$AOS$1549) -> 0 | CY11: =SUMIF(Calcs!$F$9:$AOS$9,$CE11,Calcs!$F$1586:$AOS$1586) -> 0 | CZ11: 4564.777667 | DB11: 4 | DC11: =(SUMIF(Calcs!$F$9:$AOS$9,'Output ProjYr'!$DB11,Calcs!$F$567:$AOS$567))/1000000 -> 0 | DD11: =(SUMIF(Calcs!$F$9:$AOS$9,'Output ProjYr'!$DB11,Calcs!$F$641:$AOS$641))/1000000 -> 0 | DE11: =(SUMIF(Calcs!$F$9:$AOS$9,'Output ProjYr'!$DB11,Calcs!$F$715:$AOS$715))/1000000 -> 1.156612521 | DF11: =(SUMIF(Calcs!$F$9:$AOS$9,'Output ProjYr'!$DB11,Calcs!$F$789:$AOS$789))/1000000 -> 0 | DG11: =(SUMIF(Calcs!$F$9:$AOS$9,'Output ProjYr'!$DB11,Calcs!$F$863:$AOS$863))/1000000 -> 0 | DH11: =(SUMIF(Calcs!$F$9:$AOS$9,'Output ProjYr'!$DB11,Calcs!$F$937:$AOS$937))/1000000 -> 0 | DI11: =(SUMIF(Calcs!$F$9:$AOS$9,'Output ProjYr'!$DB11,Calcs!$F$1011:$AOS$1011))/1000000 -> 0 | DJ11: =(SUMIF(Calcs!$F$9:$AOS$9,'Output ProjYr'!$DB11,Calcs!$F$1085:$AOS$1085))/1000000 -> 0 | DK11: =(SUMIF(Calcs!$F$9:$AOS$9,'Output ProjYr'!$DB11,Calcs!$F$1159:$AOS$1159))/1000000 -> 0 | DL11: =(SUMIF(Calcs!$F$9:$AOS$9,'Output ProjYr'!$DB11,Calcs!$F$1233:$AOS$1233))/1000000 -> 0 | DO11: =(SUMIF(Calcs!$F$9:$AOS$9,'Output ProjYr'!$DB11,Calcs!$F$1344:$AOS$1344))/1000000 -> 0.6345595206 | DV11: =(SUMIF(Calcs!$F$9:$AOS$9,'Output ProjYr'!$DB11,Calcs!$F$1603:$AOS$1603))/1000000 -> 0 | DW11: 1.791172042
A12: 5 | B12: =SUMIF(Calcs!$F$9:$AOS$9,'Output ProjYr'!$A12,Calcs!$F$528:$AOS$528) -> 0 | C12: =SUMIF(Calcs!$F$9:$AOS$9,'Output ProjYr'!$A12,Calcs!$F$602:$AOS$602) -> 0 | D12: =SUMIF(Calcs!$F$9:$AOS$9,'Output ProjYr'!$A12,Calcs!$F$676:$AOS$676) -> 7881796.409 | E12: =SUMIF(Calcs!$F$9:$AOS$9,'Output ProjYr'!$A12,Calcs!$F$750:$AOS$750) -> 0 | F12: =SUMIF(Calcs!$F$9:$AOS$9,'Output ProjYr'!$A12,Calcs!$F$824:$AOS$824) -> 32724464.95 | G12: =SUMIF(Calcs!$F$9:$AOS$9,'Output ProjYr'!$A12,Calcs!$F$898:$AOS$898) -> 0 | H12: =SUMIF(Calcs!$F$9:$AOS$9,'Output ProjYr'!$A12,Calcs!$F$972:$AOS$972) -> 0 | I12: =SUMIF(Calcs!$F$9:$AOS$9,'Output ProjYr'!$A12,Calcs!$F$1046:$AOS$1046) -> 0 | J12: =SUMIF(Calcs!$F$9:$AOS$9,'Output ProjYr'!$A12,Calcs!$F$1120:$AOS$1120) -> 0 | K12: =SUMIF(Calcs!$F$9:$AOS$9,'Output ProjYr'!$A12,Calcs!$F$1194:$AOS$1194) -> 0 | L12: =SUMIF(Calcs!$F$9:$AOS$9,'Output ProjYr'!$A12,Calcs!$F$525:$AOS$525) -> 0 | M12: =SUMIF(Calcs!$F$9:$AOS$9,'Output ProjYr'!$A12,Calcs!$F$599:$AOS$599) -> 0 | N12: =SUMIF(Calcs!$F$9:$AOS$9,'Output ProjYr'!$A12,Calcs!$F$673:$AOS$673) -> 0 | O12: =SUMIF(Calcs!$F$9:$AOS$9,'Output ProjYr'!$A12,Calcs!$F$747:$AOS$747) -> 0 | P12: =SUMIF(Calcs!$F$9:$AOS$9,'Output ProjYr'!$A12,Calcs!$F$821:$AOS$821) -> 0 | Q12: =SUMIF(Calcs!$F$9:$AOS$9,'Output ProjYr'!$A12,Calcs!$F$895:$AOS$895) -> 0 | R12: =SUMIF(Calcs!$F$9:$AOS$9,'Output ProjYr'!$A12,Calcs!$F$969:$AOS$969) -> 0 | S12: =SUMIF(Calcs!$F$9:$AOS$9,'Output ProjYr'!$A12,Calcs!$F$1043:$AOS$1043) -> 0 | T12: =SUMIF(Calcs!$F$9:$AOS$9,'Output ProjYr'!$A12,Calcs!$F$1117:$AOS$1117) -> 0 | U12: =SUMIF(Calcs!$F$9:$AOS$9,'Output ProjYr'!$A12,Calcs!$F$1191:$AOS$1191) -> 0 | V12: =SUMIF(Calcs!$F$9:$AOS$9,'Output ProjYr'!$A12,Calcs!$F$1257:$AOS$1257) -> 1033186.331 | W12: =SUMIF(Calcs!$F$9:$AOS$9,'Output ProjYr'!$A12,Calcs!$F$1294:$AOS$1294) -> 26116136.87 | X12: =SUMIF(Calcs!$F$9:$AOS$9,'Output ProjYr'!$A12,Calcs!$F$1331:$AOS$1331) -> 3133648.541 | Y12: =SUMIF(Calcs!$F$9:$AOS$9,'Output ProjYr'!$A12,Calcs!$F$1368:$AOS$1368) -> 0 | Z12: =SUMIF(Calcs!$F$9:$AOS$9,'Output ProjYr'!$A12,Calcs!$F$1405:$AOS$1405) -> 0 | AA12: =SUMIF(Calcs!$F$9:$AOS$9,'Output ProjYr'!$A12,Calcs!$F$1442:$AOS$1442) -> 10544796.45 | AB12: =SUMIF(Calcs!$F$9:$AOS$9,'Output ProjYr'!$A12,Calcs!$F$1479:$AOS$1479) -> 0 | AC12: =SUMIF(Calcs!$F$9:$AOS$9,'Output ProjYr'!$A12,Calcs!$F$1516:$AOS$1516) -> 0 | AD12: =SUMIF(Calcs!$F$9:$AOS$9,'Output ProjYr'!$A12,Calcs!$F$1553:$AOS$1553) -> 0 | AE12: =SUMIF(Calcs!$F$9:$AOS$9,'Output ProjYr'!$A12,Calcs!$F$1590:$AOS$1590) -> 0 | AF12: 81434029.55 | AH12: 5 | AI12: =SUMIF(Calcs!$F$9:$AOS$9,'Output ProjYr'!$AH12,Calcs!$F$1714:$AOS$1714) -> 0 | AJ12: =SUMIF(Calcs!$F$9:$AOS$9,'Output ProjYr'!$AH12,Calcs!$F$1715:$AOS$1715) -> 0 | AK12: =SUMIF(Calcs!$F$9:$AOS$9,'Output ProjYr'!$AH12,Calcs!$F$1716:$AOS$1716) -> 0 | AL12: =SUMIF(Calcs!$F$9:$AOS$9,'Output ProjYr'!$AH12,Calcs!$F$1717:$AOS$1717) -> 0 | AM12: =SUMIF(Calcs!$F$9:$AOS$9,'Output ProjYr'!$AH12,Calcs!$F$1718:$AOS$1718) -> 0 | AN12: =SUMIF(Calcs!$F$9:$AOS$9,'Output ProjYr'!$AH12,Calcs!$F$1719:$AOS$1719) -> 0 | AO12: =SUMIF(Calcs!$F$9:$AOS$9,'Output ProjYr'!$AH12,Calcs!$F$1720:$AOS$1720) -> 1462874.43 | AP12: =SUMIF(Calcs!$F$9:$AOS$9,'Output ProjYr'!$AH12,Calcs!$F$1721:$AOS$1721) -> 0 | AQ12: =SUMIF(Calcs!$F$9:$AOS$9,'Output ProjYr'!$AH12,Calcs!$F$1722:$AOS$1722) -> 0 | AR12: =SUMIF(Calcs!$F$9:$AOS$9,'Output ProjYr'!$AH12,Calcs!$F$1723:$AOS$1723) -> 0 | AS12: 1462874.43 | AU12: 5 | AV12: =SUMIF(Calcs!$F$9:$AOS$9,'Output ProjYr'!$AU12,Calcs!$F$514:$AOS$514)/12 -> 167.8082192 | AW12: =(SUMIF(Calcs!$F$9:$AOS$9,'Output ProjYr'!$AU12,Calcs!$F$588:$AOS$588))/12 -> 345.150211 | AX12: =(SUMIF(Calcs!$F$9:$AOS$9,'Output ProjYr'!$AU12,Calcs!$F$662:$AOS$662))/12 -> 68.05213989 | AY12: =(SUMIF(Calcs!$F$9:$AOS$9,'Output ProjYr'!$AU12,Calcs!$F$736:$AOS$736))/12 -> 111.2373466 | AZ12: =(SUMIF(Calcs!$F$9:$AOS$9,'Output ProjYr'!$AU12,Calcs!$F$810:$AOS$810))/12 -> 56.29784648 | BA12: =(SUMIF(Calcs!$F$9:$AOS$9,'Output ProjYr'!$AU12,Calcs!$F$884:$AOS$884))/12 -> 0 | BB12: =(SUMIF(Calcs!$F$9:$AOS$9,'Output ProjYr'!$AU12,Calcs!$F$958:$AOS$958))/12 -> 0 | BC12: =(SUMIF(Calcs!$F$9:$AOS$9,'Output ProjYr'!$AU12,Calcs!$F$1032:$AOS$1032))/12 -> 0 | BD12: =(SUMIF(Calcs!$F$9:$AOS$9,'Output ProjYr'!$AU12,Calcs!$F$1106:$AOS$1106))/12 -> 0 | BE12: =(SUMIF(Calcs!$F$9:$AOS$9,'Output ProjYr'!$AU12,Calcs!$F$1180:$AOS$1180))/12 -> 0 | BF12: 748.5457632 | BH12: 5 | BI12: =SUMIF(Calcs!$F$9:$AOS$9,'Output ProjYr'!$BH12,Calcs!$F$520:$AOS$520) -> 1230 | BJ12: =SUMIF(Calcs!$F$9:$AOS$9,'Output ProjYr'!$BH12,Calcs!$F$594:$AOS$594) -> 2391.105619 | BK12: =SUMIF(Calcs!$F$9:$AOS$9,'Output ProjYr'!$BH12,Calcs!$F$668:$AOS$668) -> 111.588429 | BL12: =SUMIF(Calcs!$F$9:$AOS$9,'Output ProjYr'!$BH12,Calcs!$F$742:$AOS$742) -> 0 | BM12: =SUMIF(Calcs!$F$9:$AOS$9,'Output ProjYr'!$BH12,Calcs!$F$816:$AOS$816) -> 493.0951452 | BN12: =SUMIF(Calcs!$F$9:$AOS$9,'Output ProjYr'!$BH12,Calcs!$F$890:$AOS$890) -> 0 | BO12: =SUMIF(Calcs!$F$9:$AOS$9,'Output ProjYr'!$BH12,Calcs!$F$964:$AOS$964) -> 0 | BP12: =SUMIF(Calcs!$F$9:$AOS$9,'Output ProjYr'!$BH12,Calcs!$F$1038:$AOS$1038) -> 0 | BQ12: =SUMIF(Calcs!$F$9:$AOS$9,'Output ProjYr'!$BH12,Calcs!$F$1112:$AOS$1112) -> 0 | BR12: =SUMIF(Calcs!$F$9:$AOS$9,'Output ProjYr'!$BH12,Calcs!$F$1186:$AOS$1186) -> 0 | BS12: =SUMIF(Calcs!$F$9:$AOS$9,'Output ProjYr'!$BH12,Calcs!$F$1252:$AOS$1252) -> 13.30746804 | BT12: =SUMIF(Calcs!$F$9:$AOS$9,'Output ProjYr'!$BH12,Calcs!$F$1289:$AOS$1289) -> 463.2110169 | BU12: =SUMIF(Calcs!$F$9:$AOS$9,'Output ProjYr'!$BH12,Calcs!$F$1326:$AOS$1326) -> 50.84223372 | BV12: =SUMIF(Calcs!$F$9:$AOS$9,'Output ProjYr'!$BH12,Calcs!$F$1363:$AOS$1363) -> 0 | BW12: =SUMIF(Calcs!$F$9:$AOS$9,'Output ProjYr'!$BH12,Calcs!$F$1400:$AOS$1400) -> 0 | BX12: =SUMIF(Calcs!$F$9:$AOS$9,'Output ProjYr'!$BH12,Calcs!$F$1437:$AOS$1437) -> 182.6981793 | BY12: =SUMIF(Calcs!$F$9:$AOS$9,'Output ProjYr'!$BH12,Calcs!$F$1474:$AOS$1474) -> 0 | BZ12: =SUMIF(Calcs!$F$9:$AOS$9,'Output ProjYr'!$BH12,Calcs!$F$1511:$AOS$1511) -> 0 | CA12: =SUMIF(Calcs!$F$9:$AOS$9,'Output ProjYr'!$BH12,Calcs!$F$1548:$AOS$1548) -> 0 | CB12: =SUMIF(Calcs!$F$9:$AOS$9,'Output ProjYr'!$BH12,Calcs!$F$1585:$AOS$1585) -> 0 | CC12: 4935.848091 | CE12: 5 | CF12: =SUMIF(Calcs!$F$9:$AOS$9,$CE12,Calcs!$F$521:$AOS$521) -> 1108.745997 | CG12: =SUMIF(Calcs!$F$9:$AOS$9,$CE12,Calcs!$F$595:$AOS$595) -> 2248.476169 | CH12: =SUMIF(Calcs!$F$9:$AOS$9,$CE12,Calcs!$F$669:$AOS$669) -> 103.7547773 | CI12: =SUMIF(Calcs!$F$9:$AOS$9,$CE12,Calcs!$F$743:$AOS$743) -> 0 | CJ12: =SUMIF(Calcs!$F$9:$AOS$9,$CE12,Calcs!$F$817:$AOS$817) -> 444.4855842 | CK12: =SUMIF(Calcs!$F$9:$AOS$9,$CE12,Calcs!$F$891:$AOS$891) -> 0 | CL12: =SUMIF(Calcs!$F$9:$AOS$9,$CE12,Calcs!$F$965:$AOS$965) -> 0 | CM12: =SUMIF(Calcs!$F$9:$AOS$9,$CE12,Calcs!$F$1039:$AOS$1039) -> 0 | CN12: =SUMIF(Calcs!$F$9:$AOS$9,$CE12,Calcs!$F$1113:$AOS$1113) -> 0 | CO12: =SUMIF(Calcs!$F$9:$AOS$9,$CE12,Calcs!$F$1187:$AOS$1187) -> 0 | CP12: =SUMIF(Calcs!$F$9:$AOS$9,$CE12,Calcs!$F$1253:$AOS$1253) -> 11.99561132 | CQ12: =SUMIF(Calcs!$F$9:$AOS$9,$CE12,Calcs!$F$1290:$AOS$1290) -> 417.5474479 | CR12: =SUMIF(Calcs!$F$9:$AOS$9,$CE12,Calcs!$F$1327:$AOS$1327) -> 47.27304331 | CS12: =SUMIF(Calcs!$F$9:$AOS$9,$CE12,Calcs!$F$1364:$AOS$1364) -> 0 | CT12: =SUMIF(Calcs!$F$9:$AOS$9,$CE12,Calcs!$F$1401:$AOS$1401) -> 0 | CU12: =SUMIF(Calcs!$F$9:$AOS$9,$CE12,Calcs!$F$1438:$AOS$1438) -> 182.6981793 | CV12: =SUMIF(Calcs!$F$9:$AOS$9,$CE12,Calcs!$F$1475:$AOS$1475) -> 0 | CW12: =SUMIF(Calcs!$F$9:$AOS$9,$CE12,Calcs!$F$1512:$AOS$1512) -> 0 | CX12: =SUMIF(Calcs!$F$9:$AOS$9,$CE12,Calcs!$F$1549:$AOS$1549) -> 0 | CY12: =SUMIF(Calcs!$F$9:$AOS$9,$CE12,Calcs!$F$1586:$AOS$1586) -> 0 | CZ12: 4564.976809 | DB12: 5 | DC12: =(SUMIF(Calcs!$F$9:$AOS$9,'Output ProjYr'!$DB12,Calcs!$F$567:$AOS$567))/1000000 -> 0 | DD12: =(SUMIF(Calcs!$F$9:$AOS$9,'Output ProjYr'!$DB12,Calcs!$F$641:$AOS$641))/1000000 -> 0 | DE12: =(SUMIF(Calcs!$F$9:$AOS$9,'Output ProjYr'!$DB12,Calcs!$F$715:$AOS$715))/1000000 -> 1.005199993 | DF12: =(SUMIF(Calcs!$F$9:$AOS$9,'Output ProjYr'!$DB12,Calcs!$F$789:$AOS$789))/1000000 -> 0 | DG12: =(SUMIF(Calcs!$F$9:$AOS$9,'Output ProjYr'!$DB12,Calcs!$F$863:$AOS$863))/1000000 -> 0 | DH12: =(SUMIF(Calcs!$F$9:$AOS$9,'Output ProjYr'!$DB12,Calcs!$F$937:$AOS$937))/1000000 -> 0 | DI12: =(SUMIF(Calcs!$F$9:$AOS$9,'Output ProjYr'!$DB12,Calcs!$F$1011:$AOS$1011))/1000000 -> 0 | DJ12: =(SUMIF(Calcs!$F$9:$AOS$9,'Output ProjYr'!$DB12,Calcs!$F$1085:$AOS$1085))/1000000 -> 0 | DK12: =(SUMIF(Calcs!$F$9:$AOS$9,'Output ProjYr'!$DB12,Calcs!$F$1159:$AOS$1159))/1000000 -> 0 | DL12: =(SUMIF(Calcs!$F$9:$AOS$9,'Output ProjYr'!$DB12,Calcs!$F$1233:$AOS$1233))/1000000 -> 0 | DO12: =(SUMIF(Calcs!$F$9:$AOS$9,'Output ProjYr'!$DB12,Calcs!$F$1344:$AOS$1344))/1000000 -> 0.4576744369 | DV12: =(SUMIF(Calcs!$F$9:$AOS$9,'Output ProjYr'!$DB12,Calcs!$F$1603:$AOS$1603))/1000000 -> 0 | DW12: 1.46287443
A13: 6 | B13: =SUMIF(Calcs!$F$9:$AOS$9,'Output ProjYr'!$A13,Calcs!$F$528:$AOS$528) -> 0 | C13: =SUMIF(Calcs!$F$9:$AOS$9,'Output ProjYr'!$A13,Calcs!$F$602:$AOS$602) -> 0 | D13: =SUMIF(Calcs!$F$9:$AOS$9,'Output ProjYr'!$A13,Calcs!$F$676:$AOS$676) -> 6625457.302 | E13: =SUMIF(Calcs!$F$9:$AOS$9,'Output ProjYr'!$A13,Calcs!$F$750:$AOS$750) -> 0 | F13: =SUMIF(Calcs!$F$9:$AOS$9,'Output ProjYr'!$A13,Calcs!$F$824:$AOS$824) -> 29867737.57 | G13: =SUMIF(Calcs!$F$9:$AOS$9,'Output ProjYr'!$A13,Calcs!$F$898:$AOS$898) -> 0 | H13: =SUMIF(Calcs!$F$9:$AOS$9,'Output ProjYr'!$A13,Calcs!$F$972:$AOS$972) -> 0 | I13: =SUMIF(Calcs!$F$9:$AOS$9,'Output ProjYr'!$A13,Calcs!$F$1046:$AOS$1046) -> 0 | J13: =SUMIF(Calcs!$F$9:$AOS$9,'Output ProjYr'!$A13,Calcs!$F$1120:$AOS$1120) -> 0 | K13: =SUMIF(Calcs!$F$9:$AOS$9,'Output ProjYr'!$A13,Calcs!$F$1194:$AOS$1194) -> 0 | L13: =SUMIF(Calcs!$F$9:$AOS$9,'Output ProjYr'!$A13,Calcs!$F$525:$AOS$525) -> 0 | M13: =SUMIF(Calcs!$F$9:$AOS$9,'Output ProjYr'!$A13,Calcs!$F$599:$AOS$599) -> 0 | N13: =SUMIF(Calcs!$F$9:$AOS$9,'Output ProjYr'!$A13,Calcs!$F$673:$AOS$673) -> 0 | O13: =SUMIF(Calcs!$F$9:$AOS$9,'Output ProjYr'!$A13,Calcs!$F$747:$AOS$747) -> 0 | P13: =SUMIF(Calcs!$F$9:$AOS$9,'Output ProjYr'!$A13,Calcs!$F$821:$AOS$821) -> 0 | Q13: =SUMIF(Calcs!$F$9:$AOS$9,'Output ProjYr'!$A13,Calcs!$F$895:$AOS$895) -> 0 | R13: =SUMIF(Calcs!$F$9:$AOS$9,'Output ProjYr'!$A13,Calcs!$F$969:$AOS$969) -> 0 | S13: =SUMIF(Calcs!$F$9:$AOS$9,'Output ProjYr'!$A13,Calcs!$F$1043:$AOS$1043) -> 0 | T13: =SUMIF(Calcs!$F$9:$AOS$9,'Output ProjYr'!$A13,Calcs!$F$1117:$AOS$1117) -> 0 | U13: =SUMIF(Calcs!$F$9:$AOS$9,'Output ProjYr'!$A13,Calcs!$F$1191:$AOS$1191) -> 0 | V13: =SUMIF(Calcs!$F$9:$AOS$9,'Output ProjYr'!$A13,Calcs!$F$1257:$AOS$1257) -> 2532742.308 | W13: =SUMIF(Calcs!$F$9:$AOS$9,'Output ProjYr'!$A13,Calcs!$F$1294:$AOS$1294) -> 25763847.21 | X13: =SUMIF(Calcs!$F$9:$AOS$9,'Output ProjYr'!$A13,Calcs!$F$1331:$AOS$1331) -> 2021575.495 | Y13: =SUMIF(Calcs!$F$9:$AOS$9,'Output ProjYr'!$A13,Calcs!$F$1368:$AOS$1368) -> 0 | Z13: =SUMIF(Calcs!$F$9:$AOS$9,'Output ProjYr'!$A13,Calcs!$F$1405:$AOS$1405) -> 0 | AA13: =SUMIF(Calcs!$F$9:$AOS$9,'Output ProjYr'!$A13,Calcs!$F$1442:$AOS$1442) -> 10354962.15 | AB13: =SUMIF(Calcs!$F$9:$AOS$9,'Output ProjYr'!$A13,Calcs!$F$1479:$AOS$1479) -> 0 | AC13: =SUMIF(Calcs!$F$9:$AOS$9,'Output ProjYr'!$A13,Calcs!$F$1516:$AOS$1516) -> 0 | AD13: =SUMIF(Calcs!$F$9:$AOS$9,'Output ProjYr'!$A13,Calcs!$F$1553:$AOS$1553) -> 0 | AE13: =SUMIF(Calcs!$F$9:$AOS$9,'Output ProjYr'!$A13,Calcs!$F$1590:$AOS$1590) -> 0 | AF13: 77166322.04 | AH13: 6 | AI13: =SUMIF(Calcs!$F$9:$AOS$9,'Output ProjYr'!$AH13,Calcs!$F$1714:$AOS$1714) -> 0 | AJ13: =SUMIF(Calcs!$F$9:$AOS$9,'Output ProjYr'!$AH13,Calcs!$F$1715:$AOS$1715) -> 0 | AK13: =SUMIF(Calcs!$F$9:$AOS$9,'Output ProjYr'!$AH13,Calcs!$F$1716:$AOS$1716) -> 0 | AL13: =SUMIF(Calcs!$F$9:$AOS$9,'Output ProjYr'!$AH13,Calcs!$F$1717:$AOS$1717) -> 0 | AM13: =SUMIF(Calcs!$F$9:$AOS$9,'Output ProjYr'!$AH13,Calcs!$F$1718:$AOS$1718) -> 0 | AN13: =SUMIF(Calcs!$F$9:$AOS$9,'Output ProjYr'!$AH13,Calcs!$F$1719:$AOS$1719) -> 0 | AO13: =SUMIF(Calcs!$F$9:$AOS$9,'Output ProjYr'!$AH13,Calcs!$F$1720:$AOS$1720) -> 1107454.156 | AP13: =SUMIF(Calcs!$F$9:$AOS$9,'Output ProjYr'!$AH13,Calcs!$F$1721:$AOS$1721) -> 0 | AQ13: =SUMIF(Calcs!$F$9:$AOS$9,'Output ProjYr'!$AH13,Calcs!$F$1722:$AOS$1722) -> 0 | AR13: =SUMIF(Calcs!$F$9:$AOS$9,'Output ProjYr'!$AH13,Calcs!$F$1723:$AOS$1723) -> 0 | AS13: 1107454.156 | AU13: 6 | AV13: =SUMIF(Calcs!$F$9:$AOS$9,'Output ProjYr'!$AU13,Calcs!$F$514:$AOS$514)/12 -> 167.8082192 | AW13: =(SUMIF(Calcs!$F$9:$AOS$9,'Output ProjYr'!$AU13,Calcs!$F$588:$AOS$588))/12 -> 361.377961 | AX13: =(SUMIF(Calcs!$F$9:$AOS$9,'Output ProjYr'!$AU13,Calcs!$F$662:$AOS$662))/12 -> 63.16575482 | AY13: =(SUMIF(Calcs!$F$9:$AOS$9,'Output ProjYr'!$AU13,Calcs!$F$736:$AOS$736))/12 -> 109.6712088 | AZ13: =(SUMIF(Calcs!$F$9:$AOS$9,'Output ProjYr'!$AU13,Calcs!$F$810:$AOS$810))/12 -> 49.31198279 | BA13: =(SUMIF(Calcs!$F$9:$AOS$9,'Output ProjYr'!$AU13,Calcs!$F$884:$AOS$884))/12 -> 0 | BB13: =(SUMIF(Calcs!$F$9:$AOS$9,'Output ProjYr'!$AU13,Calcs!$F$958:$AOS$958))/12 -> 0 | BC13: =(SUMIF(Calcs!$F$9:$AOS$9,'Output ProjYr'!$AU13,Calcs!$F$1032:$AOS$1032))/12 -> 0 | BD13: =(SUMIF(Calcs!$F$9:$AOS$9,'Output ProjYr'!$AU13,Calcs!$F$1106:$AOS$1106))/12 -> 0 | BE13: =(SUMIF(Calcs!$F$9:$AOS$9,'Output ProjYr'!$AU13,Calcs!$F$1180:$AOS$1180))/12 -> 0 | BF13: 751.3351267 | BH13: 6 | BI13: =SUMIF(Calcs!$F$9:$AOS$9,'Output ProjYr'!$BH13,Calcs!$F$520:$AOS$520) -> 1230 | BJ13: =SUMIF(Calcs!$F$9:$AOS$9,'Output ProjYr'!$BH13,Calcs!$F$594:$AOS$594) -> 2519.730199 | BK13: =SUMIF(Calcs!$F$9:$AOS$9,'Output ProjYr'!$BH13,Calcs!$F$668:$AOS$668) -> 90.26781789 | BL13: =SUMIF(Calcs!$F$9:$AOS$9,'Output ProjYr'!$BH13,Calcs!$F$742:$AOS$742) -> 0 | BM13: =SUMIF(Calcs!$F$9:$AOS$9,'Output ProjYr'!$BH13,Calcs!$F$816:$AOS$816) -> 432.2149709 | BN13: =SUMIF(Calcs!$F$9:$AOS$9,'Output ProjYr'!$BH13,Calcs!$F$890:$AOS$890) -> 0 | BO13: =SUMIF(Calcs!$F$9:$AOS$9,'Output ProjYr'!$BH13,Calcs!$F$964:$AOS$964) -> 0 | BP13: =SUMIF(Calcs!$F$9:$AOS$9,'Output ProjYr'!$BH13,Calcs!$F$1038:$AOS$1038) -> 0 | BQ13: =SUMIF(Calcs!$F$9:$AOS$9,'Output ProjYr'!$BH13,Calcs!$F$1112:$AOS$1112) -> 0 | BR13: =SUMIF(Calcs!$F$9:$AOS$9,'Output ProjYr'!$BH13,Calcs!$F$1186:$AOS$1186) -> 0 | BS13: =SUMIF(Calcs!$F$9:$AOS$9,'Output ProjYr'!$BH13,Calcs!$F$1252:$AOS$1252) -> 31.14272276 | BT13: =SUMIF(Calcs!$F$9:$AOS$9,'Output ProjYr'!$BH13,Calcs!$F$1289:$AOS$1289) -> 431.065175 | BU13: =SUMIF(Calcs!$F$9:$AOS$9,'Output ProjYr'!$BH13,Calcs!$F$1326:$AOS$1326) -> 31.51503329 | BV13: =SUMIF(Calcs!$F$9:$AOS$9,'Output ProjYr'!$BH13,Calcs!$F$1363:$AOS$1363) -> 0 | BW13: =SUMIF(Calcs!$F$9:$AOS$9,'Output ProjYr'!$BH13,Calcs!$F$1400:$AOS$1400) -> 0 | BX13: =SUMIF(Calcs!$F$9:$AOS$9,'Output ProjYr'!$BH13,Calcs!$F$1437:$AOS$1437) -> 169.9121728 | BY13: =SUMIF(Calcs!$F$9:$AOS$9,'Output ProjYr'!$BH13,Calcs!$F$1474:$AOS$1474) -> 0 | BZ13: =SUMIF(Calcs!$F$9:$AOS$9,'Output ProjYr'!$BH13,Calcs!$F$1511:$AOS$1511) -> 0 | CA13: =SUMIF(Calcs!$F$9:$AOS$9,'Output ProjYr'!$BH13,Calcs!$F$1548:$AOS$1548) -> 0 | CB13: =SUMIF(Calcs!$F$9:$AOS$9,'Output ProjYr'!$BH13,Calcs!$F$1585:$AOS$1585) -> 0 | CC13: 4935.848091 | CE13: 6 | CF13: =SUMIF(Calcs!$F$9:$AOS$9,$CE13,Calcs!$F$521:$AOS$521) -> 1108.745997 | CG13: =SUMIF(Calcs!$F$9:$AOS$9,$CE13,Calcs!$F$595:$AOS$595) -> 2369.428292 | CH13: =SUMIF(Calcs!$F$9:$AOS$9,$CE13,Calcs!$F$669:$AOS$669) -> 83.9309006 | CI13: =SUMIF(Calcs!$F$9:$AOS$9,$CE13,Calcs!$F$743:$AOS$743) -> 0 | CJ13: =SUMIF(Calcs!$F$9:$AOS$9,$CE13,Calcs!$F$817:$AOS$817) -> 389.6070073 | CK13: =SUMIF(Calcs!$F$9:$AOS$9,$CE13,Calcs!$F$891:$AOS$891) -> 0 | CL13: =SUMIF(Calcs!$F$9:$AOS$9,$CE13,Calcs!$F$965:$AOS$965) -> 0 | CM13: =SUMIF(Calcs!$F$9:$AOS$9,$CE13,Calcs!$F$1039:$AOS$1039) -> 0 | CN13: =SUMIF(Calcs!$F$9:$AOS$9,$CE13,Calcs!$F$1113:$AOS$1113) -> 0 | CO13: =SUMIF(Calcs!$F$9:$AOS$9,$CE13,Calcs!$F$1187:$AOS$1187) -> 0 | CP13: =SUMIF(Calcs!$F$9:$AOS$9,$CE13,Calcs!$F$1253:$AOS$1253) -> 28.07265789 | CQ13: =SUMIF(Calcs!$F$9:$AOS$9,$CE13,Calcs!$F$1290:$AOS$1290) -> 388.5705588 | CR13: =SUMIF(Calcs!$F$9:$AOS$9,$CE13,Calcs!$F$1327:$AOS$1327) -> 29.30263729 | CS13: =SUMIF(Calcs!$F$9:$AOS$9,$CE13,Calcs!$F$1364:$AOS$1364) -> 0 | CT13: =SUMIF(Calcs!$F$9:$AOS$9,$CE13,Calcs!$F$1401:$AOS$1401) -> 0 | CU13: =SUMIF(Calcs!$F$9:$AOS$9,$CE13,Calcs!$F$1438:$AOS$1438) -> 169.9121728 | CV13: =SUMIF(Calcs!$F$9:$AOS$9,$CE13,Calcs!$F$1475:$AOS$1475) -> 0 | CW13: =SUMIF(Calcs!$F$9:$AOS$9,$CE13,Calcs!$F$1512:$AOS$1512) -> 0 | CX13: =SUMIF(Calcs!$F$9:$AOS$9,$CE13,Calcs!$F$1549:$AOS$1549) -> 0 | CY13: =SUMIF(Calcs!$F$9:$AOS$9,$CE13,Calcs!$F$1586:$AOS$1586) -> 0 | CZ13: 4567.570224 | DB13: 6 | DC13: =(SUMIF(Calcs!$F$9:$AOS$9,'Output ProjYr'!$DB13,Calcs!$F$567:$AOS$567))/1000000 -> 0 | DD13: =(SUMIF(Calcs!$F$9:$AOS$9,'Output ProjYr'!$DB13,Calcs!$F$641:$AOS$641))/1000000 -> 0 | DE13: =(SUMIF(Calcs!$F$9:$AOS$9,'Output ProjYr'!$DB13,Calcs!$F$715:$AOS$715))/1000000 -> 0.8212013715 | DF13: =(SUMIF(Calcs!$F$9:$AOS$9,'Output ProjYr'!$DB13,Calcs!$F$789:$AOS$789))/1000000 -> 0 | DG13: =(SUMIF(Calcs!$F$9:$AOS$9,'Output ProjYr'!$DB13,Calcs!$F$863:$AOS$863))/1000000 -> 0 | DH13: =(SUMIF(Calcs!$F$9:$AOS$9,'Output ProjYr'!$DB13,Calcs!$F$937:$AOS$937))/1000000 -> 0 | DI13: =(SUMIF(Calcs!$F$9:$AOS$9,'Output ProjYr'!$DB13,Calcs!$F$1011:$AOS$1011))/1000000 -> 0 | DJ13: =(SUMIF(Calcs!$F$9:$AOS$9,'Output ProjYr'!$DB13,Calcs!$F$1085:$AOS$1085))/1000000 -> 0 | DK13: =(SUMIF(Calcs!$F$9:$AOS$9,'Output ProjYr'!$DB13,Calcs!$F$1159:$AOS$1159))/1000000 -> 0 | DL13: =(SUMIF(Calcs!$F$9:$AOS$9,'Output ProjYr'!$DB13,Calcs!$F$1233:$AOS$1233))/1000000 -> 0 | DO13: =(SUMIF(Calcs!$F$9:$AOS$9,'Output ProjYr'!$DB13,Calcs!$F$1344:$AOS$1344))/1000000 -> 0.2862527845 | DV13: =(SUMIF(Calcs!$F$9:$AOS$9,'Output ProjYr'!$DB13,Calcs!$F$1603:$AOS$1603))/1000000 -> 0 | DW13: 1.107454156
A14: 7 | B14: =SUMIF(Calcs!$F$9:$AOS$9,'Output ProjYr'!$A14,Calcs!$F$528:$AOS$528) -> 0 | C14: =SUMIF(Calcs!$F$9:$AOS$9,'Output ProjYr'!$A14,Calcs!$F$602:$AOS$602) -> 0 | D14: =SUMIF(Calcs!$F$9:$AOS$9,'Output ProjYr'!$A14,Calcs!$F$676:$AOS$676) -> 2327416.371 | E14: =SUMIF(Calcs!$F$9:$AOS$9,'Output ProjYr'!$A14,Calcs!$F$750:$AOS$750) -> 0 | F14: =SUMIF(Calcs!$F$9:$AOS$9,'Output ProjYr'!$A14,Calcs!$F$824:$AOS$824) -> 30279467.15 | G14: =SUMIF(Calcs!$F$9:$AOS$9,'Output ProjYr'!$A14,Calcs!$F$898:$AOS$898) -> 0 | H14: =SUMIF(Calcs!$F$9:$AOS$9,'Output ProjYr'!$A14,Calcs!$F$972:$AOS$972) -> 0 | I14: =SUMIF(Calcs!$F$9:$AOS$9,'Output ProjYr'!$A14,Calcs!$F$1046:$AOS$1046) -> 0 | J14: =SUMIF(Calcs!$F$9:$AOS$9,'Output ProjYr'!$A14,Calcs!$F$1120:$AOS$1120) -> 0 | K14: =SUMIF(Calcs!$F$9:$AOS$9,'Output ProjYr'!$A14,Calcs!$F$1194:$AOS$1194) -> 0 | L14: =SUMIF(Calcs!$F$9:$AOS$9,'Output ProjYr'!$A14,Calcs!$F$525:$AOS$525) -> 0 | M14: =SUMIF(Calcs!$F$9:$AOS$9,'Output ProjYr'!$A14,Calcs!$F$599:$AOS$599) -> 0 | N14: =SUMIF(Calcs!$F$9:$AOS$9,'Output ProjYr'!$A14,Calcs!$F$673:$AOS$673) -> 0 | O14: =SUMIF(Calcs!$F$9:$AOS$9,'Output ProjYr'!$A14,Calcs!$F$747:$AOS$747) -> 0 | P14: =SUMIF(Calcs!$F$9:$AOS$9,'Output ProjYr'!$A14,Calcs!$F$821:$AOS$821) -> 0 | Q14: =SUMIF(Calcs!$F$9:$AOS$9,'Output ProjYr'!$A14,Calcs!$F$895:$AOS$895) -> 0 | R14: =SUMIF(Calcs!$F$9:$AOS$9,'Output ProjYr'!$A14,Calcs!$F$969:$AOS$969) -> 0 | S14: =SUMIF(Calcs!$F$9:$AOS$9,'Output ProjYr'!$A14,Calcs!$F$1043:$AOS$1043) -> 0 | T14: =SUMIF(Calcs!$F$9:$AOS$9,'Output ProjYr'!$A14,Calcs!$F$1117:$AOS$1117) -> 0 | U14: =SUMIF(Calcs!$F$9:$AOS$9,'Output ProjYr'!$A14,Calcs!$F$1191:$AOS$1191) -> 0 | V14: =SUMIF(Calcs!$F$9:$AOS$9,'Output ProjYr'!$A14,Calcs!$F$1257:$AOS$1257) -> 4128043.935 | W14: =SUMIF(Calcs!$F$9:$AOS$9,'Output ProjYr'!$A14,Calcs!$F$1294:$AOS$1294) -> 42711886.85 | X14: =SUMIF(Calcs!$F$9:$AOS$9,'Output ProjYr'!$A14,Calcs!$F$1331:$AOS$1331) -> 1050587.635 | Y14: =SUMIF(Calcs!$F$9:$AOS$9,'Output ProjYr'!$A14,Calcs!$F$1368:$AOS$1368) -> 0 | Z14: =SUMIF(Calcs!$F$9:$AOS$9,'Output ProjYr'!$A14,Calcs!$F$1405:$AOS$1405) -> 0 | AA14: =SUMIF(Calcs!$F$9:$AOS$9,'Output ProjYr'!$A14,Calcs!$F$1442:$AOS$1442) -> 7325511.472 | AB14: =SUMIF(Calcs!$F$9:$AOS$9,'Output ProjYr'!$A14,Calcs!$F$1479:$AOS$1479) -> 0 | AC14: =SUMIF(Calcs!$F$9:$AOS$9,'Output ProjYr'!$A14,Calcs!$F$1516:$AOS$1516) -> 0 | AD14: =SUMIF(Calcs!$F$9:$AOS$9,'Output ProjYr'!$A14,Calcs!$F$1553:$AOS$1553) -> 0 | AE14: =SUMIF(Calcs!$F$9:$AOS$9,'Output ProjYr'!$A14,Calcs!$F$1590:$AOS$1590) -> 0 | AF14: 87822913.41 | AH14: 7 | AI14: =SUMIF(Calcs!$F$9:$AOS$9,'Output ProjYr'!$AH14,Calcs!$F$1714:$AOS$1714) -> 0 | AJ14: =SUMIF(Calcs!$F$9:$AOS$9,'Output ProjYr'!$AH14,Calcs!$F$1715:$AOS$1715) -> 0 | AK14: =SUMIF(Calcs!$F$9:$AOS$9,'Output ProjYr'!$AH14,Calcs!$F$1716:$AOS$1716) -> 0 | AL14: =SUMIF(Calcs!$F$9:$AOS$9,'Output ProjYr'!$AH14,Calcs!$F$1717:$AOS$1717) -> 0 | AM14: =SUMIF(Calcs!$F$9:$AOS$9,'Output ProjYr'!$AH14,Calcs!$F$1718:$AOS$1718) -> 0 | AN14: =SUMIF(Calcs!$F$9:$AOS$9,'Output ProjYr'!$AH14,Calcs!$F$1719:$AOS$1719) -> 0 | AO14: =SUMIF(Calcs!$F$9:$AOS$9,'Output ProjYr'!$AH14,Calcs!$F$1720:$AOS$1720) -> 416407.5808 | AP14: =SUMIF(Calcs!$F$9:$AOS$9,'Output ProjYr'!$AH14,Calcs!$F$1721:$AOS$1721) -> 0 | AQ14: =SUMIF(Calcs!$F$9:$AOS$9,'Output ProjYr'!$AH14,Calcs!$F$1722:$AOS$1722) -> 0 | AR14: =SUMIF(Calcs!$F$9:$AOS$9,'Output ProjYr'!$AH14,Calcs!$F$1723:$AOS$1723) -> 0 | AS14: 416407.5808 | AU14: 7 | AV14: =SUMIF(Calcs!$F$9:$AOS$9,'Output ProjYr'!$AU14,Calcs!$F$514:$AOS$514)/12 -> 167.8082192 | AW14: =(SUMIF(Calcs!$F$9:$AOS$9,'Output ProjYr'!$AU14,Calcs!$F$588:$AOS$588))/12 -> 377.6945921 | AX14: =(SUMIF(Calcs!$F$9:$AOS$9,'Output ProjYr'!$AU14,Calcs!$F$662:$AOS$662))/12 -> 55.84433741 | AY14: =(SUMIF(Calcs!$F$9:$AOS$9,'Output ProjYr'!$AU14,Calcs!$F$736:$AOS$736))/12 -> 106.708468 | AZ14: =(SUMIF(Calcs!$F$9:$AOS$9,'Output ProjYr'!$AU14,Calcs!$F$810:$AOS$810))/12 -> 47.57206104 | BA14: =(SUMIF(Calcs!$F$9:$AOS$9,'Output ProjYr'!$AU14,Calcs!$F$884:$AOS$884))/12 -> 0 | BB14: =(SUMIF(Calcs!$F$9:$AOS$9,'Output ProjYr'!$AU14,Calcs!$F$958:$AOS$958))/12 -> 0 | BC14: =(SUMIF(Calcs!$F$9:$AOS$9,'Output ProjYr'!$AU14,Calcs!$F$1032:$AOS$1032))/12 -> 0 | BD14: =(SUMIF(Calcs!$F$9:$AOS$9,'Output ProjYr'!$AU14,Calcs!$F$1106:$AOS$1106))/12 -> 0 | BE14: =(SUMIF(Calcs!$F$9:$AOS$9,'Output ProjYr'!$AU14,Calcs!$F$1180:$AOS$1180))/12 -> 0 | BF14: 755.6276777 | BH14: 7 | BI14: =SUMIF(Calcs!$F$9:$AOS$9,'Output ProjYr'!$BH14,Calcs!$F$520:$AOS$520) -> 980 | BJ14: =SUMIF(Calcs!$F$9:$AOS$9,'Output ProjYr'!$BH14,Calcs!$F$594:$AOS$594) -> 2661.417513 | BK14: =SUMIF(Calcs!$F$9:$AOS$9,'Output ProjYr'!$BH14,Calcs!$F$668:$AOS$668) -> 30.24129738 | BL14: =SUMIF(Calcs!$F$9:$AOS$9,'Output ProjYr'!$BH14,Calcs!$F$742:$AOS$742) -> 0 | BM14: =SUMIF(Calcs!$F$9:$AOS$9,'Output ProjYr'!$BH14,Calcs!$F$816:$AOS$816) -> 418.4540653 | BN14: =SUMIF(Calcs!$F$9:$AOS$9,'Output ProjYr'!$BH14,Calcs!$F$890:$AOS$890) -> 0 | BO14: =SUMIF(Calcs!$F$9:$AOS$9,'Output ProjYr'!$BH14,Calcs!$F$964:$AOS$964) -> 0 | BP14: =SUMIF(Calcs!$F$9:$AOS$9,'Output ProjYr'!$BH14,Calcs!$F$1038:$AOS$1038) -> 0 | BQ14: =SUMIF(Calcs!$F$9:$AOS$9,'Output ProjYr'!$BH14,Calcs!$F$1112:$AOS$1112) -> 0 | BR14: =SUMIF(Calcs!$F$9:$AOS$9,'Output ProjYr'!$BH14,Calcs!$F$1186:$AOS$1186) -> 0 | BS14: =SUMIF(Calcs!$F$9:$AOS$9,'Output ProjYr'!$BH14,Calcs!$F$1252:$AOS$1252) -> 48.45724063 | BT14: =SUMIF(Calcs!$F$9:$AOS$9,'Output ProjYr'!$BH14,Calcs!$F$1289:$AOS$1289) -> 668.1399774 | BU14: =SUMIF(Calcs!$F$9:$AOS$9,'Output ProjYr'!$BH14,Calcs!$F$1326:$AOS$1326) -> 15.10367835 | BV14: =SUMIF(Calcs!$F$9:$AOS$9,'Output ProjYr'!$BH14,Calcs!$F$1363:$AOS$1363) -> 0 | BW14: =SUMIF(Calcs!$F$9:$AOS$9,'Output ProjYr'!$BH14,Calcs!$F$1400:$AOS$1400) -> 0 | BX14: =SUMIF(Calcs!$F$9:$AOS$9,'Output ProjYr'!$BH14,Calcs!$F$1437:$AOS$1437) -> 114.0343191 | BY14: =SUMIF(Calcs!$F$9:$AOS$9,'Output ProjYr'!$BH14,Calcs!$F$1474:$AOS$1474) -> 0 | BZ14: =SUMIF(Calcs!$F$9:$AOS$9,'Output ProjYr'!$BH14,Calcs!$F$1511:$AOS$1511) -> 0 | CA14: =SUMIF(Calcs!$F$9:$AOS$9,'Output ProjYr'!$BH14,Calcs!$F$1548:$AOS$1548) -> 0 | CB14: =SUMIF(Calcs!$F$9:$AOS$9,'Output ProjYr'!$BH14,Calcs!$F$1585:$AOS$1585) -> 0 | CC14: 4935.848091 | CE14: 7 | CF14: =SUMIF(Calcs!$F$9:$AOS$9,$CE14,Calcs!$F$521:$AOS$521) -> 883.3911198 | CG14: =SUMIF(Calcs!$F$9:$AOS$9,$CE14,Calcs!$F$595:$AOS$595) -> 2502.663958 | CH14: =SUMIF(Calcs!$F$9:$AOS$9,$CE14,Calcs!$F$669:$AOS$669) -> 28.11831929 | CI14: =SUMIF(Calcs!$F$9:$AOS$9,$CE14,Calcs!$F$743:$AOS$743) -> 0 | CJ14: =SUMIF(Calcs!$F$9:$AOS$9,$CE14,Calcs!$F$817:$AOS$817) -> 377.2026585 | CK14: =SUMIF(Calcs!$F$9:$AOS$9,$CE14,Calcs!$F$891:$AOS$891) -> 0 | CL14: =SUMIF(Calcs!$F$9:$AOS$9,$CE14,Calcs!$F$965:$AOS$965) -> 0 | CM14: =SUMIF(Calcs!$F$9:$AOS$9,$CE14,Calcs!$F$1039:$AOS$1039) -> 0 | CN14: =SUMIF(Calcs!$F$9:$AOS$9,$CE14,Calcs!$F$1113:$AOS$1113) -> 0 | CO14: =SUMIF(Calcs!$F$9:$AOS$9,$CE14,Calcs!$F$1187:$AOS$1187) -> 0 | CP14: =SUMIF(Calcs!$F$9:$AOS$9,$CE14,Calcs!$F$1253:$AOS$1253) -> 43.6803021 | CQ14: =SUMIF(Calcs!$F$9:$AOS$9,$CE14,Calcs!$F$1290:$AOS$1290) -> 602.274411 | CR14: =SUMIF(Calcs!$F$9:$AOS$9,$CE14,Calcs!$F$1327:$AOS$1327) -> 14.04338064 | CS14: =SUMIF(Calcs!$F$9:$AOS$9,$CE14,Calcs!$F$1364:$AOS$1364) -> 0 | CT14: =SUMIF(Calcs!$F$9:$AOS$9,$CE14,Calcs!$F$1401:$AOS$1401) -> 0 | CU14: =SUMIF(Calcs!$F$9:$AOS$9,$CE14,Calcs!$F$1438:$AOS$1438) -> 114.0343191 | CV14: =SUMIF(Calcs!$F$9:$AOS$9,$CE14,Calcs!$F$1475:$AOS$1475) -> 0 | CW14: =SUMIF(Calcs!$F$9:$AOS$9,$CE14,Calcs!$F$1512:$AOS$1512) -> 0 | CX14: =SUMIF(Calcs!$F$9:$AOS$9,$CE14,Calcs!$F$1549:$AOS$1549) -> 0 | CY14: =SUMIF(Calcs!$F$9:$AOS$9,$CE14,Calcs!$F$1586:$AOS$1586) -> 0 | CZ14: 4565.408469 | DB14: 7 | DC14: =(SUMIF(Calcs!$F$9:$AOS$9,'Output ProjYr'!$DB14,Calcs!$F$567:$AOS$567))/1000000 -> 0 | DD14: =(SUMIF(Calcs!$F$9:$AOS$9,'Output ProjYr'!$DB14,Calcs!$F$641:$AOS$641))/1000000 -> 0 | DE14: =(SUMIF(Calcs!$F$9:$AOS$9,'Output ProjYr'!$DB14,Calcs!$F$715:$AOS$715))/1000000 -> 0.2781489204 | DF14: =(SUMIF(Calcs!$F$9:$AOS$9,'Output ProjYr'!$DB14,Calcs!$F$789:$AOS$789))/1000000 -> 0 | DG14: =(SUMIF(Calcs!$F$9:$AOS$9,'Output ProjYr'!$DB14,Calcs!$F$863:$AOS$863))/1000000 -> 0 | DH14: =(SUMIF(Calcs!$F$9:$AOS$9,'Output ProjYr'!$DB14,Calcs!$F$937:$AOS$937))/1000000 -> 0 | DI14: =(SUMIF(Calcs!$F$9:$AOS$9,'Output ProjYr'!$DB14,Calcs!$F$1011:$AOS$1011))/1000000 -> 0 | DJ14: =(SUMIF(Calcs!$F$9:$AOS$9,'Output ProjYr'!$DB14,Calcs!$F$1085:$AOS$1085))/1000000 -> 0 | DK14: =(SUMIF(Calcs!$F$9:$AOS$9,'Output ProjYr'!$DB14,Calcs!$F$1159:$AOS$1159))/1000000 -> 0 | DL14: =(SUMIF(Calcs!$F$9:$AOS$9,'Output ProjYr'!$DB14,Calcs!$F$1233:$AOS$1233))/1000000 -> 0 | DO14: =(SUMIF(Calcs!$F$9:$AOS$9,'Output ProjYr'!$DB14,Calcs!$F$1344:$AOS$1344))/1000000 -> 0.1382586604 | DV14: =(SUMIF(Calcs!$F$9:$AOS$9,'Output ProjYr'!$DB14,Calcs!$F$1603:$AOS$1603))/1000000 -> 0 | DW14: 0.4164075808
A15: 8 | B15: =SUMIF(Calcs!$F$9:$AOS$9,'Output ProjYr'!$A15,Calcs!$F$528:$AOS$528) -> 0 | C15: =SUMIF(Calcs!$F$9:$AOS$9,'Output ProjYr'!$A15,Calcs!$F$602:$AOS$602) -> 0 | D15: =SUMIF(Calcs!$F$9:$AOS$9,'Output ProjYr'!$A15,Calcs!$F$676:$AOS$676) -> 555953.4626 | E15: =SUMIF(Calcs!$F$9:$AOS$9,'Output ProjYr'!$A15,Calcs!$F$750:$AOS$750) -> 0 | F15: =SUMIF(Calcs!$F$9:$AOS$9,'Output ProjYr'!$A15,Calcs!$F$824:$AOS$824) -> 30708252.91 | G15: =SUMIF(Calcs!$F$9:$AOS$9,'Output ProjYr'!$A15,Calcs!$F$898:$AOS$898) -> 0 | H15: =SUMIF(Calcs!$F$9:$AOS$9,'Output ProjYr'!$A15,Calcs!$F$972:$AOS$972) -> 0 | I15: =SUMIF(Calcs!$F$9:$AOS$9,'Output ProjYr'!$A15,Calcs!$F$1046:$AOS$1046) -> 0 | J15: =SUMIF(Calcs!$F$9:$AOS$9,'Output ProjYr'!$A15,Calcs!$F$1120:$AOS$1120) -> 0 | K15: =SUMIF(Calcs!$F$9:$AOS$9,'Output ProjYr'!$A15,Calcs!$F$1194:$AOS$1194) -> 0 | L15: =SUMIF(Calcs!$F$9:$AOS$9,'Output ProjYr'!$A15,Calcs!$F$525:$AOS$525) -> 0 | M15: =SUMIF(Calcs!$F$9:$AOS$9,'Output ProjYr'!$A15,Calcs!$F$599:$AOS$599) -> 0 | N15: =SUMIF(Calcs!$F$9:$AOS$9,'Output ProjYr'!$A15,Calcs!$F$673:$AOS$673) -> 0 | O15: =SUMIF(Calcs!$F$9:$AOS$9,'Output ProjYr'!$A15,Calcs!$F$747:$AOS$747) -> 0 | P15: =SUMIF(Calcs!$F$9:$AOS$9,'Output ProjYr'!$A15,Calcs!$F$821:$AOS$821) -> 0 | Q15: =SUMIF(Calcs!$F$9:$AOS$9,'Output ProjYr'!$A15,Calcs!$F$895:$AOS$895) -> 0 | R15: =SUMIF(Calcs!$F$9:$AOS$9,'Output ProjYr'!$A15,Calcs!$F$969:$AOS$969) -> 0 | S15: =SUMIF(Calcs!$F$9:$AOS$9,'Output ProjYr'!$A15,Calcs!$F$1043:$AOS$1043) -> 0 | T15: =SUMIF(Calcs!$F$9:$AOS$9,'Output ProjYr'!$A15,Calcs!$F$1117:$AOS$1117) -> 0 | U15: =SUMIF(Calcs!$F$9:$AOS$9,'Output ProjYr'!$A15,Calcs!$F$1191:$AOS$1191) -> 0 | V15: =SUMIF(Calcs!$F$9:$AOS$9,'Output ProjYr'!$A15,Calcs!$F$1257:$AOS$1257) -> 4523272.64 | W15: =SUMIF(Calcs!$F$9:$AOS$9,'Output ProjYr'!$A15,Calcs!$F$1294:$AOS$1294) -> 41349501.57 | X15: =SUMIF(Calcs!$F$9:$AOS$9,'Output ProjYr'!$A15,Calcs!$F$1331:$AOS$1331) -> 0 | Y15: =SUMIF(Calcs!$F$9:$AOS$9,'Output ProjYr'!$A15,Calcs!$F$1368:$AOS$1368) -> 0 | Z15: =SUMIF(Calcs!$F$9:$AOS$9,'Output ProjYr'!$A15,Calcs!$F$1405:$AOS$1405) -> 0 | AA15: =SUMIF(Calcs!$F$9:$AOS$9,'Output ProjYr'!$A15,Calcs!$F$1442:$AOS$1442) -> 7217303.588 | AB15: =SUMIF(Calcs!$F$9:$AOS$9,'Output ProjYr'!$A15,Calcs!$F$1479:$AOS$1479) -> 0 | AC15: =SUMIF(Calcs!$F$9:$AOS$9,'Output ProjYr'!$A15,Calcs!$F$1516:$AOS$1516) -> 0 | AD15: =SUMIF(Calcs!$F$9:$AOS$9,'Output ProjYr'!$A15,Calcs!$F$1553:$AOS$1553) -> 0 | AE15: =SUMIF(Calcs!$F$9:$AOS$9,'Output ProjYr'!$A15,Calcs!$F$1590:$AOS$1590) -> 0 | AF15: 84354284.17 | AH15: 8 | AI15: =SUMIF(Calcs!$F$9:$AOS$9,'Output ProjYr'!$AH15,Calcs!$F$1714:$AOS$1714) -> 0 | AJ15: =SUMIF(Calcs!$F$9:$AOS$9,'Output ProjYr'!$AH15,Calcs!$F$1715:$AOS$1715) -> 0 | AK15: =SUMIF(Calcs!$F$9:$AOS$9,'Output ProjYr'!$AH15,Calcs!$F$1716:$AOS$1716) -> 0 | AL15: =SUMIF(Calcs!$F$9:$AOS$9,'Output ProjYr'!$AH15,Calcs!$F$1717:$AOS$1717) -> 0 | AM15: =SUMIF(Calcs!$F$9:$AOS$9,'Output ProjYr'!$AH15,Calcs!$F$1718:$AOS$1718) -> 0 | AN15: =SUMIF(Calcs!$F$9:$AOS$9,'Output ProjYr'!$AH15,Calcs!$F$1719:$AOS$1719) -> 0 | AO15: =SUMIF(Calcs!$F$9:$AOS$9,'Output ProjYr'!$AH15,Calcs!$F$1720:$AOS$1720) -> 64258.75585 | AP15: =SUMIF(Calcs!$F$9:$AOS$9,'Output ProjYr'!$AH15,Calcs!$F$1721:$AOS$1721) -> 0 | AQ15: =SUMIF(Calcs!$F$9:$AOS$9,'Output ProjYr'!$AH15,Calcs!$F$1722:$AOS$1722) -> 0 | AR15: =SUMIF(Calcs!$F$9:$AOS$9,'Output ProjYr'!$AH15,Calcs!$F$1723:$AOS$1723) -> 0 | AS15: 64258.75585 | AU15: 8 | AV15: =SUMIF(Calcs!$F$9:$AOS$9,'Output ProjYr'!$AU15,Calcs!$F$514:$AOS$514)/12 -> 167.8082192 | AW15: =(SUMIF(Calcs!$F$9:$AOS$9,'Output ProjYr'!$AU15,Calcs!$F$588:$AOS$588))/12 -> 391.6924164 | AX15: =(SUMIF(Calcs!$F$9:$AOS$9,'Output ProjYr'!$AU15,Calcs!$F$662:$AOS$662))/12 -> 49.50199688 | AY15: =(SUMIF(Calcs!$F$9:$AOS$9,'Output ProjYr'!$AU15,Calcs!$F$736:$AOS$736))/12 -> 103.9167703 | AZ15: =(SUMIF(Calcs!$F$9:$AOS$9,'Output ProjYr'!$AU15,Calcs!$F$810:$AOS$810))/12 -> 45.91277132 | BA15: =(SUMIF(Calcs!$F$9:$AOS$9,'Output ProjYr'!$AU15,Calcs!$F$884:$AOS$884))/12 -> 0 | BB15: =(SUMIF(Calcs!$F$9:$AOS$9,'Output ProjYr'!$AU15,Calcs!$F$958:$AOS$958))/12 -> 0 | BC15: =(SUMIF(Calcs!$F$9:$AOS$9,'Output ProjYr'!$AU15,Calcs!$F$1032:$AOS$1032))/12 -> 0 | BD15: =(SUMIF(Calcs!$F$9:$AOS$9,'Output ProjYr'!$AU15,Calcs!$F$1106:$AOS$1106))/12 -> 0 | BE15: =(SUMIF(Calcs!$F$9:$AOS$9,'Output ProjYr'!$AU15,Calcs!$F$1180:$AOS$1180))/12 -> 0 | BF15: 758.8321741 | BH15: 8 | BI15: =SUMIF(Calcs!$F$9:$AOS$9,'Output ProjYr'!$BH15,Calcs!$F$520:$AOS$520) -> 980 | BJ15: =SUMIF(Calcs!$F$9:$AOS$9,'Output ProjYr'!$BH15,Calcs!$F$594:$AOS$594) -> 2777.438258 | BK15: =SUMIF(Calcs!$F$9:$AOS$9,'Output ProjYr'!$BH15,Calcs!$F$668:$AOS$668) -> 6.924669039 | BL15: =SUMIF(Calcs!$F$9:$AOS$9,'Output ProjYr'!$BH15,Calcs!$F$742:$AOS$742) -> 0 | BM15: =SUMIF(Calcs!$F$9:$AOS$9,'Output ProjYr'!$BH15,Calcs!$F$816:$AOS$816) -> 403.8476247 | BN15: =SUMIF(Calcs!$F$9:$AOS$9,'Output ProjYr'!$BH15,Calcs!$F$890:$AOS$890) -> 0 | BO15: =SUMIF(Calcs!$F$9:$AOS$9,'Output ProjYr'!$BH15,Calcs!$F$964:$AOS$964) -> 0 | BP15: =SUMIF(Calcs!$F$9:$AOS$9,'Output ProjYr'!$BH15,Calcs!$F$1038:$AOS$1038) -> 0 | BQ15: =SUMIF(Calcs!$F$9:$AOS$9,'Output ProjYr'!$BH15,Calcs!$F$1112:$AOS$1112) -> 0 | BR15: =SUMIF(Calcs!$F$9:$AOS$9,'Output ProjYr'!$BH15,Calcs!$F$1186:$AOS$1186) -> 0 | BS15: =SUMIF(Calcs!$F$9:$AOS$9,'Output ProjYr'!$BH15,Calcs!$F$1252:$AOS$1252) -> 51.02710342 | BT15: =SUMIF(Calcs!$F$9:$AOS$9,'Output ProjYr'!$BH15,Calcs!$F$1289:$AOS$1289) -> 609.2144304 | BU15: =SUMIF(Calcs!$F$9:$AOS$9,'Output ProjYr'!$BH15,Calcs!$F$1326:$AOS$1326) -> 0 | BV15: =SUMIF(Calcs!$F$9:$AOS$9,'Output ProjYr'!$BH15,Calcs!$F$1363:$AOS$1363) -> 0 | BW15: =SUMIF(Calcs!$F$9:$AOS$9,'Output ProjYr'!$BH15,Calcs!$F$1400:$AOS$1400) -> 0 | BX15: =SUMIF(Calcs!$F$9:$AOS$9,'Output ProjYr'!$BH15,Calcs!$F$1437:$AOS$1437) -> 107.3960058 | BY15: =SUMIF(Calcs!$F$9:$AOS$9,'Output ProjYr'!$BH15,Calcs!$F$1474:$AOS$1474) -> 0 | BZ15: =SUMIF(Calcs!$F$9:$AOS$9,'Output ProjYr'!$BH15,Calcs!$F$1511:$AOS$1511) -> 0 | CA15: =SUMIF(Calcs!$F$9:$AOS$9,'Output ProjYr'!$BH15,Calcs!$F$1548:$AOS$1548) -> 0 | CB15: =SUMIF(Calcs!$F$9:$AOS$9,'Output ProjYr'!$BH15,Calcs!$F$1585:$AOS$1585) -> 0 | CC15: 4935.848091 | CE15: 8 | CF15: =SUMIF(Calcs!$F$9:$AOS$9,$CE15,Calcs!$F$521:$AOS$521) -> 883.3911198 | CG15: =SUMIF(Calcs!$F$9:$AOS$9,$CE15,Calcs!$F$595:$AOS$595) -> 2611.764066 | CH15: =SUMIF(Calcs!$F$9:$AOS$9,$CE15,Calcs!$F$669:$AOS$669) -> 6.438548338 | CI15: =SUMIF(Calcs!$F$9:$AOS$9,$CE15,Calcs!$F$743:$AOS$743) -> 0 | CJ15: =SUMIF(Calcs!$F$9:$AOS$9,$CE15,Calcs!$F$817:$AOS$817) -> 364.036128 | CK15: =SUMIF(Calcs!$F$9:$AOS$9,$CE15,Calcs!$F$891:$AOS$891) -> 0 | CL15: =SUMIF(Calcs!$F$9:$AOS$9,$CE15,Calcs!$F$965:$AOS$965) -> 0 | CM15: =SUMIF(Calcs!$F$9:$AOS$9,$CE15,Calcs!$F$1039:$AOS$1039) -> 0 | CN15: =SUMIF(Calcs!$F$9:$AOS$9,$CE15,Calcs!$F$1113:$AOS$1113) -> 0 | CO15: =SUMIF(Calcs!$F$9:$AOS$9,$CE15,Calcs!$F$1187:$AOS$1187) -> 0 | CP15: =SUMIF(Calcs!$F$9:$AOS$9,$CE15,Calcs!$F$1253:$AOS$1253) -> 45.99682656 | CQ15: =SUMIF(Calcs!$F$9:$AOS$9,$CE15,Calcs!$F$1290:$AOS$1290) -> 549.1577733 | CR15: =SUMIF(Calcs!$F$9:$AOS$9,$CE15,Calcs!$F$1327:$AOS$1327) -> 0 | CS15: =SUMIF(Calcs!$F$9:$AOS$9,$CE15,Calcs!$F$1364:$AOS$1364) -> 0 | CT15: =SUMIF(Calcs!$F$9:$AOS$9,$CE15,Calcs!$F$1401:$AOS$1401) -> 0 | CU15: =SUMIF(Calcs!$F$9:$AOS$9,$CE15,Calcs!$F$1438:$AOS$1438) -> 107.3960058 | CV15: =SUMIF(Calcs!$F$9:$AOS$9,$CE15,Calcs!$F$1475:$AOS$1475) -> 0 | CW15: =SUMIF(Calcs!$F$9:$AOS$9,$CE15,Calcs!$F$1512:$AOS$1512) -> 0 | CX15: =SUMIF(Calcs!$F$9:$AOS$9,$CE15,Calcs!$F$1549:$AOS$1549) -> 0 | CY15: =SUMIF(Calcs!$F$9:$AOS$9,$CE15,Calcs!$F$1586:$AOS$1586) -> 0 | CZ15: 4568.180468 | DB15: 8 | DC15: =(SUMIF(Calcs!$F$9:$AOS$9,'Output ProjYr'!$DB15,Calcs!$F$567:$AOS$567))/1000000 -> 0 | DD15: =(SUMIF(Calcs!$F$9:$AOS$9,'Output ProjYr'!$DB15,Calcs!$F$641:$AOS$641))/1000000 -> 0 | DE15: =(SUMIF(Calcs!$F$9:$AOS$9,'Output ProjYr'!$DB15,Calcs!$F$715:$AOS$715))/1000000 -> 0.06425875585 | DF15: =(SUMIF(Calcs!$F$9:$AOS$9,'Output ProjYr'!$DB15,Calcs!$F$789:$AOS$789))/1000000 -> 0 | DG15: =(SUMIF(Calcs!$F$9:$AOS$9,'Output ProjYr'!$DB15,Calcs!$F$863:$AOS$863))/1000000 -> 0 | DH15: =(SUMIF(Calcs!$F$9:$AOS$9,'Output ProjYr'!$DB15,Calcs!$F$937:$AOS$937))/1000000 -> 0 | DI15: =(SUMIF(Calcs!$F$9:$AOS$9,'Output ProjYr'!$DB15,Calcs!$F$1011:$AOS$1011))/1000000 -> 0 | DJ15: =(SUMIF(Calcs!$F$9:$AOS$9,'Output ProjYr'!$DB15,Calcs!$F$1085:$AOS$1085))/1000000 -> 0 | DK15: =(SUMIF(Calcs!$F$9:$AOS$9,'Output ProjYr'!$DB15,Calcs!$F$1159:$AOS$1159))/1000000 -> 0 | DL15: =(SUMIF(Calcs!$F$9:$AOS$9,'Output ProjYr'!$DB15,Calcs!$F$1233:$AOS$1233))/1000000 -> 0 | DO15: =(SUMIF(Calcs!$F$9:$AOS$9,'Output ProjYr'!$DB15,Calcs!$F$1344:$AOS$1344))/1000000 -> 0 | DV15: =(SUMIF(Calcs!$F$9:$AOS$9,'Output ProjYr'!$DB15,Calcs!$F$1603:$AOS$1603))/1000000 -> 0 | DW15: 0.06425875585
A16: 9 | B16: =SUMIF(Calcs!$F$9:$AOS$9,'Output ProjYr'!$A16,Calcs!$F$528:$AOS$528) -> 0 | C16: =SUMIF(Calcs!$F$9:$AOS$9,'Output ProjYr'!$A16,Calcs!$F$602:$AOS$602) -> 0 | D16: =SUMIF(Calcs!$F$9:$AOS$9,'Output ProjYr'!$A16,Calcs!$F$676:$AOS$676) -> 0 | E16: =SUMIF(Calcs!$F$9:$AOS$9,'Output ProjYr'!$A16,Calcs!$F$750:$AOS$750) -> 0 | F16: =SUMIF(Calcs!$F$9:$AOS$9,'Output ProjYr'!$A16,Calcs!$F$824:$AOS$824) -> 31556060.61 | G16: =SUMIF(Calcs!$F$9:$AOS$9,'Output ProjYr'!$A16,Calcs!$F$898:$AOS$898) -> 0 | H16: =SUMIF(Calcs!$F$9:$AOS$9,'Output ProjYr'!$A16,Calcs!$F$972:$AOS$972) -> 0 | I16: =SUMIF(Calcs!$F$9:$AOS$9,'Output ProjYr'!$A16,Calcs!$F$1046:$AOS$1046) -> 0 | J16: =SUMIF(Calcs!$F$9:$AOS$9,'Output ProjYr'!$A16,Calcs!$F$1120:$AOS$1120) -> 0 | K16: =SUMIF(Calcs!$F$9:$AOS$9,'Output ProjYr'!$A16,Calcs!$F$1194:$AOS$1194) -> 0 | L16: =SUMIF(Calcs!$F$9:$AOS$9,'Output ProjYr'!$A16,Calcs!$F$525:$AOS$525) -> 0 | M16: =SUMIF(Calcs!$F$9:$AOS$9,'Output ProjYr'!$A16,Calcs!$F$599:$AOS$599) -> 0 | N16: =SUMIF(Calcs!$F$9:$AOS$9,'Output ProjYr'!$A16,Calcs!$F$673:$AOS$673) -> 0 | O16: =SUMIF(Calcs!$F$9:$AOS$9,'Output ProjYr'!$A16,Calcs!$F$747:$AOS$747) -> 0 | P16: =SUMIF(Calcs!$F$9:$AOS$9,'Output ProjYr'!$A16,Calcs!$F$821:$AOS$821) -> 0 | Q16: =SUMIF(Calcs!$F$9:$AOS$9,'Output ProjYr'!$A16,Calcs!$F$895:$AOS$895) -> 0 | R16: =SUMIF(Calcs!$F$9:$AOS$9,'Output ProjYr'!$A16,Calcs!$F$969:$AOS$969) -> 0 | S16: =SUMIF(Calcs!$F$9:$AOS$9,'Output ProjYr'!$A16,Calcs!$F$1043:$AOS$1043) -> 0 | T16: =SUMIF(Calcs!$F$9:$AOS$9,'Output ProjYr'!$A16,Calcs!$F$1117:$AOS$1117) -> 0 | U16: =SUMIF(Calcs!$F$9:$AOS$9,'Output ProjYr'!$A16,Calcs!$F$1191:$AOS$1191) -> 0 | V16: =SUMIF(Calcs!$F$9:$AOS$9,'Output ProjYr'!$A16,Calcs!$F$1257:$AOS$1257) -> 7201313.681 | W16: =SUMIF(Calcs!$F$9:$AOS$9,'Output ProjYr'!$A16,Calcs!$F$1294:$AOS$1294) -> 39653702.97 | X16: =SUMIF(Calcs!$F$9:$AOS$9,'Output ProjYr'!$A16,Calcs!$F$1331:$AOS$1331) -> 0 | Y16: =SUMIF(Calcs!$F$9:$AOS$9,'Output ProjYr'!$A16,Calcs!$F$1368:$AOS$1368) -> 0 | Z16: =SUMIF(Calcs!$F$9:$AOS$9,'Output ProjYr'!$A16,Calcs!$F$1405:$AOS$1405) -> 0 | AA16: =SUMIF(Calcs!$F$9:$AOS$9,'Output ProjYr'!$A16,Calcs!$F$1442:$AOS$1442) -> 3678717.722 | AB16: =SUMIF(Calcs!$F$9:$AOS$9,'Output ProjYr'!$A16,Calcs!$F$1479:$AOS$1479) -> 0 | AC16: =SUMIF(Calcs!$F$9:$AOS$9,'Output ProjYr'!$A16,Calcs!$F$1516:$AOS$1516) -> 0 | AD16: =SUMIF(Calcs!$F$9:$AOS$9,'Output ProjYr'!$A16,Calcs!$F$1553:$AOS$1553) -> 0 | AE16: =SUMIF(Calcs!$F$9:$AOS$9,'Output ProjYr'!$A16,Calcs!$F$1590:$AOS$1590) -> 0 | AF16: 82089794.98 | AH16: 9 | AI16: =SUMIF(Calcs!$F$9:$AOS$9,'Output ProjYr'!$AH16,Calcs!$F$1714:$AOS$1714) -> 0 | AJ16: =SUMIF(Calcs!$F$9:$AOS$9,'Output ProjYr'!$AH16,Calcs!$F$1715:$AOS$1715) -> 0 | AK16: =SUMIF(Calcs!$F$9:$AOS$9,'Output ProjYr'!$AH16,Calcs!$F$1716:$AOS$1716) -> 0 | AL16: =SUMIF(Calcs!$F$9:$AOS$9,'Output ProjYr'!$AH16,Calcs!$F$1717:$AOS$1717) -> 0 | AM16: =SUMIF(Calcs!$F$9:$AOS$9,'Output ProjYr'!$AH16,Calcs!$F$1718:$AOS$1718) -> 0 | AN16: =SUMIF(Calcs!$F$9:$AOS$9,'Output ProjYr'!$AH16,Calcs!$F$1719:$AOS$1719) -> 0 | AO16: =SUMIF(Calcs!$F$9:$AOS$9,'Output ProjYr'!$AH16,Calcs!$F$1720:$AOS$1720) -> 0 | AP16: =SUMIF(Calcs!$F$9:$AOS$9,'Output ProjYr'!$AH16,Calcs!$F$1721:$AOS$1721) -> 0 | AQ16: =SUMIF(Calcs!$F$9:$AOS$9,'Output ProjYr'!$AH16,Calcs!$F$1722:$AOS$1722) -> 0 | AR16: =SUMIF(Calcs!$F$9:$AOS$9,'Output ProjYr'!$AH16,Calcs!$F$1723:$AOS$1723) -> 0 | AS16: 0 | AU16: 9 | AV16: =SUMIF(Calcs!$F$9:$AOS$9,'Output ProjYr'!$AU16,Calcs!$F$514:$AOS$514)/12 -> 167.8082192 | AW16: =(SUMIF(Calcs!$F$9:$AOS$9,'Output ProjYr'!$AU16,Calcs!$F$588:$AOS$588))/12 -> 402.4077468 | AX16: =(SUMIF(Calcs!$F$9:$AOS$9,'Output ProjYr'!$AU16,Calcs!$F$662:$AOS$662))/12 -> 45.38729245 | AY16: =(SUMIF(Calcs!$F$9:$AOS$9,'Output ProjYr'!$AU16,Calcs!$F$736:$AOS$736))/12 -> 101.008561 | AZ16: =(SUMIF(Calcs!$F$9:$AOS$9,'Output ProjYr'!$AU16,Calcs!$F$810:$AOS$810))/12 -> 45.0626559 | BA16: =(SUMIF(Calcs!$F$9:$AOS$9,'Output ProjYr'!$AU16,Calcs!$F$884:$AOS$884))/12 -> 0 | BB16: =(SUMIF(Calcs!$F$9:$AOS$9,'Output ProjYr'!$AU16,Calcs!$F$958:$AOS$958))/12 -> 0 | BC16: =(SUMIF(Calcs!$F$9:$AOS$9,'Output ProjYr'!$AU16,Calcs!$F$1032:$AOS$1032))/12 -> 0 | BD16: =(SUMIF(Calcs!$F$9:$AOS$9,'Output ProjYr'!$AU16,Calcs!$F$1106:$AOS$1106))/12 -> 0 | BE16: =(SUMIF(Calcs!$F$9:$AOS$9,'Output ProjYr'!$AU16,Calcs!$F$1180:$AOS$1180))/12 -> 0 | BF16: 761.6744754 | BH16: 9 | BI16: =SUMIF(Calcs!$F$9:$AOS$9,'Output ProjYr'!$BH16,Calcs!$F$520:$AOS$520) -> 980 | BJ16: =SUMIF(Calcs!$F$9:$AOS$9,'Output ProjYr'!$BH16,Calcs!$F$594:$AOS$594) -> 2881.603102 | BK16: =SUMIF(Calcs!$F$9:$AOS$9,'Output ProjYr'!$BH16,Calcs!$F$668:$AOS$668) -> 0 | BL16: =SUMIF(Calcs!$F$9:$AOS$9,'Output ProjYr'!$BH16,Calcs!$F$742:$AOS$742) -> 0 | BM16: =SUMIF(Calcs!$F$9:$AOS$9,'Output ProjYr'!$BH16,Calcs!$F$816:$AOS$816) -> 396.3610907 | BN16: =SUMIF(Calcs!$F$9:$AOS$9,'Output ProjYr'!$BH16,Calcs!$F$890:$AOS$890) -> 0 | BO16: =SUMIF(Calcs!$F$9:$AOS$9,'Output ProjYr'!$BH16,Calcs!$F$964:$AOS$964) -> 0 | BP16: =SUMIF(Calcs!$F$9:$AOS$9,'Output ProjYr'!$BH16,Calcs!$F$1038:$AOS$1038) -> 0 | BQ16: =SUMIF(Calcs!$F$9:$AOS$9,'Output ProjYr'!$BH16,Calcs!$F$1112:$AOS$1112) -> 0 | BR16: =SUMIF(Calcs!$F$9:$AOS$9,'Output ProjYr'!$BH16,Calcs!$F$1186:$AOS$1186) -> 0 | BS16: =SUMIF(Calcs!$F$9:$AOS$9,'Output ProjYr'!$BH16,Calcs!$F$1252:$AOS$1252) -> 78.21086242 | BT16: =SUMIF(Calcs!$F$9:$AOS$9,'Output ProjYr'!$BH16,Calcs!$F$1289:$AOS$1289) -> 547.3881097 | BU16: =SUMIF(Calcs!$F$9:$AOS$9,'Output ProjYr'!$BH16,Calcs!$F$1326:$AOS$1326) -> 0 | BV16: =SUMIF(Calcs!$F$9:$AOS$9,'Output ProjYr'!$BH16,Calcs!$F$1363:$AOS$1363) -> 0 | BW16: =SUMIF(Calcs!$F$9:$AOS$9,'Output ProjYr'!$BH16,Calcs!$F$1400:$AOS$1400) -> 0 | BX16: =SUMIF(Calcs!$F$9:$AOS$9,'Output ProjYr'!$BH16,Calcs!$F$1437:$AOS$1437) -> 52.2849265 | BY16: =SUMIF(Calcs!$F$9:$AOS$9,'Output ProjYr'!$BH16,Calcs!$F$1474:$AOS$1474) -> 0 | BZ16: =SUMIF(Calcs!$F$9:$AOS$9,'Output ProjYr'!$BH16,Calcs!$F$1511:$AOS$1511) -> 0 | CA16: =SUMIF(Calcs!$F$9:$AOS$9,'Output ProjYr'!$BH16,Calcs!$F$1548:$AOS$1548) -> 0 | CB16: =SUMIF(Calcs!$F$9:$AOS$9,'Output ProjYr'!$BH16,Calcs!$F$1585:$AOS$1585) -> 0 | CC16: 4935.848091 | CE16: 9 | CF16: =SUMIF(Calcs!$F$9:$AOS$9,$CE16,Calcs!$F$521:$AOS$521) -> 883.3911198 | CG16: =SUMIF(Calcs!$F$9:$AOS$9,$CE16,Calcs!$F$595:$AOS$595) -> 2709.715477 | CH16: =SUMIF(Calcs!$F$9:$AOS$9,$CE16,Calcs!$F$669:$AOS$669) -> 0 | CI16: =SUMIF(Calcs!$F$9:$AOS$9,$CE16,Calcs!$F$743:$AOS$743) -> 0 | CJ16: =SUMIF(Calcs!$F$9:$AOS$9,$CE16,Calcs!$F$817:$AOS$817) -> 357.2876201 | CK16: =SUMIF(Calcs!$F$9:$AOS$9,$CE16,Calcs!$F$891:$AOS$891) -> 0 | CL16: =SUMIF(Calcs!$F$9:$AOS$9,$CE16,Calcs!$F$965:$AOS$965) -> 0 | CM16: =SUMIF(Calcs!$F$9:$AOS$9,$CE16,Calcs!$F$1039:$AOS$1039) -> 0 | CN16: =SUMIF(Calcs!$F$9:$AOS$9,$CE16,Calcs!$F$1113:$AOS$1113) -> 0 | CO16: =SUMIF(Calcs!$F$9:$AOS$9,$CE16,Calcs!$F$1187:$AOS$1187) -> 0 | CP16: =SUMIF(Calcs!$F$9:$AOS$9,$CE16,Calcs!$F$1253:$AOS$1253) -> 70.50079728 | CQ16: =SUMIF(Calcs!$F$9:$AOS$9,$CE16,Calcs!$F$1290:$AOS$1290) -> 493.4263216 | CR16: =SUMIF(Calcs!$F$9:$AOS$9,$CE16,Calcs!$F$1327:$AOS$1327) -> 0 | CS16: =SUMIF(Calcs!$F$9:$AOS$9,$CE16,Calcs!$F$1364:$AOS$1364) -> 0 | CT16: =SUMIF(Calcs!$F$9:$AOS$9,$CE16,Calcs!$F$1401:$AOS$1401) -> 0 | CU16: =SUMIF(Calcs!$F$9:$AOS$9,$CE16,Calcs!$F$1438:$AOS$1438) -> 52.2849265 | CV16: =SUMIF(Calcs!$F$9:$AOS$9,$CE16,Calcs!$F$1475:$AOS$1475) -> 0 | CW16: =SUMIF(Calcs!$F$9:$AOS$9,$CE16,Calcs!$F$1512:$AOS$1512) -> 0 | CX16: =SUMIF(Calcs!$F$9:$AOS$9,$CE16,Calcs!$F$1549:$AOS$1549) -> 0 | CY16: =SUMIF(Calcs!$F$9:$AOS$9,$CE16,Calcs!$F$1586:$AOS$1586) -> 0 | CZ16: 4566.606262 | DB16: 9 | DC16: =(SUMIF(Calcs!$F$9:$AOS$9,'Output ProjYr'!$DB16,Calcs!$F$567:$AOS$567))/1000000 -> 0 | DD16: =(SUMIF(Calcs!$F$9:$AOS$9,'Output ProjYr'!$DB16,Calcs!$F$641:$AOS$641))/1000000 -> 0 | DE16: =(SUMIF(Calcs!$F$9:$AOS$9,'Output ProjYr'!$DB16,Calcs!$F$715:$AOS$715))/1000000 -> 0 | DF16: =(SUMIF(Calcs!$F$9:$AOS$9,'Output ProjYr'!$DB16,Calcs!$F$789:$AOS$789))/1000000 -> 0 | DG16: =(SUMIF(Calcs!$F$9:$AOS$9,'Output ProjYr'!$DB16,Calcs!$F$863:$AOS$863))/1000000 -> 0 | DH16: =(SUMIF(Calcs!$F$9:$AOS$9,'Output ProjYr'!$DB16,Calcs!$F$937:$AOS$937))/1000000 -> 0 | DI16: =(SUMIF(Calcs!$F$9:$AOS$9,'Output ProjYr'!$DB16,Calcs!$F$1011:$AOS$1011))/1000000 -> 0 | DJ16: =(SUMIF(Calcs!$F$9:$AOS$9,'Output ProjYr'!$DB16,Calcs!$F$1085:$AOS$1085))/1000000 -> 0 | DK16: =(SUMIF(Calcs!$F$9:$AOS$9,'Output ProjYr'!$DB16,Calcs!$F$1159:$AOS$1159))/1000000 -> 0 | DL16: =(SUMIF(Calcs!$F$9:$AOS$9,'Output ProjYr'!$DB16,Calcs!$F$1233:$AOS$1233))/1000000 -> 0 | DO16: =(SUMIF(Calcs!$F$9:$AOS$9,'Output ProjYr'!$DB16,Calcs!$F$1344:$AOS$1344))/1000000 -> 0 | DV16: =(SUMIF(Calcs!$F$9:$AOS$9,'Output ProjYr'!$DB16,Calcs!$F$1603:$AOS$1603))/1000000 -> 0 | DW16: 0
A17: 10 | B17: =SUMIF(Calcs!$F$9:$AOS$9,'Output ProjYr'!$A17,Calcs!$F$528:$AOS$528) -> 0 | C17: =SUMIF(Calcs!$F$9:$AOS$9,'Output ProjYr'!$A17,Calcs!$F$602:$AOS$602) -> 0 | D17: =SUMIF(Calcs!$F$9:$AOS$9,'Output ProjYr'!$A17,Calcs!$F$676:$AOS$676) -> 0 | E17: =SUMIF(Calcs!$F$9:$AOS$9,'Output ProjYr'!$A17,Calcs!$F$750:$AOS$750) -> 0 | F17: =SUMIF(Calcs!$F$9:$AOS$9,'Output ProjYr'!$A17,Calcs!$F$824:$AOS$824) -> 32303740.58 | G17: =SUMIF(Calcs!$F$9:$AOS$9,'Output ProjYr'!$A17,Calcs!$F$898:$AOS$898) -> 0 | H17: =SUMIF(Calcs!$F$9:$AOS$9,'Output ProjYr'!$A17,Calcs!$F$972:$AOS$972) -> 0 | I17: =SUMIF(Calcs!$F$9:$AOS$9,'Output ProjYr'!$A17,Calcs!$F$1046:$AOS$1046) -> 0 | J17: =SUMIF(Calcs!$F$9:$AOS$9,'Output ProjYr'!$A17,Calcs!$F$1120:$AOS$1120) -> 0 | K17: =SUMIF(Calcs!$F$9:$AOS$9,'Output ProjYr'!$A17,Calcs!$F$1194:$AOS$1194) -> 0 | L17: =SUMIF(Calcs!$F$9:$AOS$9,'Output ProjYr'!$A17,Calcs!$F$525:$AOS$525) -> 0 | M17: =SUMIF(Calcs!$F$9:$AOS$9,'Output ProjYr'!$A17,Calcs!$F$599:$AOS$599) -> 0 | N17: =SUMIF(Calcs!$F$9:$AOS$9,'Output ProjYr'!$A17,Calcs!$F$673:$AOS$673) -> 0 | O17: =SUMIF(Calcs!$F$9:$AOS$9,'Output ProjYr'!$A17,Calcs!$F$747:$AOS$747) -> 0 | P17: =SUMIF(Calcs!$F$9:$AOS$9,'Output ProjYr'!$A17,Calcs!$F$821:$AOS$821) -> 0 | Q17: =SUMIF(Calcs!$F$9:$AOS$9,'Output ProjYr'!$A17,Calcs!$F$895:$AOS$895) -> 0 | R17: =SUMIF(Calcs!$F$9:$AOS$9,'Output ProjYr'!$A17,Calcs!$F$969:$AOS$969) -> 0 | S17: =SUMIF(Calcs!$F$9:$AOS$9,'Output ProjYr'!$A17,Calcs!$F$1043:$AOS$1043) -> 0 | T17: =SUMIF(Calcs!$F$9:$AOS$9,'Output ProjYr'!$A17,Calcs!$F$1117:$AOS$1117) -> 0 | U17: =SUMIF(Calcs!$F$9:$AOS$9,'Output ProjYr'!$A17,Calcs!$F$1191:$AOS$1191) -> 0 | V17: =SUMIF(Calcs!$F$9:$AOS$9,'Output ProjYr'!$A17,Calcs!$F$1257:$AOS$1257) -> 7763144.736 | W17: =SUMIF(Calcs!$F$9:$AOS$9,'Output ProjYr'!$A17,Calcs!$F$1294:$AOS$1294) -> 37038197.76 | X17: =SUMIF(Calcs!$F$9:$AOS$9,'Output ProjYr'!$A17,Calcs!$F$1331:$AOS$1331) -> 0 | Y17: =SUMIF(Calcs!$F$9:$AOS$9,'Output ProjYr'!$A17,Calcs!$F$1368:$AOS$1368) -> 0 | Z17: =SUMIF(Calcs!$F$9:$AOS$9,'Output ProjYr'!$A17,Calcs!$F$1405:$AOS$1405) -> 0 | AA17: =SUMIF(Calcs!$F$9:$AOS$9,'Output ProjYr'!$A17,Calcs!$F$1442:$AOS$1442) -> 2096568.458 | AB17: =SUMIF(Calcs!$F$9:$AOS$9,'Output ProjYr'!$A17,Calcs!$F$1479:$AOS$1479) -> 0 | AC17: =SUMIF(Calcs!$F$9:$AOS$9,'Output ProjYr'!$A17,Calcs!$F$1516:$AOS$1516) -> 0 | AD17: =SUMIF(Calcs!$F$9:$AOS$9,'Output ProjYr'!$A17,Calcs!$F$1553:$AOS$1553) -> 0 | AE17: =SUMIF(Calcs!$F$9:$AOS$9,'Output ProjYr'!$A17,Calcs!$F$1590:$AOS$1590) -> 0 | AF17: 79201651.53 | AH17: 10 | AI17: =SUMIF(Calcs!$F$9:$AOS$9,'Output ProjYr'!$AH17,Calcs!$F$1714:$AOS$1714) -> 0 | AJ17: =SUMIF(Calcs!$F$9:$AOS$9,'Output ProjYr'!$AH17,Calcs!$F$1715:$AOS$1715) -> 0 | AK17: =SUMIF(Calcs!$F$9:$AOS$9,'Output ProjYr'!$AH17,Calcs!$F$1716:$AOS$1716) -> 0 | AL17: =SUMIF(Calcs!$F$9:$AOS$9,'Output ProjYr'!$AH17,Calcs!$F$1717:$AOS$1717) -> 0 | AM17: =SUMIF(Calcs!$F$9:$AOS$9,'Output ProjYr'!$AH17,Calcs!$F$1718:$AOS$1718) -> 0 | AN17: =SUMIF(Calcs!$F$9:$AOS$9,'Output ProjYr'!$AH17,Calcs!$F$1719:$AOS$1719) -> 0 | AO17: =SUMIF(Calcs!$F$9:$AOS$9,'Output ProjYr'!$AH17,Calcs!$F$1720:$AOS$1720) -> 0 | AP17: =SUMIF(Calcs!$F$9:$AOS$9,'Output ProjYr'!$AH17,Calcs!$F$1721:$AOS$1721) -> 0 | AQ17: =SUMIF(Calcs!$F$9:$AOS$9,'Output ProjYr'!$AH17,Calcs!$F$1722:$AOS$1722) -> 0 | AR17: =SUMIF(Calcs!$F$9:$AOS$9,'Output ProjYr'!$AH17,Calcs!$F$1723:$AOS$1723) -> 0 | AS17: 0 | AU17: 10 | AV17: =SUMIF(Calcs!$F$9:$AOS$9,'Output ProjYr'!$AU17,Calcs!$F$514:$AOS$514)/12 -> 167.8082192 | AW17: =(SUMIF(Calcs!$F$9:$AOS$9,'Output ProjYr'!$AU17,Calcs!$F$588:$AOS$588))/12 -> 409.8503712 | AX17: =(SUMIF(Calcs!$F$9:$AOS$9,'Output ProjYr'!$AU17,Calcs!$F$662:$AOS$662))/12 -> 42.2111525 | AY17: =(SUMIF(Calcs!$F$9:$AOS$9,'Output ProjYr'!$AU17,Calcs!$F$736:$AOS$736))/12 -> 98.12509917 | AZ17: =(SUMIF(Calcs!$F$9:$AOS$9,'Output ProjYr'!$AU17,Calcs!$F$810:$AOS$810))/12 -> 44.47400885 | BA17: =(SUMIF(Calcs!$F$9:$AOS$9,'Output ProjYr'!$AU17,Calcs!$F$884:$AOS$884))/12 -> 0 | BB17: =(SUMIF(Calcs!$F$9:$AOS$9,'Output ProjYr'!$AU17,Calcs!$F$958:$AOS$958))/12 -> 0 | BC17: =(SUMIF(Calcs!$F$9:$AOS$9,'Output ProjYr'!$AU17,Calcs!$F$1032:$AOS$1032))/12 -> 0 | BD17: =(SUMIF(Calcs!$F$9:$AOS$9,'Output ProjYr'!$AU17,Calcs!$F$1106:$AOS$1106))/12 -> 0 | BE17: =(SUMIF(Calcs!$F$9:$AOS$9,'Output ProjYr'!$AU17,Calcs!$F$1180:$AOS$1180))/12 -> 0 | BF17: 762.4688509 | BH17: 10 | BI17: =SUMIF(Calcs!$F$9:$AOS$9,'Output ProjYr'!$BH17,Calcs!$F$520:$AOS$520) -> 980 | BJ17: =SUMIF(Calcs!$F$9:$AOS$9,'Output ProjYr'!$BH17,Calcs!$F$594:$AOS$594) -> 2964.984411 | BK17: =SUMIF(Calcs!$F$9:$AOS$9,'Output ProjYr'!$BH17,Calcs!$F$668:$AOS$668) -> 0 | BL17: =SUMIF(Calcs!$F$9:$AOS$9,'Output ProjYr'!$BH17,Calcs!$F$742:$AOS$742) -> 0 | BM17: =SUMIF(Calcs!$F$9:$AOS$9,'Output ProjYr'!$BH17,Calcs!$F$816:$AOS$816) -> 391.0987601 | BN17: =SUMIF(Calcs!$F$9:$AOS$9,'Output ProjYr'!$BH17,Calcs!$F$890:$AOS$890) -> 0 | BO17: =SUMIF(Calcs!$F$9:$AOS$9,'Output ProjYr'!$BH17,Calcs!$F$964:$AOS$964) -> 0 | BP17: =SUMIF(Calcs!$F$9:$AOS$9,'Output ProjYr'!$BH17,Calcs!$F$1038:$AOS$1038) -> 0 | BQ17: =SUMIF(Calcs!$F$9:$AOS$9,'Output ProjYr'!$BH17,Calcs!$F$1112:$AOS$1112) -> 0 | BR17: =SUMIF(Calcs!$F$9:$AOS$9,'Output ProjYr'!$BH17,Calcs!$F$1186:$AOS$1186) -> 0 | BS17: =SUMIF(Calcs!$F$9:$AOS$9,'Output ProjYr'!$BH17,Calcs!$F$1252:$AOS$1252) -> 83.28161366 | BT17: =SUMIF(Calcs!$F$9:$AOS$9,'Output ProjYr'!$BH17,Calcs!$F$1289:$AOS$1289) -> 488.0856625 | BU17: =SUMIF(Calcs!$F$9:$AOS$9,'Output ProjYr'!$BH17,Calcs!$F$1326:$AOS$1326) -> 0 | BV17: =SUMIF(Calcs!$F$9:$AOS$9,'Output ProjYr'!$BH17,Calcs!$F$1363:$AOS$1363) -> 0 | BW17: =SUMIF(Calcs!$F$9:$AOS$9,'Output ProjYr'!$BH17,Calcs!$F$1400:$AOS$1400) -> 0 | BX17: =SUMIF(Calcs!$F$9:$AOS$9,'Output ProjYr'!$BH17,Calcs!$F$1437:$AOS$1437) -> 28.39764415 | BY17: =SUMIF(Calcs!$F$9:$AOS$9,'Output ProjYr'!$BH17,Calcs!$F$1474:$AOS$1474) -> 0 | BZ17: =SUMIF(Calcs!$F$9:$AOS$9,'Output ProjYr'!$BH17,Calcs!$F$1511:$AOS$1511) -> 0 | CA17: =SUMIF(Calcs!$F$9:$AOS$9,'Output ProjYr'!$BH17,Calcs!$F$1548:$AOS$1548) -> 0 | CB17: =SUMIF(Calcs!$F$9:$AOS$9,'Output ProjYr'!$BH17,Calcs!$F$1585:$AOS$1585) -> 0 | CC17: 4935.848091 | CE17: 10 | CF17: =SUMIF(Calcs!$F$9:$AOS$9,$CE17,Calcs!$F$521:$AOS$521) -> 883.3911198 | CG17: =SUMIF(Calcs!$F$9:$AOS$9,$CE17,Calcs!$F$595:$AOS$595) -> 2788.123091 | CH17: =SUMIF(Calcs!$F$9:$AOS$9,$CE17,Calcs!$F$669:$AOS$669) -> 0 | CI17: =SUMIF(Calcs!$F$9:$AOS$9,$CE17,Calcs!$F$743:$AOS$743) -> 0 | CJ17: =SUMIF(Calcs!$F$9:$AOS$9,$CE17,Calcs!$F$817:$AOS$817) -> 352.5440527 | CK17: =SUMIF(Calcs!$F$9:$AOS$9,$CE17,Calcs!$F$891:$AOS$891) -> 0 | CL17: =SUMIF(Calcs!$F$9:$AOS$9,$CE17,Calcs!$F$965:$AOS$965) -> 0 | CM17: =SUMIF(Calcs!$F$9:$AOS$9,$CE17,Calcs!$F$1039:$AOS$1039) -> 0 | CN17: =SUMIF(Calcs!$F$9:$AOS$9,$CE17,Calcs!$F$1113:$AOS$1113) -> 0 | CO17: =SUMIF(Calcs!$F$9:$AOS$9,$CE17,Calcs!$F$1187:$AOS$1187) -> 0 | CP17: =SUMIF(Calcs!$F$9:$AOS$9,$CE17,Calcs!$F$1253:$AOS$1253) -> 75.07167137 | CQ17: =SUMIF(Calcs!$F$9:$AOS$9,$CE17,Calcs!$F$1290:$AOS$1290) -> 439.9699388 | CR17: =SUMIF(Calcs!$F$9:$AOS$9,$CE17,Calcs!$F$1327:$AOS$1327) -> 0 | CS17: =SUMIF(Calcs!$F$9:$AOS$9,$CE17,Calcs!$F$1364:$AOS$1364) -> 0 | CT17: =SUMIF(Calcs!$F$9:$AOS$9,$CE17,Calcs!$F$1401:$AOS$1401) -> 0 | CU17: =SUMIF(Calcs!$F$9:$AOS$9,$CE17,Calcs!$F$1438:$AOS$1438) -> 28.39764415 | CV17: =SUMIF(Calcs!$F$9:$AOS$9,$CE17,Calcs!$F$1475:$AOS$1475) -> 0 | CW17: =SUMIF(Calcs!$F$9:$AOS$9,$CE17,Calcs!$F$1512:$AOS$1512) -> 0 | CX17: =SUMIF(Calcs!$F$9:$AOS$9,$CE17,Calcs!$F$1549:$AOS$1549) -> 0 | CY17: =SUMIF(Calcs!$F$9:$AOS$9,$CE17,Calcs!$F$1586:$AOS$1586) -> 0 | CZ17: 4567.497517 | DB17: 10 | DC17: =(SUMIF(Calcs!$F$9:$AOS$9,'Output ProjYr'!$DB17,Calcs!$F$567:$AOS$567))/1000000 -> 0 | DD17: =(SUMIF(Calcs!$F$9:$AOS$9,'Output ProjYr'!$DB17,Calcs!$F$641:$AOS$641))/1000000 -> 0 | DE17: =(SUMIF(Calcs!$F$9:$AOS$9,'Output ProjYr'!$DB17,Calcs!$F$715:$AOS$715))/1000000 -> 0 | DF17: =(SUMIF(Calcs!$F$9:$AOS$9,'Output ProjYr'!$DB17,Calcs!$F$789:$AOS$789))/1000000 -> 0 | DG17: =(SUMIF(Calcs!$F$9:$AOS$9,'Output ProjYr'!$DB17,Calcs!$F$863:$AOS$863))/1000000 -> 0 | DH17: =(SUMIF(Calcs!$F$9:$AOS$9,'Output ProjYr'!$DB17,Calcs!$F$937:$AOS$937))/1000000 -> 0 | DI17: =(SUMIF(Calcs!$F$9:$AOS$9,'Output ProjYr'!$DB17,Calcs!$F$1011:$AOS$1011))/1000000 -> 0 | DJ17: =(SUMIF(Calcs!$F$9:$AOS$9,'Output ProjYr'!$DB17,Calcs!$F$1085:$AOS$1085))/1000000 -> 0 | DK17: =(SUMIF(Calcs!$F$9:$AOS$9,'Output ProjYr'!$DB17,Calcs!$F$1159:$AOS$1159))/1000000 -> 0 | DL17: =(SUMIF(Calcs!$F$9:$AOS$9,'Output ProjYr'!$DB17,Calcs!$F$1233:$AOS$1233))/1000000 -> 0 | DO17: =(SUMIF(Calcs!$F$9:$AOS$9,'Output ProjYr'!$DB17,Calcs!$F$1344:$AOS$1344))/1000000 -> 0 | DV17: =(SUMIF(Calcs!$F$9:$AOS$9,'Output ProjYr'!$DB17,Calcs!$F$1603:$AOS$1603))/1000000 -> 0 | DW17: 0
A18: 11 | B18: =SUMIF(Calcs!$F$9:$AOS$9,'Output ProjYr'!$A18,Calcs!$F$528:$AOS$528) -> 0 | C18: =SUMIF(Calcs!$F$9:$AOS$9,'Output ProjYr'!$A18,Calcs!$F$602:$AOS$602) -> 0 | D18: =SUMIF(Calcs!$F$9:$AOS$9,'Output ProjYr'!$A18,Calcs!$F$676:$AOS$676) -> 0 | E18: =SUMIF(Calcs!$F$9:$AOS$9,'Output ProjYr'!$A18,Calcs!$F$750:$AOS$750) -> 0 | F18: =SUMIF(Calcs!$F$9:$AOS$9,'Output ProjYr'!$A18,Calcs!$F$824:$AOS$824) -> 30773670.12 | G18: =SUMIF(Calcs!$F$9:$AOS$9,'Output ProjYr'!$A18,Calcs!$F$898:$AOS$898) -> 0 | H18: =SUMIF(Calcs!$F$9:$AOS$9,'Output ProjYr'!$A18,Calcs!$F$972:$AOS$972) -> 0 | I18: =SUMIF(Calcs!$F$9:$AOS$9,'Output ProjYr'!$A18,Calcs!$F$1046:$AOS$1046) -> 0 | J18: =SUMIF(Calcs!$F$9:$AOS$9,'Output ProjYr'!$A18,Calcs!$F$1120:$AOS$1120) -> 0 | K18: =SUMIF(Calcs!$F$9:$AOS$9,'Output ProjYr'!$A18,Calcs!$F$1194:$AOS$1194) -> 0 | L18: =SUMIF(Calcs!$F$9:$AOS$9,'Output ProjYr'!$A18,Calcs!$F$525:$AOS$525) -> 0 | M18: =SUMIF(Calcs!$F$9:$AOS$9,'Output ProjYr'!$A18,Calcs!$F$599:$AOS$599) -> 0 | N18: =SUMIF(Calcs!$F$9:$AOS$9,'Output ProjYr'!$A18,Calcs!$F$673:$AOS$673) -> 0 | O18: =SUMIF(Calcs!$F$9:$AOS$9,'Output ProjYr'!$A18,Calcs!$F$747:$AOS$747) -> 0 | P18: =SUMIF(Calcs!$F$9:$AOS$9,'Output ProjYr'!$A18,Calcs!$F$821:$AOS$821) -> 0 | Q18: =SUMIF(Calcs!$F$9:$AOS$9,'Output ProjYr'!$A18,Calcs!$F$895:$AOS$895) -> 0 | R18: =SUMIF(Calcs!$F$9:$AOS$9,'Output ProjYr'!$A18,Calcs!$F$969:$AOS$969) -> 0 | S18: =SUMIF(Calcs!$F$9:$AOS$9,'Output ProjYr'!$A18,Calcs!$F$1043:$AOS$1043) -> 0 | T18: =SUMIF(Calcs!$F$9:$AOS$9,'Output ProjYr'!$A18,Calcs!$F$1117:$AOS$1117) -> 0 | U18: =SUMIF(Calcs!$F$9:$AOS$9,'Output ProjYr'!$A18,Calcs!$F$1191:$AOS$1191) -> 0 | V18: =SUMIF(Calcs!$F$9:$AOS$9,'Output ProjYr'!$A18,Calcs!$F$1257:$AOS$1257) -> 10255252.69 | W18: =SUMIF(Calcs!$F$9:$AOS$9,'Output ProjYr'!$A18,Calcs!$F$1294:$AOS$1294) -> 32752754.48 | X18: =SUMIF(Calcs!$F$9:$AOS$9,'Output ProjYr'!$A18,Calcs!$F$1331:$AOS$1331) -> 0 | Y18: =SUMIF(Calcs!$F$9:$AOS$9,'Output ProjYr'!$A18,Calcs!$F$1368:$AOS$1368) -> 0 | Z18: =SUMIF(Calcs!$F$9:$AOS$9,'Output ProjYr'!$A18,Calcs!$F$1405:$AOS$1405) -> 0 | AA18: =SUMIF(Calcs!$F$9:$AOS$9,'Output ProjYr'!$A18,Calcs!$F$1442:$AOS$1442) -> 497407.7236 | AB18: =SUMIF(Calcs!$F$9:$AOS$9,'Output ProjYr'!$A18,Calcs!$F$1479:$AOS$1479) -> 0 | AC18: =SUMIF(Calcs!$F$9:$AOS$9,'Output ProjYr'!$A18,Calcs!$F$1516:$AOS$1516) -> 0 | AD18: =SUMIF(Calcs!$F$9:$AOS$9,'Output ProjYr'!$A18,Calcs!$F$1553:$AOS$1553) -> 0 | AE18: =SUMIF(Calcs!$F$9:$AOS$9,'Output ProjYr'!$A18,Calcs!$F$1590:$AOS$1590) -> 0 | AF18: 74279085.02 | AH18: 11 | AI18: =SUMIF(Calcs!$F$9:$AOS$9,'Output ProjYr'!$AH18,Calcs!$F$1714:$AOS$1714) -> 0 | AJ18: =SUMIF(Calcs!$F$9:$AOS$9,'Output ProjYr'!$AH18,Calcs!$F$1715:$AOS$1715) -> 0 | AK18: =SUMIF(Calcs!$F$9:$AOS$9,'Output ProjYr'!$AH18,Calcs!$F$1716:$AOS$1716) -> 0 | AL18: =SUMIF(Calcs!$F$9:$AOS$9,'Output ProjYr'!$AH18,Calcs!$F$1717:$AOS$1717) -> 0 | AM18: =SUMIF(Calcs!$F$9:$AOS$9,'Output ProjYr'!$AH18,Calcs!$F$1718:$AOS$1718) -> 0 | AN18: =SUMIF(Calcs!$F$9:$AOS$9,'Output ProjYr'!$AH18,Calcs!$F$1719:$AOS$1719) -> 0 | AO18: =SUMIF(Calcs!$F$9:$AOS$9,'Output ProjYr'!$AH18,Calcs!$F$1720:$AOS$1720) -> 0 | AP18: =SUMIF(Calcs!$F$9:$AOS$9,'Output ProjYr'!$AH18,Calcs!$F$1721:$AOS$1721) -> 0 | AQ18: =SUMIF(Calcs!$F$9:$AOS$9,'Output ProjYr'!$AH18,Calcs!$F$1722:$AOS$1722) -> 0 | AR18: =SUMIF(Calcs!$F$9:$AOS$9,'Output ProjYr'!$AH18,Calcs!$F$1723:$AOS$1723) -> 0 | AS18: 0 | AU18: 11 | AV18: =SUMIF(Calcs!$F$9:$AOS$9,'Output ProjYr'!$AU18,Calcs!$F$514:$AOS$514)/12 -> 167.8082192 | AW18: =(SUMIF(Calcs!$F$9:$AOS$9,'Output ProjYr'!$AU18,Calcs!$F$588:$AOS$588))/12 -> 418.6384707 | AX18: =(SUMIF(Calcs!$F$9:$AOS$9,'Output ProjYr'!$AU18,Calcs!$F$662:$AOS$662))/12 -> 40.58686807 | AY18: =(SUMIF(Calcs!$F$9:$AOS$9,'Output ProjYr'!$AU18,Calcs!$F$736:$AOS$736))/12 -> 94.63170051 | AZ18: =(SUMIF(Calcs!$F$9:$AOS$9,'Output ProjYr'!$AU18,Calcs!$F$810:$AOS$810))/12 -> 41.89378162 | BA18: =(SUMIF(Calcs!$F$9:$AOS$9,'Output ProjYr'!$AU18,Calcs!$F$884:$AOS$884))/12 -> 0 | BB18: =(SUMIF(Calcs!$F$9:$AOS$9,'Output ProjYr'!$AU18,Calcs!$F$958:$AOS$958))/12 -> 0 | BC18: =(SUMIF(Calcs!$F$9:$AOS$9,'Output ProjYr'!$AU18,Calcs!$F$1032:$AOS$1032))/12 -> 0 | BD18: =(SUMIF(Calcs!$F$9:$AOS$9,'Output ProjYr'!$AU18,Calcs!$F$1106:$AOS$1106))/12 -> 0 | BE18: =(SUMIF(Calcs!$F$9:$AOS$9,'Output ProjYr'!$AU18,Calcs!$F$1180:$AOS$1180))/12 -> 0 | BF18: 763.5590401 | BH18: 11 | BI18: =SUMIF(Calcs!$F$9:$AOS$9,'Output ProjYr'!$BH18,Calcs!$F$520:$AOS$520) -> 980 | BJ18: =SUMIF(Calcs!$F$9:$AOS$9,'Output ProjYr'!$BH18,Calcs!$F$594:$AOS$594) -> 3061.545162 | BK18: =SUMIF(Calcs!$F$9:$AOS$9,'Output ProjYr'!$BH18,Calcs!$F$668:$AOS$668) -> 0 | BL18: =SUMIF(Calcs!$F$9:$AOS$9,'Output ProjYr'!$BH18,Calcs!$F$742:$AOS$742) -> 0 | BM18: =SUMIF(Calcs!$F$9:$AOS$9,'Output ProjYr'!$BH18,Calcs!$F$816:$AOS$816) -> 360.6132935 | BN18: =SUMIF(Calcs!$F$9:$AOS$9,'Output ProjYr'!$BH18,Calcs!$F$890:$AOS$890) -> 0 | BO18: =SUMIF(Calcs!$F$9:$AOS$9,'Output ProjYr'!$BH18,Calcs!$F$964:$AOS$964) -> 0 | BP18: =SUMIF(Calcs!$F$9:$AOS$9,'Output ProjYr'!$BH18,Calcs!$F$1038:$AOS$1038) -> 0 | BQ18: =SUMIF(Calcs!$F$9:$AOS$9,'Output ProjYr'!$BH18,Calcs!$F$1112:$AOS$1112) -> 0 | BR18: =SUMIF(Calcs!$F$9:$AOS$9,'Output ProjYr'!$BH18,Calcs!$F$1186:$AOS$1186) -> 0 | BS18: =SUMIF(Calcs!$F$9:$AOS$9,'Output ProjYr'!$BH18,Calcs!$F$1252:$AOS$1252) -> 111.1575846 | BT18: =SUMIF(Calcs!$F$9:$AOS$9,'Output ProjYr'!$BH18,Calcs!$F$1289:$AOS$1289) -> 415.8982735 | BU18: =SUMIF(Calcs!$F$9:$AOS$9,'Output ProjYr'!$BH18,Calcs!$F$1326:$AOS$1326) -> 0 | BV18: =SUMIF(Calcs!$F$9:$AOS$9,'Output ProjYr'!$BH18,Calcs!$F$1363:$AOS$1363) -> 0 | BW18: =SUMIF(Calcs!$F$9:$AOS$9,'Output ProjYr'!$BH18,Calcs!$F$1400:$AOS$1400) -> 0 | BX18: =SUMIF(Calcs!$F$9:$AOS$9,'Output ProjYr'!$BH18,Calcs!$F$1437:$AOS$1437) -> 6.633777855 | BY18: =SUMIF(Calcs!$F$9:$AOS$9,'Output ProjYr'!$BH18,Calcs!$F$1474:$AOS$1474) -> 0 | BZ18: =SUMIF(Calcs!$F$9:$AOS$9,'Output ProjYr'!$BH18,Calcs!$F$1511:$AOS$1511) -> 0 | CA18: =SUMIF(Calcs!$F$9:$AOS$9,'Output ProjYr'!$BH18,Calcs!$F$1548:$AOS$1548) -> 0 | CB18: =SUMIF(Calcs!$F$9:$AOS$9,'Output ProjYr'!$BH18,Calcs!$F$1585:$AOS$1585) -> 0 | CC18: 4935.848091 | CE18: 11 | CF18: =SUMIF(Calcs!$F$9:$AOS$9,$CE18,Calcs!$F$521:$AOS$521) -> 883.3911198 | CG18: =SUMIF(Calcs!$F$9:$AOS$9,$CE18,Calcs!$F$595:$AOS$595) -> 2878.923993 | CH18: =SUMIF(Calcs!$F$9:$AOS$9,$CE18,Calcs!$F$669:$AOS$669) -> 0 | CI18: =SUMIF(Calcs!$F$9:$AOS$9,$CE18,Calcs!$F$743:$AOS$743) -> 0 | CJ18: =SUMIF(Calcs!$F$9:$AOS$9,$CE18,Calcs!$F$817:$AOS$817) -> 325.0638584 | CK18: =SUMIF(Calcs!$F$9:$AOS$9,$CE18,Calcs!$F$891:$AOS$891) -> 0 | CL18: =SUMIF(Calcs!$F$9:$AOS$9,$CE18,Calcs!$F$965:$AOS$965) -> 0 | CM18: =SUMIF(Calcs!$F$9:$AOS$9,$CE18,Calcs!$F$1039:$AOS$1039) -> 0 | CN18: =SUMIF(Calcs!$F$9:$AOS$9,$CE18,Calcs!$F$1113:$AOS$1113) -> 0 | CO18: =SUMIF(Calcs!$F$9:$AOS$9,$CE18,Calcs!$F$1187:$AOS$1187) -> 0 | CP18: =SUMIF(Calcs!$F$9:$AOS$9,$CE18,Calcs!$F$1253:$AOS$1253) -> 100.1996154 | CQ18: =SUMIF(Calcs!$F$9:$AOS$9,$CE18,Calcs!$F$1290:$AOS$1290) -> 374.8988179 | CR18: =SUMIF(Calcs!$F$9:$AOS$9,$CE18,Calcs!$F$1327:$AOS$1327) -> 0 | CS18: =SUMIF(Calcs!$F$9:$AOS$9,$CE18,Calcs!$F$1364:$AOS$1364) -> 0 | CT18: =SUMIF(Calcs!$F$9:$AOS$9,$CE18,Calcs!$F$1401:$AOS$1401) -> 0 | CU18: =SUMIF(Calcs!$F$9:$AOS$9,$CE18,Calcs!$F$1438:$AOS$1438) -> 6.633777855 | CV18: =SUMIF(Calcs!$F$9:$AOS$9,$CE18,Calcs!$F$1475:$AOS$1475) -> 0 | CW18: =SUMIF(Calcs!$F$9:$AOS$9,$CE18,Calcs!$F$1512:$AOS$1512) -> 0 | CX18: =SUMIF(Calcs!$F$9:$AOS$9,$CE18,Calcs!$F$1549:$AOS$1549) -> 0 | CY18: =SUMIF(Calcs!$F$9:$AOS$9,$CE18,Calcs!$F$1586:$AOS$1586) -> 0 | CZ18: 4569.111182 | DB18: 11 | DC18: =(SUMIF(Calcs!$F$9:$AOS$9,'Output ProjYr'!$DB18,Calcs!$F$567:$AOS$567))/1000000 -> 0 | DD18: =(SUMIF(Calcs!$F$9:$AOS$9,'Output ProjYr'!$DB18,Calcs!$F$641:$AOS$641))/1000000 -> 0 | DE18: =(SUMIF(Calcs!$F$9:$AOS$9,'Output ProjYr'!$DB18,Calcs!$F$715:$AOS$715))/1000000 -> 0 | DF18: =(SUMIF(Calcs!$F$9:$AOS$9,'Output ProjYr'!$DB18,Calcs!$F$789:$AOS$789))/1000000 -> 0 | DG18: =(SUMIF(Calcs!$F$9:$AOS$9,'Output ProjYr'!$DB18,Calcs!$F$863:$AOS$863))/1000000 -> 0 | DH18: =(SUMIF(Calcs!$F$9:$AOS$9,'Output ProjYr'!$DB18,Calcs!$F$937:$AOS$937))/1000000 -> 0 | DI18: =(SUMIF(Calcs!$F$9:$AOS$9,'Output ProjYr'!$DB18,Calcs!$F$1011:$AOS$1011))/1000000 -> 0 | DJ18: =(SUMIF(Calcs!$F$9:$AOS$9,'Output ProjYr'!$DB18,Calcs!$F$1085:$AOS$1085))/1000000 -> 0 | DK18: =(SUMIF(Calcs!$F$9:$AOS$9,'Output ProjYr'!$DB18,Calcs!$F$1159:$AOS$1159))/1000000 -> 0 | DL18: =(SUMIF(Calcs!$F$9:$AOS$9,'Output ProjYr'!$DB18,Calcs!$F$1233:$AOS$1233))/1000000 -> 0 | DO18: =(SUMIF(Calcs!$F$9:$AOS$9,'Output ProjYr'!$DB18,Calcs!$F$1344:$AOS$1344))/1000000 -> 0 | DV18: =(SUMIF(Calcs!$F$9:$AOS$9,'Output ProjYr'!$DB18,Calcs!$F$1603:$AOS$1603))/1000000 -> 0 | DW18: 0
A19: 12 | B19: =SUMIF(Calcs!$F$9:$AOS$9,'Output ProjYr'!$A19,Calcs!$F$528:$AOS$528) -> 0 | C19: =SUMIF(Calcs!$F$9:$AOS$9,'Output ProjYr'!$A19,Calcs!$F$602:$AOS$602) -> 0 | D19: =SUMIF(Calcs!$F$9:$AOS$9,'Output ProjYr'!$A19,Calcs!$F$676:$AOS$676) -> 0 | E19: =SUMIF(Calcs!$F$9:$AOS$9,'Output ProjYr'!$A19,Calcs!$F$750:$AOS$750) -> 0 | F19: =SUMIF(Calcs!$F$9:$AOS$9,'Output ProjYr'!$A19,Calcs!$F$824:$AOS$824) -> 28465161.66 | G19: =SUMIF(Calcs!$F$9:$AOS$9,'Output ProjYr'!$A19,Calcs!$F$898:$AOS$898) -> 0 | H19: =SUMIF(Calcs!$F$9:$AOS$9,'Output ProjYr'!$A19,Calcs!$F$972:$AOS$972) -> 0 | I19: =SUMIF(Calcs!$F$9:$AOS$9,'Output ProjYr'!$A19,Calcs!$F$1046:$AOS$1046) -> 0 | J19: =SUMIF(Calcs!$F$9:$AOS$9,'Output ProjYr'!$A19,Calcs!$F$1120:$AOS$1120) -> 0 | K19: =SUMIF(Calcs!$F$9:$AOS$9,'Output ProjYr'!$A19,Calcs!$F$1194:$AOS$1194) -> 0 | L19: =SUMIF(Calcs!$F$9:$AOS$9,'Output ProjYr'!$A19,Calcs!$F$525:$AOS$525) -> 0 | M19: =SUMIF(Calcs!$F$9:$AOS$9,'Output ProjYr'!$A19,Calcs!$F$599:$AOS$599) -> 0 | N19: =SUMIF(Calcs!$F$9:$AOS$9,'Output ProjYr'!$A19,Calcs!$F$673:$AOS$673) -> 0 | O19: =SUMIF(Calcs!$F$9:$AOS$9,'Output ProjYr'!$A19,Calcs!$F$747:$AOS$747) -> 0 | P19: =SUMIF(Calcs!$F$9:$AOS$9,'Output ProjYr'!$A19,Calcs!$F$821:$AOS$821) -> 0 | Q19: =SUMIF(Calcs!$F$9:$AOS$9,'Output ProjYr'!$A19,Calcs!$F$895:$AOS$895) -> 0 | R19: =SUMIF(Calcs!$F$9:$AOS$9,'Output ProjYr'!$A19,Calcs!$F$969:$AOS$969) -> 0 | S19: =SUMIF(Calcs!$F$9:$AOS$9,'Output ProjYr'!$A19,Calcs!$F$1043:$AOS$1043) -> 0 | T19: =SUMIF(Calcs!$F$9:$AOS$9,'Output ProjYr'!$A19,Calcs!$F$1117:$AOS$1117) -> 0 | U19: =SUMIF(Calcs!$F$9:$AOS$9,'Output ProjYr'!$A19,Calcs!$F$1191:$AOS$1191) -> 0 | V19: =SUMIF(Calcs!$F$9:$AOS$9,'Output ProjYr'!$A19,Calcs!$F$1257:$AOS$1257) -> 12293997.89 | W19: =SUMIF(Calcs!$F$9:$AOS$9,'Output ProjYr'!$A19,Calcs!$F$1294:$AOS$1294) -> 27661242.92 | X19: =SUMIF(Calcs!$F$9:$AOS$9,'Output ProjYr'!$A19,Calcs!$F$1331:$AOS$1331) -> 0 | Y19: =SUMIF(Calcs!$F$9:$AOS$9,'Output ProjYr'!$A19,Calcs!$F$1368:$AOS$1368) -> 0 | Z19: =SUMIF(Calcs!$F$9:$AOS$9,'Output ProjYr'!$A19,Calcs!$F$1405:$AOS$1405) -> 0 | AA19: =SUMIF(Calcs!$F$9:$AOS$9,'Output ProjYr'!$A19,Calcs!$F$1442:$AOS$1442) -> 0 | AB19: =SUMIF(Calcs!$F$9:$AOS$9,'Output ProjYr'!$A19,Calcs!$F$1479:$AOS$1479) -> 0 | AC19: =SUMIF(Calcs!$F$9:$AOS$9,'Output ProjYr'!$A19,Calcs!$F$1516:$AOS$1516) -> 0 | AD19: =SUMIF(Calcs!$F$9:$AOS$9,'Output ProjYr'!$A19,Calcs!$F$1553:$AOS$1553) -> 0 | AE19: =SUMIF(Calcs!$F$9:$AOS$9,'Output ProjYr'!$A19,Calcs!$F$1590:$AOS$1590) -> 0 | AF19: 68420402.48 | AH19: 12 | AI19: =SUMIF(Calcs!$F$9:$AOS$9,'Output ProjYr'!$AH19,Calcs!$F$1714:$AOS$1714) -> 0 | AJ19: =SUMIF(Calcs!$F$9:$AOS$9,'Output ProjYr'!$AH19,Calcs!$F$1715:$AOS$1715) -> 0 | AK19: =SUMIF(Calcs!$F$9:$AOS$9,'Output ProjYr'!$AH19,Calcs!$F$1716:$AOS$1716) -> 0 | AL19: =SUMIF(Calcs!$F$9:$AOS$9,'Output ProjYr'!$AH19,Calcs!$F$1717:$AOS$1717) -> 0 | AM19: =SUMIF(Calcs!$F$9:$AOS$9,'Output ProjYr'!$AH19,Calcs!$F$1718:$AOS$1718) -> 0 | AN19: =SUMIF(Calcs!$F$9:$AOS$9,'Output ProjYr'!$AH19,Calcs!$F$1719:$AOS$1719) -> 0 | AO19: =SUMIF(Calcs!$F$9:$AOS$9,'Output ProjYr'!$AH19,Calcs!$F$1720:$AOS$1720) -> 0 | AP19: =SUMIF(Calcs!$F$9:$AOS$9,'Output ProjYr'!$AH19,Calcs!$F$1721:$AOS$1721) -> 0 | AQ19: =SUMIF(Calcs!$F$9:$AOS$9,'Output ProjYr'!$AH19,Calcs!$F$1722:$AOS$1722) -> 0 | AR19: =SUMIF(Calcs!$F$9:$AOS$9,'Output ProjYr'!$AH19,Calcs!$F$1723:$AOS$1723) -> 0 | AS19: 0 | AU19: 12 | AV19: =SUMIF(Calcs!$F$9:$AOS$9,'Output ProjYr'!$AU19,Calcs!$F$514:$AOS$514)/12 -> 167.8082192 | AW19: =(SUMIF(Calcs!$F$9:$AOS$9,'Output ProjYr'!$AU19,Calcs!$F$588:$AOS$588))/12 -> 427.4861926 | AX19: =(SUMIF(Calcs!$F$9:$AOS$9,'Output ProjYr'!$AU19,Calcs!$F$662:$AOS$662))/12 -> 38.50608219 | AY19: =(SUMIF(Calcs!$F$9:$AOS$9,'Output ProjYr'!$AU19,Calcs!$F$736:$AOS$736))/12 -> 91.12364164 | AZ19: =(SUMIF(Calcs!$F$9:$AOS$9,'Output ProjYr'!$AU19,Calcs!$F$810:$AOS$810))/12 -> 39.33284705 | BA19: =(SUMIF(Calcs!$F$9:$AOS$9,'Output ProjYr'!$AU19,Calcs!$F$884:$AOS$884))/12 -> 0 | BB19: =(SUMIF(Calcs!$F$9:$AOS$9,'Output ProjYr'!$AU19,Calcs!$F$958:$AOS$958))/12 -> 0 | BC19: =(SUMIF(Calcs!$F$9:$AOS$9,'Output ProjYr'!$AU19,Calcs!$F$1032:$AOS$1032))/12 -> 0 | BD19: =(SUMIF(Calcs!$F$9:$AOS$9,'Output ProjYr'!$AU19,Calcs!$F$1106:$AOS$1106))/12 -> 0 | BE19: =(SUMIF(Calcs!$F$9:$AOS$9,'Output ProjYr'!$AU19,Calcs!$F$1180:$AOS$1180))/12 -> 0 | BF19: 764.2569826 | BH19: 12 | BI19: =SUMIF(Calcs!$F$9:$AOS$9,'Output ProjYr'!$BH19,Calcs!$F$520:$AOS$520) -> 980 | BJ19: =SUMIF(Calcs!$F$9:$AOS$9,'Output ProjYr'!$BH19,Calcs!$F$594:$AOS$594) -> 3159.990407 | BK19: =SUMIF(Calcs!$F$9:$AOS$9,'Output ProjYr'!$BH19,Calcs!$F$668:$AOS$668) -> 0 | BL19: =SUMIF(Calcs!$F$9:$AOS$9,'Output ProjYr'!$BH19,Calcs!$F$742:$AOS$742) -> 0 | BM19: =SUMIF(Calcs!$F$9:$AOS$9,'Output ProjYr'!$BH19,Calcs!$F$816:$AOS$816) -> 323.1318753 | BN19: =SUMIF(Calcs!$F$9:$AOS$9,'Output ProjYr'!$BH19,Calcs!$F$890:$AOS$890) -> 0 | BO19: =SUMIF(Calcs!$F$9:$AOS$9,'Output ProjYr'!$BH19,Calcs!$F$964:$AOS$964) -> 0 | BP19: =SUMIF(Calcs!$F$9:$AOS$9,'Output ProjYr'!$BH19,Calcs!$F$1038:$AOS$1038) -> 0 | BQ19: =SUMIF(Calcs!$F$9:$AOS$9,'Output ProjYr'!$BH19,Calcs!$F$1112:$AOS$1112) -> 0 | BR19: =SUMIF(Calcs!$F$9:$AOS$9,'Output ProjYr'!$BH19,Calcs!$F$1186:$AOS$1186) -> 0 | BS19: =SUMIF(Calcs!$F$9:$AOS$9,'Output ProjYr'!$BH19,Calcs!$F$1252:$AOS$1252) -> 133.1145859 | BT19: =SUMIF(Calcs!$F$9:$AOS$9,'Output ProjYr'!$BH19,Calcs!$F$1289:$AOS$1289) -> 339.6112226 | BU19: =SUMIF(Calcs!$F$9:$AOS$9,'Output ProjYr'!$BH19,Calcs!$F$1326:$AOS$1326) -> 0 | BV19: =SUMIF(Calcs!$F$9:$AOS$9,'Output ProjYr'!$BH19,Calcs!$F$1363:$AOS$1363) -> 0 | BW19: =SUMIF(Calcs!$F$9:$AOS$9,'Output ProjYr'!$BH19,Calcs!$F$1400:$AOS$1400) -> 0 | BX19: =SUMIF(Calcs!$F$9:$AOS$9,'Output ProjYr'!$BH19,Calcs!$F$1437:$AOS$1437) -> 0 | BY19: =SUMIF(Calcs!$F$9:$AOS$9,'Output ProjYr'!$BH19,Calcs!$F$1474:$AOS$1474) -> 0 | BZ19: =SUMIF(Calcs!$F$9:$AOS$9,'Output ProjYr'!$BH19,Calcs!$F$1511:$AOS$1511) -> 0 | CA19: =SUMIF(Calcs!$F$9:$AOS$9,'Output ProjYr'!$BH19,Calcs!$F$1548:$AOS$1548) -> 0 | CB19: =SUMIF(Calcs!$F$9:$AOS$9,'Output ProjYr'!$BH19,Calcs!$F$1585:$AOS$1585) -> 0 | CC19: 4935.848091 | CE19: 12 | CF19: =SUMIF(Calcs!$F$9:$AOS$9,$CE19,Calcs!$F$521:$AOS$521) -> 883.3911198 | CG19: =SUMIF(Calcs!$F$9:$AOS$9,$CE19,Calcs!$F$595:$AOS$595) -> 2971.49698 | CH19: =SUMIF(Calcs!$F$9:$AOS$9,$CE19,Calcs!$F$669:$AOS$669) -> 0 | CI19: =SUMIF(Calcs!$F$9:$AOS$9,$CE19,Calcs!$F$743:$AOS$743) -> 0 | CJ19: =SUMIF(Calcs!$F$9:$AOS$9,$CE19,Calcs!$F$817:$AOS$817) -> 291.2773767 | CK19: =SUMIF(Calcs!$F$9:$AOS$9,$CE19,Calcs!$F$891:$AOS$891) -> 0 | CL19: =SUMIF(Calcs!$F$9:$AOS$9,$CE19,Calcs!$F$965:$AOS$965) -> 0 | CM19: =SUMIF(Calcs!$F$9:$AOS$9,$CE19,Calcs!$F$1039:$AOS$1039) -> 0 | CN19: =SUMIF(Calcs!$F$9:$AOS$9,$CE19,Calcs!$F$1113:$AOS$1113) -> 0 | CO19: =SUMIF(Calcs!$F$9:$AOS$9,$CE19,Calcs!$F$1187:$AOS$1187) -> 0 | CP19: =SUMIF(Calcs!$F$9:$AOS$9,$CE19,Calcs!$F$1253:$AOS$1253) -> 119.9920848 | CQ19: =SUMIF(Calcs!$F$9:$AOS$9,$CE19,Calcs!$F$1290:$AOS$1290) -> 306.1321819 | CR19: =SUMIF(Calcs!$F$9:$AOS$9,$CE19,Calcs!$F$1327:$AOS$1327) -> 0 | CS19: =SUMIF(Calcs!$F$9:$AOS$9,$CE19,Calcs!$F$1364:$AOS$1364) -> 0 | CT19: =SUMIF(Calcs!$F$9:$AOS$9,$CE19,Calcs!$F$1401:$AOS$1401) -> 0 | CU19: =SUMIF(Calcs!$F$9:$AOS$9,$CE19,Calcs!$F$1438:$AOS$1438) -> 0 | CV19: =SUMIF(Calcs!$F$9:$AOS$9,$CE19,Calcs!$F$1475:$AOS$1475) -> 0 | CW19: =SUMIF(Calcs!$F$9:$AOS$9,$CE19,Calcs!$F$1512:$AOS$1512) -> 0 | CX19: =SUMIF(Calcs!$F$9:$AOS$9,$CE19,Calcs!$F$1549:$AOS$1549) -> 0 | CY19: =SUMIF(Calcs!$F$9:$AOS$9,$CE19,Calcs!$F$1586:$AOS$1586) -> 0 | CZ19: 4572.289743 | DB19: 12 | DC19: =(SUMIF(Calcs!$F$9:$AOS$9,'Output ProjYr'!$DB19,Calcs!$F$567:$AOS$567))/1000000 -> 0 | DD19: =(SUMIF(Calcs!$F$9:$AOS$9,'Output ProjYr'!$DB19,Calcs!$F$641:$AOS$641))/1000000 -> 0 | DE19: =(SUMIF(Calcs!$F$9:$AOS$9,'Output ProjYr'!$DB19,Calcs!$F$715:$AOS$715))/1000000 -> 0 | DF19: =(SUMIF(Calcs!$F$9:$AOS$9,'Output ProjYr'!$DB19,Calcs!$F$789:$AOS$789))/1000000 -> 0 | DG19: =(SUMIF(Calcs!$F$9:$AOS$9,'Output ProjYr'!$DB19,Calcs!$F$863:$AOS$863))/1000000 -> 0 | DH19: =(SUMIF(Calcs!$F$9:$AOS$9,'Output ProjYr'!$DB19,Calcs!$F$937:$AOS$937))/1000000 -> 0 | DI19: =(SUMIF(Calcs!$F$9:$AOS$9,'Output ProjYr'!$DB19,Calcs!$F$1011:$AOS$1011))/1000000 -> 0 | DJ19: =(SUMIF(Calcs!$F$9:$AOS$9,'Output ProjYr'!$DB19,Calcs!$F$1085:$AOS$1085))/1000000 -> 0 | DK19: =(SUMIF(Calcs!$F$9:$AOS$9,'Output ProjYr'!$DB19,Calcs!$F$1159:$AOS$1159))/1000000 -> 0 | DL19: =(SUMIF(Calcs!$F$9:$AOS$9,'Output ProjYr'!$DB19,Calcs!$F$1233:$AOS$1233))/1000000 -> 0 | DO19: =(SUMIF(Calcs!$F$9:$AOS$9,'Output ProjYr'!$DB19,Calcs!$F$1344:$AOS$1344))/1000000 -> 0 | DV19: =(SUMIF(Calcs!$F$9:$AOS$9,'Output ProjYr'!$DB19,Calcs!$F$1603:$AOS$1603))/1000000 -> 0 | DW19: 0
A20: 13 | B20: =SUMIF(Calcs!$F$9:$AOS$9,'Output ProjYr'!$A20,Calcs!$F$528:$AOS$528) -> 0 | C20: =SUMIF(Calcs!$F$9:$AOS$9,'Output ProjYr'!$A20,Calcs!$F$602:$AOS$602) -> 0 | D20: =SUMIF(Calcs!$F$9:$AOS$9,'Output ProjYr'!$A20,Calcs!$F$676:$AOS$676) -> 0 | E20: =SUMIF(Calcs!$F$9:$AOS$9,'Output ProjYr'!$A20,Calcs!$F$750:$AOS$750) -> 0 | F20: =SUMIF(Calcs!$F$9:$AOS$9,'Output ProjYr'!$A20,Calcs!$F$824:$AOS$824) -> 21509300.31 | G20: =SUMIF(Calcs!$F$9:$AOS$9,'Output ProjYr'!$A20,Calcs!$F$898:$AOS$898) -> 0 | H20: =SUMIF(Calcs!$F$9:$AOS$9,'Output ProjYr'!$A20,Calcs!$F$972:$AOS$972) -> 0 | I20: =SUMIF(Calcs!$F$9:$AOS$9,'Output ProjYr'!$A20,Calcs!$F$1046:$AOS$1046) -> 0 | J20: =SUMIF(Calcs!$F$9:$AOS$9,'Output ProjYr'!$A20,Calcs!$F$1120:$AOS$1120) -> 0 | K20: =SUMIF(Calcs!$F$9:$AOS$9,'Output ProjYr'!$A20,Calcs!$F$1194:$AOS$1194) -> 0 | L20: =SUMIF(Calcs!$F$9:$AOS$9,'Output ProjYr'!$A20,Calcs!$F$525:$AOS$525) -> 0 | M20: =SUMIF(Calcs!$F$9:$AOS$9,'Output ProjYr'!$A20,Calcs!$F$599:$AOS$599) -> 0 | N20: =SUMIF(Calcs!$F$9:$AOS$9,'Output ProjYr'!$A20,Calcs!$F$673:$AOS$673) -> 0 | O20: =SUMIF(Calcs!$F$9:$AOS$9,'Output ProjYr'!$A20,Calcs!$F$747:$AOS$747) -> 0 | P20: =SUMIF(Calcs!$F$9:$AOS$9,'Output ProjYr'!$A20,Calcs!$F$821:$AOS$821) -> 0 | Q20: =SUMIF(Calcs!$F$9:$AOS$9,'Output ProjYr'!$A20,Calcs!$F$895:$AOS$895) -> 0 | R20: =SUMIF(Calcs!$F$9:$AOS$9,'Output ProjYr'!$A20,Calcs!$F$969:$AOS$969) -> 0 | S20: =SUMIF(Calcs!$F$9:$AOS$9,'Output ProjYr'!$A20,Calcs!$F$1043:$AOS$1043) -> 0 | T20: =SUMIF(Calcs!$F$9:$AOS$9,'Output ProjYr'!$A20,Calcs!$F$1117:$AOS$1117) -> 0 | U20: =SUMIF(Calcs!$F$9:$AOS$9,'Output ProjYr'!$A20,Calcs!$F$1191:$AOS$1191) -> 0 | V20: =SUMIF(Calcs!$F$9:$AOS$9,'Output ProjYr'!$A20,Calcs!$F$1257:$AOS$1257) -> 17393439.82 | W20: =SUMIF(Calcs!$F$9:$AOS$9,'Output ProjYr'!$A20,Calcs!$F$1294:$AOS$1294) -> 8172767.97 | X20: =SUMIF(Calcs!$F$9:$AOS$9,'Output ProjYr'!$A20,Calcs!$F$1331:$AOS$1331) -> 0 | Y20: =SUMIF(Calcs!$F$9:$AOS$9,'Output ProjYr'!$A20,Calcs!$F$1368:$AOS$1368) -> 0 | Z20: =SUMIF(Calcs!$F$9:$AOS$9,'Output ProjYr'!$A20,Calcs!$F$1405:$AOS$1405) -> 0 | AA20: =SUMIF(Calcs!$F$9:$AOS$9,'Output ProjYr'!$A20,Calcs!$F$1442:$AOS$1442) -> 0 | AB20: =SUMIF(Calcs!$F$9:$AOS$9,'Output ProjYr'!$A20,Calcs!$F$1479:$AOS$1479) -> 0 | AC20: =SUMIF(Calcs!$F$9:$AOS$9,'Output ProjYr'!$A20,Calcs!$F$1516:$AOS$1516) -> 0 | AD20: =SUMIF(Calcs!$F$9:$AOS$9,'Output ProjYr'!$A20,Calcs!$F$1553:$AOS$1553) -> 0 | AE20: =SUMIF(Calcs!$F$9:$AOS$9,'Output ProjYr'!$A20,Calcs!$F$1590:$AOS$1590) -> 0 | AF20: 47075508.1 | AH20: 13 | AI20: =SUMIF(Calcs!$F$9:$AOS$9,'Output ProjYr'!$AH20,Calcs!$F$1714:$AOS$1714) -> 0 | AJ20: =SUMIF(Calcs!$F$9:$AOS$9,'Output ProjYr'!$AH20,Calcs!$F$1715:$AOS$1715) -> 0 | AK20: =SUMIF(Calcs!$F$9:$AOS$9,'Output ProjYr'!$AH20,Calcs!$F$1716:$AOS$1716) -> 0 | AL20: =SUMIF(Calcs!$F$9:$AOS$9,'Output ProjYr'!$AH20,Calcs!$F$1717:$AOS$1717) -> 0 | AM20: =SUMIF(Calcs!$F$9:$AOS$9,'Output ProjYr'!$AH20,Calcs!$F$1718:$AOS$1718) -> 0 | AN20: =SUMIF(Calcs!$F$9:$AOS$9,'Output ProjYr'!$AH20,Calcs!$F$1719:$AOS$1719) -> 0 | AO20: =SUMIF(Calcs!$F$9:$AOS$9,'Output ProjYr'!$AH20,Calcs!$F$1720:$AOS$1720) -> 0 | AP20: =SUMIF(Calcs!$F$9:$AOS$9,'Output ProjYr'!$AH20,Calcs!$F$1721:$AOS$1721) -> 0 | AQ20: =SUMIF(Calcs!$F$9:$AOS$9,'Output ProjYr'!$AH20,Calcs!$F$1722:$AOS$1722) -> 0 | AR20: =SUMIF(Calcs!$F$9:$AOS$9,'Output ProjYr'!$AH20,Calcs!$F$1723:$AOS$1723) -> 0 | AS20: 0 | AU20: 13 | AV20: =SUMIF(Calcs!$F$9:$AOS$9,'Output ProjYr'!$AU20,Calcs!$F$514:$AOS$514)/12 -> 167.8082192 | AW20: =(SUMIF(Calcs!$F$9:$AOS$9,'Output ProjYr'!$AU20,Calcs!$F$588:$AOS$588))/12 -> 449.5770595 | AX20: =(SUMIF(Calcs!$F$9:$AOS$9,'Output ProjYr'!$AU20,Calcs!$F$662:$AOS$662))/12 -> 31.99795076 | AY20: =(SUMIF(Calcs!$F$9:$AOS$9,'Output ProjYr'!$AU20,Calcs!$F$736:$AOS$736))/12 -> 80.98528581 | AZ20: =(SUMIF(Calcs!$F$9:$AOS$9,'Output ProjYr'!$AU20,Calcs!$F$810:$AOS$810))/12 -> 35.63148472 | BA20: =(SUMIF(Calcs!$F$9:$AOS$9,'Output ProjYr'!$AU20,Calcs!$F$884:$AOS$884))/12 -> 0 | BB20: =(SUMIF(Calcs!$F$9:$AOS$9,'Output ProjYr'!$AU20,Calcs!$F$958:$AOS$958))/12 -> 0 | BC20: =(SUMIF(Calcs!$F$9:$AOS$9,'Output ProjYr'!$AU20,Calcs!$F$1032:$AOS$1032))/12 -> 0 | BD20: =(SUMIF(Calcs!$F$9:$AOS$9,'Output ProjYr'!$AU20,Calcs!$F$1106:$AOS$1106))/12 -> 0 | BE20: =(SUMIF(Calcs!$F$9:$AOS$9,'Output ProjYr'!$AU20,Calcs!$F$1180:$AOS$1180))/12 -> 0 | BF20: 766 | BH20: 13 | BI20: =SUMIF(Calcs!$F$9:$AOS$9,'Output ProjYr'!$BH20,Calcs!$F$520:$AOS$520) -> 980 | BJ20: =SUMIF(Calcs!$F$9:$AOS$9,'Output ProjYr'!$BH20,Calcs!$F$594:$AOS$594) -> 3436.264866 | BK20: =SUMIF(Calcs!$F$9:$AOS$9,'Output ProjYr'!$BH20,Calcs!$F$668:$AOS$668) -> 0 | BL20: =SUMIF(Calcs!$F$9:$AOS$9,'Output ProjYr'!$BH20,Calcs!$F$742:$AOS$742) -> 0 | BM20: =SUMIF(Calcs!$F$9:$AOS$9,'Output ProjYr'!$BH20,Calcs!$F$816:$AOS$816) -> 234.8241762 | BN20: =SUMIF(Calcs!$F$9:$AOS$9,'Output ProjYr'!$BH20,Calcs!$F$890:$AOS$890) -> 0 | BO20: =SUMIF(Calcs!$F$9:$AOS$9,'Output ProjYr'!$BH20,Calcs!$F$964:$AOS$964) -> 0 | BP20: =SUMIF(Calcs!$F$9:$AOS$9,'Output ProjYr'!$BH20,Calcs!$F$1038:$AOS$1038) -> 0 | BQ20: =SUMIF(Calcs!$F$9:$AOS$9,'Output ProjYr'!$BH20,Calcs!$F$1112:$AOS$1112) -> 0 | BR20: =SUMIF(Calcs!$F$9:$AOS$9,'Output ProjYr'!$BH20,Calcs!$F$1186:$AOS$1186) -> 0 | BS20: =SUMIF(Calcs!$F$9:$AOS$9,'Output ProjYr'!$BH20,Calcs!$F$1252:$AOS$1252) -> 185.9479888 | BT20: =SUMIF(Calcs!$F$9:$AOS$9,'Output ProjYr'!$BH20,Calcs!$F$1289:$AOS$1289) -> 98.81106027 | BU20: =SUMIF(Calcs!$F$9:$AOS$9,'Output ProjYr'!$BH20,Calcs!$F$1326:$AOS$1326) -> 0 | BV20: =SUMIF(Calcs!$F$9:$AOS$9,'Output ProjYr'!$BH20,Calcs!$F$1363:$AOS$1363) -> 0 | BW20: =SUMIF(Calcs!$F$9:$AOS$9,'Output ProjYr'!$BH20,Calcs!$F$1400:$AOS$1400) -> 0 | BX20: =SUMIF(Calcs!$F$9:$AOS$9,'Output ProjYr'!$BH20,Calcs!$F$1437:$AOS$1437) -> 0 | BY20: =SUMIF(Calcs!$F$9:$AOS$9,'Output ProjYr'!$BH20,Calcs!$F$1474:$AOS$1474) -> 0 | BZ20: =SUMIF(Calcs!$F$9:$AOS$9,'Output ProjYr'!$BH20,Calcs!$F$1511:$AOS$1511) -> 0 | CA20: =SUMIF(Calcs!$F$9:$AOS$9,'Output ProjYr'!$BH20,Calcs!$F$1548:$AOS$1548) -> 0 | CB20: =SUMIF(Calcs!$F$9:$AOS$9,'Output ProjYr'!$BH20,Calcs!$F$1585:$AOS$1585) -> 0 | CC20: 4935.848091 | CE20: 13 | CF20: =SUMIF(Calcs!$F$9:$AOS$9,$CE20,Calcs!$F$521:$AOS$521) -> 883.3911198 | CG20: =SUMIF(Calcs!$F$9:$AOS$9,$CE20,Calcs!$F$595:$AOS$595) -> 3231.291667 | CH20: =SUMIF(Calcs!$F$9:$AOS$9,$CE20,Calcs!$F$669:$AOS$669) -> 0 | CI20: =SUMIF(Calcs!$F$9:$AOS$9,$CE20,Calcs!$F$743:$AOS$743) -> 0 | CJ20: =SUMIF(Calcs!$F$9:$AOS$9,$CE20,Calcs!$F$817:$AOS$817) -> 211.6750939 | CK20: =SUMIF(Calcs!$F$9:$AOS$9,$CE20,Calcs!$F$891:$AOS$891) -> 0 | CL20: =SUMIF(Calcs!$F$9:$AOS$9,$CE20,Calcs!$F$965:$AOS$965) -> 0 | CM20: =SUMIF(Calcs!$F$9:$AOS$9,$CE20,Calcs!$F$1039:$AOS$1039) -> 0 | CN20: =SUMIF(Calcs!$F$9:$AOS$9,$CE20,Calcs!$F$1113:$AOS$1113) -> 0 | CO20: =SUMIF(Calcs!$F$9:$AOS$9,$CE20,Calcs!$F$1187:$AOS$1187) -> 0 | CP20: =SUMIF(Calcs!$F$9:$AOS$9,$CE20,Calcs!$F$1253:$AOS$1253) -> 167.6171449 | CQ20: =SUMIF(Calcs!$F$9:$AOS$9,$CE20,Calcs!$F$1290:$AOS$1290) -> 89.07021753 | CR20: =SUMIF(Calcs!$F$9:$AOS$9,$CE20,Calcs!$F$1327:$AOS$1327) -> 0 | CS20: =SUMIF(Calcs!$F$9:$AOS$9,$CE20,Calcs!$F$1364:$AOS$1364) -> 0 | CT20: =SUMIF(Calcs!$F$9:$AOS$9,$CE20,Calcs!$F$1401:$AOS$1401) -> 0 | CU20: =SUMIF(Calcs!$F$9:$AOS$9,$CE20,Calcs!$F$1438:$AOS$1438) -> 0 | CV20: =SUMIF(Calcs!$F$9:$AOS$9,$CE20,Calcs!$F$1475:$AOS$1475) -> 0 | CW20: =SUMIF(Calcs!$F$9:$AOS$9,$CE20,Calcs!$F$1512:$AOS$1512) -> 0 | CX20: =SUMIF(Calcs!$F$9:$AOS$9,$CE20,Calcs!$F$1549:$AOS$1549) -> 0 | CY20: =SUMIF(Calcs!$F$9:$AOS$9,$CE20,Calcs!$F$1586:$AOS$1586) -> 0 | CZ20: 4583.045243 | DB20: 13 | DC20: =(SUMIF(Calcs!$F$9:$AOS$9,'Output ProjYr'!$DB20,Calcs!$F$567:$AOS$567))/1000000 -> 0 | DD20: =(SUMIF(Calcs!$F$9:$AOS$9,'Output ProjYr'!$DB20,Calcs!$F$641:$AOS$641))/1000000 -> 0 | DE20: =(SUMIF(Calcs!$F$9:$AOS$9,'Output ProjYr'!$DB20,Calcs!$F$715:$AOS$715))/1000000 -> 0 | DF20: =(SUMIF(Calcs!$F$9:$AOS$9,'Output ProjYr'!$DB20,Calcs!$F$789:$AOS$789))/1000000 -> 0 | DG20: =(SUMIF(Calcs!$F$9:$AOS$9,'Output ProjYr'!$DB20,Calcs!$F$863:$AOS$863))/1000000 -> 0 | DH20: =(SUMIF(Calcs!$F$9:$AOS$9,'Output ProjYr'!$DB20,Calcs!$F$937:$AOS$937))/1000000 -> 0 | DI20: =(SUMIF(Calcs!$F$9:$AOS$9,'Output ProjYr'!$DB20,Calcs!$F$1011:$AOS$1011))/1000000 -> 0 | DJ20: =(SUMIF(Calcs!$F$9:$AOS$9,'Output ProjYr'!$DB20,Calcs!$F$1085:$AOS$1085))/1000000 -> 0 | DK20: =(SUMIF(Calcs!$F$9:$AOS$9,'Output ProjYr'!$DB20,Calcs!$F$1159:$AOS$1159))/1000000 -> 0 | DL20: =(SUMIF(Calcs!$F$9:$AOS$9,'Output ProjYr'!$DB20,Calcs!$F$1233:$AOS$1233))/1000000 -> 0 | DO20: =(SUMIF(Calcs!$F$9:$AOS$9,'Output ProjYr'!$DB20,Calcs!$F$1344:$AOS$1344))/1000000 -> 0 | DV20: =(SUMIF(Calcs!$F$9:$AOS$9,'Output ProjYr'!$DB20,Calcs!$F$1603:$AOS$1603))/1000000 -> 0 | DW20: 0
A21: 14 | B21: =SUMIF(Calcs!$F$9:$AOS$9,'Output ProjYr'!$A21,Calcs!$F$528:$AOS$528) -> 0 | C21: =SUMIF(Calcs!$F$9:$AOS$9,'Output ProjYr'!$A21,Calcs!$F$602:$AOS$602) -> 0 | D21: =SUMIF(Calcs!$F$9:$AOS$9,'Output ProjYr'!$A21,Calcs!$F$676:$AOS$676) -> 0 | E21: =SUMIF(Calcs!$F$9:$AOS$9,'Output ProjYr'!$A21,Calcs!$F$750:$AOS$750) -> 0 | F21: =SUMIF(Calcs!$F$9:$AOS$9,'Output ProjYr'!$A21,Calcs!$F$824:$AOS$824) -> 18529550.36 | G21: =SUMIF(Calcs!$F$9:$AOS$9,'Output ProjYr'!$A21,Calcs!$F$898:$AOS$898) -> 0 | H21: =SUMIF(Calcs!$F$9:$AOS$9,'Output ProjYr'!$A21,Calcs!$F$972:$AOS$972) -> 0 | I21: =SUMIF(Calcs!$F$9:$AOS$9,'Output ProjYr'!$A21,Calcs!$F$1046:$AOS$1046) -> 0 | J21: =SUMIF(Calcs!$F$9:$AOS$9,'Output ProjYr'!$A21,Calcs!$F$1120:$AOS$1120) -> 0 | K21: =SUMIF(Calcs!$F$9:$AOS$9,'Output ProjYr'!$A21,Calcs!$F$1194:$AOS$1194) -> 0 | L21: =SUMIF(Calcs!$F$9:$AOS$9,'Output ProjYr'!$A21,Calcs!$F$525:$AOS$525) -> 0 | M21: =SUMIF(Calcs!$F$9:$AOS$9,'Output ProjYr'!$A21,Calcs!$F$599:$AOS$599) -> 0 | N21: =SUMIF(Calcs!$F$9:$AOS$9,'Output ProjYr'!$A21,Calcs!$F$673:$AOS$673) -> 0 | O21: =SUMIF(Calcs!$F$9:$AOS$9,'Output ProjYr'!$A21,Calcs!$F$747:$AOS$747) -> 0 | P21: =SUMIF(Calcs!$F$9:$AOS$9,'Output ProjYr'!$A21,Calcs!$F$821:$AOS$821) -> 0 | Q21: =SUMIF(Calcs!$F$9:$AOS$9,'Output ProjYr'!$A21,Calcs!$F$895:$AOS$895) -> 0 | R21: =SUMIF(Calcs!$F$9:$AOS$9,'Output ProjYr'!$A21,Calcs!$F$969:$AOS$969) -> 0 | S21: =SUMIF(Calcs!$F$9:$AOS$9,'Output ProjYr'!$A21,Calcs!$F$1043:$AOS$1043) -> 0 | T21: =SUMIF(Calcs!$F$9:$AOS$9,'Output ProjYr'!$A21,Calcs!$F$1117:$AOS$1117) -> 0 | U21: =SUMIF(Calcs!$F$9:$AOS$9,'Output ProjYr'!$A21,Calcs!$F$1191:$AOS$1191) -> 0 | V21: =SUMIF(Calcs!$F$9:$AOS$9,'Output ProjYr'!$A21,Calcs!$F$1257:$AOS$1257) -> 15281849.44 | W21: =SUMIF(Calcs!$F$9:$AOS$9,'Output ProjYr'!$A21,Calcs!$F$1294:$AOS$1294) -> 6694364.094 | X21: =SUMIF(Calcs!$F$9:$AOS$9,'Output ProjYr'!$A21,Calcs!$F$1331:$AOS$1331) -> 0 | Y21: =SUMIF(Calcs!$F$9:$AOS$9,'Output ProjYr'!$A21,Calcs!$F$1368:$AOS$1368) -> 0 | Z21: =SUMIF(Calcs!$F$9:$AOS$9,'Output ProjYr'!$A21,Calcs!$F$1405:$AOS$1405) -> 0 | AA21: =SUMIF(Calcs!$F$9:$AOS$9,'Output ProjYr'!$A21,Calcs!$F$1442:$AOS$1442) -> 0 | AB21: =SUMIF(Calcs!$F$9:$AOS$9,'Output ProjYr'!$A21,Calcs!$F$1479:$AOS$1479) -> 0 | AC21: =SUMIF(Calcs!$F$9:$AOS$9,'Output ProjYr'!$A21,Calcs!$F$1516:$AOS$1516) -> 0 | AD21: =SUMIF(Calcs!$F$9:$AOS$9,'Output ProjYr'!$A21,Calcs!$F$1553:$AOS$1553) -> 0 | AE21: =SUMIF(Calcs!$F$9:$AOS$9,'Output ProjYr'!$A21,Calcs!$F$1590:$AOS$1590) -> 0 | AF21: 40505763.89 | AH21: 14 | AI21: =SUMIF(Calcs!$F$9:$AOS$9,'Output ProjYr'!$AH21,Calcs!$F$1714:$AOS$1714) -> 0 | AJ21: =SUMIF(Calcs!$F$9:$AOS$9,'Output ProjYr'!$AH21,Calcs!$F$1715:$AOS$1715) -> 0 | AK21: =SUMIF(Calcs!$F$9:$AOS$9,'Output ProjYr'!$AH21,Calcs!$F$1716:$AOS$1716) -> 0 | AL21: =SUMIF(Calcs!$F$9:$AOS$9,'Output ProjYr'!$AH21,Calcs!$F$1717:$AOS$1717) -> 0 | AM21: =SUMIF(Calcs!$F$9:$AOS$9,'Output ProjYr'!$AH21,Calcs!$F$1718:$AOS$1718) -> 0 | AN21: =SUMIF(Calcs!$F$9:$AOS$9,'Output ProjYr'!$AH21,Calcs!$F$1719:$AOS$1719) -> 0 | AO21: =SUMIF(Calcs!$F$9:$AOS$9,'Output ProjYr'!$AH21,Calcs!$F$1720:$AOS$1720) -> 0 | AP21: =SUMIF(Calcs!$F$9:$AOS$9,'Output ProjYr'!$AH21,Calcs!$F$1721:$AOS$1721) -> 0 | AQ21: =SUMIF(Calcs!$F$9:$AOS$9,'Output ProjYr'!$AH21,Calcs!$F$1722:$AOS$1722) -> 0 | AR21: =SUMIF(Calcs!$F$9:$AOS$9,'Output ProjYr'!$AH21,Calcs!$F$1723:$AOS$1723) -> 0 | AS21: 0 | AU21: 14 | AV21: =SUMIF(Calcs!$F$9:$AOS$9,'Output ProjYr'!$AU21,Calcs!$F$514:$AOS$514)/12 -> 167.8082192 | AW21: =(SUMIF(Calcs!$F$9:$AOS$9,'Output ProjYr'!$AU21,Calcs!$F$588:$AOS$588))/12 -> 454.5830365 | AX21: =(SUMIF(Calcs!$F$9:$AOS$9,'Output ProjYr'!$AU21,Calcs!$F$662:$AOS$662))/12 -> 30.8630974 | AY21: =(SUMIF(Calcs!$F$9:$AOS$9,'Output ProjYr'!$AU21,Calcs!$F$736:$AOS$736))/12 -> 78.97602891 | AZ21: =(SUMIF(Calcs!$F$9:$AOS$9,'Output ProjYr'!$AU21,Calcs!$F$810:$AOS$810))/12 -> 32.99048808 | BA21: =(SUMIF(Calcs!$F$9:$AOS$9,'Output ProjYr'!$AU21,Calcs!$F$884:$AOS$884))/12 -> 0 | BB21: =(SUMIF(Calcs!$F$9:$AOS$9,'Output ProjYr'!$AU21,Calcs!$F$958:$AOS$958))/12 -> 0 | BC21: =(SUMIF(Calcs!$F$9:$AOS$9,'Output ProjYr'!$AU21,Calcs!$F$1032:$AOS$1032))/12 -> 0 | BD21: =(SUMIF(Calcs!$F$9:$AOS$9,'Output ProjYr'!$AU21,Calcs!$F$1106:$AOS$1106))/12 -> 0 | BE21: =(SUMIF(Calcs!$F$9:$AOS$9,'Output ProjYr'!$AU21,Calcs!$F$1180:$AOS$1180))/12 -> 0 | BF21: 765.22087 | BH21: 14 | BI21: =SUMIF(Calcs!$F$9:$AOS$9,'Output ProjYr'!$BH21,Calcs!$F$520:$AOS$520) -> 980 | BJ21: =SUMIF(Calcs!$F$9:$AOS$9,'Output ProjYr'!$BH21,Calcs!$F$594:$AOS$594) -> 3517.978213 | BK21: =SUMIF(Calcs!$F$9:$AOS$9,'Output ProjYr'!$BH21,Calcs!$F$668:$AOS$668) -> 0 | BL21: =SUMIF(Calcs!$F$9:$AOS$9,'Output ProjYr'!$BH21,Calcs!$F$742:$AOS$742) -> 0 | BM21: =SUMIF(Calcs!$F$9:$AOS$9,'Output ProjYr'!$BH21,Calcs!$F$816:$AOS$816) -> 198.6745496 | BN21: =SUMIF(Calcs!$F$9:$AOS$9,'Output ProjYr'!$BH21,Calcs!$F$890:$AOS$890) -> 0 | BO21: =SUMIF(Calcs!$F$9:$AOS$9,'Output ProjYr'!$BH21,Calcs!$F$964:$AOS$964) -> 0 | BP21: =SUMIF(Calcs!$F$9:$AOS$9,'Output ProjYr'!$BH21,Calcs!$F$1038:$AOS$1038) -> 0 | BQ21: =SUMIF(Calcs!$F$9:$AOS$9,'Output ProjYr'!$BH21,Calcs!$F$1112:$AOS$1112) -> 0 | BR21: =SUMIF(Calcs!$F$9:$AOS$9,'Output ProjYr'!$BH21,Calcs!$F$1186:$AOS$1186) -> 0 | BS21: =SUMIF(Calcs!$F$9:$AOS$9,'Output ProjYr'!$BH21,Calcs!$F$1252:$AOS$1252) -> 161.5284847 | BT21: =SUMIF(Calcs!$F$9:$AOS$9,'Output ProjYr'!$BH21,Calcs!$F$1289:$AOS$1289) -> 77.66684352 | BU21: =SUMIF(Calcs!$F$9:$AOS$9,'Output ProjYr'!$BH21,Calcs!$F$1326:$AOS$1326) -> 0 | BV21: =SUMIF(Calcs!$F$9:$AOS$9,'Output ProjYr'!$BH21,Calcs!$F$1363:$AOS$1363) -> 0 | BW21: =SUMIF(Calcs!$F$9:$AOS$9,'Output ProjYr'!$BH21,Calcs!$F$1400:$AOS$1400) -> 0 | BX21: =SUMIF(Calcs!$F$9:$AOS$9,'Output ProjYr'!$BH21,Calcs!$F$1437:$AOS$1437) -> 0 | BY21: =SUMIF(Calcs!$F$9:$AOS$9,'Output ProjYr'!$BH21,Calcs!$F$1474:$AOS$1474) -> 0 | BZ21: =SUMIF(Calcs!$F$9:$AOS$9,'Output ProjYr'!$BH21,Calcs!$F$1511:$AOS$1511) -> 0 | CA21: =SUMIF(Calcs!$F$9:$AOS$9,'Output ProjYr'!$BH21,Calcs!$F$1548:$AOS$1548) -> 0 | CB21: =SUMIF(Calcs!$F$9:$AOS$9,'Output ProjYr'!$BH21,Calcs!$F$1585:$AOS$1585) -> 0 | CC21: 4935.848091 | CE21: 14 | CF21: =SUMIF(Calcs!$F$9:$AOS$9,$CE21,Calcs!$F$521:$AOS$521) -> 883.3911198 | CG21: =SUMIF(Calcs!$F$9:$AOS$9,$CE21,Calcs!$F$595:$AOS$595) -> 3308.130813 | CH21: =SUMIF(Calcs!$F$9:$AOS$9,$CE21,Calcs!$F$669:$AOS$669) -> 0 | CI21: =SUMIF(Calcs!$F$9:$AOS$9,$CE21,Calcs!$F$743:$AOS$743) -> 0 | CJ21: =SUMIF(Calcs!$F$9:$AOS$9,$CE21,Calcs!$F$817:$AOS$817) -> 179.0891152 | CK21: =SUMIF(Calcs!$F$9:$AOS$9,$CE21,Calcs!$F$891:$AOS$891) -> 0 | CL21: =SUMIF(Calcs!$F$9:$AOS$9,$CE21,Calcs!$F$965:$AOS$965) -> 0 | CM21: =SUMIF(Calcs!$F$9:$AOS$9,$CE21,Calcs!$F$1039:$AOS$1039) -> 0 | CN21: =SUMIF(Calcs!$F$9:$AOS$9,$CE21,Calcs!$F$1113:$AOS$1113) -> 0 | CO21: =SUMIF(Calcs!$F$9:$AOS$9,$CE21,Calcs!$F$1187:$AOS$1187) -> 0 | CP21: =SUMIF(Calcs!$F$9:$AOS$9,$CE21,Calcs!$F$1253:$AOS$1253) -> 145.6049275 | CQ21: =SUMIF(Calcs!$F$9:$AOS$9,$CE21,Calcs!$F$1290:$AOS$1290) -> 70.01040803 | CR21: =SUMIF(Calcs!$F$9:$AOS$9,$CE21,Calcs!$F$1327:$AOS$1327) -> 0 | CS21: =SUMIF(Calcs!$F$9:$AOS$9,$CE21,Calcs!$F$1364:$AOS$1364) -> 0 | CT21: =SUMIF(Calcs!$F$9:$AOS$9,$CE21,Calcs!$F$1401:$AOS$1401) -> 0 | CU21: =SUMIF(Calcs!$F$9:$AOS$9,$CE21,Calcs!$F$1438:$AOS$1438) -> 0 | CV21: =SUMIF(Calcs!$F$9:$AOS$9,$CE21,Calcs!$F$1475:$AOS$1475) -> 0 | CW21: =SUMIF(Calcs!$F$9:$AOS$9,$CE21,Calcs!$F$1512:$AOS$1512) -> 0 | CX21: =SUMIF(Calcs!$F$9:$AOS$9,$CE21,Calcs!$F$1549:$AOS$1549) -> 0 | CY21: =SUMIF(Calcs!$F$9:$AOS$9,$CE21,Calcs!$F$1586:$AOS$1586) -> 0 | CZ21: 4586.226383 | DB21: 14 | DC21: =(SUMIF(Calcs!$F$9:$AOS$9,'Output ProjYr'!$DB21,Calcs!$F$567:$AOS$567))/1000000 -> 0 | DD21: =(SUMIF(Calcs!$F$9:$AOS$9,'Output ProjYr'!$DB21,Calcs!$F$641:$AOS$641))/1000000 -> 0 | DE21: =(SUMIF(Calcs!$F$9:$AOS$9,'Output ProjYr'!$DB21,Calcs!$F$715:$AOS$715))/1000000 -> 0 | DF21: =(SUMIF(Calcs!$F$9:$AOS$9,'Output ProjYr'!$DB21,Calcs!$F$789:$AOS$789))/1000000 -> 0 | DG21: =(SUMIF(Calcs!$F$9:$AOS$9,'Output ProjYr'!$DB21,Calcs!$F$863:$AOS$863))/1000000 -> 0 | DH21: =(SUMIF(Calcs!$F$9:$AOS$9,'Output ProjYr'!$DB21,Calcs!$F$937:$AOS$937))/1000000 -> 0 | DI21: =(SUMIF(Calcs!$F$9:$AOS$9,'Output ProjYr'!$DB21,Calcs!$F$1011:$AOS$1011))/1000000 -> 0 | DJ21: =(SUMIF(Calcs!$F$9:$AOS$9,'Output ProjYr'!$DB21,Calcs!$F$1085:$AOS$1085))/1000000 -> 0 | DK21: =(SUMIF(Calcs!$F$9:$AOS$9,'Output ProjYr'!$DB21,Calcs!$F$1159:$AOS$1159))/1000000 -> 0 | DL21: =(SUMIF(Calcs!$F$9:$AOS$9,'Output ProjYr'!$DB21,Calcs!$F$1233:$AOS$1233))/1000000 -> 0 | DO21: =(SUMIF(Calcs!$F$9:$AOS$9,'Output ProjYr'!$DB21,Calcs!$F$1344:$AOS$1344))/1000000 -> 0 | DV21: =(SUMIF(Calcs!$F$9:$AOS$9,'Output ProjYr'!$DB21,Calcs!$F$1603:$AOS$1603))/1000000 -> 0 | DW21: 0
A22: 15 | B22: =SUMIF(Calcs!$F$9:$AOS$9,'Output ProjYr'!$A22,Calcs!$F$528:$AOS$528) -> 0 | C22: =SUMIF(Calcs!$F$9:$AOS$9,'Output ProjYr'!$A22,Calcs!$F$602:$AOS$602) -> 0 | D22: =SUMIF(Calcs!$F$9:$AOS$9,'Output ProjYr'!$A22,Calcs!$F$676:$AOS$676) -> 0 | E22: =SUMIF(Calcs!$F$9:$AOS$9,'Output ProjYr'!$A22,Calcs!$F$750:$AOS$750) -> 0 | F22: =SUMIF(Calcs!$F$9:$AOS$9,'Output ProjYr'!$A22,Calcs!$F$824:$AOS$824) -> 16944532.72 | G22: =SUMIF(Calcs!$F$9:$AOS$9,'Output ProjYr'!$A22,Calcs!$F$898:$AOS$898) -> 0 | H22: =SUMIF(Calcs!$F$9:$AOS$9,'Output ProjYr'!$A22,Calcs!$F$972:$AOS$972) -> 0 | I22: =SUMIF(Calcs!$F$9:$AOS$9,'Output ProjYr'!$A22,Calcs!$F$1046:$AOS$1046) -> 0 | J22: =SUMIF(Calcs!$F$9:$AOS$9,'Output ProjYr'!$A22,Calcs!$F$1120:$AOS$1120) -> 0 | K22: =SUMIF(Calcs!$F$9:$AOS$9,'Output ProjYr'!$A22,Calcs!$F$1194:$AOS$1194) -> 0 | L22: =SUMIF(Calcs!$F$9:$AOS$9,'Output ProjYr'!$A22,Calcs!$F$525:$AOS$525) -> 0 | M22: =SUMIF(Calcs!$F$9:$AOS$9,'Output ProjYr'!$A22,Calcs!$F$599:$AOS$599) -> 0 | N22: =SUMIF(Calcs!$F$9:$AOS$9,'Output ProjYr'!$A22,Calcs!$F$673:$AOS$673) -> 0 | O22: =SUMIF(Calcs!$F$9:$AOS$9,'Output ProjYr'!$A22,Calcs!$F$747:$AOS$747) -> 0 | P22: =SUMIF(Calcs!$F$9:$AOS$9,'Output ProjYr'!$A22,Calcs!$F$821:$AOS$821) -> 0 | Q22: =SUMIF(Calcs!$F$9:$AOS$9,'Output ProjYr'!$A22,Calcs!$F$895:$AOS$895) -> 0 | R22: =SUMIF(Calcs!$F$9:$AOS$9,'Output ProjYr'!$A22,Calcs!$F$969:$AOS$969) -> 0 | S22: =SUMIF(Calcs!$F$9:$AOS$9,'Output ProjYr'!$A22,Calcs!$F$1043:$AOS$1043) -> 0 | T22: =SUMIF(Calcs!$F$9:$AOS$9,'Output ProjYr'!$A22,Calcs!$F$1117:$AOS$1117) -> 0 | U22: =SUMIF(Calcs!$F$9:$AOS$9,'Output ProjYr'!$A22,Calcs!$F$1191:$AOS$1191) -> 0 | V22: =SUMIF(Calcs!$F$9:$AOS$9,'Output ProjYr'!$A22,Calcs!$F$1257:$AOS$1257) -> 11867792.7 | W22: =SUMIF(Calcs!$F$9:$AOS$9,'Output ProjYr'!$A22,Calcs!$F$1294:$AOS$1294) -> 4650027.623 | X22: =SUMIF(Calcs!$F$9:$AOS$9,'Output ProjYr'!$A22,Calcs!$F$1331:$AOS$1331) -> 0 | Y22: =SUMIF(Calcs!$F$9:$AOS$9,'Output ProjYr'!$A22,Calcs!$F$1368:$AOS$1368) -> 0 | Z22: =SUMIF(Calcs!$F$9:$AOS$9,'Output ProjYr'!$A22,Calcs!$F$1405:$AOS$1405) -> 0 | AA22: =SUMIF(Calcs!$F$9:$AOS$9,'Output ProjYr'!$A22,Calcs!$F$1442:$AOS$1442) -> 0 | AB22: =SUMIF(Calcs!$F$9:$AOS$9,'Output ProjYr'!$A22,Calcs!$F$1479:$AOS$1479) -> 0 | AC22: =SUMIF(Calcs!$F$9:$AOS$9,'Output ProjYr'!$A22,Calcs!$F$1516:$AOS$1516) -> 0 | AD22: =SUMIF(Calcs!$F$9:$AOS$9,'Output ProjYr'!$A22,Calcs!$F$1553:$AOS$1553) -> 0 | AE22: =SUMIF(Calcs!$F$9:$AOS$9,'Output ProjYr'!$A22,Calcs!$F$1590:$AOS$1590) -> 0 | AF22: 33462353.04 | AH22: 15 | AI22: =SUMIF(Calcs!$F$9:$AOS$9,'Output ProjYr'!$AH22,Calcs!$F$1714:$AOS$1714) -> 0 | AJ22: =SUMIF(Calcs!$F$9:$AOS$9,'Output ProjYr'!$AH22,Calcs!$F$1715:$AOS$1715) -> 0 | AK22: =SUMIF(Calcs!$F$9:$AOS$9,'Output ProjYr'!$AH22,Calcs!$F$1716:$AOS$1716) -> 0 | AL22: =SUMIF(Calcs!$F$9:$AOS$9,'Output ProjYr'!$AH22,Calcs!$F$1717:$AOS$1717) -> 0 | AM22: =SUMIF(Calcs!$F$9:$AOS$9,'Output ProjYr'!$AH22,Calcs!$F$1718:$AOS$1718) -> 0 | AN22: =SUMIF(Calcs!$F$9:$AOS$9,'Output ProjYr'!$AH22,Calcs!$F$1719:$AOS$1719) -> 0 | AO22: =SUMIF(Calcs!$F$9:$AOS$9,'Output ProjYr'!$AH22,Calcs!$F$1720:$AOS$1720) -> 0 | AP22: =SUMIF(Calcs!$F$9:$AOS$9,'Output ProjYr'!$AH22,Calcs!$F$1721:$AOS$1721) -> 0 | AQ22: =SUMIF(Calcs!$F$9:$AOS$9,'Output ProjYr'!$AH22,Calcs!$F$1722:$AOS$1722) -> 0 | AR22: =SUMIF(Calcs!$F$9:$AOS$9,'Output ProjYr'!$AH22,Calcs!$F$1723:$AOS$1723) -> 0 | AS22: 0 | AU22: 15 | AV22: =SUMIF(Calcs!$F$9:$AOS$9,'Output ProjYr'!$AU22,Calcs!$F$514:$AOS$514)/12 -> 167.8082192 | AW22: =(SUMIF(Calcs!$F$9:$AOS$9,'Output ProjYr'!$AU22,Calcs!$F$588:$AOS$588))/12 -> 459.8967598 | AX22: =(SUMIF(Calcs!$F$9:$AOS$9,'Output ProjYr'!$AU22,Calcs!$F$662:$AOS$662))/12 -> 28.86730729 | AY22: =(SUMIF(Calcs!$F$9:$AOS$9,'Output ProjYr'!$AU22,Calcs!$F$736:$AOS$736))/12 -> 76.63193321 | AZ22: =(SUMIF(Calcs!$F$9:$AOS$9,'Output ProjYr'!$AU22,Calcs!$F$810:$AOS$810))/12 -> 32.7957805 | BA22: =(SUMIF(Calcs!$F$9:$AOS$9,'Output ProjYr'!$AU22,Calcs!$F$884:$AOS$884))/12 -> 0 | BB22: =(SUMIF(Calcs!$F$9:$AOS$9,'Output ProjYr'!$AU22,Calcs!$F$958:$AOS$958))/12 -> 0 | BC22: =(SUMIF(Calcs!$F$9:$AOS$9,'Output ProjYr'!$AU22,Calcs!$F$1032:$AOS$1032))/12 -> 0 | BD22: =(SUMIF(Calcs!$F$9:$AOS$9,'Output ProjYr'!$AU22,Calcs!$F$1106:$AOS$1106))/12 -> 0 | BE22: =(SUMIF(Calcs!$F$9:$AOS$9,'Output ProjYr'!$AU22,Calcs!$F$1180:$AOS$1180))/12 -> 0 | BF22: 766 | BH22: 15 | BI22: =SUMIF(Calcs!$F$9:$AOS$9,'Output ProjYr'!$BH22,Calcs!$F$520:$AOS$520) -> 980 | BJ22: =SUMIF(Calcs!$F$9:$AOS$9,'Output ProjYr'!$BH22,Calcs!$F$594:$AOS$594) -> 3602.395601 | BK22: =SUMIF(Calcs!$F$9:$AOS$9,'Output ProjYr'!$BH22,Calcs!$F$668:$AOS$668) -> 0 | BL22: =SUMIF(Calcs!$F$9:$AOS$9,'Output ProjYr'!$BH22,Calcs!$F$742:$AOS$742) -> 0 | BM22: =SUMIF(Calcs!$F$9:$AOS$9,'Output ProjYr'!$BH22,Calcs!$F$816:$AOS$816) -> 176.5891666 | BN22: =SUMIF(Calcs!$F$9:$AOS$9,'Output ProjYr'!$BH22,Calcs!$F$890:$AOS$890) -> 0 | BO22: =SUMIF(Calcs!$F$9:$AOS$9,'Output ProjYr'!$BH22,Calcs!$F$964:$AOS$964) -> 0 | BP22: =SUMIF(Calcs!$F$9:$AOS$9,'Output ProjYr'!$BH22,Calcs!$F$1038:$AOS$1038) -> 0 | BQ22: =SUMIF(Calcs!$F$9:$AOS$9,'Output ProjYr'!$BH22,Calcs!$F$1112:$AOS$1112) -> 0 | BR22: =SUMIF(Calcs!$F$9:$AOS$9,'Output ProjYr'!$BH22,Calcs!$F$1186:$AOS$1186) -> 0 | BS22: =SUMIF(Calcs!$F$9:$AOS$9,'Output ProjYr'!$BH22,Calcs!$F$1252:$AOS$1252) -> 123.723084 | BT22: =SUMIF(Calcs!$F$9:$AOS$9,'Output ProjYr'!$BH22,Calcs!$F$1289:$AOS$1289) -> 53.14023961 | BU22: =SUMIF(Calcs!$F$9:$AOS$9,'Output ProjYr'!$BH22,Calcs!$F$1326:$AOS$1326) -> 0 | BV22: =SUMIF(Calcs!$F$9:$AOS$9,'Output ProjYr'!$BH22,Calcs!$F$1363:$AOS$1363) -> 0 | BW22: =SUMIF(Calcs!$F$9:$AOS$9,'Output ProjYr'!$BH22,Calcs!$F$1400:$AOS$1400) -> 0 | BX22: =SUMIF(Calcs!$F$9:$AOS$9,'Output ProjYr'!$BH22,Calcs!$F$1437:$AOS$1437) -> 0 | BY22: =SUMIF(Calcs!$F$9:$AOS$9,'Output ProjYr'!$BH22,Calcs!$F$1474:$AOS$1474) -> 0 | BZ22: =SUMIF(Calcs!$F$9:$AOS$9,'Output ProjYr'!$BH22,Calcs!$F$1511:$AOS$1511) -> 0 | CA22: =SUMIF(Calcs!$F$9:$AOS$9,'Output ProjYr'!$BH22,Calcs!$F$1548:$AOS$1548) -> 0 | CB22: =SUMIF(Calcs!$F$9:$AOS$9,'Output ProjYr'!$BH22,Calcs!$F$1585:$AOS$1585) -> 0 | CC22: 4935.848091 | CE22: 15 | CF22: =SUMIF(Calcs!$F$9:$AOS$9,$CE22,Calcs!$F$521:$AOS$521) -> 883.3911198 | CG22: =SUMIF(Calcs!$F$9:$AOS$9,$CE22,Calcs!$F$595:$AOS$595) -> 3387.512703 | CH22: =SUMIF(Calcs!$F$9:$AOS$9,$CE22,Calcs!$F$669:$AOS$669) -> 0 | CI22: =SUMIF(Calcs!$F$9:$AOS$9,$CE22,Calcs!$F$743:$AOS$743) -> 0 | CJ22: =SUMIF(Calcs!$F$9:$AOS$9,$CE22,Calcs!$F$817:$AOS$817) -> 159.1809201 | CK22: =SUMIF(Calcs!$F$9:$AOS$9,$CE22,Calcs!$F$891:$AOS$891) -> 0 | CL22: =SUMIF(Calcs!$F$9:$AOS$9,$CE22,Calcs!$F$965:$AOS$965) -> 0 | CM22: =SUMIF(Calcs!$F$9:$AOS$9,$CE22,Calcs!$F$1039:$AOS$1039) -> 0 | CN22: =SUMIF(Calcs!$F$9:$AOS$9,$CE22,Calcs!$F$1113:$AOS$1113) -> 0 | CO22: =SUMIF(Calcs!$F$9:$AOS$9,$CE22,Calcs!$F$1187:$AOS$1187) -> 0 | CP22: =SUMIF(Calcs!$F$9:$AOS$9,$CE22,Calcs!$F$1253:$AOS$1253) -> 111.5264018 | CQ22: =SUMIF(Calcs!$F$9:$AOS$9,$CE22,Calcs!$F$1290:$AOS$1290) -> 47.90164875 | CR22: =SUMIF(Calcs!$F$9:$AOS$9,$CE22,Calcs!$F$1327:$AOS$1327) -> 0 | CS22: =SUMIF(Calcs!$F$9:$AOS$9,$CE22,Calcs!$F$1364:$AOS$1364) -> 0 | CT22: =SUMIF(Calcs!$F$9:$AOS$9,$CE22,Calcs!$F$1401:$AOS$1401) -> 0 | CU22: =SUMIF(Calcs!$F$9:$AOS$9,$CE22,Calcs!$F$1438:$AOS$1438) -> 0 | CV22: =SUMIF(Calcs!$F$9:$AOS$9,$CE22,Calcs!$F$1475:$AOS$1475) -> 0 | CW22: =SUMIF(Calcs!$F$9:$AOS$9,$CE22,Calcs!$F$1512:$AOS$1512) -> 0 | CX22: =SUMIF(Calcs!$F$9:$AOS$9,$CE22,Calcs!$F$1549:$AOS$1549) -> 0 | CY22: =SUMIF(Calcs!$F$9:$AOS$9,$CE22,Calcs!$F$1586:$AOS$1586) -> 0 | CZ22: 4589.512794 | DB22: 15 | DC22: =(SUMIF(Calcs!$F$9:$AOS$9,'Output ProjYr'!$DB22,Calcs!$F$567:$AOS$567))/1000000 -> 0 | DD22: =(SUMIF(Calcs!$F$9:$AOS$9,'Output ProjYr'!$DB22,Calcs!$F$641:$AOS$641))/1000000 -> 0 | DE22: =(SUMIF(Calcs!$F$9:$AOS$9,'Output ProjYr'!$DB22,Calcs!$F$715:$AOS$715))/1000000 -> 0 | DF22: =(SUMIF(Calcs!$F$9:$AOS$9,'Output ProjYr'!$DB22,Calcs!$F$789:$AOS$789))/1000000 -> 0 | DG22: =(SUMIF(Calcs!$F$9:$AOS$9,'Output ProjYr'!$DB22,Calcs!$F$863:$AOS$863))/1000000 -> 0 | DH22: =(SUMIF(Calcs!$F$9:$AOS$9,'Output ProjYr'!$DB22,Calcs!$F$937:$AOS$937))/1000000 -> 0 | DI22: =(SUMIF(Calcs!$F$9:$AOS$9,'Output ProjYr'!$DB22,Calcs!$F$1011:$AOS$1011))/1000000 -> 0 | DJ22: =(SUMIF(Calcs!$F$9:$AOS$9,'Output ProjYr'!$DB22,Calcs!$F$1085:$AOS$1085))/1000000 -> 0 | DK22: =(SUMIF(Calcs!$F$9:$AOS$9,'Output ProjYr'!$DB22,Calcs!$F$1159:$AOS$1159))/1000000 -> 0 | DL22: =(SUMIF(Calcs!$F$9:$AOS$9,'Output ProjYr'!$DB22,Calcs!$F$1233:$AOS$1233))/1000000 -> 0 | DO22: =(SUMIF(Calcs!$F$9:$AOS$9,'Output ProjYr'!$DB22,Calcs!$F$1344:$AOS$1344))/1000000 -> 0 | DV22: =(SUMIF(Calcs!$F$9:$AOS$9,'Output ProjYr'!$DB22,Calcs!$F$1603:$AOS$1603))/1000000 -> 0 | DW22: 0
A23: 16 | B23: =SUMIF(Calcs!$F$9:$AOS$9,'Output ProjYr'!$A23,Calcs!$F$528:$AOS$528) -> 0 | C23: =SUMIF(Calcs!$F$9:$AOS$9,'Output ProjYr'!$A23,Calcs!$F$602:$AOS$602) -> 0 | D23: =SUMIF(Calcs!$F$9:$AOS$9,'Output ProjYr'!$A23,Calcs!$F$676:$AOS$676) -> 0 | E23: =SUMIF(Calcs!$F$9:$AOS$9,'Output ProjYr'!$A23,Calcs!$F$750:$AOS$750) -> 0 | F23: =SUMIF(Calcs!$F$9:$AOS$9,'Output ProjYr'!$A23,Calcs!$F$824:$AOS$824) -> 14901834.02 | G23: =SUMIF(Calcs!$F$9:$AOS$9,'Output ProjYr'!$A23,Calcs!$F$898:$AOS$898) -> 0 | H23: =SUMIF(Calcs!$F$9:$AOS$9,'Output ProjYr'!$A23,Calcs!$F$972:$AOS$972) -> 0 | I23: =SUMIF(Calcs!$F$9:$AOS$9,'Output ProjYr'!$A23,Calcs!$F$1046:$AOS$1046) -> 0 | J23: =SUMIF(Calcs!$F$9:$AOS$9,'Output ProjYr'!$A23,Calcs!$F$1120:$AOS$1120) -> 0 | K23: =SUMIF(Calcs!$F$9:$AOS$9,'Output ProjYr'!$A23,Calcs!$F$1194:$AOS$1194) -> 0 | L23: =SUMIF(Calcs!$F$9:$AOS$9,'Output ProjYr'!$A23,Calcs!$F$525:$AOS$525) -> 0 | M23: =SUMIF(Calcs!$F$9:$AOS$9,'Output ProjYr'!$A23,Calcs!$F$599:$AOS$599) -> 0 | N23: =SUMIF(Calcs!$F$9:$AOS$9,'Output ProjYr'!$A23,Calcs!$F$673:$AOS$673) -> 0 | O23: =SUMIF(Calcs!$F$9:$AOS$9,'Output ProjYr'!$A23,Calcs!$F$747:$AOS$747) -> 0 | P23: =SUMIF(Calcs!$F$9:$AOS$9,'Output ProjYr'!$A23,Calcs!$F$821:$AOS$821) -> 0 | Q23: =SUMIF(Calcs!$F$9:$AOS$9,'Output ProjYr'!$A23,Calcs!$F$895:$AOS$895) -> 0 | R23: =SUMIF(Calcs!$F$9:$AOS$9,'Output ProjYr'!$A23,Calcs!$F$969:$AOS$969) -> 0 | S23: =SUMIF(Calcs!$F$9:$AOS$9,'Output ProjYr'!$A23,Calcs!$F$1043:$AOS$1043) -> 0 | T23: =SUMIF(Calcs!$F$9:$AOS$9,'Output ProjYr'!$A23,Calcs!$F$1117:$AOS$1117) -> 0 | U23: =SUMIF(Calcs!$F$9:$AOS$9,'Output ProjYr'!$A23,Calcs!$F$1191:$AOS$1191) -> 0 | V23: =SUMIF(Calcs!$F$9:$AOS$9,'Output ProjYr'!$A23,Calcs!$F$1257:$AOS$1257) -> 9748577.825 | W23: =SUMIF(Calcs!$F$9:$AOS$9,'Output ProjYr'!$A23,Calcs!$F$1294:$AOS$1294) -> 2886143.52 | X23: =SUMIF(Calcs!$F$9:$AOS$9,'Output ProjYr'!$A23,Calcs!$F$1331:$AOS$1331) -> 0 | Y23: =SUMIF(Calcs!$F$9:$AOS$9,'Output ProjYr'!$A23,Calcs!$F$1368:$AOS$1368) -> 0 | Z23: =SUMIF(Calcs!$F$9:$AOS$9,'Output ProjYr'!$A23,Calcs!$F$1405:$AOS$1405) -> 0 | AA23: =SUMIF(Calcs!$F$9:$AOS$9,'Output ProjYr'!$A23,Calcs!$F$1442:$AOS$1442) -> 0 | AB23: =SUMIF(Calcs!$F$9:$AOS$9,'Output ProjYr'!$A23,Calcs!$F$1479:$AOS$1479) -> 0 | AC23: =SUMIF(Calcs!$F$9:$AOS$9,'Output ProjYr'!$A23,Calcs!$F$1516:$AOS$1516) -> 0 | AD23: =SUMIF(Calcs!$F$9:$AOS$9,'Output ProjYr'!$A23,Calcs!$F$1553:$AOS$1553) -> 0 | AE23: =SUMIF(Calcs!$F$9:$AOS$9,'Output ProjYr'!$A23,Calcs!$F$1590:$AOS$1590) -> 0 | AF23: 27536555.37 | AH23: 16 | AI23: =SUMIF(Calcs!$F$9:$AOS$9,'Output ProjYr'!$AH23,Calcs!$F$1714:$AOS$1714) -> 0 | AJ23: =SUMIF(Calcs!$F$9:$AOS$9,'Output ProjYr'!$AH23,Calcs!$F$1715:$AOS$1715) -> 0 | AK23: =SUMIF(Calcs!$F$9:$AOS$9,'Output ProjYr'!$AH23,Calcs!$F$1716:$AOS$1716) -> 0 | AL23: =SUMIF(Calcs!$F$9:$AOS$9,'Output ProjYr'!$AH23,Calcs!$F$1717:$AOS$1717) -> 0 | AM23: =SUMIF(Calcs!$F$9:$AOS$9,'Output ProjYr'!$AH23,Calcs!$F$1718:$AOS$1718) -> 0 | AN23: =SUMIF(Calcs!$F$9:$AOS$9,'Output ProjYr'!$AH23,Calcs!$F$1719:$AOS$1719) -> 0 | AO23: =SUMIF(Calcs!$F$9:$AOS$9,'Output ProjYr'!$AH23,Calcs!$F$1720:$AOS$1720) -> 0 | AP23: =SUMIF(Calcs!$F$9:$AOS$9,'Output ProjYr'!$AH23,Calcs!$F$1721:$AOS$1721) -> 0 | AQ23: =SUMIF(Calcs!$F$9:$AOS$9,'Output ProjYr'!$AH23,Calcs!$F$1722:$AOS$1722) -> 0 | AR23: =SUMIF(Calcs!$F$9:$AOS$9,'Output ProjYr'!$AH23,Calcs!$F$1723:$AOS$1723) -> 0 | AS23: 0 | AU23: 16 | AV23: =SUMIF(Calcs!$F$9:$AOS$9,'Output ProjYr'!$AU23,Calcs!$F$514:$AOS$514)/12 -> 167.8082192 | AW23: =(SUMIF(Calcs!$F$9:$AOS$9,'Output ProjYr'!$AU23,Calcs!$F$588:$AOS$588))/12 -> 464.9288458 | AX23: =(SUMIF(Calcs!$F$9:$AOS$9,'Output ProjYr'!$AU23,Calcs!$F$662:$AOS$662))/12 -> 28.04136286 | AY23: =(SUMIF(Calcs!$F$9:$AOS$9,'Output ProjYr'!$AU23,Calcs!$F$736:$AOS$736))/12 -> 72.37668967 | AZ23: =(SUMIF(Calcs!$F$9:$AOS$9,'Output ProjYr'!$AU23,Calcs!$F$810:$AOS$810))/12 -> 32.84488246 | BA23: =(SUMIF(Calcs!$F$9:$AOS$9,'Output ProjYr'!$AU23,Calcs!$F$884:$AOS$884))/12 -> 0 | BB23: =(SUMIF(Calcs!$F$9:$AOS$9,'Output ProjYr'!$AU23,Calcs!$F$958:$AOS$958))/12 -> 0 | BC23: =(SUMIF(Calcs!$F$9:$AOS$9,'Output ProjYr'!$AU23,Calcs!$F$1032:$AOS$1032))/12 -> 0 | BD23: =(SUMIF(Calcs!$F$9:$AOS$9,'Output ProjYr'!$AU23,Calcs!$F$1106:$AOS$1106))/12 -> 0 | BE23: =(SUMIF(Calcs!$F$9:$AOS$9,'Output ProjYr'!$AU23,Calcs!$F$1180:$AOS$1180))/12 -> 0 | BF23: 766 | BH23: 16 | BI23: =SUMIF(Calcs!$F$9:$AOS$9,'Output ProjYr'!$BH23,Calcs!$F$520:$AOS$520) -> 980 | BJ23: =SUMIF(Calcs!$F$9:$AOS$9,'Output ProjYr'!$BH23,Calcs!$F$594:$AOS$594) -> 3671.511135 | BK23: =SUMIF(Calcs!$F$9:$AOS$9,'Output ProjYr'!$BH23,Calcs!$F$668:$AOS$668) -> 0 | BL23: =SUMIF(Calcs!$F$9:$AOS$9,'Output ProjYr'!$BH23,Calcs!$F$742:$AOS$742) -> 0 | BM23: =SUMIF(Calcs!$F$9:$AOS$9,'Output ProjYr'!$BH23,Calcs!$F$816:$AOS$816) -> 151.6578714 | BN23: =SUMIF(Calcs!$F$9:$AOS$9,'Output ProjYr'!$BH23,Calcs!$F$890:$AOS$890) -> 0 | BO23: =SUMIF(Calcs!$F$9:$AOS$9,'Output ProjYr'!$BH23,Calcs!$F$964:$AOS$964) -> 0 | BP23: =SUMIF(Calcs!$F$9:$AOS$9,'Output ProjYr'!$BH23,Calcs!$F$1038:$AOS$1038) -> 0 | BQ23: =SUMIF(Calcs!$F$9:$AOS$9,'Output ProjYr'!$BH23,Calcs!$F$1112:$AOS$1112) -> 0 | BR23: =SUMIF(Calcs!$F$9:$AOS$9,'Output ProjYr'!$BH23,Calcs!$F$1186:$AOS$1186) -> 0 | BS23: =SUMIF(Calcs!$F$9:$AOS$9,'Output ProjYr'!$BH23,Calcs!$F$1252:$AOS$1252) -> 99.73141386 | BT23: =SUMIF(Calcs!$F$9:$AOS$9,'Output ProjYr'!$BH23,Calcs!$F$1289:$AOS$1289) -> 32.94767059 | BU23: =SUMIF(Calcs!$F$9:$AOS$9,'Output ProjYr'!$BH23,Calcs!$F$1326:$AOS$1326) -> 0 | BV23: =SUMIF(Calcs!$F$9:$AOS$9,'Output ProjYr'!$BH23,Calcs!$F$1363:$AOS$1363) -> 0 | BW23: =SUMIF(Calcs!$F$9:$AOS$9,'Output ProjYr'!$BH23,Calcs!$F$1400:$AOS$1400) -> 0 | BX23: =SUMIF(Calcs!$F$9:$AOS$9,'Output ProjYr'!$BH23,Calcs!$F$1437:$AOS$1437) -> 0 | BY23: =SUMIF(Calcs!$F$9:$AOS$9,'Output ProjYr'!$BH23,Calcs!$F$1474:$AOS$1474) -> 0 | BZ23: =SUMIF(Calcs!$F$9:$AOS$9,'Output ProjYr'!$BH23,Calcs!$F$1511:$AOS$1511) -> 0 | CA23: =SUMIF(Calcs!$F$9:$AOS$9,'Output ProjYr'!$BH23,Calcs!$F$1548:$AOS$1548) -> 0 | CB23: =SUMIF(Calcs!$F$9:$AOS$9,'Output ProjYr'!$BH23,Calcs!$F$1585:$AOS$1585) -> 0 | CC23: 4935.848091 | CE23: 16 | CF23: =SUMIF(Calcs!$F$9:$AOS$9,$CE23,Calcs!$F$521:$AOS$521) -> 883.3911198 | CG23: =SUMIF(Calcs!$F$9:$AOS$9,$CE23,Calcs!$F$595:$AOS$595) -> 3452.505496 | CH23: =SUMIF(Calcs!$F$9:$AOS$9,$CE23,Calcs!$F$669:$AOS$669) -> 0 | CI23: =SUMIF(Calcs!$F$9:$AOS$9,$CE23,Calcs!$F$743:$AOS$743) -> 0 | CJ23: =SUMIF(Calcs!$F$9:$AOS$9,$CE23,Calcs!$F$817:$AOS$817) -> 136.7073641 | CK23: =SUMIF(Calcs!$F$9:$AOS$9,$CE23,Calcs!$F$891:$AOS$891) -> 0 | CL23: =SUMIF(Calcs!$F$9:$AOS$9,$CE23,Calcs!$F$965:$AOS$965) -> 0 | CM23: =SUMIF(Calcs!$F$9:$AOS$9,$CE23,Calcs!$F$1039:$AOS$1039) -> 0 | CN23: =SUMIF(Calcs!$F$9:$AOS$9,$CE23,Calcs!$F$1113:$AOS$1113) -> 0 | CO23: =SUMIF(Calcs!$F$9:$AOS$9,$CE23,Calcs!$F$1187:$AOS$1187) -> 0 | CP23: =SUMIF(Calcs!$F$9:$AOS$9,$CE23,Calcs!$F$1253:$AOS$1253) -> 89.89984221 | CQ23: =SUMIF(Calcs!$F$9:$AOS$9,$CE23,Calcs!$F$1290:$AOS$1290) -> 29.69967308 | CR23: =SUMIF(Calcs!$F$9:$AOS$9,$CE23,Calcs!$F$1327:$AOS$1327) -> 0 | CS23: =SUMIF(Calcs!$F$9:$AOS$9,$CE23,Calcs!$F$1364:$AOS$1364) -> 0 | CT23: =SUMIF(Calcs!$F$9:$AOS$9,$CE23,Calcs!$F$1401:$AOS$1401) -> 0 | CU23: =SUMIF(Calcs!$F$9:$AOS$9,$CE23,Calcs!$F$1438:$AOS$1438) -> 0 | CV23: =SUMIF(Calcs!$F$9:$AOS$9,$CE23,Calcs!$F$1475:$AOS$1475) -> 0 | CW23: =SUMIF(Calcs!$F$9:$AOS$9,$CE23,Calcs!$F$1512:$AOS$1512) -> 0 | CX23: =SUMIF(Calcs!$F$9:$AOS$9,$CE23,Calcs!$F$1549:$AOS$1549) -> 0 | CY23: =SUMIF(Calcs!$F$9:$AOS$9,$CE23,Calcs!$F$1586:$AOS$1586) -> 0 | CZ23: 4592.203495 | DB23: 16 | DC23: =(SUMIF(Calcs!$F$9:$AOS$9,'Output ProjYr'!$DB23,Calcs!$F$567:$AOS$567))/1000000 -> 0 | DD23: =(SUMIF(Calcs!$F$9:$AOS$9,'Output ProjYr'!$DB23,Calcs!$F$641:$AOS$641))/1000000 -> 0 | DE23: =(SUMIF(Calcs!$F$9:$AOS$9,'Output ProjYr'!$DB23,Calcs!$F$715:$AOS$715))/1000000 -> 0 | DF23: =(SUMIF(Calcs!$F$9:$AOS$9,'Output ProjYr'!$DB23,Calcs!$F$789:$AOS$789))/1000000 -> 0 | DG23: =(SUMIF(Calcs!$F$9:$AOS$9,'Output ProjYr'!$DB23,Calcs!$F$863:$AOS$863))/1000000 -> 0 | DH23: =(SUMIF(Calcs!$F$9:$AOS$9,'Output ProjYr'!$DB23,Calcs!$F$937:$AOS$937))/1000000 -> 0 | DI23: =(SUMIF(Calcs!$F$9:$AOS$9,'Output ProjYr'!$DB23,Calcs!$F$1011:$AOS$1011))/1000000 -> 0 | DJ23: =(SUMIF(Calcs!$F$9:$AOS$9,'Output ProjYr'!$DB23,Calcs!$F$1085:$AOS$1085))/1000000 -> 0 | DK23: =(SUMIF(Calcs!$F$9:$AOS$9,'Output ProjYr'!$DB23,Calcs!$F$1159:$AOS$1159))/1000000 -> 0 | DL23: =(SUMIF(Calcs!$F$9:$AOS$9,'Output ProjYr'!$DB23,Calcs!$F$1233:$AOS$1233))/1000000 -> 0 | DO23: =(SUMIF(Calcs!$F$9:$AOS$9,'Output ProjYr'!$DB23,Calcs!$F$1344:$AOS$1344))/1000000 -> 0 | DV23: =(SUMIF(Calcs!$F$9:$AOS$9,'Output ProjYr'!$DB23,Calcs!$F$1603:$AOS$1603))/1000000 -> 0 | DW23: 0
A24: 17 | B24: =SUMIF(Calcs!$F$9:$AOS$9,'Output ProjYr'!$A24,Calcs!$F$528:$AOS$528) -> 0 | C24: =SUMIF(Calcs!$F$9:$AOS$9,'Output ProjYr'!$A24,Calcs!$F$602:$AOS$602) -> 0 | D24: =SUMIF(Calcs!$F$9:$AOS$9,'Output ProjYr'!$A24,Calcs!$F$676:$AOS$676) -> 0 | E24: =SUMIF(Calcs!$F$9:$AOS$9,'Output ProjYr'!$A24,Calcs!$F$750:$AOS$750) -> 0 | F24: =SUMIF(Calcs!$F$9:$AOS$9,'Output ProjYr'!$A24,Calcs!$F$824:$AOS$824) -> 13730442.79 | G24: =SUMIF(Calcs!$F$9:$AOS$9,'Output ProjYr'!$A24,Calcs!$F$898:$AOS$898) -> 0 | H24: =SUMIF(Calcs!$F$9:$AOS$9,'Output ProjYr'!$A24,Calcs!$F$972:$AOS$972) -> 0 | I24: =SUMIF(Calcs!$F$9:$AOS$9,'Output ProjYr'!$A24,Calcs!$F$1046:$AOS$1046) -> 0 | J24: =SUMIF(Calcs!$F$9:$AOS$9,'Output ProjYr'!$A24,Calcs!$F$1120:$AOS$1120) -> 0 | K24: =SUMIF(Calcs!$F$9:$AOS$9,'Output ProjYr'!$A24,Calcs!$F$1194:$AOS$1194) -> 0 | L24: =SUMIF(Calcs!$F$9:$AOS$9,'Output ProjYr'!$A24,Calcs!$F$525:$AOS$525) -> 0 | M24: =SUMIF(Calcs!$F$9:$AOS$9,'Output ProjYr'!$A24,Calcs!$F$599:$AOS$599) -> 0 | N24: =SUMIF(Calcs!$F$9:$AOS$9,'Output ProjYr'!$A24,Calcs!$F$673:$AOS$673) -> 0 | O24: =SUMIF(Calcs!$F$9:$AOS$9,'Output ProjYr'!$A24,Calcs!$F$747:$AOS$747) -> 0 | P24: =SUMIF(Calcs!$F$9:$AOS$9,'Output ProjYr'!$A24,Calcs!$F$821:$AOS$821) -> 0 | Q24: =SUMIF(Calcs!$F$9:$AOS$9,'Output ProjYr'!$A24,Calcs!$F$895:$AOS$895) -> 0 | R24: =SUMIF(Calcs!$F$9:$AOS$9,'Output ProjYr'!$A24,Calcs!$F$969:$AOS$969) -> 0 | S24: =SUMIF(Calcs!$F$9:$AOS$9,'Output ProjYr'!$A24,Calcs!$F$1043:$AOS$1043) -> 0 | T24: =SUMIF(Calcs!$F$9:$AOS$9,'Output ProjYr'!$A24,Calcs!$F$1117:$AOS$1117) -> 0 | U24: =SUMIF(Calcs!$F$9:$AOS$9,'Output ProjYr'!$A24,Calcs!$F$1191:$AOS$1191) -> 0 | V24: =SUMIF(Calcs!$F$9:$AOS$9,'Output ProjYr'!$A24,Calcs!$F$1257:$AOS$1257) -> 7764772.474 | W24: =SUMIF(Calcs!$F$9:$AOS$9,'Output ProjYr'!$A24,Calcs!$F$1294:$AOS$1294) -> 751563.1728 | X24: =SUMIF(Calcs!$F$9:$AOS$9,'Output ProjYr'!$A24,Calcs!$F$1331:$AOS$1331) -> 0 | Y24: =SUMIF(Calcs!$F$9:$AOS$9,'Output ProjYr'!$A24,Calcs!$F$1368:$AOS$1368) -> 0 | Z24: =SUMIF(Calcs!$F$9:$AOS$9,'Output ProjYr'!$A24,Calcs!$F$1405:$AOS$1405) -> 0 | AA24: =SUMIF(Calcs!$F$9:$AOS$9,'Output ProjYr'!$A24,Calcs!$F$1442:$AOS$1442) -> 0 | AB24: =SUMIF(Calcs!$F$9:$AOS$9,'Output ProjYr'!$A24,Calcs!$F$1479:$AOS$1479) -> 0 | AC24: =SUMIF(Calcs!$F$9:$AOS$9,'Output ProjYr'!$A24,Calcs!$F$1516:$AOS$1516) -> 0 | AD24: =SUMIF(Calcs!$F$9:$AOS$9,'Output ProjYr'!$A24,Calcs!$F$1553:$AOS$1553) -> 0 | AE24: =SUMIF(Calcs!$F$9:$AOS$9,'Output ProjYr'!$A24,Calcs!$F$1590:$AOS$1590) -> 0 | AF24: 22246778.43 | AH24: 17 | AI24: =SUMIF(Calcs!$F$9:$AOS$9,'Output ProjYr'!$AH24,Calcs!$F$1714:$AOS$1714) -> 0 | AJ24: =SUMIF(Calcs!$F$9:$AOS$9,'Output ProjYr'!$AH24,Calcs!$F$1715:$AOS$1715) -> 0 | AK24: =SUMIF(Calcs!$F$9:$AOS$9,'Output ProjYr'!$AH24,Calcs!$F$1716:$AOS$1716) -> 0 | AL24: =SUMIF(Calcs!$F$9:$AOS$9,'Output ProjYr'!$AH24,Calcs!$F$1717:$AOS$1717) -> 0 | AM24: =SUMIF(Calcs!$F$9:$AOS$9,'Output ProjYr'!$AH24,Calcs!$F$1718:$AOS$1718) -> 0 | AN24: =SUMIF(Calcs!$F$9:$AOS$9,'Output ProjYr'!$AH24,Calcs!$F$1719:$AOS$1719) -> 0 | AO24: =SUMIF(Calcs!$F$9:$AOS$9,'Output ProjYr'!$AH24,Calcs!$F$1720:$AOS$1720) -> 0 | AP24: =SUMIF(Calcs!$F$9:$AOS$9,'Output ProjYr'!$AH24,Calcs!$F$1721:$AOS$1721) -> 0 | AQ24: =SUMIF(Calcs!$F$9:$AOS$9,'Output ProjYr'!$AH24,Calcs!$F$1722:$AOS$1722) -> 0 | AR24: =SUMIF(Calcs!$F$9:$AOS$9,'Output ProjYr'!$AH24,Calcs!$F$1723:$AOS$1723) -> 0 | AS24: 0 | AU24: 17 | AV24: =SUMIF(Calcs!$F$9:$AOS$9,'Output ProjYr'!$AU24,Calcs!$F$514:$AOS$514)/12 -> 167.8082192 | AW24: =(SUMIF(Calcs!$F$9:$AOS$9,'Output ProjYr'!$AU24,Calcs!$F$588:$AOS$588))/12 -> 469.780678 | AX24: =(SUMIF(Calcs!$F$9:$AOS$9,'Output ProjYr'!$AU24,Calcs!$F$662:$AOS$662))/12 -> 27.31236792 | AY24: =(SUMIF(Calcs!$F$9:$AOS$9,'Output ProjYr'!$AU24,Calcs!$F$736:$AOS$736))/12 -> 67.66917341 | AZ24: =(SUMIF(Calcs!$F$9:$AOS$9,'Output ProjYr'!$AU24,Calcs!$F$810:$AOS$810))/12 -> 33.42956146 | BA24: =(SUMIF(Calcs!$F$9:$AOS$9,'Output ProjYr'!$AU24,Calcs!$F$884:$AOS$884))/12 -> 0 | BB24: =(SUMIF(Calcs!$F$9:$AOS$9,'Output ProjYr'!$AU24,Calcs!$F$958:$AOS$958))/12 -> 0 | BC24: =(SUMIF(Calcs!$F$9:$AOS$9,'Output ProjYr'!$AU24,Calcs!$F$1032:$AOS$1032))/12 -> 0 | BD24: =(SUMIF(Calcs!$F$9:$AOS$9,'Output ProjYr'!$AU24,Calcs!$F$1106:$AOS$1106))/12 -> 0 | BE24: =(SUMIF(Calcs!$F$9:$AOS$9,'Output ProjYr'!$AU24,Calcs!$F$1180:$AOS$1180))/12 -> 0 | BF24: 766 | BH24: 17 | BI24: =SUMIF(Calcs!$F$9:$AOS$9,'Output ProjYr'!$BH24,Calcs!$F$520:$AOS$520) -> 980 | BJ24: =SUMIF(Calcs!$F$9:$AOS$9,'Output ProjYr'!$BH24,Calcs!$F$594:$AOS$594) -> 3733.820463 | BK24: =SUMIF(Calcs!$F$9:$AOS$9,'Output ProjYr'!$BH24,Calcs!$F$668:$AOS$668) -> 0 | BL24: =SUMIF(Calcs!$F$9:$AOS$9,'Output ProjYr'!$BH24,Calcs!$F$742:$AOS$742) -> 0 | BM24: =SUMIF(Calcs!$F$9:$AOS$9,'Output ProjYr'!$BH24,Calcs!$F$816:$AOS$816) -> 135.4385717 | BN24: =SUMIF(Calcs!$F$9:$AOS$9,'Output ProjYr'!$BH24,Calcs!$F$890:$AOS$890) -> 0 | BO24: =SUMIF(Calcs!$F$9:$AOS$9,'Output ProjYr'!$BH24,Calcs!$F$964:$AOS$964) -> 0 | BP24: =SUMIF(Calcs!$F$9:$AOS$9,'Output ProjYr'!$BH24,Calcs!$F$1038:$AOS$1038) -> 0 | BQ24: =SUMIF(Calcs!$F$9:$AOS$9,'Output ProjYr'!$BH24,Calcs!$F$1112:$AOS$1112) -> 0 | BR24: =SUMIF(Calcs!$F$9:$AOS$9,'Output ProjYr'!$BH24,Calcs!$F$1186:$AOS$1186) -> 0 | BS24: =SUMIF(Calcs!$F$9:$AOS$9,'Output ProjYr'!$BH24,Calcs!$F$1252:$AOS$1252) -> 77.70795563 | BT24: =SUMIF(Calcs!$F$9:$AOS$9,'Output ProjYr'!$BH24,Calcs!$F$1289:$AOS$1289) -> 8.881100748 | BU24: =SUMIF(Calcs!$F$9:$AOS$9,'Output ProjYr'!$BH24,Calcs!$F$1326:$AOS$1326) -> 0 | BV24: =SUMIF(Calcs!$F$9:$AOS$9,'Output ProjYr'!$BH24,Calcs!$F$1363:$AOS$1363) -> 0 | BW24: =SUMIF(Calcs!$F$9:$AOS$9,'Output ProjYr'!$BH24,Calcs!$F$1400:$AOS$1400) -> 0 | BX24: =SUMIF(Calcs!$F$9:$AOS$9,'Output ProjYr'!$BH24,Calcs!$F$1437:$AOS$1437) -> 0 | BY24: =SUMIF(Calcs!$F$9:$AOS$9,'Output ProjYr'!$BH24,Calcs!$F$1474:$AOS$1474) -> 0 | BZ24: =SUMIF(Calcs!$F$9:$AOS$9,'Output ProjYr'!$BH24,Calcs!$F$1511:$AOS$1511) -> 0 | CA24: =SUMIF(Calcs!$F$9:$AOS$9,'Output ProjYr'!$BH24,Calcs!$F$1548:$AOS$1548) -> 0 | CB24: =SUMIF(Calcs!$F$9:$AOS$9,'Output ProjYr'!$BH24,Calcs!$F$1585:$AOS$1585) -> 0 | CC24: 4935.848091 | CE24: 17 | CF24: =SUMIF(Calcs!$F$9:$AOS$9,$CE24,Calcs!$F$521:$AOS$521) -> 883.3911198 | CG24: =SUMIF(Calcs!$F$9:$AOS$9,$CE24,Calcs!$F$595:$AOS$595) -> 3511.098072 | CH24: =SUMIF(Calcs!$F$9:$AOS$9,$CE24,Calcs!$F$669:$AOS$669) -> 0 | CI24: =SUMIF(Calcs!$F$9:$AOS$9,$CE24,Calcs!$F$743:$AOS$743) -> 0 | CJ24: =SUMIF(Calcs!$F$9:$AOS$9,$CE24,Calcs!$F$817:$AOS$817) -> 122.086971 | CK24: =SUMIF(Calcs!$F$9:$AOS$9,$CE24,Calcs!$F$891:$AOS$891) -> 0 | CL24: =SUMIF(Calcs!$F$9:$AOS$9,$CE24,Calcs!$F$965:$AOS$965) -> 0 | CM24: =SUMIF(Calcs!$F$9:$AOS$9,$CE24,Calcs!$F$1039:$AOS$1039) -> 0 | CN24: =SUMIF(Calcs!$F$9:$AOS$9,$CE24,Calcs!$F$1113:$AOS$1113) -> 0 | CO24: =SUMIF(Calcs!$F$9:$AOS$9,$CE24,Calcs!$F$1187:$AOS$1187) -> 0 | CP24: =SUMIF(Calcs!$F$9:$AOS$9,$CE24,Calcs!$F$1253:$AOS$1253) -> 70.04746729 | CQ24: =SUMIF(Calcs!$F$9:$AOS$9,$CE24,Calcs!$F$1290:$AOS$1290) -> 8.005597484 | CR24: =SUMIF(Calcs!$F$9:$AOS$9,$CE24,Calcs!$F$1327:$AOS$1327) -> 0 | CS24: =SUMIF(Calcs!$F$9:$AOS$9,$CE24,Calcs!$F$1364:$AOS$1364) -> 0 | CT24: =SUMIF(Calcs!$F$9:$AOS$9,$CE24,Calcs!$F$1401:$AOS$1401) -> 0 | CU24: =SUMIF(Calcs!$F$9:$AOS$9,$CE24,Calcs!$F$1438:$AOS$1438) -> 0 | CV24: =SUMIF(Calcs!$F$9:$AOS$9,$CE24,Calcs!$F$1475:$AOS$1475) -> 0 | CW24: =SUMIF(Calcs!$F$9:$AOS$9,$CE24,Calcs!$F$1512:$AOS$1512) -> 0 | CX24: =SUMIF(Calcs!$F$9:$AOS$9,$CE24,Calcs!$F$1549:$AOS$1549) -> 0 | CY24: =SUMIF(Calcs!$F$9:$AOS$9,$CE24,Calcs!$F$1586:$AOS$1586) -> 0 | CZ24: 4594.629228 | DB24: 17 | DC24: =(SUMIF(Calcs!$F$9:$AOS$9,'Output ProjYr'!$DB24,Calcs!$F$567:$AOS$567))/1000000 -> 0 | DD24: =(SUMIF(Calcs!$F$9:$AOS$9,'Output ProjYr'!$DB24,Calcs!$F$641:$AOS$641))/1000000 -> 0 | DE24: =(SUMIF(Calcs!$F$9:$AOS$9,'Output ProjYr'!$DB24,Calcs!$F$715:$AOS$715))/1000000 -> 0 | DF24: =(SUMIF(Calcs!$F$9:$AOS$9,'Output ProjYr'!$DB24,Calcs!$F$789:$AOS$789))/1000000 -> 0 | DG24: =(SUMIF(Calcs!$F$9:$AOS$9,'Output ProjYr'!$DB24,Calcs!$F$863:$AOS$863))/1000000 -> 0 | DH24: =(SUMIF(Calcs!$F$9:$AOS$9,'Output ProjYr'!$DB24,Calcs!$F$937:$AOS$937))/1000000 -> 0 | DI24: =(SUMIF(Calcs!$F$9:$AOS$9,'Output ProjYr'!$DB24,Calcs!$F$1011:$AOS$1011))/1000000 -> 0 | DJ24: =(SUMIF(Calcs!$F$9:$AOS$9,'Output ProjYr'!$DB24,Calcs!$F$1085:$AOS$1085))/1000000 -> 0 | DK24: =(SUMIF(Calcs!$F$9:$AOS$9,'Output ProjYr'!$DB24,Calcs!$F$1159:$AOS$1159))/1000000 -> 0 | DL24: =(SUMIF(Calcs!$F$9:$AOS$9,'Output ProjYr'!$DB24,Calcs!$F$1233:$AOS$1233))/1000000 -> 0 | DO24: =(SUMIF(Calcs!$F$9:$AOS$9,'Output ProjYr'!$DB24,Calcs!$F$1344:$AOS$1344))/1000000 -> 0 | DV24: =(SUMIF(Calcs!$F$9:$AOS$9,'Output ProjYr'!$DB24,Calcs!$F$1603:$AOS$1603))/1000000 -> 0 | DW24: 0
A25: 18 | B25: =SUMIF(Calcs!$F$9:$AOS$9,'Output ProjYr'!$A25,Calcs!$F$528:$AOS$528) -> 0 | C25: =SUMIF(Calcs!$F$9:$AOS$9,'Output ProjYr'!$A25,Calcs!$F$602:$AOS$602) -> 0 | D25: =SUMIF(Calcs!$F$9:$AOS$9,'Output ProjYr'!$A25,Calcs!$F$676:$AOS$676) -> 0 | E25: =SUMIF(Calcs!$F$9:$AOS$9,'Output ProjYr'!$A25,Calcs!$F$750:$AOS$750) -> 0 | F25: =SUMIF(Calcs!$F$9:$AOS$9,'Output ProjYr'!$A25,Calcs!$F$824:$AOS$824) -> 11685130.91 | G25: =SUMIF(Calcs!$F$9:$AOS$9,'Output ProjYr'!$A25,Calcs!$F$898:$AOS$898) -> 0 | H25: =SUMIF(Calcs!$F$9:$AOS$9,'Output ProjYr'!$A25,Calcs!$F$972:$AOS$972) -> 0 | I25: =SUMIF(Calcs!$F$9:$AOS$9,'Output ProjYr'!$A25,Calcs!$F$1046:$AOS$1046) -> 0 | J25: =SUMIF(Calcs!$F$9:$AOS$9,'Output ProjYr'!$A25,Calcs!$F$1120:$AOS$1120) -> 0 | K25: =SUMIF(Calcs!$F$9:$AOS$9,'Output ProjYr'!$A25,Calcs!$F$1194:$AOS$1194) -> 0 | L25: =SUMIF(Calcs!$F$9:$AOS$9,'Output ProjYr'!$A25,Calcs!$F$525:$AOS$525) -> 0 | M25: =SUMIF(Calcs!$F$9:$AOS$9,'Output ProjYr'!$A25,Calcs!$F$599:$AOS$599) -> 0 | N25: =SUMIF(Calcs!$F$9:$AOS$9,'Output ProjYr'!$A25,Calcs!$F$673:$AOS$673) -> 0 | O25: =SUMIF(Calcs!$F$9:$AOS$9,'Output ProjYr'!$A25,Calcs!$F$747:$AOS$747) -> 0 | P25: =SUMIF(Calcs!$F$9:$AOS$9,'Output ProjYr'!$A25,Calcs!$F$821:$AOS$821) -> 0 | Q25: =SUMIF(Calcs!$F$9:$AOS$9,'Output ProjYr'!$A25,Calcs!$F$895:$AOS$895) -> 0 | R25: =SUMIF(Calcs!$F$9:$AOS$9,'Output ProjYr'!$A25,Calcs!$F$969:$AOS$969) -> 0 | S25: =SUMIF(Calcs!$F$9:$AOS$9,'Output ProjYr'!$A25,Calcs!$F$1043:$AOS$1043) -> 0 | T25: =SUMIF(Calcs!$F$9:$AOS$9,'Output ProjYr'!$A25,Calcs!$F$1117:$AOS$1117) -> 0 | U25: =SUMIF(Calcs!$F$9:$AOS$9,'Output ProjYr'!$A25,Calcs!$F$1191:$AOS$1191) -> 0 | V25: =SUMIF(Calcs!$F$9:$AOS$9,'Output ProjYr'!$A25,Calcs!$F$1257:$AOS$1257) -> 4541016.126 | W25: =SUMIF(Calcs!$F$9:$AOS$9,'Output ProjYr'!$A25,Calcs!$F$1294:$AOS$1294) -> 433240.2568 | X25: =SUMIF(Calcs!$F$9:$AOS$9,'Output ProjYr'!$A25,Calcs!$F$1331:$AOS$1331) -> 0 | Y25: =SUMIF(Calcs!$F$9:$AOS$9,'Output ProjYr'!$A25,Calcs!$F$1368:$AOS$1368) -> 0 | Z25: =SUMIF(Calcs!$F$9:$AOS$9,'Output ProjYr'!$A25,Calcs!$F$1405:$AOS$1405) -> 0 | AA25: =SUMIF(Calcs!$F$9:$AOS$9,'Output ProjYr'!$A25,Calcs!$F$1442:$AOS$1442) -> 0 | AB25: =SUMIF(Calcs!$F$9:$AOS$9,'Output ProjYr'!$A25,Calcs!$F$1479:$AOS$1479) -> 0 | AC25: =SUMIF(Calcs!$F$9:$AOS$9,'Output ProjYr'!$A25,Calcs!$F$1516:$AOS$1516) -> 0 | AD25: =SUMIF(Calcs!$F$9:$AOS$9,'Output ProjYr'!$A25,Calcs!$F$1553:$AOS$1553) -> 0 | AE25: =SUMIF(Calcs!$F$9:$AOS$9,'Output ProjYr'!$A25,Calcs!$F$1590:$AOS$1590) -> 0 | AF25: 16659387.29 | AH25: 18 | AI25: =SUMIF(Calcs!$F$9:$AOS$9,'Output ProjYr'!$AH25,Calcs!$F$1714:$AOS$1714) -> 0 | AJ25: =SUMIF(Calcs!$F$9:$AOS$9,'Output ProjYr'!$AH25,Calcs!$F$1715:$AOS$1715) -> 0 | AK25: =SUMIF(Calcs!$F$9:$AOS$9,'Output ProjYr'!$AH25,Calcs!$F$1716:$AOS$1716) -> 0 | AL25: =SUMIF(Calcs!$F$9:$AOS$9,'Output ProjYr'!$AH25,Calcs!$F$1717:$AOS$1717) -> 0 | AM25: =SUMIF(Calcs!$F$9:$AOS$9,'Output ProjYr'!$AH25,Calcs!$F$1718:$AOS$1718) -> 0 | AN25: =SUMIF(Calcs!$F$9:$AOS$9,'Output ProjYr'!$AH25,Calcs!$F$1719:$AOS$1719) -> 0 | AO25: =SUMIF(Calcs!$F$9:$AOS$9,'Output ProjYr'!$AH25,Calcs!$F$1720:$AOS$1720) -> 0 | AP25: =SUMIF(Calcs!$F$9:$AOS$9,'Output ProjYr'!$AH25,Calcs!$F$1721:$AOS$1721) -> 0 | AQ25: =SUMIF(Calcs!$F$9:$AOS$9,'Output ProjYr'!$AH25,Calcs!$F$1722:$AOS$1722) -> 0 | AR25: =SUMIF(Calcs!$F$9:$AOS$9,'Output ProjYr'!$AH25,Calcs!$F$1723:$AOS$1723) -> 0 | AS25: 0 | AU25: 18 | AV25: =SUMIF(Calcs!$F$9:$AOS$9,'Output ProjYr'!$AU25,Calcs!$F$514:$AOS$514)/12 -> 167.8082192 | AW25: =(SUMIF(Calcs!$F$9:$AOS$9,'Output ProjYr'!$AU25,Calcs!$F$588:$AOS$588))/12 -> 474.6364866 | AX25: =(SUMIF(Calcs!$F$9:$AOS$9,'Output ProjYr'!$AU25,Calcs!$F$662:$AOS$662))/12 -> 26.65712175 | AY25: =(SUMIF(Calcs!$F$9:$AOS$9,'Output ProjYr'!$AU25,Calcs!$F$736:$AOS$736))/12 -> 63.77433025 | AZ25: =(SUMIF(Calcs!$F$9:$AOS$9,'Output ProjYr'!$AU25,Calcs!$F$810:$AOS$810))/12 -> 33.12384223 | BA25: =(SUMIF(Calcs!$F$9:$AOS$9,'Output ProjYr'!$AU25,Calcs!$F$884:$AOS$884))/12 -> 0 | BB25: =(SUMIF(Calcs!$F$9:$AOS$9,'Output ProjYr'!$AU25,Calcs!$F$958:$AOS$958))/12 -> 0 | BC25: =(SUMIF(Calcs!$F$9:$AOS$9,'Output ProjYr'!$AU25,Calcs!$F$1032:$AOS$1032))/12 -> 0 | BD25: =(SUMIF(Calcs!$F$9:$AOS$9,'Output ProjYr'!$AU25,Calcs!$F$1106:$AOS$1106))/12 -> 0 | BE25: =(SUMIF(Calcs!$F$9:$AOS$9,'Output ProjYr'!$AU25,Calcs!$F$1180:$AOS$1180))/12 -> 0 | BF25: 766 | BH25: 18 | BI25: =SUMIF(Calcs!$F$9:$AOS$9,'Output ProjYr'!$BH25,Calcs!$F$520:$AOS$520) -> 980 | BJ25: =SUMIF(Calcs!$F$9:$AOS$9,'Output ProjYr'!$BH25,Calcs!$F$594:$AOS$594) -> 3792.498687 | BK25: =SUMIF(Calcs!$F$9:$AOS$9,'Output ProjYr'!$BH25,Calcs!$F$668:$AOS$668) -> 0 | BL25: =SUMIF(Calcs!$F$9:$AOS$9,'Output ProjYr'!$BH25,Calcs!$F$742:$AOS$742) -> 0 | BM25: =SUMIF(Calcs!$F$9:$AOS$9,'Output ProjYr'!$BH25,Calcs!$F$816:$AOS$816) -> 113.0337504 | BN25: =SUMIF(Calcs!$F$9:$AOS$9,'Output ProjYr'!$BH25,Calcs!$F$890:$AOS$890) -> 0 | BO25: =SUMIF(Calcs!$F$9:$AOS$9,'Output ProjYr'!$BH25,Calcs!$F$964:$AOS$964) -> 0 | BP25: =SUMIF(Calcs!$F$9:$AOS$9,'Output ProjYr'!$BH25,Calcs!$F$1038:$AOS$1038) -> 0 | BQ25: =SUMIF(Calcs!$F$9:$AOS$9,'Output ProjYr'!$BH25,Calcs!$F$1112:$AOS$1112) -> 0 | BR25: =SUMIF(Calcs!$F$9:$AOS$9,'Output ProjYr'!$BH25,Calcs!$F$1186:$AOS$1186) -> 0 | BS25: =SUMIF(Calcs!$F$9:$AOS$9,'Output ProjYr'!$BH25,Calcs!$F$1252:$AOS$1252) -> 45.29650676 | BT25: =SUMIF(Calcs!$F$9:$AOS$9,'Output ProjYr'!$BH25,Calcs!$F$1289:$AOS$1289) -> 5.019147266 | BU25: =SUMIF(Calcs!$F$9:$AOS$9,'Output ProjYr'!$BH25,Calcs!$F$1326:$AOS$1326) -> 0 | BV25: =SUMIF(Calcs!$F$9:$AOS$9,'Output ProjYr'!$BH25,Calcs!$F$1363:$AOS$1363) -> 0 | BW25: =SUMIF(Calcs!$F$9:$AOS$9,'Output ProjYr'!$BH25,Calcs!$F$1400:$AOS$1400) -> 0 | BX25: =SUMIF(Calcs!$F$9:$AOS$9,'Output ProjYr'!$BH25,Calcs!$F$1437:$AOS$1437) -> 0 | BY25: =SUMIF(Calcs!$F$9:$AOS$9,'Output ProjYr'!$BH25,Calcs!$F$1474:$AOS$1474) -> 0 | BZ25: =SUMIF(Calcs!$F$9:$AOS$9,'Output ProjYr'!$BH25,Calcs!$F$1511:$AOS$1511) -> 0 | CA25: =SUMIF(Calcs!$F$9:$AOS$9,'Output ProjYr'!$BH25,Calcs!$F$1548:$AOS$1548) -> 0 | CB25: =SUMIF(Calcs!$F$9:$AOS$9,'Output ProjYr'!$BH25,Calcs!$F$1585:$AOS$1585) -> 0 | CC25: 4935.848091 | CE25: 18 | CF25: =SUMIF(Calcs!$F$9:$AOS$9,$CE25,Calcs!$F$521:$AOS$521) -> 883.3911198 | CG25: =SUMIF(Calcs!$F$9:$AOS$9,$CE25,Calcs!$F$595:$AOS$595) -> 3566.27614 | CH25: =SUMIF(Calcs!$F$9:$AOS$9,$CE25,Calcs!$F$669:$AOS$669) -> 0 | CI25: =SUMIF(Calcs!$F$9:$AOS$9,$CE25,Calcs!$F$743:$AOS$743) -> 0 | CJ25: =SUMIF(Calcs!$F$9:$AOS$9,$CE25,Calcs!$F$817:$AOS$817) -> 101.8908279 | CK25: =SUMIF(Calcs!$F$9:$AOS$9,$CE25,Calcs!$F$891:$AOS$891) -> 0 | CL25: =SUMIF(Calcs!$F$9:$AOS$9,$CE25,Calcs!$F$965:$AOS$965) -> 0 | CM25: =SUMIF(Calcs!$F$9:$AOS$9,$CE25,Calcs!$F$1039:$AOS$1039) -> 0 | CN25: =SUMIF(Calcs!$F$9:$AOS$9,$CE25,Calcs!$F$1113:$AOS$1113) -> 0 | CO25: =SUMIF(Calcs!$F$9:$AOS$9,$CE25,Calcs!$F$1187:$AOS$1187) -> 0 | CP25: =SUMIF(Calcs!$F$9:$AOS$9,$CE25,Calcs!$F$1253:$AOS$1253) -> 40.83115493 | CQ25: =SUMIF(Calcs!$F$9:$AOS$9,$CE25,Calcs!$F$1290:$AOS$1290) -> 4.524357269 | CR25: =SUMIF(Calcs!$F$9:$AOS$9,$CE25,Calcs!$F$1327:$AOS$1327) -> 0 | CS25: =SUMIF(Calcs!$F$9:$AOS$9,$CE25,Calcs!$F$1364:$AOS$1364) -> 0 | CT25: =SUMIF(Calcs!$F$9:$AOS$9,$CE25,Calcs!$F$1401:$AOS$1401) -> 0 | CU25: =SUMIF(Calcs!$F$9:$AOS$9,$CE25,Calcs!$F$1438:$AOS$1438) -> 0 | CV25: =SUMIF(Calcs!$F$9:$AOS$9,$CE25,Calcs!$F$1475:$AOS$1475) -> 0 | CW25: =SUMIF(Calcs!$F$9:$AOS$9,$CE25,Calcs!$F$1512:$AOS$1512) -> 0 | CX25: =SUMIF(Calcs!$F$9:$AOS$9,$CE25,Calcs!$F$1549:$AOS$1549) -> 0 | CY25: =SUMIF(Calcs!$F$9:$AOS$9,$CE25,Calcs!$F$1586:$AOS$1586) -> 0 | CZ25: 4596.9136 | DB25: 18 | DC25: =(SUMIF(Calcs!$F$9:$AOS$9,'Output ProjYr'!$DB25,Calcs!$F$567:$AOS$567))/1000000 -> 0 | DD25: =(SUMIF(Calcs!$F$9:$AOS$9,'Output ProjYr'!$DB25,Calcs!$F$641:$AOS$641))/1000000 -> 0 | DE25: =(SUMIF(Calcs!$F$9:$AOS$9,'Output ProjYr'!$DB25,Calcs!$F$715:$AOS$715))/1000000 -> 0 | DF25: =(SUMIF(Calcs!$F$9:$AOS$9,'Output ProjYr'!$DB25,Calcs!$F$789:$AOS$789))/1000000 -> 0 | DG25: =(SUMIF(Calcs!$F$9:$AOS$9,'Output ProjYr'!$DB25,Calcs!$F$863:$AOS$863))/1000000 -> 0 | DH25: =(SUMIF(Calcs!$F$9:$AOS$9,'Output ProjYr'!$DB25,Calcs!$F$937:$AOS$937))/1000000 -> 0 | DI25: =(SUMIF(Calcs!$F$9:$AOS$9,'Output ProjYr'!$DB25,Calcs!$F$1011:$AOS$1011))/1000000 -> 0 | DJ25: =(SUMIF(Calcs!$F$9:$AOS$9,'Output ProjYr'!$DB25,Calcs!$F$1085:$AOS$1085))/1000000 -> 0 | DK25: =(SUMIF(Calcs!$F$9:$AOS$9,'Output ProjYr'!$DB25,Calcs!$F$1159:$AOS$1159))/1000000 -> 0 | DL25: =(SUMIF(Calcs!$F$9:$AOS$9,'Output ProjYr'!$DB25,Calcs!$F$1233:$AOS$1233))/1000000 -> 0 | DO25: =(SUMIF(Calcs!$F$9:$AOS$9,'Output ProjYr'!$DB25,Calcs!$F$1344:$AOS$1344))/1000000 -> 0 | DV25: =(SUMIF(Calcs!$F$9:$AOS$9,'Output ProjYr'!$DB25,Calcs!$F$1603:$AOS$1603))/1000000 -> 0 | DW25: 0
A26: 19 | B26: =SUMIF(Calcs!$F$9:$AOS$9,'Output ProjYr'!$A26,Calcs!$F$528:$AOS$528) -> 0 | C26: =SUMIF(Calcs!$F$9:$AOS$9,'Output ProjYr'!$A26,Calcs!$F$602:$AOS$602) -> 0 | D26: =SUMIF(Calcs!$F$9:$AOS$9,'Output ProjYr'!$A26,Calcs!$F$676:$AOS$676) -> 0 | E26: =SUMIF(Calcs!$F$9:$AOS$9,'Output ProjYr'!$A26,Calcs!$F$750:$AOS$750) -> 0 | F26: =SUMIF(Calcs!$F$9:$AOS$9,'Output ProjYr'!$A26,Calcs!$F$824:$AOS$824) -> 8528896.477 | G26: =SUMIF(Calcs!$F$9:$AOS$9,'Output ProjYr'!$A26,Calcs!$F$898:$AOS$898) -> 0 | H26: =SUMIF(Calcs!$F$9:$AOS$9,'Output ProjYr'!$A26,Calcs!$F$972:$AOS$972) -> 0 | I26: =SUMIF(Calcs!$F$9:$AOS$9,'Output ProjYr'!$A26,Calcs!$F$1046:$AOS$1046) -> 0 | J26: =SUMIF(Calcs!$F$9:$AOS$9,'Output ProjYr'!$A26,Calcs!$F$1120:$AOS$1120) -> 0 | K26: =SUMIF(Calcs!$F$9:$AOS$9,'Output ProjYr'!$A26,Calcs!$F$1194:$AOS$1194) -> 0 | L26: =SUMIF(Calcs!$F$9:$AOS$9,'Output ProjYr'!$A26,Calcs!$F$525:$AOS$525) -> 0 | M26: =SUMIF(Calcs!$F$9:$AOS$9,'Output ProjYr'!$A26,Calcs!$F$599:$AOS$599) -> 0 | N26: =SUMIF(Calcs!$F$9:$AOS$9,'Output ProjYr'!$A26,Calcs!$F$673:$AOS$673) -> 0 | O26: =SUMIF(Calcs!$F$9:$AOS$9,'Output ProjYr'!$A26,Calcs!$F$747:$AOS$747) -> 0 | P26: =SUMIF(Calcs!$F$9:$AOS$9,'Output ProjYr'!$A26,Calcs!$F$821:$AOS$821) -> 0 | Q26: =SUMIF(Calcs!$F$9:$AOS$9,'Output ProjYr'!$A26,Calcs!$F$895:$AOS$895) -> 0 | R26: =SUMIF(Calcs!$F$9:$AOS$9,'Output ProjYr'!$A26,Calcs!$F$969:$AOS$969) -> 0 | S26: =SUMIF(Calcs!$F$9:$AOS$9,'Output ProjYr'!$A26,Calcs!$F$1043:$AOS$1043) -> 0 | T26: =SUMIF(Calcs!$F$9:$AOS$9,'Output ProjYr'!$A26,Calcs!$F$1117:$AOS$1117) -> 0 | U26: =SUMIF(Calcs!$F$9:$AOS$9,'Output ProjYr'!$A26,Calcs!$F$1191:$AOS$1191) -> 0 | V26: =SUMIF(Calcs!$F$9:$AOS$9,'Output ProjYr'!$A26,Calcs!$F$1257:$AOS$1257) -> 2082074.89 | W26: =SUMIF(Calcs!$F$9:$AOS$9,'Output ProjYr'!$A26,Calcs!$F$1294:$AOS$1294) -> 972266.7181 | X26: =SUMIF(Calcs!$F$9:$AOS$9,'Output ProjYr'!$A26,Calcs!$F$1331:$AOS$1331) -> 0 | Y26: =SUMIF(Calcs!$F$9:$AOS$9,'Output ProjYr'!$A26,Calcs!$F$1368:$AOS$1368) -> 0 | Z26: =SUMIF(Calcs!$F$9:$AOS$9,'Output ProjYr'!$A26,Calcs!$F$1405:$AOS$1405) -> 0 | AA26: =SUMIF(Calcs!$F$9:$AOS$9,'Output ProjYr'!$A26,Calcs!$F$1442:$AOS$1442) -> 0 | AB26: =SUMIF(Calcs!$F$9:$AOS$9,'Output ProjYr'!$A26,Calcs!$F$1479:$AOS$1479) -> 0 | AC26: =SUMIF(Calcs!$F$9:$AOS$9,'Output ProjYr'!$A26,Calcs!$F$1516:$AOS$1516) -> 0 | AD26: =SUMIF(Calcs!$F$9:$AOS$9,'Output ProjYr'!$A26,Calcs!$F$1553:$AOS$1553) -> 0 | AE26: =SUMIF(Calcs!$F$9:$AOS$9,'Output ProjYr'!$A26,Calcs!$F$1590:$AOS$1590) -> 0 | AF26: 11583238.08 | AH26: 19 | AI26: =SUMIF(Calcs!$F$9:$AOS$9,'Output ProjYr'!$AH26,Calcs!$F$1714:$AOS$1714) -> 0 | AJ26: =SUMIF(Calcs!$F$9:$AOS$9,'Output ProjYr'!$AH26,Calcs!$F$1715:$AOS$1715) -> 0 | AK26: =SUMIF(Calcs!$F$9:$AOS$9,'Output ProjYr'!$AH26,Calcs!$F$1716:$AOS$1716) -> 0 | AL26: =SUMIF(Calcs!$F$9:$AOS$9,'Output ProjYr'!$AH26,Calcs!$F$1717:$AOS$1717) -> 0 | AM26: =SUMIF(Calcs!$F$9:$AOS$9,'Output ProjYr'!$AH26,Calcs!$F$1718:$AOS$1718) -> 0 | AN26: =SUMIF(Calcs!$F$9:$AOS$9,'Output ProjYr'!$AH26,Calcs!$F$1719:$AOS$1719) -> 0 | AO26: =SUMIF(Calcs!$F$9:$AOS$9,'Output ProjYr'!$AH26,Calcs!$F$1720:$AOS$1720) -> 0 | AP26: =SUMIF(Calcs!$F$9:$AOS$9,'Output ProjYr'!$AH26,Calcs!$F$1721:$AOS$1721) -> 0 | AQ26: =SUMIF(Calcs!$F$9:$AOS$9,'Output ProjYr'!$AH26,Calcs!$F$1722:$AOS$1722) -> 0 | AR26: =SUMIF(Calcs!$F$9:$AOS$9,'Output ProjYr'!$AH26,Calcs!$F$1723:$AOS$1723) -> 0 | AS26: 0 | AU26: 19 | AV26: =SUMIF(Calcs!$F$9:$AOS$9,'Output ProjYr'!$AU26,Calcs!$F$514:$AOS$514)/12 -> 167.8082192 | AW26: =(SUMIF(Calcs!$F$9:$AOS$9,'Output ProjYr'!$AU26,Calcs!$F$588:$AOS$588))/12 -> 479.5124732 | AX26: =(SUMIF(Calcs!$F$9:$AOS$9,'Output ProjYr'!$AU26,Calcs!$F$662:$AOS$662))/12 -> 26.13842683 | AY26: =(SUMIF(Calcs!$F$9:$AOS$9,'Output ProjYr'!$AU26,Calcs!$F$736:$AOS$736))/12 -> 63.01737537 | AZ26: =(SUMIF(Calcs!$F$9:$AOS$9,'Output ProjYr'!$AU26,Calcs!$F$810:$AOS$810))/12 -> 29.52350545 | BA26: =(SUMIF(Calcs!$F$9:$AOS$9,'Output ProjYr'!$AU26,Calcs!$F$884:$AOS$884))/12 -> 0 | BB26: =(SUMIF(Calcs!$F$9:$AOS$9,'Output ProjYr'!$AU26,Calcs!$F$958:$AOS$958))/12 -> 0 | BC26: =(SUMIF(Calcs!$F$9:$AOS$9,'Output ProjYr'!$AU26,Calcs!$F$1032:$AOS$1032))/12 -> 0 | BD26: =(SUMIF(Calcs!$F$9:$AOS$9,'Output ProjYr'!$AU26,Calcs!$F$1106:$AOS$1106))/12 -> 0 | BE26: =(SUMIF(Calcs!$F$9:$AOS$9,'Output ProjYr'!$AU26,Calcs!$F$1180:$AOS$1180))/12 -> 0 | BF26: 766 | BH26: 19 | BI26: =SUMIF(Calcs!$F$9:$AOS$9,'Output ProjYr'!$BH26,Calcs!$F$520:$AOS$520) -> 980 | BJ26: =SUMIF(Calcs!$F$9:$AOS$9,'Output ProjYr'!$BH26,Calcs!$F$594:$AOS$594) -> 3842.086395 | BK26: =SUMIF(Calcs!$F$9:$AOS$9,'Output ProjYr'!$BH26,Calcs!$F$668:$AOS$668) -> 0 | BL26: =SUMIF(Calcs!$F$9:$AOS$9,'Output ProjYr'!$BH26,Calcs!$F$742:$AOS$742) -> 0 | BM26: =SUMIF(Calcs!$F$9:$AOS$9,'Output ProjYr'!$BH26,Calcs!$F$816:$AOS$816) -> 82.16038919 | BN26: =SUMIF(Calcs!$F$9:$AOS$9,'Output ProjYr'!$BH26,Calcs!$F$890:$AOS$890) -> 0 | BO26: =SUMIF(Calcs!$F$9:$AOS$9,'Output ProjYr'!$BH26,Calcs!$F$964:$AOS$964) -> 0 | BP26: =SUMIF(Calcs!$F$9:$AOS$9,'Output ProjYr'!$BH26,Calcs!$F$1038:$AOS$1038) -> 0 | BQ26: =SUMIF(Calcs!$F$9:$AOS$9,'Output ProjYr'!$BH26,Calcs!$F$1112:$AOS$1112) -> 0 | BR26: =SUMIF(Calcs!$F$9:$AOS$9,'Output ProjYr'!$BH26,Calcs!$F$1186:$AOS$1186) -> 0 | BS26: =SUMIF(Calcs!$F$9:$AOS$9,'Output ProjYr'!$BH26,Calcs!$F$1252:$AOS$1252) -> 20.5583248 | BT26: =SUMIF(Calcs!$F$9:$AOS$9,'Output ProjYr'!$BH26,Calcs!$F$1289:$AOS$1289) -> 11.04298244 | BU26: =SUMIF(Calcs!$F$9:$AOS$9,'Output ProjYr'!$BH26,Calcs!$F$1326:$AOS$1326) -> 0 | BV26: =SUMIF(Calcs!$F$9:$AOS$9,'Output ProjYr'!$BH26,Calcs!$F$1363:$AOS$1363) -> 0 | BW26: =SUMIF(Calcs!$F$9:$AOS$9,'Output ProjYr'!$BH26,Calcs!$F$1400:$AOS$1400) -> 0 | BX26: =SUMIF(Calcs!$F$9:$AOS$9,'Output ProjYr'!$BH26,Calcs!$F$1437:$AOS$1437) -> 0 | BY26: =SUMIF(Calcs!$F$9:$AOS$9,'Output ProjYr'!$BH26,Calcs!$F$1474:$AOS$1474) -> 0 | BZ26: =SUMIF(Calcs!$F$9:$AOS$9,'Output ProjYr'!$BH26,Calcs!$F$1511:$AOS$1511) -> 0 | CA26: =SUMIF(Calcs!$F$9:$AOS$9,'Output ProjYr'!$BH26,Calcs!$F$1548:$AOS$1548) -> 0 | CB26: =SUMIF(Calcs!$F$9:$AOS$9,'Output ProjYr'!$BH26,Calcs!$F$1585:$AOS$1585) -> 0 | CC26: 4935.848091 | CE26: 19 | CF26: =SUMIF(Calcs!$F$9:$AOS$9,$CE26,Calcs!$F$521:$AOS$521) -> 883.3911198 | CG26: =SUMIF(Calcs!$F$9:$AOS$9,$CE26,Calcs!$F$595:$AOS$595) -> 3612.905941 | CH26: =SUMIF(Calcs!$F$9:$AOS$9,$CE26,Calcs!$F$669:$AOS$669) -> 0 | CI26: =SUMIF(Calcs!$F$9:$AOS$9,$CE26,Calcs!$F$743:$AOS$743) -> 0 | CJ26: =SUMIF(Calcs!$F$9:$AOS$9,$CE26,Calcs!$F$817:$AOS$817) -> 74.06097777 | CK26: =SUMIF(Calcs!$F$9:$AOS$9,$CE26,Calcs!$F$891:$AOS$891) -> 0 | CL26: =SUMIF(Calcs!$F$9:$AOS$9,$CE26,Calcs!$F$965:$AOS$965) -> 0 | CM26: =SUMIF(Calcs!$F$9:$AOS$9,$CE26,Calcs!$F$1039:$AOS$1039) -> 0 | CN26: =SUMIF(Calcs!$F$9:$AOS$9,$CE26,Calcs!$F$1113:$AOS$1113) -> 0 | CO26: =SUMIF(Calcs!$F$9:$AOS$9,$CE26,Calcs!$F$1187:$AOS$1187) -> 0 | CP26: =SUMIF(Calcs!$F$9:$AOS$9,$CE26,Calcs!$F$1253:$AOS$1253) -> 18.53167507 | CQ26: =SUMIF(Calcs!$F$9:$AOS$9,$CE26,Calcs!$F$1290:$AOS$1290) -> 9.954359822 | CR26: =SUMIF(Calcs!$F$9:$AOS$9,$CE26,Calcs!$F$1327:$AOS$1327) -> 0 | CS26: =SUMIF(Calcs!$F$9:$AOS$9,$CE26,Calcs!$F$1364:$AOS$1364) -> 0 | CT26: =SUMIF(Calcs!$F$9:$AOS$9,$CE26,Calcs!$F$1401:$AOS$1401) -> 0 | CU26: =SUMIF(Calcs!$F$9:$AOS$9,$CE26,Calcs!$F$1438:$AOS$1438) -> 0 | CV26: =SUMIF(Calcs!$F$9:$AOS$9,$CE26,Calcs!$F$1475:$AOS$1475) -> 0 | CW26: =SUMIF(Calcs!$F$9:$AOS$9,$CE26,Calcs!$F$1512:$AOS$1512) -> 0 | CX26: =SUMIF(Calcs!$F$9:$AOS$9,$CE26,Calcs!$F$1549:$AOS$1549) -> 0 | CY26: =SUMIF(Calcs!$F$9:$AOS$9,$CE26,Calcs!$F$1586:$AOS$1586) -> 0 | CZ26: 4598.844074 | DB26: 19 | DC26: =(SUMIF(Calcs!$F$9:$AOS$9,'Output ProjYr'!$DB26,Calcs!$F$567:$AOS$567))/1000000 -> 0 | DD26: =(SUMIF(Calcs!$F$9:$AOS$9,'Output ProjYr'!$DB26,Calcs!$F$641:$AOS$641))/1000000 -> 0 | DE26: =(SUMIF(Calcs!$F$9:$AOS$9,'Output ProjYr'!$DB26,Calcs!$F$715:$AOS$715))/1000000 -> 0 | DF26: =(SUMIF(Calcs!$F$9:$AOS$9,'Output ProjYr'!$DB26,Calcs!$F$789:$AOS$789))/1000000 -> 0 | DG26: =(SUMIF(Calcs!$F$9:$AOS$9,'Output ProjYr'!$DB26,Calcs!$F$863:$AOS$863))/1000000 -> 0 | DH26: =(SUMIF(Calcs!$F$9:$AOS$9,'Output ProjYr'!$DB26,Calcs!$F$937:$AOS$937))/1000000 -> 0 | DI26: =(SUMIF(Calcs!$F$9:$AOS$9,'Output ProjYr'!$DB26,Calcs!$F$1011:$AOS$1011))/1000000 -> 0 | DJ26: =(SUMIF(Calcs!$F$9:$AOS$9,'Output ProjYr'!$DB26,Calcs!$F$1085:$AOS$1085))/1000000 -> 0 | DK26: =(SUMIF(Calcs!$F$9:$AOS$9,'Output ProjYr'!$DB26,Calcs!$F$1159:$AOS$1159))/1000000 -> 0 | DL26: =(SUMIF(Calcs!$F$9:$AOS$9,'Output ProjYr'!$DB26,Calcs!$F$1233:$AOS$1233))/1000000 -> 0 | DO26: =(SUMIF(Calcs!$F$9:$AOS$9,'Output ProjYr'!$DB26,Calcs!$F$1344:$AOS$1344))/1000000 -> 0 | DV26: =(SUMIF(Calcs!$F$9:$AOS$9,'Output ProjYr'!$DB26,Calcs!$F$1603:$AOS$1603))/1000000 -> 0 | DW26: 0
A27: 20 | B27: =SUMIF(Calcs!$F$9:$AOS$9,'Output ProjYr'!$A27,Calcs!$F$528:$AOS$528) -> 0 | C27: =SUMIF(Calcs!$F$9:$AOS$9,'Output ProjYr'!$A27,Calcs!$F$602:$AOS$602) -> 0 | D27: =SUMIF(Calcs!$F$9:$AOS$9,'Output ProjYr'!$A27,Calcs!$F$676:$AOS$676) -> 0 | E27: =SUMIF(Calcs!$F$9:$AOS$9,'Output ProjYr'!$A27,Calcs!$F$750:$AOS$750) -> 0 | F27: =SUMIF(Calcs!$F$9:$AOS$9,'Output ProjYr'!$A27,Calcs!$F$824:$AOS$824) -> 7707364.256 | G27: =SUMIF(Calcs!$F$9:$AOS$9,'Output ProjYr'!$A27,Calcs!$F$898:$AOS$898) -> 0 | H27: =SUMIF(Calcs!$F$9:$AOS$9,'Output ProjYr'!$A27,Calcs!$F$972:$AOS$972) -> 0 | I27: =SUMIF(Calcs!$F$9:$AOS$9,'Output ProjYr'!$A27,Calcs!$F$1046:$AOS$1046) -> 0 | J27: =SUMIF(Calcs!$F$9:$AOS$9,'Output ProjYr'!$A27,Calcs!$F$1120:$AOS$1120) -> 0 | K27: =SUMIF(Calcs!$F$9:$AOS$9,'Output ProjYr'!$A27,Calcs!$F$1194:$AOS$1194) -> 0 | L27: =SUMIF(Calcs!$F$9:$AOS$9,'Output ProjYr'!$A27,Calcs!$F$525:$AOS$525) -> 0 | M27: =SUMIF(Calcs!$F$9:$AOS$9,'Output ProjYr'!$A27,Calcs!$F$599:$AOS$599) -> 0 | N27: =SUMIF(Calcs!$F$9:$AOS$9,'Output ProjYr'!$A27,Calcs!$F$673:$AOS$673) -> 0 | O27: =SUMIF(Calcs!$F$9:$AOS$9,'Output ProjYr'!$A27,Calcs!$F$747:$AOS$747) -> 0 | P27: =SUMIF(Calcs!$F$9:$AOS$9,'Output ProjYr'!$A27,Calcs!$F$821:$AOS$821) -> 0 | Q27: =SUMIF(Calcs!$F$9:$AOS$9,'Output ProjYr'!$A27,Calcs!$F$895:$AOS$895) -> 0 | R27: =SUMIF(Calcs!$F$9:$AOS$9,'Output ProjYr'!$A27,Calcs!$F$969:$AOS$969) -> 0 | S27: =SUMIF(Calcs!$F$9:$AOS$9,'Output ProjYr'!$A27,Calcs!$F$1043:$AOS$1043) -> 0 | T27: =SUMIF(Calcs!$F$9:$AOS$9,'Output ProjYr'!$A27,Calcs!$F$1117:$AOS$1117) -> 0 | U27: =SUMIF(Calcs!$F$9:$AOS$9,'Output ProjYr'!$A27,Calcs!$F$1191:$AOS$1191) -> 0 | V27: =SUMIF(Calcs!$F$9:$AOS$9,'Output ProjYr'!$A27,Calcs!$F$1257:$AOS$1257) -> 13209.29814 | W27: =SUMIF(Calcs!$F$9:$AOS$9,'Output ProjYr'!$A27,Calcs!$F$1294:$AOS$1294) -> 0 | X27: =SUMIF(Calcs!$F$9:$AOS$9,'Output ProjYr'!$A27,Calcs!$F$1331:$AOS$1331) -> 0 | Y27: =SUMIF(Calcs!$F$9:$AOS$9,'Output ProjYr'!$A27,Calcs!$F$1368:$AOS$1368) -> 0 | Z27: =SUMIF(Calcs!$F$9:$AOS$9,'Output ProjYr'!$A27,Calcs!$F$1405:$AOS$1405) -> 0 | AA27: =SUMIF(Calcs!$F$9:$AOS$9,'Output ProjYr'!$A27,Calcs!$F$1442:$AOS$1442) -> 0 | AB27: =SUMIF(Calcs!$F$9:$AOS$9,'Output ProjYr'!$A27,Calcs!$F$1479:$AOS$1479) -> 0 | AC27: =SUMIF(Calcs!$F$9:$AOS$9,'Output ProjYr'!$A27,Calcs!$F$1516:$AOS$1516) -> 0 | AD27: =SUMIF(Calcs!$F$9:$AOS$9,'Output ProjYr'!$A27,Calcs!$F$1553:$AOS$1553) -> 0 | AE27: =SUMIF(Calcs!$F$9:$AOS$9,'Output ProjYr'!$A27,Calcs!$F$1590:$AOS$1590) -> 0 | AF27: 7720573.554 | AH27: 20 | AI27: =SUMIF(Calcs!$F$9:$AOS$9,'Output ProjYr'!$AH27,Calcs!$F$1714:$AOS$1714) -> 0 | AJ27: =SUMIF(Calcs!$F$9:$AOS$9,'Output ProjYr'!$AH27,Calcs!$F$1715:$AOS$1715) -> 0 | AK27: =SUMIF(Calcs!$F$9:$AOS$9,'Output ProjYr'!$AH27,Calcs!$F$1716:$AOS$1716) -> 0 | AL27: =SUMIF(Calcs!$F$9:$AOS$9,'Output ProjYr'!$AH27,Calcs!$F$1717:$AOS$1717) -> 0 | AM27: =SUMIF(Calcs!$F$9:$AOS$9,'Output ProjYr'!$AH27,Calcs!$F$1718:$AOS$1718) -> 0 | AN27: =SUMIF(Calcs!$F$9:$AOS$9,'Output ProjYr'!$AH27,Calcs!$F$1719:$AOS$1719) -> 0 | AO27: =SUMIF(Calcs!$F$9:$AOS$9,'Output ProjYr'!$AH27,Calcs!$F$1720:$AOS$1720) -> 0 | AP27: =SUMIF(Calcs!$F$9:$AOS$9,'Output ProjYr'!$AH27,Calcs!$F$1721:$AOS$1721) -> 0 | AQ27: =SUMIF(Calcs!$F$9:$AOS$9,'Output ProjYr'!$AH27,Calcs!$F$1722:$AOS$1722) -> 0 | AR27: =SUMIF(Calcs!$F$9:$AOS$9,'Output ProjYr'!$AH27,Calcs!$F$1723:$AOS$1723) -> 0 | AS27: 0 | AU27: 20 | AV27: =SUMIF(Calcs!$F$9:$AOS$9,'Output ProjYr'!$AU27,Calcs!$F$514:$AOS$514)/12 -> 167.8082192 | AW27: =(SUMIF(Calcs!$F$9:$AOS$9,'Output ProjYr'!$AU27,Calcs!$F$588:$AOS$588))/12 -> 484.384192 | AX27: =(SUMIF(Calcs!$F$9:$AOS$9,'Output ProjYr'!$AU27,Calcs!$F$662:$AOS$662))/12 -> 26.29048716 | AY27: =(SUMIF(Calcs!$F$9:$AOS$9,'Output ProjYr'!$AU27,Calcs!$F$736:$AOS$736))/12 -> 57.18289873 | AZ27: =(SUMIF(Calcs!$F$9:$AOS$9,'Output ProjYr'!$AU27,Calcs!$F$810:$AOS$810))/12 -> 30.33420294 | BA27: =(SUMIF(Calcs!$F$9:$AOS$9,'Output ProjYr'!$AU27,Calcs!$F$884:$AOS$884))/12 -> 0 | BB27: =(SUMIF(Calcs!$F$9:$AOS$9,'Output ProjYr'!$AU27,Calcs!$F$958:$AOS$958))/12 -> 0 | BC27: =(SUMIF(Calcs!$F$9:$AOS$9,'Output ProjYr'!$AU27,Calcs!$F$1032:$AOS$1032))/12 -> 0 | BD27: =(SUMIF(Calcs!$F$9:$AOS$9,'Output ProjYr'!$AU27,Calcs!$F$1106:$AOS$1106))/12 -> 0 | BE27: =(SUMIF(Calcs!$F$9:$AOS$9,'Output ProjYr'!$AU27,Calcs!$F$1180:$AOS$1180))/12 -> 0 | BF27: 766 | BH27: 20 | BI27: =SUMIF(Calcs!$F$9:$AOS$9,'Output ProjYr'!$BH27,Calcs!$F$520:$AOS$520) -> 980 | BJ27: =SUMIF(Calcs!$F$9:$AOS$9,'Output ProjYr'!$BH27,Calcs!$F$594:$AOS$594) -> 3884.480326 | BK27: =SUMIF(Calcs!$F$9:$AOS$9,'Output ProjYr'!$BH27,Calcs!$F$668:$AOS$668) -> 0 | BL27: =SUMIF(Calcs!$F$9:$AOS$9,'Output ProjYr'!$BH27,Calcs!$F$742:$AOS$742) -> 0 | BM27: =SUMIF(Calcs!$F$9:$AOS$9,'Output ProjYr'!$BH27,Calcs!$F$816:$AOS$816) -> 71.23364486 | BN27: =SUMIF(Calcs!$F$9:$AOS$9,'Output ProjYr'!$BH27,Calcs!$F$890:$AOS$890) -> 0 | BO27: =SUMIF(Calcs!$F$9:$AOS$9,'Output ProjYr'!$BH27,Calcs!$F$964:$AOS$964) -> 0 | BP27: =SUMIF(Calcs!$F$9:$AOS$9,'Output ProjYr'!$BH27,Calcs!$F$1038:$AOS$1038) -> 0 | BQ27: =SUMIF(Calcs!$F$9:$AOS$9,'Output ProjYr'!$BH27,Calcs!$F$1112:$AOS$1112) -> 0 | BR27: =SUMIF(Calcs!$F$9:$AOS$9,'Output ProjYr'!$BH27,Calcs!$F$1186:$AOS$1186) -> 0 | BS27: =SUMIF(Calcs!$F$9:$AOS$9,'Output ProjYr'!$BH27,Calcs!$F$1252:$AOS$1252) -> 0.1341200853 | BT27: =SUMIF(Calcs!$F$9:$AOS$9,'Output ProjYr'!$BH27,Calcs!$F$1289:$AOS$1289) -> 0 | BU27: =SUMIF(Calcs!$F$9:$AOS$9,'Output ProjYr'!$BH27,Calcs!$F$1326:$AOS$1326) -> 0 | BV27: =SUMIF(Calcs!$F$9:$AOS$9,'Output ProjYr'!$BH27,Calcs!$F$1363:$AOS$1363) -> 0 | BW27: =SUMIF(Calcs!$F$9:$AOS$9,'Output ProjYr'!$BH27,Calcs!$F$1400:$AOS$1400) -> 0 | BX27: =SUMIF(Calcs!$F$9:$AOS$9,'Output ProjYr'!$BH27,Calcs!$F$1437:$AOS$1437) -> 0 | BY27: =SUMIF(Calcs!$F$9:$AOS$9,'Output ProjYr'!$BH27,Calcs!$F$1474:$AOS$1474) -> 0 | BZ27: =SUMIF(Calcs!$F$9:$AOS$9,'Output ProjYr'!$BH27,Calcs!$F$1511:$AOS$1511) -> 0 | CA27: =SUMIF(Calcs!$F$9:$AOS$9,'Output ProjYr'!$BH27,Calcs!$F$1548:$AOS$1548) -> 0 | CB27: =SUMIF(Calcs!$F$9:$AOS$9,'Output ProjYr'!$BH27,Calcs!$F$1585:$AOS$1585) -> 0 | CC27: 4935.848091 | CE27: 20 | CF27: =SUMIF(Calcs!$F$9:$AOS$9,$CE27,Calcs!$F$521:$AOS$521) -> 883.3911198 | CG27: =SUMIF(Calcs!$F$9:$AOS$9,$CE27,Calcs!$F$595:$AOS$595) -> 3652.771075 | CH27: =SUMIF(Calcs!$F$9:$AOS$9,$CE27,Calcs!$F$669:$AOS$669) -> 0 | CI27: =SUMIF(Calcs!$F$9:$AOS$9,$CE27,Calcs!$F$743:$AOS$743) -> 0 | CJ27: =SUMIF(Calcs!$F$9:$AOS$9,$CE27,Calcs!$F$817:$AOS$817) -> 64.21139724 | CK27: =SUMIF(Calcs!$F$9:$AOS$9,$CE27,Calcs!$F$891:$AOS$891) -> 0 | CL27: =SUMIF(Calcs!$F$9:$AOS$9,$CE27,Calcs!$F$965:$AOS$965) -> 0 | CM27: =SUMIF(Calcs!$F$9:$AOS$9,$CE27,Calcs!$F$1039:$AOS$1039) -> 0 | CN27: =SUMIF(Calcs!$F$9:$AOS$9,$CE27,Calcs!$F$1113:$AOS$1113) -> 0 | CO27: =SUMIF(Calcs!$F$9:$AOS$9,$CE27,Calcs!$F$1187:$AOS$1187) -> 0 | CP27: =SUMIF(Calcs!$F$9:$AOS$9,$CE27,Calcs!$F$1253:$AOS$1253) -> 0.1208984616 | CQ27: =SUMIF(Calcs!$F$9:$AOS$9,$CE27,Calcs!$F$1290:$AOS$1290) -> 0 | CR27: =SUMIF(Calcs!$F$9:$AOS$9,$CE27,Calcs!$F$1327:$AOS$1327) -> 0 | CS27: =SUMIF(Calcs!$F$9:$AOS$9,$CE27,Calcs!$F$1364:$AOS$1364) -> 0 | CT27: =SUMIF(Calcs!$F$9:$AOS$9,$CE27,Calcs!$F$1401:$AOS$1401) -> 0 | CU27: =SUMIF(Calcs!$F$9:$AOS$9,$CE27,Calcs!$F$1438:$AOS$1438) -> 0 | CV27: =SUMIF(Calcs!$F$9:$AOS$9,$CE27,Calcs!$F$1475:$AOS$1475) -> 0 | CW27: =SUMIF(Calcs!$F$9:$AOS$9,$CE27,Calcs!$F$1512:$AOS$1512) -> 0 | CX27: =SUMIF(Calcs!$F$9:$AOS$9,$CE27,Calcs!$F$1549:$AOS$1549) -> 0 | CY27: =SUMIF(Calcs!$F$9:$AOS$9,$CE27,Calcs!$F$1586:$AOS$1586) -> 0 | CZ27: 4600.49449 | DB27: 20 | DC27: =(SUMIF(Calcs!$F$9:$AOS$9,'Output ProjYr'!$DB27,Calcs!$F$567:$AOS$567))/1000000 -> 0 | DD27: =(SUMIF(Calcs!$F$9:$AOS$9,'Output ProjYr'!$DB27,Calcs!$F$641:$AOS$641))/1000000 -> 0 | DE27: =(SUMIF(Calcs!$F$9:$AOS$9,'Output ProjYr'!$DB27,Calcs!$F$715:$AOS$715))/1000000 -> 0 | DF27: =(SUMIF(Calcs!$F$9:$AOS$9,'Output ProjYr'!$DB27,Calcs!$F$789:$AOS$789))/1000000 -> 0 | DG27: =(SUMIF(Calcs!$F$9:$AOS$9,'Output ProjYr'!$DB27,Calcs!$F$863:$AOS$863))/1000000 -> 0 | DH27: =(SUMIF(Calcs!$F$9:$AOS$9,'Output ProjYr'!$DB27,Calcs!$F$937:$AOS$937))/1000000 -> 0 | DI27: =(SUMIF(Calcs!$F$9:$AOS$9,'Output ProjYr'!$DB27,Calcs!$F$1011:$AOS$1011))/1000000 -> 0 | DJ27: =(SUMIF(Calcs!$F$9:$AOS$9,'Output ProjYr'!$DB27,Calcs!$F$1085:$AOS$1085))/1000000 -> 0 | DK27: =(SUMIF(Calcs!$F$9:$AOS$9,'Output ProjYr'!$DB27,Calcs!$F$1159:$AOS$1159))/1000000 -> 0 | DL27: =(SUMIF(Calcs!$F$9:$AOS$9,'Output ProjYr'!$DB27,Calcs!$F$1233:$AOS$1233))/1000000 -> 0 | DO27: =(SUMIF(Calcs!$F$9:$AOS$9,'Output ProjYr'!$DB27,Calcs!$F$1344:$AOS$1344))/1000000 -> 0 | DV27: =(SUMIF(Calcs!$F$9:$AOS$9,'Output ProjYr'!$DB27,Calcs!$F$1603:$AOS$1603))/1000000 -> 0 | DW27: 0
A28: 21 | B28: =SUMIF(Calcs!$F$9:$AOS$9,'Output ProjYr'!$A28,Calcs!$F$528:$AOS$528) -> 0 | C28: =SUMIF(Calcs!$F$9:$AOS$9,'Output ProjYr'!$A28,Calcs!$F$602:$AOS$602) -> 0 | D28: =SUMIF(Calcs!$F$9:$AOS$9,'Output ProjYr'!$A28,Calcs!$F$676:$AOS$676) -> 0 | E28: =SUMIF(Calcs!$F$9:$AOS$9,'Output ProjYr'!$A28,Calcs!$F$750:$AOS$750) -> 0 | F28: =SUMIF(Calcs!$F$9:$AOS$9,'Output ProjYr'!$A28,Calcs!$F$824:$AOS$824) -> 5590097.276 | G28: =SUMIF(Calcs!$F$9:$AOS$9,'Output ProjYr'!$A28,Calcs!$F$898:$AOS$898) -> 0 | H28: =SUMIF(Calcs!$F$9:$AOS$9,'Output ProjYr'!$A28,Calcs!$F$972:$AOS$972) -> 0 | I28: =SUMIF(Calcs!$F$9:$AOS$9,'Output ProjYr'!$A28,Calcs!$F$1046:$AOS$1046) -> 0 | J28: =SUMIF(Calcs!$F$9:$AOS$9,'Output ProjYr'!$A28,Calcs!$F$1120:$AOS$1120) -> 0 | K28: =SUMIF(Calcs!$F$9:$AOS$9,'Output ProjYr'!$A28,Calcs!$F$1194:$AOS$1194) -> 0 | L28: =SUMIF(Calcs!$F$9:$AOS$9,'Output ProjYr'!$A28,Calcs!$F$525:$AOS$525) -> 0 | M28: =SUMIF(Calcs!$F$9:$AOS$9,'Output ProjYr'!$A28,Calcs!$F$599:$AOS$599) -> 0 | N28: =SUMIF(Calcs!$F$9:$AOS$9,'Output ProjYr'!$A28,Calcs!$F$673:$AOS$673) -> 0 | O28: =SUMIF(Calcs!$F$9:$AOS$9,'Output ProjYr'!$A28,Calcs!$F$747:$AOS$747) -> 0 | P28: =SUMIF(Calcs!$F$9:$AOS$9,'Output ProjYr'!$A28,Calcs!$F$821:$AOS$821) -> 0 | Q28: =SUMIF(Calcs!$F$9:$AOS$9,'Output ProjYr'!$A28,Calcs!$F$895:$AOS$895) -> 0 | R28: =SUMIF(Calcs!$F$9:$AOS$9,'Output ProjYr'!$A28,Calcs!$F$969:$AOS$969) -> 0 | S28: =SUMIF(Calcs!$F$9:$AOS$9,'Output ProjYr'!$A28,Calcs!$F$1043:$AOS$1043) -> 0 | T28: =SUMIF(Calcs!$F$9:$AOS$9,'Output ProjYr'!$A28,Calcs!$F$1117:$AOS$1117) -> 0 | U28: =SUMIF(Calcs!$F$9:$AOS$9,'Output ProjYr'!$A28,Calcs!$F$1191:$AOS$1191) -> 0 | V28: =SUMIF(Calcs!$F$9:$AOS$9,'Output ProjYr'!$A28,Calcs!$F$1257:$AOS$1257) -> 0 | W28: =SUMIF(Calcs!$F$9:$AOS$9,'Output ProjYr'!$A28,Calcs!$F$1294:$AOS$1294) -> 0 | X28: =SUMIF(Calcs!$F$9:$AOS$9,'Output ProjYr'!$A28,Calcs!$F$1331:$AOS$1331) -> 0 | Y28: =SUMIF(Calcs!$F$9:$AOS$9,'Output ProjYr'!$A28,Calcs!$F$1368:$AOS$1368) -> 0 | Z28: =SUMIF(Calcs!$F$9:$AOS$9,'Output ProjYr'!$A28,Calcs!$F$1405:$AOS$1405) -> 0 | AA28: =SUMIF(Calcs!$F$9:$AOS$9,'Output ProjYr'!$A28,Calcs!$F$1442:$AOS$1442) -> 0 | AB28: =SUMIF(Calcs!$F$9:$AOS$9,'Output ProjYr'!$A28,Calcs!$F$1479:$AOS$1479) -> 0 | AC28: =SUMIF(Calcs!$F$9:$AOS$9,'Output ProjYr'!$A28,Calcs!$F$1516:$AOS$1516) -> 0 | AD28: =SUMIF(Calcs!$F$9:$AOS$9,'Output ProjYr'!$A28,Calcs!$F$1553:$AOS$1553) -> 0 | AE28: =SUMIF(Calcs!$F$9:$AOS$9,'Output ProjYr'!$A28,Calcs!$F$1590:$AOS$1590) -> 0 | AF28: 5590097.276 | AH28: 21 | AI28: =SUMIF(Calcs!$F$9:$AOS$9,'Output ProjYr'!$AH28,Calcs!$F$1714:$AOS$1714) -> 0 | AJ28: =SUMIF(Calcs!$F$9:$AOS$9,'Output ProjYr'!$AH28,Calcs!$F$1715:$AOS$1715) -> 0 | AK28: =SUMIF(Calcs!$F$9:$AOS$9,'Output ProjYr'!$AH28,Calcs!$F$1716:$AOS$1716) -> 0 | AL28: =SUMIF(Calcs!$F$9:$AOS$9,'Output ProjYr'!$AH28,Calcs!$F$1717:$AOS$1717) -> 0 | AM28: =SUMIF(Calcs!$F$9:$AOS$9,'Output ProjYr'!$AH28,Calcs!$F$1718:$AOS$1718) -> 0 | AN28: =SUMIF(Calcs!$F$9:$AOS$9,'Output ProjYr'!$AH28,Calcs!$F$1719:$AOS$1719) -> 0 | AO28: =SUMIF(Calcs!$F$9:$AOS$9,'Output ProjYr'!$AH28,Calcs!$F$1720:$AOS$1720) -> 0 | AP28: =SUMIF(Calcs!$F$9:$AOS$9,'Output ProjYr'!$AH28,Calcs!$F$1721:$AOS$1721) -> 0 | AQ28: =SUMIF(Calcs!$F$9:$AOS$9,'Output ProjYr'!$AH28,Calcs!$F$1722:$AOS$1722) -> 0 | AR28: =SUMIF(Calcs!$F$9:$AOS$9,'Output ProjYr'!$AH28,Calcs!$F$1723:$AOS$1723) -> 0 | AS28: 0 | AU28: 21 | AV28: =SUMIF(Calcs!$F$9:$AOS$9,'Output ProjYr'!$AU28,Calcs!$F$514:$AOS$514)/12 -> 167.8082192 | AW28: =(SUMIF(Calcs!$F$9:$AOS$9,'Output ProjYr'!$AU28,Calcs!$F$588:$AOS$588))/12 -> 488.868308 | AX28: =(SUMIF(Calcs!$F$9:$AOS$9,'Output ProjYr'!$AU28,Calcs!$F$662:$AOS$662))/12 -> 26.44254748 | AY28: =(SUMIF(Calcs!$F$9:$AOS$9,'Output ProjYr'!$AU28,Calcs!$F$736:$AOS$736))/12 -> 54.20314847 | AZ28: =(SUMIF(Calcs!$F$9:$AOS$9,'Output ProjYr'!$AU28,Calcs!$F$810:$AOS$810))/12 -> 28.67777688 | BA28: =(SUMIF(Calcs!$F$9:$AOS$9,'Output ProjYr'!$AU28,Calcs!$F$884:$AOS$884))/12 -> 0 | BB28: =(SUMIF(Calcs!$F$9:$AOS$9,'Output ProjYr'!$AU28,Calcs!$F$958:$AOS$958))/12 -> 0 | BC28: =(SUMIF(Calcs!$F$9:$AOS$9,'Output ProjYr'!$AU28,Calcs!$F$1032:$AOS$1032))/12 -> 0 | BD28: =(SUMIF(Calcs!$F$9:$AOS$9,'Output ProjYr'!$AU28,Calcs!$F$1106:$AOS$1106))/12 -> 0 | BE28: =(SUMIF(Calcs!$F$9:$AOS$9,'Output ProjYr'!$AU28,Calcs!$F$1180:$AOS$1180))/12 -> 0 | BF28: 766 | BH28: 21 | BI28: =SUMIF(Calcs!$F$9:$AOS$9,'Output ProjYr'!$BH28,Calcs!$F$520:$AOS$520) -> 980 | BJ28: =SUMIF(Calcs!$F$9:$AOS$9,'Output ProjYr'!$BH28,Calcs!$F$594:$AOS$594) -> 3905.391555 | BK28: =SUMIF(Calcs!$F$9:$AOS$9,'Output ProjYr'!$BH28,Calcs!$F$668:$AOS$668) -> 0 | BL28: =SUMIF(Calcs!$F$9:$AOS$9,'Output ProjYr'!$BH28,Calcs!$F$742:$AOS$742) -> 0 | BM28: =SUMIF(Calcs!$F$9:$AOS$9,'Output ProjYr'!$BH28,Calcs!$F$816:$AOS$816) -> 50.45653645 | BN28: =SUMIF(Calcs!$F$9:$AOS$9,'Output ProjYr'!$BH28,Calcs!$F$890:$AOS$890) -> 0 | BO28: =SUMIF(Calcs!$F$9:$AOS$9,'Output ProjYr'!$BH28,Calcs!$F$964:$AOS$964) -> 0 | BP28: =SUMIF(Calcs!$F$9:$AOS$9,'Output ProjYr'!$BH28,Calcs!$F$1038:$AOS$1038) -> 0 | BQ28: =SUMIF(Calcs!$F$9:$AOS$9,'Output ProjYr'!$BH28,Calcs!$F$1112:$AOS$1112) -> 0 | BR28: =SUMIF(Calcs!$F$9:$AOS$9,'Output ProjYr'!$BH28,Calcs!$F$1186:$AOS$1186) -> 0 | BS28: =SUMIF(Calcs!$F$9:$AOS$9,'Output ProjYr'!$BH28,Calcs!$F$1252:$AOS$1252) -> 0 | BT28: =SUMIF(Calcs!$F$9:$AOS$9,'Output ProjYr'!$BH28,Calcs!$F$1289:$AOS$1289) -> 0 | BU28: =SUMIF(Calcs!$F$9:$AOS$9,'Output ProjYr'!$BH28,Calcs!$F$1326:$AOS$1326) -> 0 | BV28: =SUMIF(Calcs!$F$9:$AOS$9,'Output ProjYr'!$BH28,Calcs!$F$1363:$AOS$1363) -> 0 | BW28: =SUMIF(Calcs!$F$9:$AOS$9,'Output ProjYr'!$BH28,Calcs!$F$1400:$AOS$1400) -> 0 | BX28: =SUMIF(Calcs!$F$9:$AOS$9,'Output ProjYr'!$BH28,Calcs!$F$1437:$AOS$1437) -> 0 | BY28: =SUMIF(Calcs!$F$9:$AOS$9,'Output ProjYr'!$BH28,Calcs!$F$1474:$AOS$1474) -> 0 | BZ28: =SUMIF(Calcs!$F$9:$AOS$9,'Output ProjYr'!$BH28,Calcs!$F$1511:$AOS$1511) -> 0 | CA28: =SUMIF(Calcs!$F$9:$AOS$9,'Output ProjYr'!$BH28,Calcs!$F$1548:$AOS$1548) -> 0 | CB28: =SUMIF(Calcs!$F$9:$AOS$9,'Output ProjYr'!$BH28,Calcs!$F$1585:$AOS$1585) -> 0 | CC28: 4935.848091 | CE28: 21 | CF28: =SUMIF(Calcs!$F$9:$AOS$9,$CE28,Calcs!$F$521:$AOS$521) -> 883.3911198 | CG28: =SUMIF(Calcs!$F$9:$AOS$9,$CE28,Calcs!$F$595:$AOS$595) -> 3672.434949 | CH28: =SUMIF(Calcs!$F$9:$AOS$9,$CE28,Calcs!$F$669:$AOS$669) -> 0 | CI28: =SUMIF(Calcs!$F$9:$AOS$9,$CE28,Calcs!$F$743:$AOS$743) -> 0 | CJ28: =SUMIF(Calcs!$F$9:$AOS$9,$CE28,Calcs!$F$817:$AOS$817) -> 45.48250636 | CK28: =SUMIF(Calcs!$F$9:$AOS$9,$CE28,Calcs!$F$891:$AOS$891) -> 0 | CL28: =SUMIF(Calcs!$F$9:$AOS$9,$CE28,Calcs!$F$965:$AOS$965) -> 0 | CM28: =SUMIF(Calcs!$F$9:$AOS$9,$CE28,Calcs!$F$1039:$AOS$1039) -> 0 | CN28: =SUMIF(Calcs!$F$9:$AOS$9,$CE28,Calcs!$F$1113:$AOS$1113) -> 0 | CO28: =SUMIF(Calcs!$F$9:$AOS$9,$CE28,Calcs!$F$1187:$AOS$1187) -> 0 | CP28: =SUMIF(Calcs!$F$9:$AOS$9,$CE28,Calcs!$F$1253:$AOS$1253) -> 0 | CQ28: =SUMIF(Calcs!$F$9:$AOS$9,$CE28,Calcs!$F$1290:$AOS$1290) -> 0 | CR28: =SUMIF(Calcs!$F$9:$AOS$9,$CE28,Calcs!$F$1327:$AOS$1327) -> 0 | CS28: =SUMIF(Calcs!$F$9:$AOS$9,$CE28,Calcs!$F$1364:$AOS$1364) -> 0 | CT28: =SUMIF(Calcs!$F$9:$AOS$9,$CE28,Calcs!$F$1401:$AOS$1401) -> 0 | CU28: =SUMIF(Calcs!$F$9:$AOS$9,$CE28,Calcs!$F$1438:$AOS$1438) -> 0 | CV28: =SUMIF(Calcs!$F$9:$AOS$9,$CE28,Calcs!$F$1475:$AOS$1475) -> 0 | CW28: =SUMIF(Calcs!$F$9:$AOS$9,$CE28,Calcs!$F$1512:$AOS$1512) -> 0 | CX28: =SUMIF(Calcs!$F$9:$AOS$9,$CE28,Calcs!$F$1549:$AOS$1549) -> 0 | CY28: =SUMIF(Calcs!$F$9:$AOS$9,$CE28,Calcs!$F$1586:$AOS$1586) -> 0 | CZ28: 4601.308575 | DB28: 21 | DC28: =(SUMIF(Calcs!$F$9:$AOS$9,'Output ProjYr'!$DB28,Calcs!$F$567:$AOS$567))/1000000 -> 0 | DD28: =(SUMIF(Calcs!$F$9:$AOS$9,'Output ProjYr'!$DB28,Calcs!$F$641:$AOS$641))/1000000 -> 0 | DE28: =(SUMIF(Calcs!$F$9:$AOS$9,'Output ProjYr'!$DB28,Calcs!$F$715:$AOS$715))/1000000 -> 0 | DF28: =(SUMIF(Calcs!$F$9:$AOS$9,'Output ProjYr'!$DB28,Calcs!$F$789:$AOS$789))/1000000 -> 0 | DG28: =(SUMIF(Calcs!$F$9:$AOS$9,'Output ProjYr'!$DB28,Calcs!$F$863:$AOS$863))/1000000 -> 0 | DH28: =(SUMIF(Calcs!$F$9:$AOS$9,'Output ProjYr'!$DB28,Calcs!$F$937:$AOS$937))/1000000 -> 0 | DI28: =(SUMIF(Calcs!$F$9:$AOS$9,'Output ProjYr'!$DB28,Calcs!$F$1011:$AOS$1011))/1000000 -> 0 | DJ28: =(SUMIF(Calcs!$F$9:$AOS$9,'Output ProjYr'!$DB28,Calcs!$F$1085:$AOS$1085))/1000000 -> 0 | DK28: =(SUMIF(Calcs!$F$9:$AOS$9,'Output ProjYr'!$DB28,Calcs!$F$1159:$AOS$1159))/1000000 -> 0 | DL28: =(SUMIF(Calcs!$F$9:$AOS$9,'Output ProjYr'!$DB28,Calcs!$F$1233:$AOS$1233))/1000000 -> 0 | DO28: =(SUMIF(Calcs!$F$9:$AOS$9,'Output ProjYr'!$DB28,Calcs!$F$1344:$AOS$1344))/1000000 -> 0 | DV28: =(SUMIF(Calcs!$F$9:$AOS$9,'Output ProjYr'!$DB28,Calcs!$F$1603:$AOS$1603))/1000000 -> 0 | DW28: 0
A29: 22 | B29: =SUMIF(Calcs!$F$9:$AOS$9,'Output ProjYr'!$A29,Calcs!$F$528:$AOS$528) -> 0 | C29: =SUMIF(Calcs!$F$9:$AOS$9,'Output ProjYr'!$A29,Calcs!$F$602:$AOS$602) -> 0 | D29: =SUMIF(Calcs!$F$9:$AOS$9,'Output ProjYr'!$A29,Calcs!$F$676:$AOS$676) -> 0 | E29: =SUMIF(Calcs!$F$9:$AOS$9,'Output ProjYr'!$A29,Calcs!$F$750:$AOS$750) -> 0 | F29: =SUMIF(Calcs!$F$9:$AOS$9,'Output ProjYr'!$A29,Calcs!$F$824:$AOS$824) -> 4180818.956 | G29: =SUMIF(Calcs!$F$9:$AOS$9,'Output ProjYr'!$A29,Calcs!$F$898:$AOS$898) -> 0 | H29: =SUMIF(Calcs!$F$9:$AOS$9,'Output ProjYr'!$A29,Calcs!$F$972:$AOS$972) -> 0 | I29: =SUMIF(Calcs!$F$9:$AOS$9,'Output ProjYr'!$A29,Calcs!$F$1046:$AOS$1046) -> 0 | J29: =SUMIF(Calcs!$F$9:$AOS$9,'Output ProjYr'!$A29,Calcs!$F$1120:$AOS$1120) -> 0 | K29: =SUMIF(Calcs!$F$9:$AOS$9,'Output ProjYr'!$A29,Calcs!$F$1194:$AOS$1194) -> 0 | L29: =SUMIF(Calcs!$F$9:$AOS$9,'Output ProjYr'!$A29,Calcs!$F$525:$AOS$525) -> 0 | M29: =SUMIF(Calcs!$F$9:$AOS$9,'Output ProjYr'!$A29,Calcs!$F$599:$AOS$599) -> 0 | N29: =SUMIF(Calcs!$F$9:$AOS$9,'Output ProjYr'!$A29,Calcs!$F$673:$AOS$673) -> 0 | O29: =SUMIF(Calcs!$F$9:$AOS$9,'Output ProjYr'!$A29,Calcs!$F$747:$AOS$747) -> 0 | P29: =SUMIF(Calcs!$F$9:$AOS$9,'Output ProjYr'!$A29,Calcs!$F$821:$AOS$821) -> 0 | Q29: =SUMIF(Calcs!$F$9:$AOS$9,'Output ProjYr'!$A29,Calcs!$F$895:$AOS$895) -> 0 | R29: =SUMIF(Calcs!$F$9:$AOS$9,'Output ProjYr'!$A29,Calcs!$F$969:$AOS$969) -> 0 | S29: =SUMIF(Calcs!$F$9:$AOS$9,'Output ProjYr'!$A29,Calcs!$F$1043:$AOS$1043) -> 0 | T29: =SUMIF(Calcs!$F$9:$AOS$9,'Output ProjYr'!$A29,Calcs!$F$1117:$AOS$1117) -> 0 | U29: =SUMIF(Calcs!$F$9:$AOS$9,'Output ProjYr'!$A29,Calcs!$F$1191:$AOS$1191) -> 0 | V29: =SUMIF(Calcs!$F$9:$AOS$9,'Output ProjYr'!$A29,Calcs!$F$1257:$AOS$1257) -> 0 | W29: =SUMIF(Calcs!$F$9:$AOS$9,'Output ProjYr'!$A29,Calcs!$F$1294:$AOS$1294) -> 0 | X29: =SUMIF(Calcs!$F$9:$AOS$9,'Output ProjYr'!$A29,Calcs!$F$1331:$AOS$1331) -> 0 | Y29: =SUMIF(Calcs!$F$9:$AOS$9,'Output ProjYr'!$A29,Calcs!$F$1368:$AOS$1368) -> 0 | Z29: =SUMIF(Calcs!$F$9:$AOS$9,'Output ProjYr'!$A29,Calcs!$F$1405:$AOS$1405) -> 0 | AA29: =SUMIF(Calcs!$F$9:$AOS$9,'Output ProjYr'!$A29,Calcs!$F$1442:$AOS$1442) -> 0 | AB29: =SUMIF(Calcs!$F$9:$AOS$9,'Output ProjYr'!$A29,Calcs!$F$1479:$AOS$1479) -> 0 | AC29: =SUMIF(Calcs!$F$9:$AOS$9,'Output ProjYr'!$A29,Calcs!$F$1516:$AOS$1516) -> 0 | AD29: =SUMIF(Calcs!$F$9:$AOS$9,'Output ProjYr'!$A29,Calcs!$F$1553:$AOS$1553) -> 0 | AE29: =SUMIF(Calcs!$F$9:$AOS$9,'Output ProjYr'!$A29,Calcs!$F$1590:$AOS$1590) -> 0 | AF29: 4180818.956 | AH29: 22 | AI29: =SUMIF(Calcs!$F$9:$AOS$9,'Output ProjYr'!$AH29,Calcs!$F$1714:$AOS$1714) -> 0 | AJ29: =SUMIF(Calcs!$F$9:$AOS$9,'Output ProjYr'!$AH29,Calcs!$F$1715:$AOS$1715) -> 0 | AK29: =SUMIF(Calcs!$F$9:$AOS$9,'Output ProjYr'!$AH29,Calcs!$F$1716:$AOS$1716) -> 0 | AL29: =SUMIF(Calcs!$F$9:$AOS$9,'Output ProjYr'!$AH29,Calcs!$F$1717:$AOS$1717) -> 0 | AM29: =SUMIF(Calcs!$F$9:$AOS$9,'Output ProjYr'!$AH29,Calcs!$F$1718:$AOS$1718) -> 0 | AN29: =SUMIF(Calcs!$F$9:$AOS$9,'Output ProjYr'!$AH29,Calcs!$F$1719:$AOS$1719) -> 0 | AO29: =SUMIF(Calcs!$F$9:$AOS$9,'Output ProjYr'!$AH29,Calcs!$F$1720:$AOS$1720) -> 0 | AP29: =SUMIF(Calcs!$F$9:$AOS$9,'Output ProjYr'!$AH29,Calcs!$F$1721:$AOS$1721) -> 0 | AQ29: =SUMIF(Calcs!$F$9:$AOS$9,'Output ProjYr'!$AH29,Calcs!$F$1722:$AOS$1722) -> 0 | AR29: =SUMIF(Calcs!$F$9:$AOS$9,'Output ProjYr'!$AH29,Calcs!$F$1723:$AOS$1723) -> 0 | AS29: 0 | AU29: 22 | AV29: =SUMIF(Calcs!$F$9:$AOS$9,'Output ProjYr'!$AU29,Calcs!$F$514:$AOS$514)/12 -> 167.8082192 | AW29: =(SUMIF(Calcs!$F$9:$AOS$9,'Output ProjYr'!$AU29,Calcs!$F$588:$AOS$588))/12 -> 493.1794306 | AX29: =(SUMIF(Calcs!$F$9:$AOS$9,'Output ProjYr'!$AU29,Calcs!$F$662:$AOS$662))/12 -> 26.59460781 | AY29: =(SUMIF(Calcs!$F$9:$AOS$9,'Output ProjYr'!$AU29,Calcs!$F$736:$AOS$736))/12 -> 51.31385343 | AZ29: =(SUMIF(Calcs!$F$9:$AOS$9,'Output ProjYr'!$AU29,Calcs!$F$810:$AOS$810))/12 -> 27.10388901 | BA29: =(SUMIF(Calcs!$F$9:$AOS$9,'Output ProjYr'!$AU29,Calcs!$F$884:$AOS$884))/12 -> 0 | BB29: =(SUMIF(Calcs!$F$9:$AOS$9,'Output ProjYr'!$AU29,Calcs!$F$958:$AOS$958))/12 -> 0 | BC29: =(SUMIF(Calcs!$F$9:$AOS$9,'Output ProjYr'!$AU29,Calcs!$F$1032:$AOS$1032))/12 -> 0 | BD29: =(SUMIF(Calcs!$F$9:$AOS$9,'Output ProjYr'!$AU29,Calcs!$F$1106:$AOS$1106))/12 -> 0 | BE29: =(SUMIF(Calcs!$F$9:$AOS$9,'Output ProjYr'!$AU29,Calcs!$F$1180:$AOS$1180))/12 -> 0 | BF29: 766 | BH29: 22 | BI29: =SUMIF(Calcs!$F$9:$AOS$9,'Output ProjYr'!$BH29,Calcs!$F$520:$AOS$520) -> 980 | BJ29: =SUMIF(Calcs!$F$9:$AOS$9,'Output ProjYr'!$BH29,Calcs!$F$594:$AOS$594) -> 3919.437086 | BK29: =SUMIF(Calcs!$F$9:$AOS$9,'Output ProjYr'!$BH29,Calcs!$F$668:$AOS$668) -> 0 | BL29: =SUMIF(Calcs!$F$9:$AOS$9,'Output ProjYr'!$BH29,Calcs!$F$742:$AOS$742) -> 0 | BM29: =SUMIF(Calcs!$F$9:$AOS$9,'Output ProjYr'!$BH29,Calcs!$F$816:$AOS$816) -> 36.41100522 | BN29: =SUMIF(Calcs!$F$9:$AOS$9,'Output ProjYr'!$BH29,Calcs!$F$890:$AOS$890) -> 0 | BO29: =SUMIF(Calcs!$F$9:$AOS$9,'Output ProjYr'!$BH29,Calcs!$F$964:$AOS$964) -> 0 | BP29: =SUMIF(Calcs!$F$9:$AOS$9,'Output ProjYr'!$BH29,Calcs!$F$1038:$AOS$1038) -> 0 | BQ29: =SUMIF(Calcs!$F$9:$AOS$9,'Output ProjYr'!$BH29,Calcs!$F$1112:$AOS$1112) -> 0 | BR29: =SUMIF(Calcs!$F$9:$AOS$9,'Output ProjYr'!$BH29,Calcs!$F$1186:$AOS$1186) -> 0 | BS29: =SUMIF(Calcs!$F$9:$AOS$9,'Output ProjYr'!$BH29,Calcs!$F$1252:$AOS$1252) -> 0 | BT29: =SUMIF(Calcs!$F$9:$AOS$9,'Output ProjYr'!$BH29,Calcs!$F$1289:$AOS$1289) -> 0 | BU29: =SUMIF(Calcs!$F$9:$AOS$9,'Output ProjYr'!$BH29,Calcs!$F$1326:$AOS$1326) -> 0 | BV29: =SUMIF(Calcs!$F$9:$AOS$9,'Output ProjYr'!$BH29,Calcs!$F$1363:$AOS$1363) -> 0 | BW29: =SUMIF(Calcs!$F$9:$AOS$9,'Output ProjYr'!$BH29,Calcs!$F$1400:$AOS$1400) -> 0 | BX29: =SUMIF(Calcs!$F$9:$AOS$9,'Output ProjYr'!$BH29,Calcs!$F$1437:$AOS$1437) -> 0 | BY29: =SUMIF(Calcs!$F$9:$AOS$9,'Output ProjYr'!$BH29,Calcs!$F$1474:$AOS$1474) -> 0 | BZ29: =SUMIF(Calcs!$F$9:$AOS$9,'Output ProjYr'!$BH29,Calcs!$F$1511:$AOS$1511) -> 0 | CA29: =SUMIF(Calcs!$F$9:$AOS$9,'Output ProjYr'!$BH29,Calcs!$F$1548:$AOS$1548) -> 0 | CB29: =SUMIF(Calcs!$F$9:$AOS$9,'Output ProjYr'!$BH29,Calcs!$F$1585:$AOS$1585) -> 0 | CC29: 4935.848091 | CE29: 22 | CF29: =SUMIF(Calcs!$F$9:$AOS$9,$CE29,Calcs!$F$521:$AOS$521) -> 883.3911198 | CG29: =SUMIF(Calcs!$F$9:$AOS$9,$CE29,Calcs!$F$595:$AOS$595) -> 3685.642664 | CH29: =SUMIF(Calcs!$F$9:$AOS$9,$CE29,Calcs!$F$669:$AOS$669) -> 0 | CI29: =SUMIF(Calcs!$F$9:$AOS$9,$CE29,Calcs!$F$743:$AOS$743) -> 0 | CJ29: =SUMIF(Calcs!$F$9:$AOS$9,$CE29,Calcs!$F$817:$AOS$817) -> 32.82159048 | CK29: =SUMIF(Calcs!$F$9:$AOS$9,$CE29,Calcs!$F$891:$AOS$891) -> 0 | CL29: =SUMIF(Calcs!$F$9:$AOS$9,$CE29,Calcs!$F$965:$AOS$965) -> 0 | CM29: =SUMIF(Calcs!$F$9:$AOS$9,$CE29,Calcs!$F$1039:$AOS$1039) -> 0 | CN29: =SUMIF(Calcs!$F$9:$AOS$9,$CE29,Calcs!$F$1113:$AOS$1113) -> 0 | CO29: =SUMIF(Calcs!$F$9:$AOS$9,$CE29,Calcs!$F$1187:$AOS$1187) -> 0 | CP29: =SUMIF(Calcs!$F$9:$AOS$9,$CE29,Calcs!$F$1253:$AOS$1253) -> 0 | CQ29: =SUMIF(Calcs!$F$9:$AOS$9,$CE29,Calcs!$F$1290:$AOS$1290) -> 0 | CR29: =SUMIF(Calcs!$F$9:$AOS$9,$CE29,Calcs!$F$1327:$AOS$1327) -> 0 | CS29: =SUMIF(Calcs!$F$9:$AOS$9,$CE29,Calcs!$F$1364:$AOS$1364) -> 0 | CT29: =SUMIF(Calcs!$F$9:$AOS$9,$CE29,Calcs!$F$1401:$AOS$1401) -> 0 | CU29: =SUMIF(Calcs!$F$9:$AOS$9,$CE29,Calcs!$F$1438:$AOS$1438) -> 0 | CV29: =SUMIF(Calcs!$F$9:$AOS$9,$CE29,Calcs!$F$1475:$AOS$1475) -> 0 | CW29: =SUMIF(Calcs!$F$9:$AOS$9,$CE29,Calcs!$F$1512:$AOS$1512) -> 0 | CX29: =SUMIF(Calcs!$F$9:$AOS$9,$CE29,Calcs!$F$1549:$AOS$1549) -> 0 | CY29: =SUMIF(Calcs!$F$9:$AOS$9,$CE29,Calcs!$F$1586:$AOS$1586) -> 0 | CZ29: 4601.855374 | DB29: 22 | DC29: =(SUMIF(Calcs!$F$9:$AOS$9,'Output ProjYr'!$DB29,Calcs!$F$567:$AOS$567))/1000000 -> 0 | DD29: =(SUMIF(Calcs!$F$9:$AOS$9,'Output ProjYr'!$DB29,Calcs!$F$641:$AOS$641))/1000000 -> 0 | DE29: =(SUMIF(Calcs!$F$9:$AOS$9,'Output ProjYr'!$DB29,Calcs!$F$715:$AOS$715))/1000000 -> 0 | DF29: =(SUMIF(Calcs!$F$9:$AOS$9,'Output ProjYr'!$DB29,Calcs!$F$789:$AOS$789))/1000000 -> 0 | DG29: =(SUMIF(Calcs!$F$9:$AOS$9,'Output ProjYr'!$DB29,Calcs!$F$863:$AOS$863))/1000000 -> 0 | DH29: =(SUMIF(Calcs!$F$9:$AOS$9,'Output ProjYr'!$DB29,Calcs!$F$937:$AOS$937))/1000000 -> 0 | DI29: =(SUMIF(Calcs!$F$9:$AOS$9,'Output ProjYr'!$DB29,Calcs!$F$1011:$AOS$1011))/1000000 -> 0 | DJ29: =(SUMIF(Calcs!$F$9:$AOS$9,'Output ProjYr'!$DB29,Calcs!$F$1085:$AOS$1085))/1000000 -> 0 | DK29: =(SUMIF(Calcs!$F$9:$AOS$9,'Output ProjYr'!$DB29,Calcs!$F$1159:$AOS$1159))/1000000 -> 0 | DL29: =(SUMIF(Calcs!$F$9:$AOS$9,'Output ProjYr'!$DB29,Calcs!$F$1233:$AOS$1233))/1000000 -> 0 | DO29: =(SUMIF(Calcs!$F$9:$AOS$9,'Output ProjYr'!$DB29,Calcs!$F$1344:$AOS$1344))/1000000 -> 0 | DV29: =(SUMIF(Calcs!$F$9:$AOS$9,'Output ProjYr'!$DB29,Calcs!$F$1603:$AOS$1603))/1000000 -> 0 | DW29: 0
A30: 23 | B30: =SUMIF(Calcs!$F$9:$AOS$9,'Output ProjYr'!$A30,Calcs!$F$528:$AOS$528) -> 0 | C30: =SUMIF(Calcs!$F$9:$AOS$9,'Output ProjYr'!$A30,Calcs!$F$602:$AOS$602) -> 0 | D30: =SUMIF(Calcs!$F$9:$AOS$9,'Output ProjYr'!$A30,Calcs!$F$676:$AOS$676) -> 0 | E30: =SUMIF(Calcs!$F$9:$AOS$9,'Output ProjYr'!$A30,Calcs!$F$750:$AOS$750) -> 0 | F30: =SUMIF(Calcs!$F$9:$AOS$9,'Output ProjYr'!$A30,Calcs!$F$824:$AOS$824) -> 3234458.495 | G30: =SUMIF(Calcs!$F$9:$AOS$9,'Output ProjYr'!$A30,Calcs!$F$898:$AOS$898) -> 0 | H30: =SUMIF(Calcs!$F$9:$AOS$9,'Output ProjYr'!$A30,Calcs!$F$972:$AOS$972) -> 0 | I30: =SUMIF(Calcs!$F$9:$AOS$9,'Output ProjYr'!$A30,Calcs!$F$1046:$AOS$1046) -> 0 | J30: =SUMIF(Calcs!$F$9:$AOS$9,'Output ProjYr'!$A30,Calcs!$F$1120:$AOS$1120) -> 0 | K30: =SUMIF(Calcs!$F$9:$AOS$9,'Output ProjYr'!$A30,Calcs!$F$1194:$AOS$1194) -> 0 | L30: =SUMIF(Calcs!$F$9:$AOS$9,'Output ProjYr'!$A30,Calcs!$F$525:$AOS$525) -> 0 | M30: =SUMIF(Calcs!$F$9:$AOS$9,'Output ProjYr'!$A30,Calcs!$F$599:$AOS$599) -> 0 | N30: =SUMIF(Calcs!$F$9:$AOS$9,'Output ProjYr'!$A30,Calcs!$F$673:$AOS$673) -> 0 | O30: =SUMIF(Calcs!$F$9:$AOS$9,'Output ProjYr'!$A30,Calcs!$F$747:$AOS$747) -> 0 | P30: =SUMIF(Calcs!$F$9:$AOS$9,'Output ProjYr'!$A30,Calcs!$F$821:$AOS$821) -> 0 | Q30: =SUMIF(Calcs!$F$9:$AOS$9,'Output ProjYr'!$A30,Calcs!$F$895:$AOS$895) -> 0 | R30: =SUMIF(Calcs!$F$9:$AOS$9,'Output ProjYr'!$A30,Calcs!$F$969:$AOS$969) -> 0 | S30: =SUMIF(Calcs!$F$9:$AOS$9,'Output ProjYr'!$A30,Calcs!$F$1043:$AOS$1043) -> 0 | T30: =SUMIF(Calcs!$F$9:$AOS$9,'Output ProjYr'!$A30,Calcs!$F$1117:$AOS$1117) -> 0 | U30: =SUMIF(Calcs!$F$9:$AOS$9,'Output ProjYr'!$A30,Calcs!$F$1191:$AOS$1191) -> 0 | V30: =SUMIF(Calcs!$F$9:$AOS$9,'Output ProjYr'!$A30,Calcs!$F$1257:$AOS$1257) -> 0 | W30: =SUMIF(Calcs!$F$9:$AOS$9,'Output ProjYr'!$A30,Calcs!$F$1294:$AOS$1294) -> 0 | X30: =SUMIF(Calcs!$F$9:$AOS$9,'Output ProjYr'!$A30,Calcs!$F$1331:$AOS$1331) -> 0 | Y30: =SUMIF(Calcs!$F$9:$AOS$9,'Output ProjYr'!$A30,Calcs!$F$1368:$AOS$1368) -> 0 | Z30: =SUMIF(Calcs!$F$9:$AOS$9,'Output ProjYr'!$A30,Calcs!$F$1405:$AOS$1405) -> 0 | AA30: =SUMIF(Calcs!$F$9:$AOS$9,'Output ProjYr'!$A30,Calcs!$F$1442:$AOS$1442) -> 0 | AB30: =SUMIF(Calcs!$F$9:$AOS$9,'Output ProjYr'!$A30,Calcs!$F$1479:$AOS$1479) -> 0 | AC30: =SUMIF(Calcs!$F$9:$AOS$9,'Output ProjYr'!$A30,Calcs!$F$1516:$AOS$1516) -> 0 | AD30: =SUMIF(Calcs!$F$9:$AOS$9,'Output ProjYr'!$A30,Calcs!$F$1553:$AOS$1553) -> 0 | AE30: =SUMIF(Calcs!$F$9:$AOS$9,'Output ProjYr'!$A30,Calcs!$F$1590:$AOS$1590) -> 0 | AF30: 3234458.495 | AH30: 23 | AI30: =SUMIF(Calcs!$F$9:$AOS$9,'Output ProjYr'!$AH30,Calcs!$F$1714:$AOS$1714) -> 0 | AJ30: =SUMIF(Calcs!$F$9:$AOS$9,'Output ProjYr'!$AH30,Calcs!$F$1715:$AOS$1715) -> 0 | AK30: =SUMIF(Calcs!$F$9:$AOS$9,'Output ProjYr'!$AH30,Calcs!$F$1716:$AOS$1716) -> 0 | AL30: =SUMIF(Calcs!$F$9:$AOS$9,'Output ProjYr'!$AH30,Calcs!$F$1717:$AOS$1717) -> 0 | AM30: =SUMIF(Calcs!$F$9:$AOS$9,'Output ProjYr'!$AH30,Calcs!$F$1718:$AOS$1718) -> 0 | AN30: =SUMIF(Calcs!$F$9:$AOS$9,'Output ProjYr'!$AH30,Calcs!$F$1719:$AOS$1719) -> 0 | AO30: =SUMIF(Calcs!$F$9:$AOS$9,'Output ProjYr'!$AH30,Calcs!$F$1720:$AOS$1720) -> 0 | AP30: =SUMIF(Calcs!$F$9:$AOS$9,'Output ProjYr'!$AH30,Calcs!$F$1721:$AOS$1721) -> 0 | AQ30: =SUMIF(Calcs!$F$9:$AOS$9,'Output ProjYr'!$AH30,Calcs!$F$1722:$AOS$1722) -> 0 | AR30: =SUMIF(Calcs!$F$9:$AOS$9,'Output ProjYr'!$AH30,Calcs!$F$1723:$AOS$1723) -> 0 | AS30: 0 | AU30: 23 | AV30: =SUMIF(Calcs!$F$9:$AOS$9,'Output ProjYr'!$AU30,Calcs!$F$514:$AOS$514)/12 -> 167.8082192 | AW30: =(SUMIF(Calcs!$F$9:$AOS$9,'Output ProjYr'!$AU30,Calcs!$F$588:$AOS$588))/12 -> 497.1788494 | AX30: =(SUMIF(Calcs!$F$9:$AOS$9,'Output ProjYr'!$AU30,Calcs!$F$662:$AOS$662))/12 -> 26.74666813 | AY30: =(SUMIF(Calcs!$F$9:$AOS$9,'Output ProjYr'!$AU30,Calcs!$F$736:$AOS$736))/12 -> 46.82208449 | AZ30: =(SUMIF(Calcs!$F$9:$AOS$9,'Output ProjYr'!$AU30,Calcs!$F$810:$AOS$810))/12 -> 27.44417877 | BA30: =(SUMIF(Calcs!$F$9:$AOS$9,'Output ProjYr'!$AU30,Calcs!$F$884:$AOS$884))/12 -> 0 | BB30: =(SUMIF(Calcs!$F$9:$AOS$9,'Output ProjYr'!$AU30,Calcs!$F$958:$AOS$958))/12 -> 0 | BC30: =(SUMIF(Calcs!$F$9:$AOS$9,'Output ProjYr'!$AU30,Calcs!$F$1032:$AOS$1032))/12 -> 0 | BD30: =(SUMIF(Calcs!$F$9:$AOS$9,'Output ProjYr'!$AU30,Calcs!$F$1106:$AOS$1106))/12 -> 0 | BE30: =(SUMIF(Calcs!$F$9:$AOS$9,'Output ProjYr'!$AU30,Calcs!$F$1180:$AOS$1180))/12 -> 0 | BF30: 766 | BH30: 23 | BI30: =SUMIF(Calcs!$F$9:$AOS$9,'Output ProjYr'!$BH30,Calcs!$F$520:$AOS$520) -> 980 | BJ30: =SUMIF(Calcs!$F$9:$AOS$9,'Output ProjYr'!$BH30,Calcs!$F$594:$AOS$594) -> 3928.426581 | BK30: =SUMIF(Calcs!$F$9:$AOS$9,'Output ProjYr'!$BH30,Calcs!$F$668:$AOS$668) -> 0 | BL30: =SUMIF(Calcs!$F$9:$AOS$9,'Output ProjYr'!$BH30,Calcs!$F$742:$AOS$742) -> 0 | BM30: =SUMIF(Calcs!$F$9:$AOS$9,'Output ProjYr'!$BH30,Calcs!$F$816:$AOS$816) -> 27.42151038 | BN30: =SUMIF(Calcs!$F$9:$AOS$9,'Output ProjYr'!$BH30,Calcs!$F$890:$AOS$890) -> 0 | BO30: =SUMIF(Calcs!$F$9:$AOS$9,'Output ProjYr'!$BH30,Calcs!$F$964:$AOS$964) -> 0 | BP30: =SUMIF(Calcs!$F$9:$AOS$9,'Output ProjYr'!$BH30,Calcs!$F$1038:$AOS$1038) -> 0 | BQ30: =SUMIF(Calcs!$F$9:$AOS$9,'Output ProjYr'!$BH30,Calcs!$F$1112:$AOS$1112) -> 0 | BR30: =SUMIF(Calcs!$F$9:$AOS$9,'Output ProjYr'!$BH30,Calcs!$F$1186:$AOS$1186) -> 0 | BS30: =SUMIF(Calcs!$F$9:$AOS$9,'Output ProjYr'!$BH30,Calcs!$F$1252:$AOS$1252) -> 0 | BT30: =SUMIF(Calcs!$F$9:$AOS$9,'Output ProjYr'!$BH30,Calcs!$F$1289:$AOS$1289) -> 0 | BU30: =SUMIF(Calcs!$F$9:$AOS$9,'Output ProjYr'!$BH30,Calcs!$F$1326:$AOS$1326) -> 0 | BV30: =SUMIF(Calcs!$F$9:$AOS$9,'Output ProjYr'!$BH30,Calcs!$F$1363:$AOS$1363) -> 0 | BW30: =SUMIF(Calcs!$F$9:$AOS$9,'Output ProjYr'!$BH30,Calcs!$F$1400:$AOS$1400) -> 0 | BX30: =SUMIF(Calcs!$F$9:$AOS$9,'Output ProjYr'!$BH30,Calcs!$F$1437:$AOS$1437) -> 0 | BY30: =SUMIF(Calcs!$F$9:$AOS$9,'Output ProjYr'!$BH30,Calcs!$F$1474:$AOS$1474) -> 0 | BZ30: =SUMIF(Calcs!$F$9:$AOS$9,'Output ProjYr'!$BH30,Calcs!$F$1511:$AOS$1511) -> 0 | CA30: =SUMIF(Calcs!$F$9:$AOS$9,'Output ProjYr'!$BH30,Calcs!$F$1548:$AOS$1548) -> 0 | CB30: =SUMIF(Calcs!$F$9:$AOS$9,'Output ProjYr'!$BH30,Calcs!$F$1585:$AOS$1585) -> 0 | CC30: 4935.848091 | CE30: 23 | CF30: =SUMIF(Calcs!$F$9:$AOS$9,$CE30,Calcs!$F$521:$AOS$521) -> 883.3911198 | CG30: =SUMIF(Calcs!$F$9:$AOS$9,$CE30,Calcs!$F$595:$AOS$595) -> 3694.095935 | CH30: =SUMIF(Calcs!$F$9:$AOS$9,$CE30,Calcs!$F$669:$AOS$669) -> 0 | CI30: =SUMIF(Calcs!$F$9:$AOS$9,$CE30,Calcs!$F$743:$AOS$743) -> 0 | CJ30: =SUMIF(Calcs!$F$9:$AOS$9,$CE30,Calcs!$F$817:$AOS$817) -> 24.71828445 | CK30: =SUMIF(Calcs!$F$9:$AOS$9,$CE30,Calcs!$F$891:$AOS$891) -> 0 | CL30: =SUMIF(Calcs!$F$9:$AOS$9,$CE30,Calcs!$F$965:$AOS$965) -> 0 | CM30: =SUMIF(Calcs!$F$9:$AOS$9,$CE30,Calcs!$F$1039:$AOS$1039) -> 0 | CN30: =SUMIF(Calcs!$F$9:$AOS$9,$CE30,Calcs!$F$1113:$AOS$1113) -> 0 | CO30: =SUMIF(Calcs!$F$9:$AOS$9,$CE30,Calcs!$F$1187:$AOS$1187) -> 0 | CP30: =SUMIF(Calcs!$F$9:$AOS$9,$CE30,Calcs!$F$1253:$AOS$1253) -> 0 | CQ30: =SUMIF(Calcs!$F$9:$AOS$9,$CE30,Calcs!$F$1290:$AOS$1290) -> 0 | CR30: =SUMIF(Calcs!$F$9:$AOS$9,$CE30,Calcs!$F$1327:$AOS$1327) -> 0 | CS30: =SUMIF(Calcs!$F$9:$AOS$9,$CE30,Calcs!$F$1364:$AOS$1364) -> 0 | CT30: =SUMIF(Calcs!$F$9:$AOS$9,$CE30,Calcs!$F$1401:$AOS$1401) -> 0 | CU30: =SUMIF(Calcs!$F$9:$AOS$9,$CE30,Calcs!$F$1438:$AOS$1438) -> 0 | CV30: =SUMIF(Calcs!$F$9:$AOS$9,$CE30,Calcs!$F$1475:$AOS$1475) -> 0 | CW30: =SUMIF(Calcs!$F$9:$AOS$9,$CE30,Calcs!$F$1512:$AOS$1512) -> 0 | CX30: =SUMIF(Calcs!$F$9:$AOS$9,$CE30,Calcs!$F$1549:$AOS$1549) -> 0 | CY30: =SUMIF(Calcs!$F$9:$AOS$9,$CE30,Calcs!$F$1586:$AOS$1586) -> 0 | CZ30: 4602.20534 | DB30: 23 | DC30: =(SUMIF(Calcs!$F$9:$AOS$9,'Output ProjYr'!$DB30,Calcs!$F$567:$AOS$567))/1000000 -> 0 | DD30: =(SUMIF(Calcs!$F$9:$AOS$9,'Output ProjYr'!$DB30,Calcs!$F$641:$AOS$641))/1000000 -> 0 | DE30: =(SUMIF(Calcs!$F$9:$AOS$9,'Output ProjYr'!$DB30,Calcs!$F$715:$AOS$715))/1000000 -> 0 | DF30: =(SUMIF(Calcs!$F$9:$AOS$9,'Output ProjYr'!$DB30,Calcs!$F$789:$AOS$789))/1000000 -> 0 | DG30: =(SUMIF(Calcs!$F$9:$AOS$9,'Output ProjYr'!$DB30,Calcs!$F$863:$AOS$863))/1000000 -> 0 | DH30: =(SUMIF(Calcs!$F$9:$AOS$9,'Output ProjYr'!$DB30,Calcs!$F$937:$AOS$937))/1000000 -> 0 | DI30: =(SUMIF(Calcs!$F$9:$AOS$9,'Output ProjYr'!$DB30,Calcs!$F$1011:$AOS$1011))/1000000 -> 0 | DJ30: =(SUMIF(Calcs!$F$9:$AOS$9,'Output ProjYr'!$DB30,Calcs!$F$1085:$AOS$1085))/1000000 -> 0 | DK30: =(SUMIF(Calcs!$F$9:$AOS$9,'Output ProjYr'!$DB30,Calcs!$F$1159:$AOS$1159))/1000000 -> 0 | DL30: =(SUMIF(Calcs!$F$9:$AOS$9,'Output ProjYr'!$DB30,Calcs!$F$1233:$AOS$1233))/1000000 -> 0 | DO30: =(SUMIF(Calcs!$F$9:$AOS$9,'Output ProjYr'!$DB30,Calcs!$F$1344:$AOS$1344))/1000000 -> 0 | DV30: =(SUMIF(Calcs!$F$9:$AOS$9,'Output ProjYr'!$DB30,Calcs!$F$1603:$AOS$1603))/1000000 -> 0 | DW30: 0
A31: 24 | B31: =SUMIF(Calcs!$F$9:$AOS$9,'Output ProjYr'!$A31,Calcs!$F$528:$AOS$528) -> 0 | C31: =SUMIF(Calcs!$F$9:$AOS$9,'Output ProjYr'!$A31,Calcs!$F$602:$AOS$602) -> 0 | D31: =SUMIF(Calcs!$F$9:$AOS$9,'Output ProjYr'!$A31,Calcs!$F$676:$AOS$676) -> 0 | E31: =SUMIF(Calcs!$F$9:$AOS$9,'Output ProjYr'!$A31,Calcs!$F$750:$AOS$750) -> 0 | F31: =SUMIF(Calcs!$F$9:$AOS$9,'Output ProjYr'!$A31,Calcs!$F$824:$AOS$824) -> 2346851.903 | G31: =SUMIF(Calcs!$F$9:$AOS$9,'Output ProjYr'!$A31,Calcs!$F$898:$AOS$898) -> 0 | H31: =SUMIF(Calcs!$F$9:$AOS$9,'Output ProjYr'!$A31,Calcs!$F$972:$AOS$972) -> 0 | I31: =SUMIF(Calcs!$F$9:$AOS$9,'Output ProjYr'!$A31,Calcs!$F$1046:$AOS$1046) -> 0 | J31: =SUMIF(Calcs!$F$9:$AOS$9,'Output ProjYr'!$A31,Calcs!$F$1120:$AOS$1120) -> 0 | K31: =SUMIF(Calcs!$F$9:$AOS$9,'Output ProjYr'!$A31,Calcs!$F$1194:$AOS$1194) -> 0 | L31: =SUMIF(Calcs!$F$9:$AOS$9,'Output ProjYr'!$A31,Calcs!$F$525:$AOS$525) -> 0 | M31: =SUMIF(Calcs!$F$9:$AOS$9,'Output ProjYr'!$A31,Calcs!$F$599:$AOS$599) -> 0 | N31: =SUMIF(Calcs!$F$9:$AOS$9,'Output ProjYr'!$A31,Calcs!$F$673:$AOS$673) -> 0 | O31: =SUMIF(Calcs!$F$9:$AOS$9,'Output ProjYr'!$A31,Calcs!$F$747:$AOS$747) -> 0 | P31: =SUMIF(Calcs!$F$9:$AOS$9,'Output ProjYr'!$A31,Calcs!$F$821:$AOS$821) -> 0 | Q31: =SUMIF(Calcs!$F$9:$AOS$9,'Output ProjYr'!$A31,Calcs!$F$895:$AOS$895) -> 0 | R31: =SUMIF(Calcs!$F$9:$AOS$9,'Output ProjYr'!$A31,Calcs!$F$969:$AOS$969) -> 0 | S31: =SUMIF(Calcs!$F$9:$AOS$9,'Output ProjYr'!$A31,Calcs!$F$1043:$AOS$1043) -> 0 | T31: =SUMIF(Calcs!$F$9:$AOS$9,'Output ProjYr'!$A31,Calcs!$F$1117:$AOS$1117) -> 0 | U31: =SUMIF(Calcs!$F$9:$AOS$9,'Output ProjYr'!$A31,Calcs!$F$1191:$AOS$1191) -> 0 | V31: =SUMIF(Calcs!$F$9:$AOS$9,'Output ProjYr'!$A31,Calcs!$F$1257:$AOS$1257) -> 0 | W31: =SUMIF(Calcs!$F$9:$AOS$9,'Output ProjYr'!$A31,Calcs!$F$1294:$AOS$1294) -> 0 | X31: =SUMIF(Calcs!$F$9:$AOS$9,'Output ProjYr'!$A31,Calcs!$F$1331:$AOS$1331) -> 0 | Y31: =SUMIF(Calcs!$F$9:$AOS$9,'Output ProjYr'!$A31,Calcs!$F$1368:$AOS$1368) -> 0 | Z31: =SUMIF(Calcs!$F$9:$AOS$9,'Output ProjYr'!$A31,Calcs!$F$1405:$AOS$1405) -> 0 | AA31: =SUMIF(Calcs!$F$9:$AOS$9,'Output ProjYr'!$A31,Calcs!$F$1442:$AOS$1442) -> 0 | AB31: =SUMIF(Calcs!$F$9:$AOS$9,'Output ProjYr'!$A31,Calcs!$F$1479:$AOS$1479) -> 0 | AC31: =SUMIF(Calcs!$F$9:$AOS$9,'Output ProjYr'!$A31,Calcs!$F$1516:$AOS$1516) -> 0 | AD31: =SUMIF(Calcs!$F$9:$AOS$9,'Output ProjYr'!$A31,Calcs!$F$1553:$AOS$1553) -> 0 | AE31: =SUMIF(Calcs!$F$9:$AOS$9,'Output ProjYr'!$A31,Calcs!$F$1590:$AOS$1590) -> 0 | AF31: 2346851.903 | AH31: 24 | AI31: =SUMIF(Calcs!$F$9:$AOS$9,'Output ProjYr'!$AH31,Calcs!$F$1714:$AOS$1714) -> 0 | AJ31: =SUMIF(Calcs!$F$9:$AOS$9,'Output ProjYr'!$AH31,Calcs!$F$1715:$AOS$1715) -> 0 | AK31: =SUMIF(Calcs!$F$9:$AOS$9,'Output ProjYr'!$AH31,Calcs!$F$1716:$AOS$1716) -> 0 | AL31: =SUMIF(Calcs!$F$9:$AOS$9,'Output ProjYr'!$AH31,Calcs!$F$1717:$AOS$1717) -> 0 | AM31: =SUMIF(Calcs!$F$9:$AOS$9,'Output ProjYr'!$AH31,Calcs!$F$1718:$AOS$1718) -> 0 | AN31: =SUMIF(Calcs!$F$9:$AOS$9,'Output ProjYr'!$AH31,Calcs!$F$1719:$AOS$1719) -> 0 | AO31: =SUMIF(Calcs!$F$9:$AOS$9,'Output ProjYr'!$AH31,Calcs!$F$1720:$AOS$1720) -> 0 | AP31: =SUMIF(Calcs!$F$9:$AOS$9,'Output ProjYr'!$AH31,Calcs!$F$1721:$AOS$1721) -> 0 | AQ31: =SUMIF(Calcs!$F$9:$AOS$9,'Output ProjYr'!$AH31,Calcs!$F$1722:$AOS$1722) -> 0 | AR31: =SUMIF(Calcs!$F$9:$AOS$9,'Output ProjYr'!$AH31,Calcs!$F$1723:$AOS$1723) -> 0 | AS31: 0 | AU31: 24 | AV31: =SUMIF(Calcs!$F$9:$AOS$9,'Output ProjYr'!$AU31,Calcs!$F$514:$AOS$514)/12 -> 167.8082192 | AW31: =(SUMIF(Calcs!$F$9:$AOS$9,'Output ProjYr'!$AU31,Calcs!$F$588:$AOS$588))/12 -> 500.8253595 | AX31: =(SUMIF(Calcs!$F$9:$AOS$9,'Output ProjYr'!$AU31,Calcs!$F$662:$AOS$662))/12 -> 26.89872846 | AY31: =(SUMIF(Calcs!$F$9:$AOS$9,'Output ProjYr'!$AU31,Calcs!$F$736:$AOS$736))/12 -> 43.83375287 | AZ31: =(SUMIF(Calcs!$F$9:$AOS$9,'Output ProjYr'!$AU31,Calcs!$F$810:$AOS$810))/12 -> 26.63394003 | BA31: =(SUMIF(Calcs!$F$9:$AOS$9,'Output ProjYr'!$AU31,Calcs!$F$884:$AOS$884))/12 -> 0 | BB31: =(SUMIF(Calcs!$F$9:$AOS$9,'Output ProjYr'!$AU31,Calcs!$F$958:$AOS$958))/12 -> 0 | BC31: =(SUMIF(Calcs!$F$9:$AOS$9,'Output ProjYr'!$AU31,Calcs!$F$1032:$AOS$1032))/12 -> 0 | BD31: =(SUMIF(Calcs!$F$9:$AOS$9,'Output ProjYr'!$AU31,Calcs!$F$1106:$AOS$1106))/12 -> 0 | BE31: =(SUMIF(Calcs!$F$9:$AOS$9,'Output ProjYr'!$AU31,Calcs!$F$1180:$AOS$1180))/12 -> 0 | BF31: 766 | BH31: 24 | BI31: =SUMIF(Calcs!$F$9:$AOS$9,'Output ProjYr'!$BH31,Calcs!$F$520:$AOS$520) -> 980 | BJ31: =SUMIF(Calcs!$F$9:$AOS$9,'Output ProjYr'!$BH31,Calcs!$F$594:$AOS$594) -> 3936.464716 | BK31: =SUMIF(Calcs!$F$9:$AOS$9,'Output ProjYr'!$BH31,Calcs!$F$668:$AOS$668) -> 0 | BL31: =SUMIF(Calcs!$F$9:$AOS$9,'Output ProjYr'!$BH31,Calcs!$F$742:$AOS$742) -> 0 | BM31: =SUMIF(Calcs!$F$9:$AOS$9,'Output ProjYr'!$BH31,Calcs!$F$816:$AOS$816) -> 19.38337545 | BN31: =SUMIF(Calcs!$F$9:$AOS$9,'Output ProjYr'!$BH31,Calcs!$F$890:$AOS$890) -> 0 | BO31: =SUMIF(Calcs!$F$9:$AOS$9,'Output ProjYr'!$BH31,Calcs!$F$964:$AOS$964) -> 0 | BP31: =SUMIF(Calcs!$F$9:$AOS$9,'Output ProjYr'!$BH31,Calcs!$F$1038:$AOS$1038) -> 0 | BQ31: =SUMIF(Calcs!$F$9:$AOS$9,'Output ProjYr'!$BH31,Calcs!$F$1112:$AOS$1112) -> 0 | BR31: =SUMIF(Calcs!$F$9:$AOS$9,'Output ProjYr'!$BH31,Calcs!$F$1186:$AOS$1186) -> 0 | BS31: =SUMIF(Calcs!$F$9:$AOS$9,'Output ProjYr'!$BH31,Calcs!$F$1252:$AOS$1252) -> 0 | BT31: =SUMIF(Calcs!$F$9:$AOS$9,'Output ProjYr'!$BH31,Calcs!$F$1289:$AOS$1289) -> 0 | BU31: =SUMIF(Calcs!$F$9:$AOS$9,'Output ProjYr'!$BH31,Calcs!$F$1326:$AOS$1326) -> 0 | BV31: =SUMIF(Calcs!$F$9:$AOS$9,'Output ProjYr'!$BH31,Calcs!$F$1363:$AOS$1363) -> 0 | BW31: =SUMIF(Calcs!$F$9:$AOS$9,'Output ProjYr'!$BH31,Calcs!$F$1400:$AOS$1400) -> 0 | BX31: =SUMIF(Calcs!$F$9:$AOS$9,'Output ProjYr'!$BH31,Calcs!$F$1437:$AOS$1437) -> 0 | BY31: =SUMIF(Calcs!$F$9:$AOS$9,'Output ProjYr'!$BH31,Calcs!$F$1474:$AOS$1474) -> 0 | BZ31: =SUMIF(Calcs!$F$9:$AOS$9,'Output ProjYr'!$BH31,Calcs!$F$1511:$AOS$1511) -> 0 | CA31: =SUMIF(Calcs!$F$9:$AOS$9,'Output ProjYr'!$BH31,Calcs!$F$1548:$AOS$1548) -> 0 | CB31: =SUMIF(Calcs!$F$9:$AOS$9,'Output ProjYr'!$BH31,Calcs!$F$1585:$AOS$1585) -> 0 | CC31: 4935.848091 | CE31: 24 | CF31: =SUMIF(Calcs!$F$9:$AOS$9,$CE31,Calcs!$F$521:$AOS$521) -> 883.3911198 | CG31: =SUMIF(Calcs!$F$9:$AOS$9,$CE31,Calcs!$F$595:$AOS$595) -> 3701.654595 | CH31: =SUMIF(Calcs!$F$9:$AOS$9,$CE31,Calcs!$F$669:$AOS$669) -> 0 | CI31: =SUMIF(Calcs!$F$9:$AOS$9,$CE31,Calcs!$F$743:$AOS$743) -> 0 | CJ31: =SUMIF(Calcs!$F$9:$AOS$9,$CE31,Calcs!$F$817:$AOS$817) -> 17.4725528 | CK31: =SUMIF(Calcs!$F$9:$AOS$9,$CE31,Calcs!$F$891:$AOS$891) -> 0 | CL31: =SUMIF(Calcs!$F$9:$AOS$9,$CE31,Calcs!$F$965:$AOS$965) -> 0 | CM31: =SUMIF(Calcs!$F$9:$AOS$9,$CE31,Calcs!$F$1039:$AOS$1039) -> 0 | CN31: =SUMIF(Calcs!$F$9:$AOS$9,$CE31,Calcs!$F$1113:$AOS$1113) -> 0 | CO31: =SUMIF(Calcs!$F$9:$AOS$9,$CE31,Calcs!$F$1187:$AOS$1187) -> 0 | CP31: =SUMIF(Calcs!$F$9:$AOS$9,$CE31,Calcs!$F$1253:$AOS$1253) -> 0 | CQ31: =SUMIF(Calcs!$F$9:$AOS$9,$CE31,Calcs!$F$1290:$AOS$1290) -> 0 | CR31: =SUMIF(Calcs!$F$9:$AOS$9,$CE31,Calcs!$F$1327:$AOS$1327) -> 0 | CS31: =SUMIF(Calcs!$F$9:$AOS$9,$CE31,Calcs!$F$1364:$AOS$1364) -> 0 | CT31: =SUMIF(Calcs!$F$9:$AOS$9,$CE31,Calcs!$F$1401:$AOS$1401) -> 0 | CU31: =SUMIF(Calcs!$F$9:$AOS$9,$CE31,Calcs!$F$1438:$AOS$1438) -> 0 | CV31: =SUMIF(Calcs!$F$9:$AOS$9,$CE31,Calcs!$F$1475:$AOS$1475) -> 0 | CW31: =SUMIF(Calcs!$F$9:$AOS$9,$CE31,Calcs!$F$1512:$AOS$1512) -> 0 | CX31: =SUMIF(Calcs!$F$9:$AOS$9,$CE31,Calcs!$F$1549:$AOS$1549) -> 0 | CY31: =SUMIF(Calcs!$F$9:$AOS$9,$CE31,Calcs!$F$1586:$AOS$1586) -> 0 | CZ31: 4602.518268 | DB31: 24 | DC31: =(SUMIF(Calcs!$F$9:$AOS$9,'Output ProjYr'!$DB31,Calcs!$F$567:$AOS$567))/1000000 -> 0 | DD31: =(SUMIF(Calcs!$F$9:$AOS$9,'Output ProjYr'!$DB31,Calcs!$F$641:$AOS$641))/1000000 -> 0 | DE31: =(SUMIF(Calcs!$F$9:$AOS$9,'Output ProjYr'!$DB31,Calcs!$F$715:$AOS$715))/1000000 -> 0 | DF31: =(SUMIF(Calcs!$F$9:$AOS$9,'Output ProjYr'!$DB31,Calcs!$F$789:$AOS$789))/1000000 -> 0 | DG31: =(SUMIF(Calcs!$F$9:$AOS$9,'Output ProjYr'!$DB31,Calcs!$F$863:$AOS$863))/1000000 -> 0 | DH31: =(SUMIF(Calcs!$F$9:$AOS$9,'Output ProjYr'!$DB31,Calcs!$F$937:$AOS$937))/1000000 -> 0 | DI31: =(SUMIF(Calcs!$F$9:$AOS$9,'Output ProjYr'!$DB31,Calcs!$F$1011:$AOS$1011))/1000000 -> 0 | DJ31: =(SUMIF(Calcs!$F$9:$AOS$9,'Output ProjYr'!$DB31,Calcs!$F$1085:$AOS$1085))/1000000 -> 0 | DK31: =(SUMIF(Calcs!$F$9:$AOS$9,'Output ProjYr'!$DB31,Calcs!$F$1159:$AOS$1159))/1000000 -> 0 | DL31: =(SUMIF(Calcs!$F$9:$AOS$9,'Output ProjYr'!$DB31,Calcs!$F$1233:$AOS$1233))/1000000 -> 0 | DO31: =(SUMIF(Calcs!$F$9:$AOS$9,'Output ProjYr'!$DB31,Calcs!$F$1344:$AOS$1344))/1000000 -> 0 | DV31: =(SUMIF(Calcs!$F$9:$AOS$9,'Output ProjYr'!$DB31,Calcs!$F$1603:$AOS$1603))/1000000 -> 0 | DW31: 0
A32: 25 | B32: =SUMIF(Calcs!$F$9:$AOS$9,'Output ProjYr'!$A32,Calcs!$F$528:$AOS$528) -> 0 | C32: =SUMIF(Calcs!$F$9:$AOS$9,'Output ProjYr'!$A32,Calcs!$F$602:$AOS$602) -> 0 | D32: =SUMIF(Calcs!$F$9:$AOS$9,'Output ProjYr'!$A32,Calcs!$F$676:$AOS$676) -> 1568932.66 | E32: =SUMIF(Calcs!$F$9:$AOS$9,'Output ProjYr'!$A32,Calcs!$F$750:$AOS$750) -> 0 | F32: =SUMIF(Calcs!$F$9:$AOS$9,'Output ProjYr'!$A32,Calcs!$F$824:$AOS$824) -> 0.1447626686 | G32: =SUMIF(Calcs!$F$9:$AOS$9,'Output ProjYr'!$A32,Calcs!$F$898:$AOS$898) -> 0 | H32: =SUMIF(Calcs!$F$9:$AOS$9,'Output ProjYr'!$A32,Calcs!$F$972:$AOS$972) -> 0 | I32: =SUMIF(Calcs!$F$9:$AOS$9,'Output ProjYr'!$A32,Calcs!$F$1046:$AOS$1046) -> 0 | J32: =SUMIF(Calcs!$F$9:$AOS$9,'Output ProjYr'!$A32,Calcs!$F$1120:$AOS$1120) -> 0 | K32: =SUMIF(Calcs!$F$9:$AOS$9,'Output ProjYr'!$A32,Calcs!$F$1194:$AOS$1194) -> 0 | L32: =SUMIF(Calcs!$F$9:$AOS$9,'Output ProjYr'!$A32,Calcs!$F$525:$AOS$525) -> 0 | M32: =SUMIF(Calcs!$F$9:$AOS$9,'Output ProjYr'!$A32,Calcs!$F$599:$AOS$599) -> 0 | N32: =SUMIF(Calcs!$F$9:$AOS$9,'Output ProjYr'!$A32,Calcs!$F$673:$AOS$673) -> 0 | O32: =SUMIF(Calcs!$F$9:$AOS$9,'Output ProjYr'!$A32,Calcs!$F$747:$AOS$747) -> 0 | P32: =SUMIF(Calcs!$F$9:$AOS$9,'Output ProjYr'!$A32,Calcs!$F$821:$AOS$821) -> 0 | Q32: =SUMIF(Calcs!$F$9:$AOS$9,'Output ProjYr'!$A32,Calcs!$F$895:$AOS$895) -> 0 | R32: =SUMIF(Calcs!$F$9:$AOS$9,'Output ProjYr'!$A32,Calcs!$F$969:$AOS$969) -> 0 | S32: =SUMIF(Calcs!$F$9:$AOS$9,'Output ProjYr'!$A32,Calcs!$F$1043:$AOS$1043) -> 0 | T32: =SUMIF(Calcs!$F$9:$AOS$9,'Output ProjYr'!$A32,Calcs!$F$1117:$AOS$1117) -> 0 | U32: =SUMIF(Calcs!$F$9:$AOS$9,'Output ProjYr'!$A32,Calcs!$F$1191:$AOS$1191) -> 0 | V32: =SUMIF(Calcs!$F$9:$AOS$9,'Output ProjYr'!$A32,Calcs!$F$1257:$AOS$1257) -> 0 | W32: =SUMIF(Calcs!$F$9:$AOS$9,'Output ProjYr'!$A32,Calcs!$F$1294:$AOS$1294) -> 0 | X32: =SUMIF(Calcs!$F$9:$AOS$9,'Output ProjYr'!$A32,Calcs!$F$1331:$AOS$1331) -> 0.05023515184 | Y32: =SUMIF(Calcs!$F$9:$AOS$9,'Output ProjYr'!$A32,Calcs!$F$1368:$AOS$1368) -> 0 | Z32: =SUMIF(Calcs!$F$9:$AOS$9,'Output ProjYr'!$A32,Calcs!$F$1405:$AOS$1405) -> 0 | AA32: =SUMIF(Calcs!$F$9:$AOS$9,'Output ProjYr'!$A32,Calcs!$F$1442:$AOS$1442) -> 0 | AB32: =SUMIF(Calcs!$F$9:$AOS$9,'Output ProjYr'!$A32,Calcs!$F$1479:$AOS$1479) -> 0 | AC32: =SUMIF(Calcs!$F$9:$AOS$9,'Output ProjYr'!$A32,Calcs!$F$1516:$AOS$1516) -> 0 | AD32: =SUMIF(Calcs!$F$9:$AOS$9,'Output ProjYr'!$A32,Calcs!$F$1553:$AOS$1553) -> 0 | AE32: =SUMIF(Calcs!$F$9:$AOS$9,'Output ProjYr'!$A32,Calcs!$F$1590:$AOS$1590) -> 0 | AF32: 1568932.855 | AH32: 25 | AI32: =SUMIF(Calcs!$F$9:$AOS$9,'Output ProjYr'!$AH32,Calcs!$F$1714:$AOS$1714) -> 0 | AJ32: =SUMIF(Calcs!$F$9:$AOS$9,'Output ProjYr'!$AH32,Calcs!$F$1715:$AOS$1715) -> 0 | AK32: =SUMIF(Calcs!$F$9:$AOS$9,'Output ProjYr'!$AH32,Calcs!$F$1716:$AOS$1716) -> 0 | AL32: =SUMIF(Calcs!$F$9:$AOS$9,'Output ProjYr'!$AH32,Calcs!$F$1717:$AOS$1717) -> 0 | AM32: =SUMIF(Calcs!$F$9:$AOS$9,'Output ProjYr'!$AH32,Calcs!$F$1718:$AOS$1718) -> 0 | AN32: =SUMIF(Calcs!$F$9:$AOS$9,'Output ProjYr'!$AH32,Calcs!$F$1719:$AOS$1719) -> 0 | AO32: =SUMIF(Calcs!$F$9:$AOS$9,'Output ProjYr'!$AH32,Calcs!$F$1720:$AOS$1720) -> 124909.5129 | AP32: =SUMIF(Calcs!$F$9:$AOS$9,'Output ProjYr'!$AH32,Calcs!$F$1721:$AOS$1721) -> 0 | AQ32: =SUMIF(Calcs!$F$9:$AOS$9,'Output ProjYr'!$AH32,Calcs!$F$1722:$AOS$1722) -> 0 | AR32: =SUMIF(Calcs!$F$9:$AOS$9,'Output ProjYr'!$AH32,Calcs!$F$1723:$AOS$1723) -> 0 | AS32: 124909.5129 | AU32: 25 | AV32: =SUMIF(Calcs!$F$9:$AOS$9,'Output ProjYr'!$AU32,Calcs!$F$514:$AOS$514)/12 -> 167.8082192 | AW32: =(SUMIF(Calcs!$F$9:$AOS$9,'Output ProjYr'!$AU32,Calcs!$F$588:$AOS$588))/12 -> 504.2414679 | AX32: =(SUMIF(Calcs!$F$9:$AOS$9,'Output ProjYr'!$AU32,Calcs!$F$662:$AOS$662))/12 -> 27.05078906 | AY32: =(SUMIF(Calcs!$F$9:$AOS$9,'Output ProjYr'!$AU32,Calcs!$F$736:$AOS$736))/12 -> 66.89952361 | AZ32: =(SUMIF(Calcs!$F$9:$AOS$9,'Output ProjYr'!$AU32,Calcs!$F$810:$AOS$810))/12 -> 2.054794663e-07 | BA32: =(SUMIF(Calcs!$F$9:$AOS$9,'Output ProjYr'!$AU32,Calcs!$F$884:$AOS$884))/12 -> 0 | BB32: =(SUMIF(Calcs!$F$9:$AOS$9,'Output ProjYr'!$AU32,Calcs!$F$958:$AOS$958))/12 -> 0 | BC32: =(SUMIF(Calcs!$F$9:$AOS$9,'Output ProjYr'!$AU32,Calcs!$F$1032:$AOS$1032))/12 -> 0 | BD32: =(SUMIF(Calcs!$F$9:$AOS$9,'Output ProjYr'!$AU32,Calcs!$F$1106:$AOS$1106))/12 -> 0 | BE32: =(SUMIF(Calcs!$F$9:$AOS$9,'Output ProjYr'!$AU32,Calcs!$F$1180:$AOS$1180))/12 -> 0 | BF32: 766 | BH32: 25 | BI32: =SUMIF(Calcs!$F$9:$AOS$9,'Output ProjYr'!$BH32,Calcs!$F$520:$AOS$520) -> 980 | BJ32: =SUMIF(Calcs!$F$9:$AOS$9,'Output ProjYr'!$BH32,Calcs!$F$594:$AOS$594) -> 3944.553257 | BK32: =SUMIF(Calcs!$F$9:$AOS$9,'Output ProjYr'!$BH32,Calcs!$F$668:$AOS$668) -> 11.29483209 | BL32: =SUMIF(Calcs!$F$9:$AOS$9,'Output ProjYr'!$BH32,Calcs!$F$742:$AOS$742) -> 0 | BM32: =SUMIF(Calcs!$F$9:$AOS$9,'Output ProjYr'!$BH32,Calcs!$F$816:$AOS$816) -> 1.209862944e-06 | BN32: =SUMIF(Calcs!$F$9:$AOS$9,'Output ProjYr'!$BH32,Calcs!$F$890:$AOS$890) -> 0 | BO32: =SUMIF(Calcs!$F$9:$AOS$9,'Output ProjYr'!$BH32,Calcs!$F$964:$AOS$964) -> 0 | BP32: =SUMIF(Calcs!$F$9:$AOS$9,'Output ProjYr'!$BH32,Calcs!$F$1038:$AOS$1038) -> 0 | BQ32: =SUMIF(Calcs!$F$9:$AOS$9,'Output ProjYr'!$BH32,Calcs!$F$1112:$AOS$1112) -> 0 | BR32: =SUMIF(Calcs!$F$9:$AOS$9,'Output ProjYr'!$BH32,Calcs!$F$1186:$AOS$1186) -> 0 | BS32: =SUMIF(Calcs!$F$9:$AOS$9,'Output ProjYr'!$BH32,Calcs!$F$1252:$AOS$1252) -> 0 | BT32: =SUMIF(Calcs!$F$9:$AOS$9,'Output ProjYr'!$BH32,Calcs!$F$1289:$AOS$1289) -> 0 | BU32: =SUMIF(Calcs!$F$9:$AOS$9,'Output ProjYr'!$BH32,Calcs!$F$1326:$AOS$1326) -> 4.602737818e-07 | BV32: =SUMIF(Calcs!$F$9:$AOS$9,'Output ProjYr'!$BH32,Calcs!$F$1363:$AOS$1363) -> 0 | BW32: =SUMIF(Calcs!$F$9:$AOS$9,'Output ProjYr'!$BH32,Calcs!$F$1400:$AOS$1400) -> 0 | BX32: =SUMIF(Calcs!$F$9:$AOS$9,'Output ProjYr'!$BH32,Calcs!$F$1437:$AOS$1437) -> 0 | BY32: =SUMIF(Calcs!$F$9:$AOS$9,'Output ProjYr'!$BH32,Calcs!$F$1474:$AOS$1474) -> 0 | BZ32: =SUMIF(Calcs!$F$9:$AOS$9,'Output ProjYr'!$BH32,Calcs!$F$1511:$AOS$1511) -> 0 | CA32: =SUMIF(Calcs!$F$9:$AOS$9,'Output ProjYr'!$BH32,Calcs!$F$1548:$AOS$1548) -> 0 | CB32: =SUMIF(Calcs!$F$9:$AOS$9,'Output ProjYr'!$BH32,Calcs!$F$1585:$AOS$1585) -> 0 | CC32: 4935.848091 | CE32: 25 | CF32: =SUMIF(Calcs!$F$9:$AOS$9,$CE32,Calcs!$F$521:$AOS$521) -> 883.3911198 | CG32: =SUMIF(Calcs!$F$9:$AOS$9,$CE32,Calcs!$F$595:$AOS$595) -> 3709.260656 | CH32: =SUMIF(Calcs!$F$9:$AOS$9,$CE32,Calcs!$F$669:$AOS$669) -> 10.5019203 | CI32: =SUMIF(Calcs!$F$9:$AOS$9,$CE32,Calcs!$F$743:$AOS$743) -> 0 | CJ32: =SUMIF(Calcs!$F$9:$AOS$9,$CE32,Calcs!$F$817:$AOS$817) -> 1.090594062e-06 | CK32: =SUMIF(Calcs!$F$9:$AOS$9,$CE32,Calcs!$F$891:$AOS$891) -> 0 | CL32: =SUMIF(Calcs!$F$9:$AOS$9,$CE32,Calcs!$F$965:$AOS$965) -> 0 | CM32: =SUMIF(Calcs!$F$9:$AOS$9,$CE32,Calcs!$F$1039:$AOS$1039) -> 0 | CN32: =SUMIF(Calcs!$F$9:$AOS$9,$CE32,Calcs!$F$1113:$AOS$1113) -> 0 | CO32: =SUMIF(Calcs!$F$9:$AOS$9,$CE32,Calcs!$F$1187:$AOS$1187) -> 0 | CP32: =SUMIF(Calcs!$F$9:$AOS$9,$CE32,Calcs!$F$1253:$AOS$1253) -> 0 | CQ32: =SUMIF(Calcs!$F$9:$AOS$9,$CE32,Calcs!$F$1290:$AOS$1290) -> 0 | CR32: =SUMIF(Calcs!$F$9:$AOS$9,$CE32,Calcs!$F$1327:$AOS$1327) -> 4.279619684e-07 | CS32: =SUMIF(Calcs!$F$9:$AOS$9,$CE32,Calcs!$F$1364:$AOS$1364) -> 0 | CT32: =SUMIF(Calcs!$F$9:$AOS$9,$CE32,Calcs!$F$1401:$AOS$1401) -> 0 | CU32: =SUMIF(Calcs!$F$9:$AOS$9,$CE32,Calcs!$F$1438:$AOS$1438) -> 0 | CV32: =SUMIF(Calcs!$F$9:$AOS$9,$CE32,Calcs!$F$1475:$AOS$1475) -> 0 | CW32: =SUMIF(Calcs!$F$9:$AOS$9,$CE32,Calcs!$F$1512:$AOS$1512) -> 0 | CX32: =SUMIF(Calcs!$F$9:$AOS$9,$CE32,Calcs!$F$1549:$AOS$1549) -> 0 | CY32: =SUMIF(Calcs!$F$9:$AOS$9,$CE32,Calcs!$F$1586:$AOS$1586) -> 0 | CZ32: 4603.153697 | DB32: 25 | DC32: =(SUMIF(Calcs!$F$9:$AOS$9,'Output ProjYr'!$DB32,Calcs!$F$567:$AOS$567))/1000000 -> 0 | DD32: =(SUMIF(Calcs!$F$9:$AOS$9,'Output ProjYr'!$DB32,Calcs!$F$641:$AOS$641))/1000000 -> 0 | DE32: =(SUMIF(Calcs!$F$9:$AOS$9,'Output ProjYr'!$DB32,Calcs!$F$715:$AOS$715))/1000000 -> 0.1249095078 | DF32: =(SUMIF(Calcs!$F$9:$AOS$9,'Output ProjYr'!$DB32,Calcs!$F$789:$AOS$789))/1000000 -> 0 | DG32: =(SUMIF(Calcs!$F$9:$AOS$9,'Output ProjYr'!$DB32,Calcs!$F$863:$AOS$863))/1000000 -> 0 | DH32: =(SUMIF(Calcs!$F$9:$AOS$9,'Output ProjYr'!$DB32,Calcs!$F$937:$AOS$937))/1000000 -> 0 | DI32: =(SUMIF(Calcs!$F$9:$AOS$9,'Output ProjYr'!$DB32,Calcs!$F$1011:$AOS$1011))/1000000 -> 0 | DJ32: =(SUMIF(Calcs!$F$9:$AOS$9,'Output ProjYr'!$DB32,Calcs!$F$1085:$AOS$1085))/1000000 -> 0 | DK32: =(SUMIF(Calcs!$F$9:$AOS$9,'Output ProjYr'!$DB32,Calcs!$F$1159:$AOS$1159))/1000000 -> 0 | DL32: =(SUMIF(Calcs!$F$9:$AOS$9,'Output ProjYr'!$DB32,Calcs!$F$1233:$AOS$1233))/1000000 -> 0 | DO32: =(SUMIF(Calcs!$F$9:$AOS$9,'Output ProjYr'!$DB32,Calcs!$F$1344:$AOS$1344))/1000000 -> 5.090166113e-09 | DV32: =(SUMIF(Calcs!$F$9:$AOS$9,'Output ProjYr'!$DB32,Calcs!$F$1603:$AOS$1603))/1000000 -> 0 | DW32: 0.1249095129
A33: 26 | B33: =SUMIF(Calcs!$F$9:$AOS$9,'Output ProjYr'!$A33,Calcs!$F$528:$AOS$528) -> 0 | C33: =SUMIF(Calcs!$F$9:$AOS$9,'Output ProjYr'!$A33,Calcs!$F$602:$AOS$602) -> 0 | D33: =SUMIF(Calcs!$F$9:$AOS$9,'Output ProjYr'!$A33,Calcs!$F$676:$AOS$676) -> 631813.0404 | E33: =SUMIF(Calcs!$F$9:$AOS$9,'Output ProjYr'!$A33,Calcs!$F$750:$AOS$750) -> 0 | F33: =SUMIF(Calcs!$F$9:$AOS$9,'Output ProjYr'!$A33,Calcs!$F$824:$AOS$824) -> 0 | G33: =SUMIF(Calcs!$F$9:$AOS$9,'Output ProjYr'!$A33,Calcs!$F$898:$AOS$898) -> 0 | H33: =SUMIF(Calcs!$F$9:$AOS$9,'Output ProjYr'!$A33,Calcs!$F$972:$AOS$972) -> 0 | I33: =SUMIF(Calcs!$F$9:$AOS$9,'Output ProjYr'!$A33,Calcs!$F$1046:$AOS$1046) -> 0 | J33: =SUMIF(Calcs!$F$9:$AOS$9,'Output ProjYr'!$A33,Calcs!$F$1120:$AOS$1120) -> 0 | K33: =SUMIF(Calcs!$F$9:$AOS$9,'Output ProjYr'!$A33,Calcs!$F$1194:$AOS$1194) -> 0 | L33: =SUMIF(Calcs!$F$9:$AOS$9,'Output ProjYr'!$A33,Calcs!$F$525:$AOS$525) -> 0 | M33: =SUMIF(Calcs!$F$9:$AOS$9,'Output ProjYr'!$A33,Calcs!$F$599:$AOS$599) -> 0 | N33: =SUMIF(Calcs!$F$9:$AOS$9,'Output ProjYr'!$A33,Calcs!$F$673:$AOS$673) -> 0 | O33: =SUMIF(Calcs!$F$9:$AOS$9,'Output ProjYr'!$A33,Calcs!$F$747:$AOS$747) -> 0 | P33: =SUMIF(Calcs!$F$9:$AOS$9,'Output ProjYr'!$A33,Calcs!$F$821:$AOS$821) -> 0 | Q33: =SUMIF(Calcs!$F$9:$AOS$9,'Output ProjYr'!$A33,Calcs!$F$895:$AOS$895) -> 0 | R33: =SUMIF(Calcs!$F$9:$AOS$9,'Output ProjYr'!$A33,Calcs!$F$969:$AOS$969) -> 0 | S33: =SUMIF(Calcs!$F$9:$AOS$9,'Output ProjYr'!$A33,Calcs!$F$1043:$AOS$1043) -> 0 | T33: =SUMIF(Calcs!$F$9:$AOS$9,'Output ProjYr'!$A33,Calcs!$F$1117:$AOS$1117) -> 0 | U33: =SUMIF(Calcs!$F$9:$AOS$9,'Output ProjYr'!$A33,Calcs!$F$1191:$AOS$1191) -> 0 | V33: =SUMIF(Calcs!$F$9:$AOS$9,'Output ProjYr'!$A33,Calcs!$F$1257:$AOS$1257) -> 0 | W33: =SUMIF(Calcs!$F$9:$AOS$9,'Output ProjYr'!$A33,Calcs!$F$1294:$AOS$1294) -> 0 | X33: =SUMIF(Calcs!$F$9:$AOS$9,'Output ProjYr'!$A33,Calcs!$F$1331:$AOS$1331) -> 0.08971435913 | Y33: =SUMIF(Calcs!$F$9:$AOS$9,'Output ProjYr'!$A33,Calcs!$F$1368:$AOS$1368) -> 0 | Z33: =SUMIF(Calcs!$F$9:$AOS$9,'Output ProjYr'!$A33,Calcs!$F$1405:$AOS$1405) -> 0 | AA33: =SUMIF(Calcs!$F$9:$AOS$9,'Output ProjYr'!$A33,Calcs!$F$1442:$AOS$1442) -> 0 | AB33: =SUMIF(Calcs!$F$9:$AOS$9,'Output ProjYr'!$A33,Calcs!$F$1479:$AOS$1479) -> 0 | AC33: =SUMIF(Calcs!$F$9:$AOS$9,'Output ProjYr'!$A33,Calcs!$F$1516:$AOS$1516) -> 0 | AD33: =SUMIF(Calcs!$F$9:$AOS$9,'Output ProjYr'!$A33,Calcs!$F$1553:$AOS$1553) -> 0 | AE33: =SUMIF(Calcs!$F$9:$AOS$9,'Output ProjYr'!$A33,Calcs!$F$1590:$AOS$1590) -> 0 | AF33: 631813.1302 | AH33: 26 | AI33: =SUMIF(Calcs!$F$9:$AOS$9,'Output ProjYr'!$AH33,Calcs!$F$1714:$AOS$1714) -> 0 | AJ33: =SUMIF(Calcs!$F$9:$AOS$9,'Output ProjYr'!$AH33,Calcs!$F$1715:$AOS$1715) -> 0 | AK33: =SUMIF(Calcs!$F$9:$AOS$9,'Output ProjYr'!$AH33,Calcs!$F$1716:$AOS$1716) -> 0 | AL33: =SUMIF(Calcs!$F$9:$AOS$9,'Output ProjYr'!$AH33,Calcs!$F$1717:$AOS$1717) -> 0 | AM33: =SUMIF(Calcs!$F$9:$AOS$9,'Output ProjYr'!$AH33,Calcs!$F$1718:$AOS$1718) -> 0 | AN33: =SUMIF(Calcs!$F$9:$AOS$9,'Output ProjYr'!$AH33,Calcs!$F$1719:$AOS$1719) -> 0 | AO33: =SUMIF(Calcs!$F$9:$AOS$9,'Output ProjYr'!$AH33,Calcs!$F$1720:$AOS$1720) -> 46582.98434 | AP33: =SUMIF(Calcs!$F$9:$AOS$9,'Output ProjYr'!$AH33,Calcs!$F$1721:$AOS$1721) -> 0 | AQ33: =SUMIF(Calcs!$F$9:$AOS$9,'Output ProjYr'!$AH33,Calcs!$F$1722:$AOS$1722) -> 0 | AR33: =SUMIF(Calcs!$F$9:$AOS$9,'Output ProjYr'!$AH33,Calcs!$F$1723:$AOS$1723) -> 0 | AS33: 46582.98434 | AU33: 26 | AV33: =SUMIF(Calcs!$F$9:$AOS$9,'Output ProjYr'!$AU33,Calcs!$F$514:$AOS$514)/12 -> 167.8082192 | AW33: =(SUMIF(Calcs!$F$9:$AOS$9,'Output ProjYr'!$AU33,Calcs!$F$588:$AOS$588))/12 -> 506.7338784 | AX33: =(SUMIF(Calcs!$F$9:$AOS$9,'Output ProjYr'!$AU33,Calcs!$F$662:$AOS$662))/12 -> 27.20284959 | AY33: =(SUMIF(Calcs!$F$9:$AOS$9,'Output ProjYr'!$AU33,Calcs!$F$736:$AOS$736))/12 -> 64.25505285 | AZ33: =(SUMIF(Calcs!$F$9:$AOS$9,'Output ProjYr'!$AU33,Calcs!$F$810:$AOS$810))/12 -> 0 | BA33: =(SUMIF(Calcs!$F$9:$AOS$9,'Output ProjYr'!$AU33,Calcs!$F$884:$AOS$884))/12 -> 0 | BB33: =(SUMIF(Calcs!$F$9:$AOS$9,'Output ProjYr'!$AU33,Calcs!$F$958:$AOS$958))/12 -> 0 | BC33: =(SUMIF(Calcs!$F$9:$AOS$9,'Output ProjYr'!$AU33,Calcs!$F$1032:$AOS$1032))/12 -> 0 | BD33: =(SUMIF(Calcs!$F$9:$AOS$9,'Output ProjYr'!$AU33,Calcs!$F$1106:$AOS$1106))/12 -> 0 | BE33: =(SUMIF(Calcs!$F$9:$AOS$9,'Output ProjYr'!$AU33,Calcs!$F$1180:$AOS$1180))/12 -> 0 | BF33: 766 | BH33: 26 | BI33: =SUMIF(Calcs!$F$9:$AOS$9,'Output ProjYr'!$BH33,Calcs!$F$520:$AOS$520) -> 980 | BJ33: =SUMIF(Calcs!$F$9:$AOS$9,'Output ProjYr'!$BH33,Calcs!$F$594:$AOS$594) -> 3951.677571 | BK33: =SUMIF(Calcs!$F$9:$AOS$9,'Output ProjYr'!$BH33,Calcs!$F$668:$AOS$668) -> 4.170519274 | BL33: =SUMIF(Calcs!$F$9:$AOS$9,'Output ProjYr'!$BH33,Calcs!$F$742:$AOS$742) -> 0 | BM33: =SUMIF(Calcs!$F$9:$AOS$9,'Output ProjYr'!$BH33,Calcs!$F$816:$AOS$816) -> 0 | BN33: =SUMIF(Calcs!$F$9:$AOS$9,'Output ProjYr'!$BH33,Calcs!$F$890:$AOS$890) -> 0 | BO33: =SUMIF(Calcs!$F$9:$AOS$9,'Output ProjYr'!$BH33,Calcs!$F$964:$AOS$964) -> 0 | BP33: =SUMIF(Calcs!$F$9:$AOS$9,'Output ProjYr'!$BH33,Calcs!$F$1038:$AOS$1038) -> 0 | BQ33: =SUMIF(Calcs!$F$9:$AOS$9,'Output ProjYr'!$BH33,Calcs!$F$1112:$AOS$1112) -> 0 | BR33: =SUMIF(Calcs!$F$9:$AOS$9,'Output ProjYr'!$BH33,Calcs!$F$1186:$AOS$1186) -> 0 | BS33: =SUMIF(Calcs!$F$9:$AOS$9,'Output ProjYr'!$BH33,Calcs!$F$1252:$AOS$1252) -> 0 | BT33: =SUMIF(Calcs!$F$9:$AOS$9,'Output ProjYr'!$BH33,Calcs!$F$1289:$AOS$1289) -> 0 | BU33: =SUMIF(Calcs!$F$9:$AOS$9,'Output ProjYr'!$BH33,Calcs!$F$1326:$AOS$1326) -> 8.153420481e-07 | BV33: =SUMIF(Calcs!$F$9:$AOS$9,'Output ProjYr'!$BH33,Calcs!$F$1363:$AOS$1363) -> 0 | BW33: =SUMIF(Calcs!$F$9:$AOS$9,'Output ProjYr'!$BH33,Calcs!$F$1400:$AOS$1400) -> 0 | BX33: =SUMIF(Calcs!$F$9:$AOS$9,'Output ProjYr'!$BH33,Calcs!$F$1437:$AOS$1437) -> 0 | BY33: =SUMIF(Calcs!$F$9:$AOS$9,'Output ProjYr'!$BH33,Calcs!$F$1474:$AOS$1474) -> 0 | BZ33: =SUMIF(Calcs!$F$9:$AOS$9,'Output ProjYr'!$BH33,Calcs!$F$1511:$AOS$1511) -> 0 | CA33: =SUMIF(Calcs!$F$9:$AOS$9,'Output ProjYr'!$BH33,Calcs!$F$1548:$AOS$1548) -> 0 | CB33: =SUMIF(Calcs!$F$9:$AOS$9,'Output ProjYr'!$BH33,Calcs!$F$1585:$AOS$1585) -> 0 | CC33: 4935.848091 | CE33: 26 | CF33: =SUMIF(Calcs!$F$9:$AOS$9,$CE33,Calcs!$F$521:$AOS$521) -> 883.3911198 | CG33: =SUMIF(Calcs!$F$9:$AOS$9,$CE33,Calcs!$F$595:$AOS$595) -> 3715.960004 | CH33: =SUMIF(Calcs!$F$9:$AOS$9,$CE33,Calcs!$F$669:$AOS$669) -> 3.87774344 | CI33: =SUMIF(Calcs!$F$9:$AOS$9,$CE33,Calcs!$F$743:$AOS$743) -> 0 | CJ33: =SUMIF(Calcs!$F$9:$AOS$9,$CE33,Calcs!$F$817:$AOS$817) -> 0 | CK33: =SUMIF(Calcs!$F$9:$AOS$9,$CE33,Calcs!$F$891:$AOS$891) -> 0 | CL33: =SUMIF(Calcs!$F$9:$AOS$9,$CE33,Calcs!$F$965:$AOS$965) -> 0 | CM33: =SUMIF(Calcs!$F$9:$AOS$9,$CE33,Calcs!$F$1039:$AOS$1039) -> 0 | CN33: =SUMIF(Calcs!$F$9:$AOS$9,$CE33,Calcs!$F$1113:$AOS$1113) -> 0 | CO33: =SUMIF(Calcs!$F$9:$AOS$9,$CE33,Calcs!$F$1187:$AOS$1187) -> 0 | CP33: =SUMIF(Calcs!$F$9:$AOS$9,$CE33,Calcs!$F$1253:$AOS$1253) -> 0 | CQ33: =SUMIF(Calcs!$F$9:$AOS$9,$CE33,Calcs!$F$1290:$AOS$1290) -> 0 | CR33: =SUMIF(Calcs!$F$9:$AOS$9,$CE33,Calcs!$F$1327:$AOS$1327) -> 7.581039843e-07 | CS33: =SUMIF(Calcs!$F$9:$AOS$9,$CE33,Calcs!$F$1364:$AOS$1364) -> 0 | CT33: =SUMIF(Calcs!$F$9:$AOS$9,$CE33,Calcs!$F$1401:$AOS$1401) -> 0 | CU33: =SUMIF(Calcs!$F$9:$AOS$9,$CE33,Calcs!$F$1438:$AOS$1438) -> 0 | CV33: =SUMIF(Calcs!$F$9:$AOS$9,$CE33,Calcs!$F$1475:$AOS$1475) -> 0 | CW33: =SUMIF(Calcs!$F$9:$AOS$9,$CE33,Calcs!$F$1512:$AOS$1512) -> 0 | CX33: =SUMIF(Calcs!$F$9:$AOS$9,$CE33,Calcs!$F$1549:$AOS$1549) -> 0 | CY33: =SUMIF(Calcs!$F$9:$AOS$9,$CE33,Calcs!$F$1586:$AOS$1586) -> 0 | CZ33: 4603.228868 | DB33: 26 | DC33: =(SUMIF(Calcs!$F$9:$AOS$9,'Output ProjYr'!$DB33,Calcs!$F$567:$AOS$567))/1000000 -> 0 | DD33: =(SUMIF(Calcs!$F$9:$AOS$9,'Output ProjYr'!$DB33,Calcs!$F$641:$AOS$641))/1000000 -> 0 | DE33: =(SUMIF(Calcs!$F$9:$AOS$9,'Output ProjYr'!$DB33,Calcs!$F$715:$AOS$715))/1000000 -> 0.04658297527 | DF33: =(SUMIF(Calcs!$F$9:$AOS$9,'Output ProjYr'!$DB33,Calcs!$F$789:$AOS$789))/1000000 -> 0 | DG33: =(SUMIF(Calcs!$F$9:$AOS$9,'Output ProjYr'!$DB33,Calcs!$F$863:$AOS$863))/1000000 -> 0 | DH33: =(SUMIF(Calcs!$F$9:$AOS$9,'Output ProjYr'!$DB33,Calcs!$F$937:$AOS$937))/1000000 -> 0 | DI33: =(SUMIF(Calcs!$F$9:$AOS$9,'Output ProjYr'!$DB33,Calcs!$F$1011:$AOS$1011))/1000000 -> 0 | DJ33: =(SUMIF(Calcs!$F$9:$AOS$9,'Output ProjYr'!$DB33,Calcs!$F$1085:$AOS$1085))/1000000 -> 0 | DK33: =(SUMIF(Calcs!$F$9:$AOS$9,'Output ProjYr'!$DB33,Calcs!$F$1159:$AOS$1159))/1000000 -> 0 | DL33: =(SUMIF(Calcs!$F$9:$AOS$9,'Output ProjYr'!$DB33,Calcs!$F$1233:$AOS$1233))/1000000 -> 0 | DO33: =(SUMIF(Calcs!$F$9:$AOS$9,'Output ProjYr'!$DB33,Calcs!$F$1344:$AOS$1344))/1000000 -> 9.06776646e-09 | DV33: =(SUMIF(Calcs!$F$9:$AOS$9,'Output ProjYr'!$DB33,Calcs!$F$1603:$AOS$1603))/1000000 -> 0 | DW33: 0.04658298434
A34: 27 | B34: =SUMIF(Calcs!$F$9:$AOS$9,'Output ProjYr'!$A34,Calcs!$F$528:$AOS$528) -> 0 | C34: =SUMIF(Calcs!$F$9:$AOS$9,'Output ProjYr'!$A34,Calcs!$F$602:$AOS$602) -> 0 | D34: =SUMIF(Calcs!$F$9:$AOS$9,'Output ProjYr'!$A34,Calcs!$F$676:$AOS$676) -> 31895.7912 | E34: =SUMIF(Calcs!$F$9:$AOS$9,'Output ProjYr'!$A34,Calcs!$F$750:$AOS$750) -> 0 | F34: =SUMIF(Calcs!$F$9:$AOS$9,'Output ProjYr'!$A34,Calcs!$F$824:$AOS$824) -> 0 | G34: =SUMIF(Calcs!$F$9:$AOS$9,'Output ProjYr'!$A34,Calcs!$F$898:$AOS$898) -> 0 | H34: =SUMIF(Calcs!$F$9:$AOS$9,'Output ProjYr'!$A34,Calcs!$F$972:$AOS$972) -> 0 | I34: =SUMIF(Calcs!$F$9:$AOS$9,'Output ProjYr'!$A34,Calcs!$F$1046:$AOS$1046) -> 0 | J34: =SUMIF(Calcs!$F$9:$AOS$9,'Output ProjYr'!$A34,Calcs!$F$1120:$AOS$1120) -> 0 | K34: =SUMIF(Calcs!$F$9:$AOS$9,'Output ProjYr'!$A34,Calcs!$F$1194:$AOS$1194) -> 0 | L34: =SUMIF(Calcs!$F$9:$AOS$9,'Output ProjYr'!$A34,Calcs!$F$525:$AOS$525) -> 0 | M34: =SUMIF(Calcs!$F$9:$AOS$9,'Output ProjYr'!$A34,Calcs!$F$599:$AOS$599) -> 0 | N34: =SUMIF(Calcs!$F$9:$AOS$9,'Output ProjYr'!$A34,Calcs!$F$673:$AOS$673) -> 0 | O34: =SUMIF(Calcs!$F$9:$AOS$9,'Output ProjYr'!$A34,Calcs!$F$747:$AOS$747) -> 0 | P34: =SUMIF(Calcs!$F$9:$AOS$9,'Output ProjYr'!$A34,Calcs!$F$821:$AOS$821) -> 0 | Q34: =SUMIF(Calcs!$F$9:$AOS$9,'Output ProjYr'!$A34,Calcs!$F$895:$AOS$895) -> 0 | R34: =SUMIF(Calcs!$F$9:$AOS$9,'Output ProjYr'!$A34,Calcs!$F$969:$AOS$969) -> 0 | S34: =SUMIF(Calcs!$F$9:$AOS$9,'Output ProjYr'!$A34,Calcs!$F$1043:$AOS$1043) -> 0 | T34: =SUMIF(Calcs!$F$9:$AOS$9,'Output ProjYr'!$A34,Calcs!$F$1117:$AOS$1117) -> 0 | U34: =SUMIF(Calcs!$F$9:$AOS$9,'Output ProjYr'!$A34,Calcs!$F$1191:$AOS$1191) -> 0 | V34: =SUMIF(Calcs!$F$9:$AOS$9,'Output ProjYr'!$A34,Calcs!$F$1257:$AOS$1257) -> 0 | W34: =SUMIF(Calcs!$F$9:$AOS$9,'Output ProjYr'!$A34,Calcs!$F$1294:$AOS$1294) -> 0 | X34: =SUMIF(Calcs!$F$9:$AOS$9,'Output ProjYr'!$A34,Calcs!$F$1331:$AOS$1331) -> 0.09434881117 | Y34: =SUMIF(Calcs!$F$9:$AOS$9,'Output ProjYr'!$A34,Calcs!$F$1368:$AOS$1368) -> 0 | Z34: =SUMIF(Calcs!$F$9:$AOS$9,'Output ProjYr'!$A34,Calcs!$F$1405:$AOS$1405) -> 0 | AA34: =SUMIF(Calcs!$F$9:$AOS$9,'Output ProjYr'!$A34,Calcs!$F$1442:$AOS$1442) -> 0 | AB34: =SUMIF(Calcs!$F$9:$AOS$9,'Output ProjYr'!$A34,Calcs!$F$1479:$AOS$1479) -> 0 | AC34: =SUMIF(Calcs!$F$9:$AOS$9,'Output ProjYr'!$A34,Calcs!$F$1516:$AOS$1516) -> 0 | AD34: =SUMIF(Calcs!$F$9:$AOS$9,'Output ProjYr'!$A34,Calcs!$F$1553:$AOS$1553) -> 0 | AE34: =SUMIF(Calcs!$F$9:$AOS$9,'Output ProjYr'!$A34,Calcs!$F$1590:$AOS$1590) -> 0 | AF34: 31895.88555 | AH34: 27 | AI34: =SUMIF(Calcs!$F$9:$AOS$9,'Output ProjYr'!$AH34,Calcs!$F$1714:$AOS$1714) -> 0 | AJ34: =SUMIF(Calcs!$F$9:$AOS$9,'Output ProjYr'!$AH34,Calcs!$F$1715:$AOS$1715) -> 0 | AK34: =SUMIF(Calcs!$F$9:$AOS$9,'Output ProjYr'!$AH34,Calcs!$F$1716:$AOS$1716) -> 0 | AL34: =SUMIF(Calcs!$F$9:$AOS$9,'Output ProjYr'!$AH34,Calcs!$F$1717:$AOS$1717) -> 0 | AM34: =SUMIF(Calcs!$F$9:$AOS$9,'Output ProjYr'!$AH34,Calcs!$F$1718:$AOS$1718) -> 0 | AN34: =SUMIF(Calcs!$F$9:$AOS$9,'Output ProjYr'!$AH34,Calcs!$F$1719:$AOS$1719) -> 0 | AO34: =SUMIF(Calcs!$F$9:$AOS$9,'Output ProjYr'!$AH34,Calcs!$F$1720:$AOS$1720) -> 2265.972994 | AP34: =SUMIF(Calcs!$F$9:$AOS$9,'Output ProjYr'!$AH34,Calcs!$F$1721:$AOS$1721) -> 0 | AQ34: =SUMIF(Calcs!$F$9:$AOS$9,'Output ProjYr'!$AH34,Calcs!$F$1722:$AOS$1722) -> 0 | AR34: =SUMIF(Calcs!$F$9:$AOS$9,'Output ProjYr'!$AH34,Calcs!$F$1723:$AOS$1723) -> 0 | AS34: 2265.972994 | AU34: 27 | AV34: =SUMIF(Calcs!$F$9:$AOS$9,'Output ProjYr'!$AU34,Calcs!$F$514:$AOS$514)/12 -> 167.8082192 | AW34: =(SUMIF(Calcs!$F$9:$AOS$9,'Output ProjYr'!$AU34,Calcs!$F$588:$AOS$588))/12 -> 509.2234689 | AX34: =(SUMIF(Calcs!$F$9:$AOS$9,'Output ProjYr'!$AU34,Calcs!$F$662:$AOS$662))/12 -> 27.35490992 | AY34: =(SUMIF(Calcs!$F$9:$AOS$9,'Output ProjYr'!$AU34,Calcs!$F$736:$AOS$736))/12 -> 61.61340197 | AZ34: =(SUMIF(Calcs!$F$9:$AOS$9,'Output ProjYr'!$AU34,Calcs!$F$810:$AOS$810))/12 -> 0 | BA34: =(SUMIF(Calcs!$F$9:$AOS$9,'Output ProjYr'!$AU34,Calcs!$F$884:$AOS$884))/12 -> 0 | BB34: =(SUMIF(Calcs!$F$9:$AOS$9,'Output ProjYr'!$AU34,Calcs!$F$958:$AOS$958))/12 -> 0 | BC34: =(SUMIF(Calcs!$F$9:$AOS$9,'Output ProjYr'!$AU34,Calcs!$F$1032:$AOS$1032))/12 -> 0 | BD34: =(SUMIF(Calcs!$F$9:$AOS$9,'Output ProjYr'!$AU34,Calcs!$F$1106:$AOS$1106))/12 -> 0 | BE34: =(SUMIF(Calcs!$F$9:$AOS$9,'Output ProjYr'!$AU34,Calcs!$F$1180:$AOS$1180))/12 -> 0 | BF34: 766 | BH34: 27 | BI34: =SUMIF(Calcs!$F$9:$AOS$9,'Output ProjYr'!$BH34,Calcs!$F$520:$AOS$520) -> 980 | BJ34: =SUMIF(Calcs!$F$9:$AOS$9,'Output ProjYr'!$BH34,Calcs!$F$594:$AOS$594) -> 3955.64723 | BK34: =SUMIF(Calcs!$F$9:$AOS$9,'Output ProjYr'!$BH34,Calcs!$F$668:$AOS$668) -> 0.2008604679 | BL34: =SUMIF(Calcs!$F$9:$AOS$9,'Output ProjYr'!$BH34,Calcs!$F$742:$AOS$742) -> 0 | BM34: =SUMIF(Calcs!$F$9:$AOS$9,'Output ProjYr'!$BH34,Calcs!$F$816:$AOS$816) -> 0 | BN34: =SUMIF(Calcs!$F$9:$AOS$9,'Output ProjYr'!$BH34,Calcs!$F$890:$AOS$890) -> 0 | BO34: =SUMIF(Calcs!$F$9:$AOS$9,'Output ProjYr'!$BH34,Calcs!$F$964:$AOS$964) -> 0 | BP34: =SUMIF(Calcs!$F$9:$AOS$9,'Output ProjYr'!$BH34,Calcs!$F$1038:$AOS$1038) -> 0 | BQ34: =SUMIF(Calcs!$F$9:$AOS$9,'Output ProjYr'!$BH34,Calcs!$F$1112:$AOS$1112) -> 0 | BR34: =SUMIF(Calcs!$F$9:$AOS$9,'Output ProjYr'!$BH34,Calcs!$F$1186:$AOS$1186) -> 0 | BS34: =SUMIF(Calcs!$F$9:$AOS$9,'Output ProjYr'!$BH34,Calcs!$F$1252:$AOS$1252) -> 0 | BT34: =SUMIF(Calcs!$F$9:$AOS$9,'Output ProjYr'!$BH34,Calcs!$F$1289:$AOS$1289) -> 0 | BU34: =SUMIF(Calcs!$F$9:$AOS$9,'Output ProjYr'!$BH34,Calcs!$F$1326:$AOS$1326) -> 8.416433275e-07 | BV34: =SUMIF(Calcs!$F$9:$AOS$9,'Output ProjYr'!$BH34,Calcs!$F$1363:$AOS$1363) -> 0 | BW34: =SUMIF(Calcs!$F$9:$AOS$9,'Output ProjYr'!$BH34,Calcs!$F$1400:$AOS$1400) -> 0 | BX34: =SUMIF(Calcs!$F$9:$AOS$9,'Output ProjYr'!$BH34,Calcs!$F$1437:$AOS$1437) -> 0 | BY34: =SUMIF(Calcs!$F$9:$AOS$9,'Output ProjYr'!$BH34,Calcs!$F$1474:$AOS$1474) -> 0 | BZ34: =SUMIF(Calcs!$F$9:$AOS$9,'Output ProjYr'!$BH34,Calcs!$F$1511:$AOS$1511) -> 0 | CA34: =SUMIF(Calcs!$F$9:$AOS$9,'Output ProjYr'!$BH34,Calcs!$F$1548:$AOS$1548) -> 0 | CB34: =SUMIF(Calcs!$F$9:$AOS$9,'Output ProjYr'!$BH34,Calcs!$F$1585:$AOS$1585) -> 0 | CC34: 4935.848091 | CE34: 27 | CF34: =SUMIF(Calcs!$F$9:$AOS$9,$CE34,Calcs!$F$521:$AOS$521) -> 883.3911198 | CG34: =SUMIF(Calcs!$F$9:$AOS$9,$CE34,Calcs!$F$595:$AOS$595) -> 3719.692873 | CH34: =SUMIF(Calcs!$F$9:$AOS$9,$CE34,Calcs!$F$669:$AOS$669) -> 0.1867598039 | CI34: =SUMIF(Calcs!$F$9:$AOS$9,$CE34,Calcs!$F$743:$AOS$743) -> 0 | CJ34: =SUMIF(Calcs!$F$9:$AOS$9,$CE34,Calcs!$F$817:$AOS$817) -> 0 | CK34: =SUMIF(Calcs!$F$9:$AOS$9,$CE34,Calcs!$F$891:$AOS$891) -> 0 | CL34: =SUMIF(Calcs!$F$9:$AOS$9,$CE34,Calcs!$F$965:$AOS$965) -> 0 | CM34: =SUMIF(Calcs!$F$9:$AOS$9,$CE34,Calcs!$F$1039:$AOS$1039) -> 0 | CN34: =SUMIF(Calcs!$F$9:$AOS$9,$CE34,Calcs!$F$1113:$AOS$1113) -> 0 | CO34: =SUMIF(Calcs!$F$9:$AOS$9,$CE34,Calcs!$F$1187:$AOS$1187) -> 0 | CP34: =SUMIF(Calcs!$F$9:$AOS$9,$CE34,Calcs!$F$1253:$AOS$1253) -> 0 | CQ34: =SUMIF(Calcs!$F$9:$AOS$9,$CE34,Calcs!$F$1290:$AOS$1290) -> 0 | CR34: =SUMIF(Calcs!$F$9:$AOS$9,$CE34,Calcs!$F$1327:$AOS$1327) -> 7.825588799e-07 | CS34: =SUMIF(Calcs!$F$9:$AOS$9,$CE34,Calcs!$F$1364:$AOS$1364) -> 0 | CT34: =SUMIF(Calcs!$F$9:$AOS$9,$CE34,Calcs!$F$1401:$AOS$1401) -> 0 | CU34: =SUMIF(Calcs!$F$9:$AOS$9,$CE34,Calcs!$F$1438:$AOS$1438) -> 0 | CV34: =SUMIF(Calcs!$F$9:$AOS$9,$CE34,Calcs!$F$1475:$AOS$1475) -> 0 | CW34: =SUMIF(Calcs!$F$9:$AOS$9,$CE34,Calcs!$F$1512:$AOS$1512) -> 0 | CX34: =SUMIF(Calcs!$F$9:$AOS$9,$CE34,Calcs!$F$1549:$AOS$1549) -> 0 | CY34: =SUMIF(Calcs!$F$9:$AOS$9,$CE34,Calcs!$F$1586:$AOS$1586) -> 0 | CZ34: 4603.270753 | DB34: 27 | DC34: =(SUMIF(Calcs!$F$9:$AOS$9,'Output ProjYr'!$DB34,Calcs!$F$567:$AOS$567))/1000000 -> 0 | DD34: =(SUMIF(Calcs!$F$9:$AOS$9,'Output ProjYr'!$DB34,Calcs!$F$641:$AOS$641))/1000000 -> 0 | DE34: =(SUMIF(Calcs!$F$9:$AOS$9,'Output ProjYr'!$DB34,Calcs!$F$715:$AOS$715))/1000000 -> 0.002265963542 | DF34: =(SUMIF(Calcs!$F$9:$AOS$9,'Output ProjYr'!$DB34,Calcs!$F$789:$AOS$789))/1000000 -> 0 | DG34: =(SUMIF(Calcs!$F$9:$AOS$9,'Output ProjYr'!$DB34,Calcs!$F$863:$AOS$863))/1000000 -> 0 | DH34: =(SUMIF(Calcs!$F$9:$AOS$9,'Output ProjYr'!$DB34,Calcs!$F$937:$AOS$937))/1000000 -> 0 | DI34: =(SUMIF(Calcs!$F$9:$AOS$9,'Output ProjYr'!$DB34,Calcs!$F$1011:$AOS$1011))/1000000 -> 0 | DJ34: =(SUMIF(Calcs!$F$9:$AOS$9,'Output ProjYr'!$DB34,Calcs!$F$1085:$AOS$1085))/1000000 -> 0 | DK34: =(SUMIF(Calcs!$F$9:$AOS$9,'Output ProjYr'!$DB34,Calcs!$F$1159:$AOS$1159))/1000000 -> 0 | DL34: =(SUMIF(Calcs!$F$9:$AOS$9,'Output ProjYr'!$DB34,Calcs!$F$1233:$AOS$1233))/1000000 -> 0 | DO34: =(SUMIF(Calcs!$F$9:$AOS$9,'Output ProjYr'!$DB34,Calcs!$F$1344:$AOS$1344))/1000000 -> 9.452218531e-09 | DV34: =(SUMIF(Calcs!$F$9:$AOS$9,'Output ProjYr'!$DB34,Calcs!$F$1603:$AOS$1603))/1000000 -> 0 | DW34: 0.002265972994
A35: 28 | B35: =SUMIF(Calcs!$F$9:$AOS$9,'Output ProjYr'!$A35,Calcs!$F$528:$AOS$528) -> 0 | C35: =SUMIF(Calcs!$F$9:$AOS$9,'Output ProjYr'!$A35,Calcs!$F$602:$AOS$602) -> 0 | D35: =SUMIF(Calcs!$F$9:$AOS$9,'Output ProjYr'!$A35,Calcs!$F$676:$AOS$676) -> 0.5374516366 | E35: =SUMIF(Calcs!$F$9:$AOS$9,'Output ProjYr'!$A35,Calcs!$F$750:$AOS$750) -> 0 | F35: =SUMIF(Calcs!$F$9:$AOS$9,'Output ProjYr'!$A35,Calcs!$F$824:$AOS$824) -> 0 | G35: =SUMIF(Calcs!$F$9:$AOS$9,'Output ProjYr'!$A35,Calcs!$F$898:$AOS$898) -> 0 | H35: =SUMIF(Calcs!$F$9:$AOS$9,'Output ProjYr'!$A35,Calcs!$F$972:$AOS$972) -> 0 | I35: =SUMIF(Calcs!$F$9:$AOS$9,'Output ProjYr'!$A35,Calcs!$F$1046:$AOS$1046) -> 0 | J35: =SUMIF(Calcs!$F$9:$AOS$9,'Output ProjYr'!$A35,Calcs!$F$1120:$AOS$1120) -> 0 | K35: =SUMIF(Calcs!$F$9:$AOS$9,'Output ProjYr'!$A35,Calcs!$F$1194:$AOS$1194) -> 0 | L35: =SUMIF(Calcs!$F$9:$AOS$9,'Output ProjYr'!$A35,Calcs!$F$525:$AOS$525) -> 0 | M35: =SUMIF(Calcs!$F$9:$AOS$9,'Output ProjYr'!$A35,Calcs!$F$599:$AOS$599) -> 0 | N35: =SUMIF(Calcs!$F$9:$AOS$9,'Output ProjYr'!$A35,Calcs!$F$673:$AOS$673) -> 0 | O35: =SUMIF(Calcs!$F$9:$AOS$9,'Output ProjYr'!$A35,Calcs!$F$747:$AOS$747) -> 0 | P35: =SUMIF(Calcs!$F$9:$AOS$9,'Output ProjYr'!$A35,Calcs!$F$821:$AOS$821) -> 0 | Q35: =SUMIF(Calcs!$F$9:$AOS$9,'Output ProjYr'!$A35,Calcs!$F$895:$AOS$895) -> 0 | R35: =SUMIF(Calcs!$F$9:$AOS$9,'Output ProjYr'!$A35,Calcs!$F$969:$AOS$969) -> 0 | S35: =SUMIF(Calcs!$F$9:$AOS$9,'Output ProjYr'!$A35,Calcs!$F$1043:$AOS$1043) -> 0 | T35: =SUMIF(Calcs!$F$9:$AOS$9,'Output ProjYr'!$A35,Calcs!$F$1117:$AOS$1117) -> 0 | U35: =SUMIF(Calcs!$F$9:$AOS$9,'Output ProjYr'!$A35,Calcs!$F$1191:$AOS$1191) -> 0 | V35: =SUMIF(Calcs!$F$9:$AOS$9,'Output ProjYr'!$A35,Calcs!$F$1257:$AOS$1257) -> 0 | W35: =SUMIF(Calcs!$F$9:$AOS$9,'Output ProjYr'!$A35,Calcs!$F$1294:$AOS$1294) -> 0 | X35: =SUMIF(Calcs!$F$9:$AOS$9,'Output ProjYr'!$A35,Calcs!$F$1331:$AOS$1331) -> 0.09515915636 | Y35: =SUMIF(Calcs!$F$9:$AOS$9,'Output ProjYr'!$A35,Calcs!$F$1368:$AOS$1368) -> 0 | Z35: =SUMIF(Calcs!$F$9:$AOS$9,'Output ProjYr'!$A35,Calcs!$F$1405:$AOS$1405) -> 0 | AA35: =SUMIF(Calcs!$F$9:$AOS$9,'Output ProjYr'!$A35,Calcs!$F$1442:$AOS$1442) -> 0 | AB35: =SUMIF(Calcs!$F$9:$AOS$9,'Output ProjYr'!$A35,Calcs!$F$1479:$AOS$1479) -> 0 | AC35: =SUMIF(Calcs!$F$9:$AOS$9,'Output ProjYr'!$A35,Calcs!$F$1516:$AOS$1516) -> 0 | AD35: =SUMIF(Calcs!$F$9:$AOS$9,'Output ProjYr'!$A35,Calcs!$F$1553:$AOS$1553) -> 0 | AE35: =SUMIF(Calcs!$F$9:$AOS$9,'Output ProjYr'!$A35,Calcs!$F$1590:$AOS$1590) -> 0 | AF35: 0.6326107929 | AH35: 28 | AI35: =SUMIF(Calcs!$F$9:$AOS$9,'Output ProjYr'!$AH35,Calcs!$F$1714:$AOS$1714) -> 0 | AJ35: =SUMIF(Calcs!$F$9:$AOS$9,'Output ProjYr'!$AH35,Calcs!$F$1715:$AOS$1715) -> 0 | AK35: =SUMIF(Calcs!$F$9:$AOS$9,'Output ProjYr'!$AH35,Calcs!$F$1716:$AOS$1716) -> 0 | AL35: =SUMIF(Calcs!$F$9:$AOS$9,'Output ProjYr'!$AH35,Calcs!$F$1717:$AOS$1717) -> 0 | AM35: =SUMIF(Calcs!$F$9:$AOS$9,'Output ProjYr'!$AH35,Calcs!$F$1718:$AOS$1718) -> 0 | AN35: =SUMIF(Calcs!$F$9:$AOS$9,'Output ProjYr'!$AH35,Calcs!$F$1719:$AOS$1719) -> 0 | AO35: =SUMIF(Calcs!$F$9:$AOS$9,'Output ProjYr'!$AH35,Calcs!$F$1720:$AOS$1720) -> 0.05455516609 | AP35: =SUMIF(Calcs!$F$9:$AOS$9,'Output ProjYr'!$AH35,Calcs!$F$1721:$AOS$1721) -> 0 | AQ35: =SUMIF(Calcs!$F$9:$AOS$9,'Output ProjYr'!$AH35,Calcs!$F$1722:$AOS$1722) -> 0 | AR35: =SUMIF(Calcs!$F$9:$AOS$9,'Output ProjYr'!$AH35,Calcs!$F$1723:$AOS$1723) -> 0 | AS35: 0.05455516609 | AU35: 28 | AV35: =SUMIF(Calcs!$F$9:$AOS$9,'Output ProjYr'!$AU35,Calcs!$F$514:$AOS$514)/12 -> 167.8082192 | AW35: =(SUMIF(Calcs!$F$9:$AOS$9,'Output ProjYr'!$AU35,Calcs!$F$588:$AOS$588))/12 -> 511.7023302 | AX35: =(SUMIF(Calcs!$F$9:$AOS$9,'Output ProjYr'!$AU35,Calcs!$F$662:$AOS$662))/12 -> 27.50697024 | AY35: =(SUMIF(Calcs!$F$9:$AOS$9,'Output ProjYr'!$AU35,Calcs!$F$736:$AOS$736))/12 -> 58.98248036 | AZ35: =(SUMIF(Calcs!$F$9:$AOS$9,'Output ProjYr'!$AU35,Calcs!$F$810:$AOS$810))/12 -> 0 | BA35: =(SUMIF(Calcs!$F$9:$AOS$9,'Output ProjYr'!$AU35,Calcs!$F$884:$AOS$884))/12 -> 0 | BB35: =(SUMIF(Calcs!$F$9:$AOS$9,'Output ProjYr'!$AU35,Calcs!$F$958:$AOS$958))/12 -> 0 | BC35: =(SUMIF(Calcs!$F$9:$AOS$9,'Output ProjYr'!$AU35,Calcs!$F$1032:$AOS$1032))/12 -> 0 | BD35: =(SUMIF(Calcs!$F$9:$AOS$9,'Output ProjYr'!$AU35,Calcs!$F$1106:$AOS$1106))/12 -> 0 | BE35: =(SUMIF(Calcs!$F$9:$AOS$9,'Output ProjYr'!$AU35,Calcs!$F$1180:$AOS$1180))/12 -> 0 | BF35: 766 | BH35: 28 | BI35: =SUMIF(Calcs!$F$9:$AOS$9,'Output ProjYr'!$BH35,Calcs!$F$520:$AOS$520) -> 980 | BJ35: =SUMIF(Calcs!$F$9:$AOS$9,'Output ProjYr'!$BH35,Calcs!$F$594:$AOS$594) -> 3955.848086 | BK35: =SUMIF(Calcs!$F$9:$AOS$9,'Output ProjYr'!$BH35,Calcs!$F$668:$AOS$668) -> 3.971507027e-06 | BL35: =SUMIF(Calcs!$F$9:$AOS$9,'Output ProjYr'!$BH35,Calcs!$F$742:$AOS$742) -> 0 | BM35: =SUMIF(Calcs!$F$9:$AOS$9,'Output ProjYr'!$BH35,Calcs!$F$816:$AOS$816) -> 0 | BN35: =SUMIF(Calcs!$F$9:$AOS$9,'Output ProjYr'!$BH35,Calcs!$F$890:$AOS$890) -> 0 | BO35: =SUMIF(Calcs!$F$9:$AOS$9,'Output ProjYr'!$BH35,Calcs!$F$964:$AOS$964) -> 0 | BP35: =SUMIF(Calcs!$F$9:$AOS$9,'Output ProjYr'!$BH35,Calcs!$F$1038:$AOS$1038) -> 0 | BQ35: =SUMIF(Calcs!$F$9:$AOS$9,'Output ProjYr'!$BH35,Calcs!$F$1112:$AOS$1112) -> 0 | BR35: =SUMIF(Calcs!$F$9:$AOS$9,'Output ProjYr'!$BH35,Calcs!$F$1186:$AOS$1186) -> 0 | BS35: =SUMIF(Calcs!$F$9:$AOS$9,'Output ProjYr'!$BH35,Calcs!$F$1252:$AOS$1252) -> 0 | BT35: =SUMIF(Calcs!$F$9:$AOS$9,'Output ProjYr'!$BH35,Calcs!$F$1289:$AOS$1289) -> 0 | BU35: =SUMIF(Calcs!$F$9:$AOS$9,'Output ProjYr'!$BH35,Calcs!$F$1326:$AOS$1326) -> 8.284927731e-07 | BV35: =SUMIF(Calcs!$F$9:$AOS$9,'Output ProjYr'!$BH35,Calcs!$F$1363:$AOS$1363) -> 0 | BW35: =SUMIF(Calcs!$F$9:$AOS$9,'Output ProjYr'!$BH35,Calcs!$F$1400:$AOS$1400) -> 0 | BX35: =SUMIF(Calcs!$F$9:$AOS$9,'Output ProjYr'!$BH35,Calcs!$F$1437:$AOS$1437) -> 0 | BY35: =SUMIF(Calcs!$F$9:$AOS$9,'Output ProjYr'!$BH35,Calcs!$F$1474:$AOS$1474) -> 0 | BZ35: =SUMIF(Calcs!$F$9:$AOS$9,'Output ProjYr'!$BH35,Calcs!$F$1511:$AOS$1511) -> 0 | CA35: =SUMIF(Calcs!$F$9:$AOS$9,'Output ProjYr'!$BH35,Calcs!$F$1548:$AOS$1548) -> 0 | CB35: =SUMIF(Calcs!$F$9:$AOS$9,'Output ProjYr'!$BH35,Calcs!$F$1585:$AOS$1585) -> 0 | CC35: 4935.848091 | CE35: 28 | CF35: =SUMIF(Calcs!$F$9:$AOS$9,$CE35,Calcs!$F$521:$AOS$521) -> 883.3911198 | CG35: =SUMIF(Calcs!$F$9:$AOS$9,$CE35,Calcs!$F$595:$AOS$595) -> 3719.881748 | CH35: =SUMIF(Calcs!$F$9:$AOS$9,$CE35,Calcs!$F$669:$AOS$669) -> 3.692702109e-06 | CI35: =SUMIF(Calcs!$F$9:$AOS$9,$CE35,Calcs!$F$743:$AOS$743) -> 0 | CJ35: =SUMIF(Calcs!$F$9:$AOS$9,$CE35,Calcs!$F$817:$AOS$817) -> 0 | CK35: =SUMIF(Calcs!$F$9:$AOS$9,$CE35,Calcs!$F$891:$AOS$891) -> 0 | CL35: =SUMIF(Calcs!$F$9:$AOS$9,$CE35,Calcs!$F$965:$AOS$965) -> 0 | CM35: =SUMIF(Calcs!$F$9:$AOS$9,$CE35,Calcs!$F$1039:$AOS$1039) -> 0 | CN35: =SUMIF(Calcs!$F$9:$AOS$9,$CE35,Calcs!$F$1113:$AOS$1113) -> 0 | CO35: =SUMIF(Calcs!$F$9:$AOS$9,$CE35,Calcs!$F$1187:$AOS$1187) -> 0 | CP35: =SUMIF(Calcs!$F$9:$AOS$9,$CE35,Calcs!$F$1253:$AOS$1253) -> 0 | CQ35: =SUMIF(Calcs!$F$9:$AOS$9,$CE35,Calcs!$F$1290:$AOS$1290) -> 0 | CR35: =SUMIF(Calcs!$F$9:$AOS$9,$CE35,Calcs!$F$1327:$AOS$1327) -> 7.703315114e-07 | CS35: =SUMIF(Calcs!$F$9:$AOS$9,$CE35,Calcs!$F$1364:$AOS$1364) -> 0 | CT35: =SUMIF(Calcs!$F$9:$AOS$9,$CE35,Calcs!$F$1401:$AOS$1401) -> 0 | CU35: =SUMIF(Calcs!$F$9:$AOS$9,$CE35,Calcs!$F$1438:$AOS$1438) -> 0 | CV35: =SUMIF(Calcs!$F$9:$AOS$9,$CE35,Calcs!$F$1475:$AOS$1475) -> 0 | CW35: =SUMIF(Calcs!$F$9:$AOS$9,$CE35,Calcs!$F$1512:$AOS$1512) -> 0 | CX35: =SUMIF(Calcs!$F$9:$AOS$9,$CE35,Calcs!$F$1549:$AOS$1549) -> 0 | CY35: =SUMIF(Calcs!$F$9:$AOS$9,$CE35,Calcs!$F$1586:$AOS$1586) -> 0 | CZ35: 4603.272872 | DB35: 28 | DC35: =(SUMIF(Calcs!$F$9:$AOS$9,'Output ProjYr'!$DB35,Calcs!$F$567:$AOS$567))/1000000 -> 0 | DD35: =(SUMIF(Calcs!$F$9:$AOS$9,'Output ProjYr'!$DB35,Calcs!$F$641:$AOS$641))/1000000 -> 0 | DE35: =(SUMIF(Calcs!$F$9:$AOS$9,'Output ProjYr'!$DB35,Calcs!$F$715:$AOS$715))/1000000 -> 4.515678048e-08 | DF35: =(SUMIF(Calcs!$F$9:$AOS$9,'Output ProjYr'!$DB35,Calcs!$F$789:$AOS$789))/1000000 -> 0 | DG35: =(SUMIF(Calcs!$F$9:$AOS$9,'Output ProjYr'!$DB35,Calcs!$F$863:$AOS$863))/1000000 -> 0 | DH35: =(SUMIF(Calcs!$F$9:$AOS$9,'Output ProjYr'!$DB35,Calcs!$F$937:$AOS$937))/1000000 -> 0 | DI35: =(SUMIF(Calcs!$F$9:$AOS$9,'Output ProjYr'!$DB35,Calcs!$F$1011:$AOS$1011))/1000000 -> 0 | DJ35: =(SUMIF(Calcs!$F$9:$AOS$9,'Output ProjYr'!$DB35,Calcs!$F$1085:$AOS$1085))/1000000 -> 0 | DK35: =(SUMIF(Calcs!$F$9:$AOS$9,'Output ProjYr'!$DB35,Calcs!$F$1159:$AOS$1159))/1000000 -> 0 | DL35: =(SUMIF(Calcs!$F$9:$AOS$9,'Output ProjYr'!$DB35,Calcs!$F$1233:$AOS$1233))/1000000 -> 0 | DO35: =(SUMIF(Calcs!$F$9:$AOS$9,'Output ProjYr'!$DB35,Calcs!$F$1344:$AOS$1344))/1000000 -> 9.398385606e-09 | DV35: =(SUMIF(Calcs!$F$9:$AOS$9,'Output ProjYr'!$DB35,Calcs!$F$1603:$AOS$1603))/1000000 -> 0 | DW35: 5.455516609e-08
A36: 29 | B36: =SUMIF(Calcs!$F$9:$AOS$9,'Output ProjYr'!$A36,Calcs!$F$528:$AOS$528) -> 0 | C36: =SUMIF(Calcs!$F$9:$AOS$9,'Output ProjYr'!$A36,Calcs!$F$602:$AOS$602) -> 0 | D36: =SUMIF(Calcs!$F$9:$AOS$9,'Output ProjYr'!$A36,Calcs!$F$676:$AOS$676) -> 0.5476144575 | E36: =SUMIF(Calcs!$F$9:$AOS$9,'Output ProjYr'!$A36,Calcs!$F$750:$AOS$750) -> 0 | F36: =SUMIF(Calcs!$F$9:$AOS$9,'Output ProjYr'!$A36,Calcs!$F$824:$AOS$824) -> 0 | G36: =SUMIF(Calcs!$F$9:$AOS$9,'Output ProjYr'!$A36,Calcs!$F$898:$AOS$898) -> 0 | H36: =SUMIF(Calcs!$F$9:$AOS$9,'Output ProjYr'!$A36,Calcs!$F$972:$AOS$972) -> 0 | I36: =SUMIF(Calcs!$F$9:$AOS$9,'Output ProjYr'!$A36,Calcs!$F$1046:$AOS$1046) -> 0 | J36: =SUMIF(Calcs!$F$9:$AOS$9,'Output ProjYr'!$A36,Calcs!$F$1120:$AOS$1120) -> 0 | K36: =SUMIF(Calcs!$F$9:$AOS$9,'Output ProjYr'!$A36,Calcs!$F$1194:$AOS$1194) -> 0 | L36: =SUMIF(Calcs!$F$9:$AOS$9,'Output ProjYr'!$A36,Calcs!$F$525:$AOS$525) -> 0 | M36: =SUMIF(Calcs!$F$9:$AOS$9,'Output ProjYr'!$A36,Calcs!$F$599:$AOS$599) -> 0 | N36: =SUMIF(Calcs!$F$9:$AOS$9,'Output ProjYr'!$A36,Calcs!$F$673:$AOS$673) -> 0 | O36: =SUMIF(Calcs!$F$9:$AOS$9,'Output ProjYr'!$A36,Calcs!$F$747:$AOS$747) -> 0 | P36: =SUMIF(Calcs!$F$9:$AOS$9,'Output ProjYr'!$A36,Calcs!$F$821:$AOS$821) -> 0 | Q36: =SUMIF(Calcs!$F$9:$AOS$9,'Output ProjYr'!$A36,Calcs!$F$895:$AOS$895) -> 0 | R36: =SUMIF(Calcs!$F$9:$AOS$9,'Output ProjYr'!$A36,Calcs!$F$969:$AOS$969) -> 0 | S36: =SUMIF(Calcs!$F$9:$AOS$9,'Output ProjYr'!$A36,Calcs!$F$1043:$AOS$1043) -> 0 | T36: =SUMIF(Calcs!$F$9:$AOS$9,'Output ProjYr'!$A36,Calcs!$F$1117:$AOS$1117) -> 0 | U36: =SUMIF(Calcs!$F$9:$AOS$9,'Output ProjYr'!$A36,Calcs!$F$1191:$AOS$1191) -> 0 | V36: =SUMIF(Calcs!$F$9:$AOS$9,'Output ProjYr'!$A36,Calcs!$F$1257:$AOS$1257) -> 0 | W36: =SUMIF(Calcs!$F$9:$AOS$9,'Output ProjYr'!$A36,Calcs!$F$1294:$AOS$1294) -> 0 | X36: =SUMIF(Calcs!$F$9:$AOS$9,'Output ProjYr'!$A36,Calcs!$F$1331:$AOS$1331) -> 0.09762924154 | Y36: =SUMIF(Calcs!$F$9:$AOS$9,'Output ProjYr'!$A36,Calcs!$F$1368:$AOS$1368) -> 0 | Z36: =SUMIF(Calcs!$F$9:$AOS$9,'Output ProjYr'!$A36,Calcs!$F$1405:$AOS$1405) -> 0 | AA36: =SUMIF(Calcs!$F$9:$AOS$9,'Output ProjYr'!$A36,Calcs!$F$1442:$AOS$1442) -> 0 | AB36: =SUMIF(Calcs!$F$9:$AOS$9,'Output ProjYr'!$A36,Calcs!$F$1479:$AOS$1479) -> 0 | AC36: =SUMIF(Calcs!$F$9:$AOS$9,'Output ProjYr'!$A36,Calcs!$F$1516:$AOS$1516) -> 0 | AD36: =SUMIF(Calcs!$F$9:$AOS$9,'Output ProjYr'!$A36,Calcs!$F$1553:$AOS$1553) -> 0 | AE36: =SUMIF(Calcs!$F$9:$AOS$9,'Output ProjYr'!$A36,Calcs!$F$1590:$AOS$1590) -> 0 | AF36: 0.645243699 | AH36: 29 | AI36: =SUMIF(Calcs!$F$9:$AOS$9,'Output ProjYr'!$AH36,Calcs!$F$1714:$AOS$1714) -> 0 | AJ36: =SUMIF(Calcs!$F$9:$AOS$9,'Output ProjYr'!$AH36,Calcs!$F$1715:$AOS$1715) -> 0 | AK36: =SUMIF(Calcs!$F$9:$AOS$9,'Output ProjYr'!$AH36,Calcs!$F$1716:$AOS$1716) -> 0 | AL36: =SUMIF(Calcs!$F$9:$AOS$9,'Output ProjYr'!$AH36,Calcs!$F$1717:$AOS$1717) -> 0 | AM36: =SUMIF(Calcs!$F$9:$AOS$9,'Output ProjYr'!$AH36,Calcs!$F$1718:$AOS$1718) -> 0 | AN36: =SUMIF(Calcs!$F$9:$AOS$9,'Output ProjYr'!$AH36,Calcs!$F$1719:$AOS$1719) -> 0 | AO36: =SUMIF(Calcs!$F$9:$AOS$9,'Output ProjYr'!$AH36,Calcs!$F$1720:$AOS$1720) -> 0.0551007184 | AP36: =SUMIF(Calcs!$F$9:$AOS$9,'Output ProjYr'!$AH36,Calcs!$F$1721:$AOS$1721) -> 0 | AQ36: =SUMIF(Calcs!$F$9:$AOS$9,'Output ProjYr'!$AH36,Calcs!$F$1722:$AOS$1722) -> 0 | AR36: =SUMIF(Calcs!$F$9:$AOS$9,'Output ProjYr'!$AH36,Calcs!$F$1723:$AOS$1723) -> 0 | AS36: 0.0551007184 | AU36: 29 | AV36: =SUMIF(Calcs!$F$9:$AOS$9,'Output ProjYr'!$AU36,Calcs!$F$514:$AOS$514)/12 -> 167.8082192 | AW36: =(SUMIF(Calcs!$F$9:$AOS$9,'Output ProjYr'!$AU36,Calcs!$F$588:$AOS$588))/12 -> 514.1734196 | AX36: =(SUMIF(Calcs!$F$9:$AOS$9,'Output ProjYr'!$AU36,Calcs!$F$662:$AOS$662))/12 -> 27.65903057 | AY36: =(SUMIF(Calcs!$F$9:$AOS$9,'Output ProjYr'!$AU36,Calcs!$F$736:$AOS$736))/12 -> 56.35933061 | AZ36: =(SUMIF(Calcs!$F$9:$AOS$9,'Output ProjYr'!$AU36,Calcs!$F$810:$AOS$810))/12 -> 0 | BA36: =(SUMIF(Calcs!$F$9:$AOS$9,'Output ProjYr'!$AU36,Calcs!$F$884:$AOS$884))/12 -> 0 | BB36: =(SUMIF(Calcs!$F$9:$AOS$9,'Output ProjYr'!$AU36,Calcs!$F$958:$AOS$958))/12 -> 0 | BC36: =(SUMIF(Calcs!$F$9:$AOS$9,'Output ProjYr'!$AU36,Calcs!$F$1032:$AOS$1032))/12 -> 0 | BD36: =(SUMIF(Calcs!$F$9:$AOS$9,'Output ProjYr'!$AU36,Calcs!$F$1106:$AOS$1106))/12 -> 0 | BE36: =(SUMIF(Calcs!$F$9:$AOS$9,'Output ProjYr'!$AU36,Calcs!$F$1180:$AOS$1180))/12 -> 0 | BF36: 766 | BH36: 29 | BI36: =SUMIF(Calcs!$F$9:$AOS$9,'Output ProjYr'!$BH36,Calcs!$F$520:$AOS$520) -> 980 | BJ36: =SUMIF(Calcs!$F$9:$AOS$9,'Output ProjYr'!$BH36,Calcs!$F$594:$AOS$594) -> 3955.848086 | BK36: =SUMIF(Calcs!$F$9:$AOS$9,'Output ProjYr'!$BH36,Calcs!$F$668:$AOS$668) -> 3.971507027e-06 | BL36: =SUMIF(Calcs!$F$9:$AOS$9,'Output ProjYr'!$BH36,Calcs!$F$742:$AOS$742) -> 0 | BM36: =SUMIF(Calcs!$F$9:$AOS$9,'Output ProjYr'!$BH36,Calcs!$F$816:$AOS$816) -> 0 | BN36: =SUMIF(Calcs!$F$9:$AOS$9,'Output ProjYr'!$BH36,Calcs!$F$890:$AOS$890) -> 0 | BO36: =SUMIF(Calcs!$F$9:$AOS$9,'Output ProjYr'!$BH36,Calcs!$F$964:$AOS$964) -> 0 | BP36: =SUMIF(Calcs!$F$9:$AOS$9,'Output ProjYr'!$BH36,Calcs!$F$1038:$AOS$1038) -> 0 | BQ36: =SUMIF(Calcs!$F$9:$AOS$9,'Output ProjYr'!$BH36,Calcs!$F$1112:$AOS$1112) -> 0 | BR36: =SUMIF(Calcs!$F$9:$AOS$9,'Output ProjYr'!$BH36,Calcs!$F$1186:$AOS$1186) -> 0 | BS36: =SUMIF(Calcs!$F$9:$AOS$9,'Output ProjYr'!$BH36,Calcs!$F$1252:$AOS$1252) -> 0 | BT36: =SUMIF(Calcs!$F$9:$AOS$9,'Output ProjYr'!$BH36,Calcs!$F$1289:$AOS$1289) -> 0 | BU36: =SUMIF(Calcs!$F$9:$AOS$9,'Output ProjYr'!$BH36,Calcs!$F$1326:$AOS$1326) -> 8.284928299e-07 | BV36: =SUMIF(Calcs!$F$9:$AOS$9,'Output ProjYr'!$BH36,Calcs!$F$1363:$AOS$1363) -> 0 | BW36: =SUMIF(Calcs!$F$9:$AOS$9,'Output ProjYr'!$BH36,Calcs!$F$1400:$AOS$1400) -> 0 | BX36: =SUMIF(Calcs!$F$9:$AOS$9,'Output ProjYr'!$BH36,Calcs!$F$1437:$AOS$1437) -> 0 | BY36: =SUMIF(Calcs!$F$9:$AOS$9,'Output ProjYr'!$BH36,Calcs!$F$1474:$AOS$1474) -> 0 | BZ36: =SUMIF(Calcs!$F$9:$AOS$9,'Output ProjYr'!$BH36,Calcs!$F$1511:$AOS$1511) -> 0 | CA36: =SUMIF(Calcs!$F$9:$AOS$9,'Output ProjYr'!$BH36,Calcs!$F$1548:$AOS$1548) -> 0 | CB36: =SUMIF(Calcs!$F$9:$AOS$9,'Output ProjYr'!$BH36,Calcs!$F$1585:$AOS$1585) -> 0 | CC36: 4935.848091 | CE36: 29 | CF36: =SUMIF(Calcs!$F$9:$AOS$9,$CE36,Calcs!$F$521:$AOS$521) -> 883.3911198 | CG36: =SUMIF(Calcs!$F$9:$AOS$9,$CE36,Calcs!$F$595:$AOS$595) -> 3719.881748 | CH36: =SUMIF(Calcs!$F$9:$AOS$9,$CE36,Calcs!$F$669:$AOS$669) -> 3.692702109e-06 | CI36: =SUMIF(Calcs!$F$9:$AOS$9,$CE36,Calcs!$F$743:$AOS$743) -> 0 | CJ36: =SUMIF(Calcs!$F$9:$AOS$9,$CE36,Calcs!$F$817:$AOS$817) -> 0 | CK36: =SUMIF(Calcs!$F$9:$AOS$9,$CE36,Calcs!$F$891:$AOS$891) -> 0 | CL36: =SUMIF(Calcs!$F$9:$AOS$9,$CE36,Calcs!$F$965:$AOS$965) -> 0 | CM36: =SUMIF(Calcs!$F$9:$AOS$9,$CE36,Calcs!$F$1039:$AOS$1039) -> 0 | CN36: =SUMIF(Calcs!$F$9:$AOS$9,$CE36,Calcs!$F$1113:$AOS$1113) -> 0 | CO36: =SUMIF(Calcs!$F$9:$AOS$9,$CE36,Calcs!$F$1187:$AOS$1187) -> 0 | CP36: =SUMIF(Calcs!$F$9:$AOS$9,$CE36,Calcs!$F$1253:$AOS$1253) -> 0 | CQ36: =SUMIF(Calcs!$F$9:$AOS$9,$CE36,Calcs!$F$1290:$AOS$1290) -> 0 | CR36: =SUMIF(Calcs!$F$9:$AOS$9,$CE36,Calcs!$F$1327:$AOS$1327) -> 7.703315643e-07 | CS36: =SUMIF(Calcs!$F$9:$AOS$9,$CE36,Calcs!$F$1364:$AOS$1364) -> 0 | CT36: =SUMIF(Calcs!$F$9:$AOS$9,$CE36,Calcs!$F$1401:$AOS$1401) -> 0 | CU36: =SUMIF(Calcs!$F$9:$AOS$9,$CE36,Calcs!$F$1438:$AOS$1438) -> 0 | CV36: =SUMIF(Calcs!$F$9:$AOS$9,$CE36,Calcs!$F$1475:$AOS$1475) -> 0 | CW36: =SUMIF(Calcs!$F$9:$AOS$9,$CE36,Calcs!$F$1512:$AOS$1512) -> 0 | CX36: =SUMIF(Calcs!$F$9:$AOS$9,$CE36,Calcs!$F$1549:$AOS$1549) -> 0 | CY36: =SUMIF(Calcs!$F$9:$AOS$9,$CE36,Calcs!$F$1586:$AOS$1586) -> 0 | CZ36: 4603.272872 | DB36: 29 | DC36: =(SUMIF(Calcs!$F$9:$AOS$9,'Output ProjYr'!$DB36,Calcs!$F$567:$AOS$567))/1000000 -> 0 | DD36: =(SUMIF(Calcs!$F$9:$AOS$9,'Output ProjYr'!$DB36,Calcs!$F$641:$AOS$641))/1000000 -> 0 | DE36: =(SUMIF(Calcs!$F$9:$AOS$9,'Output ProjYr'!$DB36,Calcs!$F$715:$AOS$715))/1000000 -> 4.560834829e-08 | DF36: =(SUMIF(Calcs!$F$9:$AOS$9,'Output ProjYr'!$DB36,Calcs!$F$789:$AOS$789))/1000000 -> 0 | DG36: =(SUMIF(Calcs!$F$9:$AOS$9,'Output ProjYr'!$DB36,Calcs!$F$863:$AOS$863))/1000000 -> 0 | DH36: =(SUMIF(Calcs!$F$9:$AOS$9,'Output ProjYr'!$DB36,Calcs!$F$937:$AOS$937))/1000000 -> 0 | DI36: =(SUMIF(Calcs!$F$9:$AOS$9,'Output ProjYr'!$DB36,Calcs!$F$1011:$AOS$1011))/1000000 -> 0 | DJ36: =(SUMIF(Calcs!$F$9:$AOS$9,'Output ProjYr'!$DB36,Calcs!$F$1085:$AOS$1085))/1000000 -> 0 | DK36: =(SUMIF(Calcs!$F$9:$AOS$9,'Output ProjYr'!$DB36,Calcs!$F$1159:$AOS$1159))/1000000 -> 0 | DL36: =(SUMIF(Calcs!$F$9:$AOS$9,'Output ProjYr'!$DB36,Calcs!$F$1233:$AOS$1233))/1000000 -> 0 | DO36: =(SUMIF(Calcs!$F$9:$AOS$9,'Output ProjYr'!$DB36,Calcs!$F$1344:$AOS$1344))/1000000 -> 9.492370116e-09 | DV36: =(SUMIF(Calcs!$F$9:$AOS$9,'Output ProjYr'!$DB36,Calcs!$F$1603:$AOS$1603))/1000000 -> 0 | DW36: 5.51007184e-08
A37: 30 | B37: =SUMIF(Calcs!$F$9:$AOS$9,'Output ProjYr'!$A37,Calcs!$F$528:$AOS$528) -> 0 | C37: =SUMIF(Calcs!$F$9:$AOS$9,'Output ProjYr'!$A37,Calcs!$F$602:$AOS$602) -> 0 | D37: =SUMIF(Calcs!$F$9:$AOS$9,'Output ProjYr'!$A37,Calcs!$F$676:$AOS$676) -> 0.5611484575 | E37: =SUMIF(Calcs!$F$9:$AOS$9,'Output ProjYr'!$A37,Calcs!$F$750:$AOS$750) -> 0 | F37: =SUMIF(Calcs!$F$9:$AOS$9,'Output ProjYr'!$A37,Calcs!$F$824:$AOS$824) -> 0 | G37: =SUMIF(Calcs!$F$9:$AOS$9,'Output ProjYr'!$A37,Calcs!$F$898:$AOS$898) -> 0 | H37: =SUMIF(Calcs!$F$9:$AOS$9,'Output ProjYr'!$A37,Calcs!$F$972:$AOS$972) -> 0 | I37: =SUMIF(Calcs!$F$9:$AOS$9,'Output ProjYr'!$A37,Calcs!$F$1046:$AOS$1046) -> 0 | J37: =SUMIF(Calcs!$F$9:$AOS$9,'Output ProjYr'!$A37,Calcs!$F$1120:$AOS$1120) -> 0 | K37: =SUMIF(Calcs!$F$9:$AOS$9,'Output ProjYr'!$A37,Calcs!$F$1194:$AOS$1194) -> 0 | L37: =SUMIF(Calcs!$F$9:$AOS$9,'Output ProjYr'!$A37,Calcs!$F$525:$AOS$525) -> 0 | M37: =SUMIF(Calcs!$F$9:$AOS$9,'Output ProjYr'!$A37,Calcs!$F$599:$AOS$599) -> 0 | N37: =SUMIF(Calcs!$F$9:$AOS$9,'Output ProjYr'!$A37,Calcs!$F$673:$AOS$673) -> 0 | O37: =SUMIF(Calcs!$F$9:$AOS$9,'Output ProjYr'!$A37,Calcs!$F$747:$AOS$747) -> 0 | P37: =SUMIF(Calcs!$F$9:$AOS$9,'Output ProjYr'!$A37,Calcs!$F$821:$AOS$821) -> 0 | Q37: =SUMIF(Calcs!$F$9:$AOS$9,'Output ProjYr'!$A37,Calcs!$F$895:$AOS$895) -> 0 | R37: =SUMIF(Calcs!$F$9:$AOS$9,'Output ProjYr'!$A37,Calcs!$F$969:$AOS$969) -> 0 | S37: =SUMIF(Calcs!$F$9:$AOS$9,'Output ProjYr'!$A37,Calcs!$F$1043:$AOS$1043) -> 0 | T37: =SUMIF(Calcs!$F$9:$AOS$9,'Output ProjYr'!$A37,Calcs!$F$1117:$AOS$1117) -> 0 | U37: =SUMIF(Calcs!$F$9:$AOS$9,'Output ProjYr'!$A37,Calcs!$F$1191:$AOS$1191) -> 0 | V37: =SUMIF(Calcs!$F$9:$AOS$9,'Output ProjYr'!$A37,Calcs!$F$1257:$AOS$1257) -> 0 | W37: =SUMIF(Calcs!$F$9:$AOS$9,'Output ProjYr'!$A37,Calcs!$F$1294:$AOS$1294) -> 0 | X37: =SUMIF(Calcs!$F$9:$AOS$9,'Output ProjYr'!$A37,Calcs!$F$1331:$AOS$1331) -> 0.09710970754 | Y37: =SUMIF(Calcs!$F$9:$AOS$9,'Output ProjYr'!$A37,Calcs!$F$1368:$AOS$1368) -> 0 | Z37: =SUMIF(Calcs!$F$9:$AOS$9,'Output ProjYr'!$A37,Calcs!$F$1405:$AOS$1405) -> 0 | AA37: =SUMIF(Calcs!$F$9:$AOS$9,'Output ProjYr'!$A37,Calcs!$F$1442:$AOS$1442) -> 0 | AB37: =SUMIF(Calcs!$F$9:$AOS$9,'Output ProjYr'!$A37,Calcs!$F$1479:$AOS$1479) -> 0 | AC37: =SUMIF(Calcs!$F$9:$AOS$9,'Output ProjYr'!$A37,Calcs!$F$1516:$AOS$1516) -> 0 | AD37: =SUMIF(Calcs!$F$9:$AOS$9,'Output ProjYr'!$A37,Calcs!$F$1553:$AOS$1553) -> 0 | AE37: =SUMIF(Calcs!$F$9:$AOS$9,'Output ProjYr'!$A37,Calcs!$F$1590:$AOS$1590) -> 0 | AF37: 0.6582581651 | AH37: 30 | AI37: =SUMIF(Calcs!$F$9:$AOS$9,'Output ProjYr'!$AH37,Calcs!$F$1714:$AOS$1714) -> 0 | AJ37: =SUMIF(Calcs!$F$9:$AOS$9,'Output ProjYr'!$AH37,Calcs!$F$1715:$AOS$1715) -> 0 | AK37: =SUMIF(Calcs!$F$9:$AOS$9,'Output ProjYr'!$AH37,Calcs!$F$1716:$AOS$1716) -> 0 | AL37: =SUMIF(Calcs!$F$9:$AOS$9,'Output ProjYr'!$AH37,Calcs!$F$1717:$AOS$1717) -> 0 | AM37: =SUMIF(Calcs!$F$9:$AOS$9,'Output ProjYr'!$AH37,Calcs!$F$1718:$AOS$1718) -> 0 | AN37: =SUMIF(Calcs!$F$9:$AOS$9,'Output ProjYr'!$AH37,Calcs!$F$1719:$AOS$1719) -> 0 | AO37: =SUMIF(Calcs!$F$9:$AOS$9,'Output ProjYr'!$AH37,Calcs!$F$1720:$AOS$1720) -> 0.05565172316 | AP37: =SUMIF(Calcs!$F$9:$AOS$9,'Output ProjYr'!$AH37,Calcs!$F$1721:$AOS$1721) -> 0 | AQ37: =SUMIF(Calcs!$F$9:$AOS$9,'Output ProjYr'!$AH37,Calcs!$F$1722:$AOS$1722) -> 0 | AR37: =SUMIF(Calcs!$F$9:$AOS$9,'Output ProjYr'!$AH37,Calcs!$F$1723:$AOS$1723) -> 0 | AS37: 0.05565172316 | AU37: 30 | AV37: =SUMIF(Calcs!$F$9:$AOS$9,'Output ProjYr'!$AU37,Calcs!$F$514:$AOS$514)/12 -> 167.8082192 | AW37: =(SUMIF(Calcs!$F$9:$AOS$9,'Output ProjYr'!$AU37,Calcs!$F$588:$AOS$588))/12 -> 515.88021 | AX37: =(SUMIF(Calcs!$F$9:$AOS$9,'Output ProjYr'!$AU37,Calcs!$F$662:$AOS$662))/12 -> 27.81109089 | AY37: =(SUMIF(Calcs!$F$9:$AOS$9,'Output ProjYr'!$AU37,Calcs!$F$736:$AOS$736))/12 -> 54.50047996 | AZ37: =(SUMIF(Calcs!$F$9:$AOS$9,'Output ProjYr'!$AU37,Calcs!$F$810:$AOS$810))/12 -> 0 | BA37: =(SUMIF(Calcs!$F$9:$AOS$9,'Output ProjYr'!$AU37,Calcs!$F$884:$AOS$884))/12 -> 0 | BB37: =(SUMIF(Calcs!$F$9:$AOS$9,'Output ProjYr'!$AU37,Calcs!$F$958:$AOS$958))/12 -> 0 | BC37: =(SUMIF(Calcs!$F$9:$AOS$9,'Output ProjYr'!$AU37,Calcs!$F$1032:$AOS$1032))/12 -> 0 | BD37: =(SUMIF(Calcs!$F$9:$AOS$9,'Output ProjYr'!$AU37,Calcs!$F$1106:$AOS$1106))/12 -> 0 | BE37: =(SUMIF(Calcs!$F$9:$AOS$9,'Output ProjYr'!$AU37,Calcs!$F$1180:$AOS$1180))/12 -> 0 | BF37: 766 | BH37: 30 | BI37: =SUMIF(Calcs!$F$9:$AOS$9,'Output ProjYr'!$BH37,Calcs!$F$520:$AOS$520) -> 980 | BJ37: =SUMIF(Calcs!$F$9:$AOS$9,'Output ProjYr'!$BH37,Calcs!$F$594:$AOS$594) -> 3955.848086 | BK37: =SUMIF(Calcs!$F$9:$AOS$9,'Output ProjYr'!$BH37,Calcs!$F$668:$AOS$668) -> 3.984657599e-06 | BL37: =SUMIF(Calcs!$F$9:$AOS$9,'Output ProjYr'!$BH37,Calcs!$F$742:$AOS$742) -> 0 | BM37: =SUMIF(Calcs!$F$9:$AOS$9,'Output ProjYr'!$BH37,Calcs!$F$816:$AOS$816) -> 0 | BN37: =SUMIF(Calcs!$F$9:$AOS$9,'Output ProjYr'!$BH37,Calcs!$F$890:$AOS$890) -> 0 | BO37: =SUMIF(Calcs!$F$9:$AOS$9,'Output ProjYr'!$BH37,Calcs!$F$964:$AOS$964) -> 0 | BP37: =SUMIF(Calcs!$F$9:$AOS$9,'Output ProjYr'!$BH37,Calcs!$F$1038:$AOS$1038) -> 0 | BQ37: =SUMIF(Calcs!$F$9:$AOS$9,'Output ProjYr'!$BH37,Calcs!$F$1112:$AOS$1112) -> 0 | BR37: =SUMIF(Calcs!$F$9:$AOS$9,'Output ProjYr'!$BH37,Calcs!$F$1186:$AOS$1186) -> 0 | BS37: =SUMIF(Calcs!$F$9:$AOS$9,'Output ProjYr'!$BH37,Calcs!$F$1252:$AOS$1252) -> 0 | BT37: =SUMIF(Calcs!$F$9:$AOS$9,'Output ProjYr'!$BH37,Calcs!$F$1289:$AOS$1289) -> 0 | BU37: =SUMIF(Calcs!$F$9:$AOS$9,'Output ProjYr'!$BH37,Calcs!$F$1326:$AOS$1326) -> 8.153420481e-07 | BV37: =SUMIF(Calcs!$F$9:$AOS$9,'Output ProjYr'!$BH37,Calcs!$F$1363:$AOS$1363) -> 0 | BW37: =SUMIF(Calcs!$F$9:$AOS$9,'Output ProjYr'!$BH37,Calcs!$F$1400:$AOS$1400) -> 0 | BX37: =SUMIF(Calcs!$F$9:$AOS$9,'Output ProjYr'!$BH37,Calcs!$F$1437:$AOS$1437) -> 0 | BY37: =SUMIF(Calcs!$F$9:$AOS$9,'Output ProjYr'!$BH37,Calcs!$F$1474:$AOS$1474) -> 0 | BZ37: =SUMIF(Calcs!$F$9:$AOS$9,'Output ProjYr'!$BH37,Calcs!$F$1511:$AOS$1511) -> 0 | CA37: =SUMIF(Calcs!$F$9:$AOS$9,'Output ProjYr'!$BH37,Calcs!$F$1548:$AOS$1548) -> 0 | CB37: =SUMIF(Calcs!$F$9:$AOS$9,'Output ProjYr'!$BH37,Calcs!$F$1585:$AOS$1585) -> 0 | CC37: 4935.848091 | CE37: 30 | CF37: =SUMIF(Calcs!$F$9:$AOS$9,$CE37,Calcs!$F$521:$AOS$521) -> 883.3911198 | CG37: =SUMIF(Calcs!$F$9:$AOS$9,$CE37,Calcs!$F$595:$AOS$595) -> 3719.881748 | CH37: =SUMIF(Calcs!$F$9:$AOS$9,$CE37,Calcs!$F$669:$AOS$669) -> 3.704929494e-06 | CI37: =SUMIF(Calcs!$F$9:$AOS$9,$CE37,Calcs!$F$743:$AOS$743) -> 0 | CJ37: =SUMIF(Calcs!$F$9:$AOS$9,$CE37,Calcs!$F$817:$AOS$817) -> 0 | CK37: =SUMIF(Calcs!$F$9:$AOS$9,$CE37,Calcs!$F$891:$AOS$891) -> 0 | CL37: =SUMIF(Calcs!$F$9:$AOS$9,$CE37,Calcs!$F$965:$AOS$965) -> 0 | CM37: =SUMIF(Calcs!$F$9:$AOS$9,$CE37,Calcs!$F$1039:$AOS$1039) -> 0 | CN37: =SUMIF(Calcs!$F$9:$AOS$9,$CE37,Calcs!$F$1113:$AOS$1113) -> 0 | CO37: =SUMIF(Calcs!$F$9:$AOS$9,$CE37,Calcs!$F$1187:$AOS$1187) -> 0 | CP37: =SUMIF(Calcs!$F$9:$AOS$9,$CE37,Calcs!$F$1253:$AOS$1253) -> 0 | CQ37: =SUMIF(Calcs!$F$9:$AOS$9,$CE37,Calcs!$F$1290:$AOS$1290) -> 0 | CR37: =SUMIF(Calcs!$F$9:$AOS$9,$CE37,Calcs!$F$1327:$AOS$1327) -> 7.581039843e-07 | CS37: =SUMIF(Calcs!$F$9:$AOS$9,$CE37,Calcs!$F$1364:$AOS$1364) -> 0 | CT37: =SUMIF(Calcs!$F$9:$AOS$9,$CE37,Calcs!$F$1401:$AOS$1401) -> 0 | CU37: =SUMIF(Calcs!$F$9:$AOS$9,$CE37,Calcs!$F$1438:$AOS$1438) -> 0 | CV37: =SUMIF(Calcs!$F$9:$AOS$9,$CE37,Calcs!$F$1475:$AOS$1475) -> 0 | CW37: =SUMIF(Calcs!$F$9:$AOS$9,$CE37,Calcs!$F$1512:$AOS$1512) -> 0 | CX37: =SUMIF(Calcs!$F$9:$AOS$9,$CE37,Calcs!$F$1549:$AOS$1549) -> 0 | CY37: =SUMIF(Calcs!$F$9:$AOS$9,$CE37,Calcs!$F$1586:$AOS$1586) -> 0 | CZ37: 4603.272872 | DB37: 30 | DC37: =(SUMIF(Calcs!$F$9:$AOS$9,'Output ProjYr'!$DB37,Calcs!$F$567:$AOS$567))/1000000 -> 0 | DD37: =(SUMIF(Calcs!$F$9:$AOS$9,'Output ProjYr'!$DB37,Calcs!$F$641:$AOS$641))/1000000 -> 0 | DE37: =(SUMIF(Calcs!$F$9:$AOS$9,'Output ProjYr'!$DB37,Calcs!$F$715:$AOS$715))/1000000 -> 4.621576902e-08 | DF37: =(SUMIF(Calcs!$F$9:$AOS$9,'Output ProjYr'!$DB37,Calcs!$F$789:$AOS$789))/1000000 -> 0 | DG37: =(SUMIF(Calcs!$F$9:$AOS$9,'Output ProjYr'!$DB37,Calcs!$F$863:$AOS$863))/1000000 -> 0 | DH37: =(SUMIF(Calcs!$F$9:$AOS$9,'Output ProjYr'!$DB37,Calcs!$F$937:$AOS$937))/1000000 -> 0 | DI37: =(SUMIF(Calcs!$F$9:$AOS$9,'Output ProjYr'!$DB37,Calcs!$F$1011:$AOS$1011))/1000000 -> 0 | DJ37: =(SUMIF(Calcs!$F$9:$AOS$9,'Output ProjYr'!$DB37,Calcs!$F$1085:$AOS$1085))/1000000 -> 0 | DK37: =(SUMIF(Calcs!$F$9:$AOS$9,'Output ProjYr'!$DB37,Calcs!$F$1159:$AOS$1159))/1000000 -> 0 | DL37: =(SUMIF(Calcs!$F$9:$AOS$9,'Output ProjYr'!$DB37,Calcs!$F$1233:$AOS$1233))/1000000 -> 0 | DO37: =(SUMIF(Calcs!$F$9:$AOS$9,'Output ProjYr'!$DB37,Calcs!$F$1344:$AOS$1344))/1000000 -> 9.43595414e-09 | DV37: =(SUMIF(Calcs!$F$9:$AOS$9,'Output ProjYr'!$DB37,Calcs!$F$1603:$AOS$1603))/1000000 -> 0 | DW37: 5.565172316e-08
A38: 31 | B38: =SUMIF(Calcs!$F$9:$AOS$9,'Output ProjYr'!$A38,Calcs!$F$528:$AOS$528) -> 0 | C38: =SUMIF(Calcs!$F$9:$AOS$9,'Output ProjYr'!$A38,Calcs!$F$602:$AOS$602) -> 0 | D38: =SUMIF(Calcs!$F$9:$AOS$9,'Output ProjYr'!$A38,Calcs!$F$676:$AOS$676) -> 0.5689120358 | E38: =SUMIF(Calcs!$F$9:$AOS$9,'Output ProjYr'!$A38,Calcs!$F$750:$AOS$750) -> 0 | F38: =SUMIF(Calcs!$F$9:$AOS$9,'Output ProjYr'!$A38,Calcs!$F$824:$AOS$824) -> 0 | G38: =SUMIF(Calcs!$F$9:$AOS$9,'Output ProjYr'!$A38,Calcs!$F$898:$AOS$898) -> 0 | H38: =SUMIF(Calcs!$F$9:$AOS$9,'Output ProjYr'!$A38,Calcs!$F$972:$AOS$972) -> 0 | I38: =SUMIF(Calcs!$F$9:$AOS$9,'Output ProjYr'!$A38,Calcs!$F$1046:$AOS$1046) -> 0 | J38: =SUMIF(Calcs!$F$9:$AOS$9,'Output ProjYr'!$A38,Calcs!$F$1120:$AOS$1120) -> 0 | K38: =SUMIF(Calcs!$F$9:$AOS$9,'Output ProjYr'!$A38,Calcs!$F$1194:$AOS$1194) -> 0 | L38: =SUMIF(Calcs!$F$9:$AOS$9,'Output ProjYr'!$A38,Calcs!$F$525:$AOS$525) -> 0 | M38: =SUMIF(Calcs!$F$9:$AOS$9,'Output ProjYr'!$A38,Calcs!$F$599:$AOS$599) -> 0 | N38: =SUMIF(Calcs!$F$9:$AOS$9,'Output ProjYr'!$A38,Calcs!$F$673:$AOS$673) -> 0 | O38: =SUMIF(Calcs!$F$9:$AOS$9,'Output ProjYr'!$A38,Calcs!$F$747:$AOS$747) -> 0 | P38: =SUMIF(Calcs!$F$9:$AOS$9,'Output ProjYr'!$A38,Calcs!$F$821:$AOS$821) -> 0 | Q38: =SUMIF(Calcs!$F$9:$AOS$9,'Output ProjYr'!$A38,Calcs!$F$895:$AOS$895) -> 0 | R38: =SUMIF(Calcs!$F$9:$AOS$9,'Output ProjYr'!$A38,Calcs!$F$969:$AOS$969) -> 0 | S38: =SUMIF(Calcs!$F$9:$AOS$9,'Output ProjYr'!$A38,Calcs!$F$1043:$AOS$1043) -> 0 | T38: =SUMIF(Calcs!$F$9:$AOS$9,'Output ProjYr'!$A38,Calcs!$F$1117:$AOS$1117) -> 0 | U38: =SUMIF(Calcs!$F$9:$AOS$9,'Output ProjYr'!$A38,Calcs!$F$1191:$AOS$1191) -> 0 | V38: =SUMIF(Calcs!$F$9:$AOS$9,'Output ProjYr'!$A38,Calcs!$F$1257:$AOS$1257) -> 0 | W38: =SUMIF(Calcs!$F$9:$AOS$9,'Output ProjYr'!$A38,Calcs!$F$1294:$AOS$1294) -> 0 | X38: =SUMIF(Calcs!$F$9:$AOS$9,'Output ProjYr'!$A38,Calcs!$F$1331:$AOS$1331) -> 0.1021261875 | Y38: =SUMIF(Calcs!$F$9:$AOS$9,'Output ProjYr'!$A38,Calcs!$F$1368:$AOS$1368) -> 0 | Z38: =SUMIF(Calcs!$F$9:$AOS$9,'Output ProjYr'!$A38,Calcs!$F$1405:$AOS$1405) -> 0 | AA38: =SUMIF(Calcs!$F$9:$AOS$9,'Output ProjYr'!$A38,Calcs!$F$1442:$AOS$1442) -> 0 | AB38: =SUMIF(Calcs!$F$9:$AOS$9,'Output ProjYr'!$A38,Calcs!$F$1479:$AOS$1479) -> 0 | AC38: =SUMIF(Calcs!$F$9:$AOS$9,'Output ProjYr'!$A38,Calcs!$F$1516:$AOS$1516) -> 0 | AD38: =SUMIF(Calcs!$F$9:$AOS$9,'Output ProjYr'!$A38,Calcs!$F$1553:$AOS$1553) -> 0 | AE38: =SUMIF(Calcs!$F$9:$AOS$9,'Output ProjYr'!$A38,Calcs!$F$1590:$AOS$1590) -> 0 | AF38: 0.6710382233 | AH38: 31 | AI38: =SUMIF(Calcs!$F$9:$AOS$9,'Output ProjYr'!$AH38,Calcs!$F$1714:$AOS$1714) -> 0 | AJ38: =SUMIF(Calcs!$F$9:$AOS$9,'Output ProjYr'!$AH38,Calcs!$F$1715:$AOS$1715) -> 0 | AK38: =SUMIF(Calcs!$F$9:$AOS$9,'Output ProjYr'!$AH38,Calcs!$F$1716:$AOS$1716) -> 0 | AL38: =SUMIF(Calcs!$F$9:$AOS$9,'Output ProjYr'!$AH38,Calcs!$F$1717:$AOS$1717) -> 0 | AM38: =SUMIF(Calcs!$F$9:$AOS$9,'Output ProjYr'!$AH38,Calcs!$F$1718:$AOS$1718) -> 0 | AN38: =SUMIF(Calcs!$F$9:$AOS$9,'Output ProjYr'!$AH38,Calcs!$F$1719:$AOS$1719) -> 0 | AO38: =SUMIF(Calcs!$F$9:$AOS$9,'Output ProjYr'!$AH38,Calcs!$F$1720:$AOS$1720) -> 0.05620823864 | AP38: =SUMIF(Calcs!$F$9:$AOS$9,'Output ProjYr'!$AH38,Calcs!$F$1721:$AOS$1721) -> 0 | AQ38: =SUMIF(Calcs!$F$9:$AOS$9,'Output ProjYr'!$AH38,Calcs!$F$1722:$AOS$1722) -> 0 | AR38: =SUMIF(Calcs!$F$9:$AOS$9,'Output ProjYr'!$AH38,Calcs!$F$1723:$AOS$1723) -> 0 | AS38: 0.05620823864 | AU38: 31 | AV38: =SUMIF(Calcs!$F$9:$AOS$9,'Output ProjYr'!$AU38,Calcs!$F$514:$AOS$514)/12 -> 167.8082192 | AW38: =(SUMIF(Calcs!$F$9:$AOS$9,'Output ProjYr'!$AU38,Calcs!$F$588:$AOS$588))/12 -> 517.5841804 | AX38: =(SUMIF(Calcs!$F$9:$AOS$9,'Output ProjYr'!$AU38,Calcs!$F$662:$AOS$662))/12 -> 27.96315122 | AY38: =(SUMIF(Calcs!$F$9:$AOS$9,'Output ProjYr'!$AU38,Calcs!$F$736:$AOS$736))/12 -> 52.64444918 | AZ38: =(SUMIF(Calcs!$F$9:$AOS$9,'Output ProjYr'!$AU38,Calcs!$F$810:$AOS$810))/12 -> 0 | BA38: =(SUMIF(Calcs!$F$9:$AOS$9,'Output ProjYr'!$AU38,Calcs!$F$884:$AOS$884))/12 -> 0 | BB38: =(SUMIF(Calcs!$F$9:$AOS$9,'Output ProjYr'!$AU38,Calcs!$F$958:$AOS$958))/12 -> 0 | BC38: =(SUMIF(Calcs!$F$9:$AOS$9,'Output ProjYr'!$AU38,Calcs!$F$1032:$AOS$1032))/12 -> 0 | BD38: =(SUMIF(Calcs!$F$9:$AOS$9,'Output ProjYr'!$AU38,Calcs!$F$1106:$AOS$1106))/12 -> 0 | BE38: =(SUMIF(Calcs!$F$9:$AOS$9,'Output ProjYr'!$AU38,Calcs!$F$1180:$AOS$1180))/12 -> 0 | BF38: 766 | BH38: 31 | BI38: =SUMIF(Calcs!$F$9:$AOS$9,'Output ProjYr'!$BH38,Calcs!$F$520:$AOS$520) -> 980 | BJ38: =SUMIF(Calcs!$F$9:$AOS$9,'Output ProjYr'!$BH38,Calcs!$F$594:$AOS$594) -> 3955.848086 | BK38: =SUMIF(Calcs!$F$9:$AOS$9,'Output ProjYr'!$BH38,Calcs!$F$668:$AOS$668) -> 3.95835617e-06 | BL38: =SUMIF(Calcs!$F$9:$AOS$9,'Output ProjYr'!$BH38,Calcs!$F$742:$AOS$742) -> 0 | BM38: =SUMIF(Calcs!$F$9:$AOS$9,'Output ProjYr'!$BH38,Calcs!$F$816:$AOS$816) -> 0 | BN38: =SUMIF(Calcs!$F$9:$AOS$9,'Output ProjYr'!$BH38,Calcs!$F$890:$AOS$890) -> 0 | BO38: =SUMIF(Calcs!$F$9:$AOS$9,'Output ProjYr'!$BH38,Calcs!$F$964:$AOS$964) -> 0 | BP38: =SUMIF(Calcs!$F$9:$AOS$9,'Output ProjYr'!$BH38,Calcs!$F$1038:$AOS$1038) -> 0 | BQ38: =SUMIF(Calcs!$F$9:$AOS$9,'Output ProjYr'!$BH38,Calcs!$F$1112:$AOS$1112) -> 0 | BR38: =SUMIF(Calcs!$F$9:$AOS$9,'Output ProjYr'!$BH38,Calcs!$F$1186:$AOS$1186) -> 0 | BS38: =SUMIF(Calcs!$F$9:$AOS$9,'Output ProjYr'!$BH38,Calcs!$F$1252:$AOS$1252) -> 0 | BT38: =SUMIF(Calcs!$F$9:$AOS$9,'Output ProjYr'!$BH38,Calcs!$F$1289:$AOS$1289) -> 0 | BU38: =SUMIF(Calcs!$F$9:$AOS$9,'Output ProjYr'!$BH38,Calcs!$F$1326:$AOS$1326) -> 8.416433275e-07 | BV38: =SUMIF(Calcs!$F$9:$AOS$9,'Output ProjYr'!$BH38,Calcs!$F$1363:$AOS$1363) -> 0 | BW38: =SUMIF(Calcs!$F$9:$AOS$9,'Output ProjYr'!$BH38,Calcs!$F$1400:$AOS$1400) -> 0 | BX38: =SUMIF(Calcs!$F$9:$AOS$9,'Output ProjYr'!$BH38,Calcs!$F$1437:$AOS$1437) -> 0 | BY38: =SUMIF(Calcs!$F$9:$AOS$9,'Output ProjYr'!$BH38,Calcs!$F$1474:$AOS$1474) -> 0 | BZ38: =SUMIF(Calcs!$F$9:$AOS$9,'Output ProjYr'!$BH38,Calcs!$F$1511:$AOS$1511) -> 0 | CA38: =SUMIF(Calcs!$F$9:$AOS$9,'Output ProjYr'!$BH38,Calcs!$F$1548:$AOS$1548) -> 0 | CB38: =SUMIF(Calcs!$F$9:$AOS$9,'Output ProjYr'!$BH38,Calcs!$F$1585:$AOS$1585) -> 0 | CC38: 4935.848091 | CE38: 31 | CF38: =SUMIF(Calcs!$F$9:$AOS$9,$CE38,Calcs!$F$521:$AOS$521) -> 883.3911198 | CG38: =SUMIF(Calcs!$F$9:$AOS$9,$CE38,Calcs!$F$595:$AOS$595) -> 3719.881748 | CH38: =SUMIF(Calcs!$F$9:$AOS$9,$CE38,Calcs!$F$669:$AOS$669) -> 3.68047446e-06 | CI38: =SUMIF(Calcs!$F$9:$AOS$9,$CE38,Calcs!$F$743:$AOS$743) -> 0 | CJ38: =SUMIF(Calcs!$F$9:$AOS$9,$CE38,Calcs!$F$817:$AOS$817) -> 0 | CK38: =SUMIF(Calcs!$F$9:$AOS$9,$CE38,Calcs!$F$891:$AOS$891) -> 0 | CL38: =SUMIF(Calcs!$F$9:$AOS$9,$CE38,Calcs!$F$965:$AOS$965) -> 0 | CM38: =SUMIF(Calcs!$F$9:$AOS$9,$CE38,Calcs!$F$1039:$AOS$1039) -> 0 | CN38: =SUMIF(Calcs!$F$9:$AOS$9,$CE38,Calcs!$F$1113:$AOS$1113) -> 0 | CO38: =SUMIF(Calcs!$F$9:$AOS$9,$CE38,Calcs!$F$1187:$AOS$1187) -> 0 | CP38: =SUMIF(Calcs!$F$9:$AOS$9,$CE38,Calcs!$F$1253:$AOS$1253) -> 0 | CQ38: =SUMIF(Calcs!$F$9:$AOS$9,$CE38,Calcs!$F$1290:$AOS$1290) -> 0 | CR38: =SUMIF(Calcs!$F$9:$AOS$9,$CE38,Calcs!$F$1327:$AOS$1327) -> 7.825588799e-07 | CS38: =SUMIF(Calcs!$F$9:$AOS$9,$CE38,Calcs!$F$1364:$AOS$1364) -> 0 | CT38: =SUMIF(Calcs!$F$9:$AOS$9,$CE38,Calcs!$F$1401:$AOS$1401) -> 0 | CU38: =SUMIF(Calcs!$F$9:$AOS$9,$CE38,Calcs!$F$1438:$AOS$1438) -> 0 | CV38: =SUMIF(Calcs!$F$9:$AOS$9,$CE38,Calcs!$F$1475:$AOS$1475) -> 0 | CW38: =SUMIF(Calcs!$F$9:$AOS$9,$CE38,Calcs!$F$1512:$AOS$1512) -> 0 | CX38: =SUMIF(Calcs!$F$9:$AOS$9,$CE38,Calcs!$F$1549:$AOS$1549) -> 0 | CY38: =SUMIF(Calcs!$F$9:$AOS$9,$CE38,Calcs!$F$1586:$AOS$1586) -> 0 | CZ38: 4603.272872 | DB38: 31 | DC38: =(SUMIF(Calcs!$F$9:$AOS$9,'Output ProjYr'!$DB38,Calcs!$F$567:$AOS$567))/1000000 -> 0 | DD38: =(SUMIF(Calcs!$F$9:$AOS$9,'Output ProjYr'!$DB38,Calcs!$F$641:$AOS$641))/1000000 -> 0 | DE38: =(SUMIF(Calcs!$F$9:$AOS$9,'Output ProjYr'!$DB38,Calcs!$F$715:$AOS$715))/1000000 -> 4.637222213e-08 | DF38: =(SUMIF(Calcs!$F$9:$AOS$9,'Output ProjYr'!$DB38,Calcs!$F$789:$AOS$789))/1000000 -> 0 | DG38: =(SUMIF(Calcs!$F$9:$AOS$9,'Output ProjYr'!$DB38,Calcs!$F$863:$AOS$863))/1000000 -> 0 | DH38: =(SUMIF(Calcs!$F$9:$AOS$9,'Output ProjYr'!$DB38,Calcs!$F$937:$AOS$937))/1000000 -> 0 | DI38: =(SUMIF(Calcs!$F$9:$AOS$9,'Output ProjYr'!$DB38,Calcs!$F$1011:$AOS$1011))/1000000 -> 0 | DJ38: =(SUMIF(Calcs!$F$9:$AOS$9,'Output ProjYr'!$DB38,Calcs!$F$1085:$AOS$1085))/1000000 -> 0 | DK38: =(SUMIF(Calcs!$F$9:$AOS$9,'Output ProjYr'!$DB38,Calcs!$F$1159:$AOS$1159))/1000000 -> 0 | DL38: =(SUMIF(Calcs!$F$9:$AOS$9,'Output ProjYr'!$DB38,Calcs!$F$1233:$AOS$1233))/1000000 -> 0 | DO38: =(SUMIF(Calcs!$F$9:$AOS$9,'Output ProjYr'!$DB38,Calcs!$F$1344:$AOS$1344))/1000000 -> 9.836016507e-09 | DV38: =(SUMIF(Calcs!$F$9:$AOS$9,'Output ProjYr'!$DB38,Calcs!$F$1603:$AOS$1603))/1000000 -> 0 | DW38: 5.620823864e-08
